Workbook

Sheet Home
V1: FALSE
B2: BCNRM simulation file | C2: C:\Users\Luis Tedeschi\Documents\National Academies\BCNRM2016\Feedlot case study 9.bcNRF
B3: Creator |:| Version |:| Date | C3: Luis Tedeschi |:| ORIGINAL Beef Cattle Nutrient Requirements Model 2016 Version 1.0.37.1 |:| 2016/Jun/15 23:03:11
AC4: 2 | AD4: 2 | AE4: 1 | AF4: 1
B5: Diet | D5: =IF(parmBasis=1,"Dry matter","As-fed basis") -> Dry matter | G5: ME & MP summary | I5: =Reports!D7 -> Metabolizable Energy (ME) | M5: =Reports!H7 -> Metabolizable Protein (MP) | Q5: Items | S5: Supplied | T5: Required | U5: Balance | AC5: 1 - Empirical Level of Solution | AD5: 1 - Metric | AE5: 1 - Dry matter basis | AF5: =IF(AND(Inputs!F58>0,Inputs!F59>0),"1 - Growing/Finishing (Grazing)","1 - Growing/Finishing") -> 1 - Growing/Finishing
B6: (ID) Feeds | D6: =Inputs!AA4 -> lb/d | E6: =Inputs!AB4 -> % DM | I6: =Reports!D8 -> Available | J6: =Reports!E8 -> Required | L6: =Reports!F8 -> Balance | M6: =Reports!H8 -> Available | N6: =Reports!I8 -> Required | O6: =Reports!J8 -> Balance | Q6: Ca | R6: g/d | S6: =Reports!Q30 -> 16.10269437 | T6: =Reports!Q37 -> 41.59723185 | U6: =Reports!Q38 -> -25.49453749 | AC6: 2 - Mechanistic Level of Solution | AD6: 2 - Imperial (English) | AE6: 2 - As-fed basis | AF6: =IF(AND(Inputs!F58>0,Inputs!F59>0),"2 - Lactating cow (Grazing)","2 - Lactating cow") -> 2 - Lactating cow
B7: =IF(Reports!C40<>"","("&TEXT(Reports!C40,"_)####")&") "&Reports!D40,Reports!D40) -> ( 301) Barley, Silage | D7: 5 | E7: =Inputs!AB5 -> 20.57613169 | I7: =Reports!D9 -> Mcal/d | J7: =Reports!E9 -> Mcal/d | L7: =Reports!F9 -> Mcal/d | M7: =Reports!H9 -> lb/d | N7: =Reports!I9 -> lb/d | O7: =Reports!J9 -> lb/d | Q7: P | R7: g/d | S7: =Reports!R30 -> 36.74135898 | T7: =Reports!R37 -> 22.13444351 | U7: =Reports!R38 -> 14.60691547 | AF7: =IF(AND(Inputs!F58>0,Inputs!F59>0),"3 - Dry cow (Grazing)","3 - Dry cow") -> 3 - Dry cow
B8: =IF(Reports!C41<>"","("&TEXT(Reports!C41,"_)####")&") "&Reports!D41,Reports!D41) -> ( 402) Barley Grain, Heavy | D8: 19 | E8: =Inputs!AB6 -> 78.18930041 | G8: =Reports!B10 -> Diet | I8: =Reports!D10 -> 31.28172655 | J8: =Reports!E10 -> 31.28172655 | L8: =Reports!F10 -> 0 | M8: =Reports!H10 -> 2.236133485 | N8: =Reports!I10 -> 1.705563208 | O8: =Reports!J10 -> 0.5305702767 | Q8: Mg | R8: g/d | S8: =Reports!S30 -> 14.65118389 | T8: =Reports!S37 -> 11.02240769 | U8: =Reports!S38 -> 3.628776195 | AF8: =IF(AND(Inputs!F58>0,Inputs!F59>0),"4 - Replacement heifer (Grazing)","4 - Replacement heifer") -> 4 - Replacement heifer
B9: =IF(Reports!C42<>"","("&TEXT(Reports!C42,"_)####")&") "&Reports!D42,Reports!D42) -> ( 800) Minerals | D9: 0.3 | E9: =Inputs!AB7 -> 1.234567901 | G9: =Reports!B11 -> Maintenance | I9: =Reports!D11 -> 31.28172655 | J9: =Reports!E11 -> 13.50686177 | L9: =Reports!F11 -> 17.77486478 | M9: =Reports!H11 -> 2.236133485 | N9: =Reports!I11 -> 0.8603868465 | O9: =Reports!J11 -> 1.375746639 | Q9: Cl | R9: g/d | S9: =Reports!T30 -> 28.39517373 | T9: =Reports!T37 -> 0 | U9: =Reports!T38 -> 28.39517373
B10: =IF(Reports!C43<>"","("&TEXT(Reports!C43,"_)####")&") "&Reports!D43,Reports!D43) ->  | D10: 0 | E10: =Inputs!AB8 -> 0 | G10: =Reports!B12 -> Pregnancy | I10: =Reports!D12 -> 17.77486478 | J10: =Reports!E12 -> 0 | L10: =Reports!F12 -> 17.77486478 | M10: =Reports!H12 -> 1.375746639 | N10: =Reports!I12 -> 0 | O10: =Reports!J12 -> 1.375746639 | Q10: K | R10: g/d | S10: =Reports!U30 -> 107.4117754 | T10: =Reports!U37 -> 66.13444616 | U10: =Reports!U38 -> 41.27732922
B11: =IF(Reports!C44<>"","("&TEXT(Reports!C44,"_)####")&") "&Reports!D44,Reports!D44) ->  | D11: 0 | E11: =Inputs!AB9 -> 0 | G11: =Reports!B13 -> Lactation | I11: =Reports!D13 -> 17.77486478 | J11: =Reports!E13 -> 0 | L11: =Reports!F13 -> 17.77486478 | M11: =Reports!H13 -> 1.375746639 | N11: =Reports!I13 -> 0 | O11: =Reports!J13 -> 1.375746639 | Q11: Na | R11: g/d | S11: =Reports!V30 -> 3.583416493 | T11: =Reports!V37 -> 7.715685385 | U11: =Reports!V38 -> -4.132268892
B12: =IF(Reports!C45<>"","("&TEXT(Reports!C45,"_)####")&") "&Reports!D45,Reports!D45) ->  | D12: 0 | E12: =Inputs!AB10 -> 0 | G12: =Reports!B14 -> Growth | I12: =Reports!D14 -> 17.77486478 | J12: =Reports!E14 -> 17.77486478 | L12: =Reports!F14 -> 0 | M12: =Reports!H14 -> 1.375746639 | N12: =Reports!I14 -> 0.8451763618 | O12: =Reports!J14 -> 0.5305702767 | Q12: S | R12: g/d | S12: =Reports!W30 -> 18.37067949 | T12: =Reports!W37 -> 16.53361154 | U12: =Reports!W38 -> 1.837067949
B13: =IF(Reports!C46<>"","("&TEXT(Reports!C46,"_)####")&") "&Reports!D46,Reports!D46) ->  | D13: 0 | E13: =Inputs!AB11 -> 0 | G13: =Reports!B15 -> Reserves | I13: =Reports!D15 -> 0 | J13: =Reports!E15 -> 0 | L13: =Reports!F15 -> 0 | M13: =Reports!H15 -> 0.5305702767 | N13: =Reports!I15 -> 0 | O13: =Reports!J15 -> 0.5305702767 | Q13: Co | R13: mg/d | S13: =Reports!X30 -> 4.6493695 | T13: =Reports!X37 -> 1.653361154 | U13: =Reports!X38 -> 2.996008346
B14: =IF(Reports!C47<>"","("&TEXT(Reports!C47,"_)####")&") "&Reports!D47,Reports!D47) ->  | D14: 0 | E14: =Inputs!AB12 -> 0 | Q14: Cu | R14: mg/d | S14: =Reports!Y30 -> 63.1407058 | T14: =Reports!Y37 -> 110.2240769 | U14: =Reports!Y38 -> -47.08337113
B15: =IF(Reports!C48<>"","("&TEXT(Reports!C48,"_)####")&") "&Reports!D48,Reports!D48) ->  | D15: 0 | E15: =Inputs!AB13 -> 0 | G15: =Reports!B16 -> ME allowable gain | I15: =Reports!D16 -> 3.456206174 | J15: =Reports!E16 -> lb/d | M15: =Reports!H26 -> lb/d | N15: =Reports!I26 -> %CP | O15: =Reports!J26 -> %DM | Q15: I | R15: mg/d | S15: =Reports!Z30 -> 0.4309171732 | T15: =Reports!Z37 -> 5.511203847 | U15: =Reports!Z38 -> -5.080286673
B16: =IF(Reports!C49<>"","("&TEXT(Reports!C49,"_)####")&") "&Reports!D49,Reports!D49) ->  | D16: 0 | E16: =Inputs!AB14 -> 0 | G16: =Reports!B17 -> MP allowable gain | I16: =Reports!D17 -> 5.625883828 | J16: =Reports!E17 -> lb/d | L16: =Reports!G27 -> RDP | M16: =Reports!H27 -> 2.245678821 | N16: =Reports!I27 -> 75.10631507 | O16: =Reports!J27 -> 9.241476628 | Q16: Fe | R16: mg/d | S16: =Reports!AA30 -> 1363.285857 | T16: =Reports!AA37 -> 551.1203847 | U16: =Reports!AA38 -> 812.1654722
B17: =IF(Reports!C50<>"","("&TEXT(Reports!C50,"_)####")&") "&Reports!D50,Reports!D50) ->  | D17: 0 | E17: =Inputs!AB15 -> 0 | G17: =Reports!B18 ->  | I17: =Reports!D18 ->  | J17: =Reports!E18 ->  | L17: =Reports!G28 -> RUP | M17: =Reports!H28 -> 0.7443211793 | N17: =Reports!I28 -> 24.89368493 | O17: =Reports!J28 -> 3.063050121 | Q17: Mn | R17: mg/d | S17: =Reports!AB30 -> 259.3214189 | T17: =Reports!AB37 -> 220.4481539 | U17: =Reports!AB38 -> 38.87326499
B18: =IF(Reports!C51<>"","("&TEXT(Reports!C51,"_)####")&") "&Reports!D51,Reports!D51) ->  | D18: 0 | E18: =Inputs!AB16 -> 0 | G18: =Reports!B19 ->  | I18: =Reports!D19 ->  | J18: =Reports!E19 ->  | L18: =Reports!G29 -> RDP:RUP | M18: =Reports!H29 -> 3.017083059 | N18: =Reports!I29 -> 0 | O18: =Reports!J29 -> 0 | Q18: Se | R18: mg/d | S18: =Reports!AC30 -> 1.891499592 | T18: =Reports!AC37 -> 1.102240769 | U18: =Reports!AC38 -> 0.7892588225
B19: =IF(Reports!C52<>"","("&TEXT(Reports!C52,"_)####")&") "&Reports!D52,Reports!D52) ->  | D19: 0 | E19: =Inputs!AB17 -> 0 | G19: =Reports!G17 -> DMI predicted | I19: =Reports!I17 -> 24.47857319 | J19: =Reports!J17 -> lb/d | L19: TDN and RDP allowable MCP | Q19: Zn | R19: mg/d | S19: =Reports!AD30 -> 167.6041005 | T19: =Reports!AD37 -> 330.6722308 | U19: =Reports!AD38 -> -163.0681303
B20: =IF(Reports!C53<>"","("&TEXT(Reports!C53,"_)####")&") "&Reports!D53,Reports!D53) ->  | D20: 0 | E20: =Inputs!AB18 -> 0 | G20: =Reports!G16 -> DMI actual | I20: =Reports!I16 -> 24.3 | J20: =Reports!J16 -> lb/d | L20: TDN allowable MCP | N20: =Reports!I32 -> 2.961842434 | O20: =Reports!J32 -> lb/d | Q20: Vit A | R20: 1000 IU/d | S20: =Reports!AE30 -> 32.74970516 | T20: =Reports!AE37 -> 24.24929692 | U20: =Reports!AE38 -> 8.500408237
B21: =IF(Reports!C54<>"","("&TEXT(Reports!C54,"_)####")&") "&Reports!D54,Reports!D54) ->  | D21: 0 | E21: =Inputs!AB19 -> 0 | G21: NDF intake actual | I21: =IF(SBW>0,Calc!AX84*100/SBW,0) -> 0.5701109099 | J21: % SBW | L21: RDP required | N21: =IF(parmUnit=1,1,2.2046)*IF(parmSolution=1,Calc!BH107,Calc!BC237) -> 2.961842434 | O21: =IF(parmUnit=1,"kg/d","lb/d") -> lb/d | Q21: Vit D | R21: 1000 IU/d | S21: =Reports!AF30 -> 0 | T21: =Reports!AF37 -> 3.031162116 | U21: =Reports!AF38 -> -3.031162116
B22: =IF(Reports!C55<>"","("&TEXT(Reports!C55,"_)####")&") "&Reports!D55,Reports!D55) ->  | D22: 0 | E22: =Inputs!AB20 -> 0 | G22: Water intake | I22: =IF(parmUnit=1,1,1/3.7854)*Calc!D192 -> 8.908839955 | J22: =IF(parmUnit=1,"L/d","gal/d") -> gal/d | L22: RDP available | N22: =IF(parmUnit=1,1,2.2046)*IF(parmSolution=1,Calc!BH108,Calc!BC238) -> 2.245678821 | O22: =IF(parmUnit=1,"kg/d","lb/d") -> lb/d | Q22: Vit E | R22: IU/d | S22: =Reports!AG30 -> 225.8005987 | T22: =Reports!AG37 -> 385.7842693 | U22: =Reports!AG38 -> -159.9836705
B23: =IF(Reports!C56<>"","("&TEXT(Reports!C56,"_)####")&") "&Reports!D56,Reports!D56) ->  | D23: 0 | E23: =Inputs!AB21 -> 0 | G23: Diet Summary | L23: RDP balance | N23: =Reports!I33 -> -0.716163613 | O23: =Reports!J33 -> lb/d | Q23: ARG | R23: g/d | S23: =Reports!Q68 -> 62.8542037 | T23: =Reports!Q75 -> 25.53006708 | U23: =Reports!Q76 -> 37.32413663
B24: =IF(Reports!C57<>"","("&TEXT(Reports!C57,"_)####")&") "&Reports!D57,Reports!D57) ->  | D24: 0 | E24: =Inputs!AB22 -> 0 | G24: =Reports!G18 -> Cost per day | I24: =Reports!I18 -> 1.486013986 | J24: $/d | L24: RDP allowable MCP | N24: =Reports!I34 -> 2.245678821 | O24: =Reports!J34 -> lb/d | Q24: HIS | R24: g/d | S24: =Reports!R68 -> 24.88710265 | T24: =Reports!R75 -> 19.34095991 | U24: =Reports!R76 -> 5.54614274
B25: =IF(Reports!C58<>"","("&TEXT(Reports!C58,"_)####")&") "&Reports!D58,Reports!D58) ->  | D25: 0 | E25: =Inputs!AB23 -> 0 | G25: =Reports!B21 -> Dry matter | I25: =Reports!D21 -> 69.99966426 | J25: =Reports!E21 -> %AF | Q25: ILE | R25: g/d | S25: =Reports!S68 -> 53.03202016 | T25: =Reports!S75 -> 21.66187509 | U25: =Reports!S76 -> 31.37014506
B26: =IF(Reports!C59<>"","("&TEXT(Reports!C59,"_)####")&") "&Reports!D59,Reports!D59) ->  | D26: 0 | E26: =Inputs!AB24 -> 0 | G26: =Reports!B22 -> Forage | I26: =Reports!D22 -> 20.57613169 | J26: =Reports!E22 -> %DM | L26: =Reports!B34 -> Source of Metabolizable Protein | Q26: LEU | R26: g/d | S26: =Reports!T68 -> 70.36515562 | T26: =Reports!T75 -> 51.83377255 | U26: =Reports!T76 -> 18.53138307
B27: =IF(Reports!C60<>"","("&TEXT(Reports!C60,"_)####")&") "&Reports!D60,Reports!D60) ->  | D27: 0 | E27: =Inputs!AB25 -> 0 | G27: Crude protein | I27: =Reports!D23 -> 12.30452675 | J27: =Reports!E23 -> %DM | L27: =Reports!B35 -> Bacteria | M27: =Reports!C35 -> 0.7947224403 | N27: =Reports!D35 -> 1.77710546 | O27: =Reports!E35 -> lb/d | Q27: LYS | R27: g/d | S27: =Reports!U68 -> 70.49708813 | T27: =Reports!U75 -> 49.51285736 | U27: =Reports!U76 -> 20.98423077
B28: =IF(Reports!C61<>"","("&TEXT(Reports!C61,"_)####")&") "&Reports!D61,Reports!D61) ->  | D28: 0 | E28: =Inputs!AB26 -> 0 | G28: =Reports!B24 -> Fat | I28: =Reports!D24 -> 2.259259259 | J28: =Reports!E24 -> %DM | L28: =Reports!B36 -> Feed | M28: =Reports!C36 -> 0.2052775597 | N28: =Reports!D36 -> 0.4590280249 | O28: =Reports!E36 -> lb/d | Q28: MET | R28: g/d | S28: =Reports!V68 -> 22.79059853 | T28: =Reports!V75 -> 15.47276792 | U28: =Reports!V76 -> 7.317830608
B29: Total | D29: =Inputs!AA27 -> 24.3 | E29: =Inputs!AB27 -> 100 | G29: =Reports!B25 -> Ash | I29: =Reports!D25 -> 5.226337449 | J29: =Reports!E25 -> %DM | L29: =Reports!B37 -> Total | N29: =Reports!D37 -> 2.236133485 | O29: =Reports!E37 -> lb/d | Q29: CYS | R29: g/d | S29: =Reports!W68 -> 0 | T29: –– | U29: ––
G30: NDF | I30: =Reports!D30 -> 24.87654321 | J30: =Reports!E30 -> %DM | L30: Ruminal Nitrogen Balance | Q30: PHE | R30: g/d | S30: =Reports!X68 -> 49.56721677 | T30: =Reports!X75 -> 27.07734387 | U30: =Reports!X76 -> 22.4898729
B31: Change ration intake to: | D31: 0 | E31: =Inputs!AB29 -> lb/d | G31: =Reports!B31 -> Lignin | I31: =Reports!D31 -> 2.129218107 | J31: =Reports!E31 -> %DM | L31: =Reports!G30 -> Ruminal N balance | N31: =Reports!I30 -> -0.1145861781 | O31: =Reports!J30 -> lb N/d | Q31: TYR | R31: g/d | S31: =Reports!Y68 -> 34.82307715 | T31: –– | U31: ––
B32: Scale ration intake to: | D32: 100 | E32: % | G32: =Reports!B26 -> Carbohydrate (CHO) | I32: =Reports!D26 -> 80.20987654 | J32: =Reports!E26 -> %DM | L32: =Reports!G31 -> Ruminal N balance | N32: =Reports!I31 -> -24.17966617 | O32: =Reports!J31 -> % of req. | Q32: THR | R32: g/d | S32: =Reports!Z68 -> 49.63381362 | T32: =Reports!Z75 -> 30.17189745 | U32: =Reports!Z76 -> 19.46191617
G33: =Reports!B27 -> Nonfiber CHO | I33: =Reports!D27 -> 55.33333333 | J33: =Reports!E27 -> %DM | Q33: TRP | R33: g/d | S33: =Reports!AA68 -> 14.92362211 | T33: =Reports!AA75 -> 4.641830377 | U33: =Reports!AA76 -> 10.28179173
B34: =Inputs!B16 -> Initial body weight | C34: IBW | D34: 872 | E34: =Inputs!E16 -> lb | G34: =Reports!B28 -> Sugars | I34: =Reports!D28 -> 0 | J34: =Reports!E28 -> %DM | L34: Diet Energy | Q34: VAL | R34: g/d | S34: =Reports!AB68 -> 56.64508561 | T34: =Reports!AB75 -> 30.94553585 | U34: =Reports!AB76 -> 25.69954976
B35: =Inputs!B17 -> Final body weight | C35: FBW | D35: 1337 | E35: =Inputs!E17 -> lb | G35: =Reports!B29 -> Starch | I35: =Reports!D29 -> 48.00041152 | J35: =Reports!E29 -> %DM | L35: Apparent TDN | N35: =Reports!I20 -> 76.71603864 | O35: =Reports!J20 -> % DM
G36: Pectin | I36: =Calc!BG41 -> 7.332921811 | J36: =Reports!E30 -> %DM | L36: Dietary DE | N36: =IF(parmSolution=1,IF(parmUnit=1,1,1/2.2046)*Calc!AV112,IF(parmUnit=1,1,1/2.2046)*Calc!AM308) -> 1.534599158 | O36: =IF(parmUnit=1,"Mcal/kg","Mcal/lb") -> Mcal/lb | Q36: Nitrogen Balance | T36: Methane (median)
B37: Solution type | G37: RDP(N):S ratio | I37: =IF(S12<>0,(M16/16)/S12,0) -> 0.007640159766 | L37: ME:DE | N37: =IF(parmSolution=1,IF(Calc!AV112>0,Calc!AL112*100/Calc!AV112,0),Calc!AN308) -> 82 | O37: % | Q37: Intake | R37: =Calc!DF7 -> 217.0008165 | S37: g/d | T37: =Reports!G36 -> 4.130871584 | U37: =Reports!H36 -> % GE
B38: Units | G38: Ca:P ratio | I38: =IF(S7<>0,S6/S7,0) -> 0.4382716049 | L38: Dietary ME | N38: =Reports!I21 -> 1.28731385 | O38: =Reports!J21 -> Mcal/lb | Q38: Retained | R38: =Calc!DF13 -> 30.17884569 | S38: g/d | T38: =Reports!G37 -> 9.055127477 | U38: =Reports!H37 -> mol/d
B39: Feed basis | G39: peNDF | I39: =Reports!D32 -> 11.56440329 | J39: =Reports!E32 -> %DM | L39: Dietary NEm | N39: =Reports!I22 -> 0.8602889073 | O39: =Reports!J22 -> Mcal/lb | Q39: Urinary | R39: =IF(parmSolution=1,Calc!DE14,Calc!DF14) -> 113.2091137 | S39: g/d | T39: =Reports!I36 -> 1.928872131 | U39: =Reports!J36 -> Mcal/d
B40: Animal type | G40: =IF(Inputs!F85>0,"Ruminal pH (user)","Ruminal pH (calc.)") -> Ruminal pH (calc.) | I40: =pH -> 5.899447325 | L40: Dietary NEg | N40: =Reports!I23 -> 0.5703516623 | O40: =Reports!J23 -> Mcal/lb | Q40: Fecal | R40: =IF(parmSolution=1,Calc!DF26,Calc!DF15) -> 73.61285707 | S40: g/d | T40: =Reports!I37 -> 5.962223853 | U40: =Reports!J37 -> g/lb DM

Sheet Inputs (hidden)
B2: Table 1. Settings | V2: Table 6. Feed imports | Z2: Table 7. Diet | AH2: Table 8. Feed composition | AX2: Empirical | BC2: Mechanistic | BK2: Amino Acids | BW2: Minerals and vitamins
C3: Acronym | D3: User | E3: Unit | F3: Metric | G3: Unit | H3: Description | K3: FALSE | Z3: Feed quantity as: | AA3: 1 | AC3: As-fed (AF) | AE3: Dry Matter (DM) | AH3: Locked | AI3: ID | AJ3: Feed name | AK3: Cost, AF | AL3: Forage | AM3: DM | AN3: CP | AO3: SP | AP3: ADICP | AQ3: Sugars | AR3: OA | AS3: Fat | AT3: Ash | AU3: Starch | AV3: NDF | AW3: Lignin | AX3: TDN 1x | AY3: ME 1x | AZ3: NEm 1x | BA3: NEg 1x | BB3: RUP 1x | BC3: kd PB | BD3: kd CB1 | BE3: kd CB2 | BF3: kd CB3 | BG3: PBID | BH3: CB1ID | BI3: CB2ID | BJ3: pef | BK3: ARG | BL3: HIS | BM3: ILE | BN3: LEU | BO3: LYS | BP3: MET | BQ3: CYS | BR3: PHE | BS3: TYR | BT3: THR | BU3: TRP | BV3: VAL | BW3: Ca | BX3: P | BY3: Mg | BZ3: Cl | CA3: K | CB3: Na | CC3: S | CD3: Co | CE3: Cu | CF3: I | CG3: Fe | CH3: Mn | CI3: Se | CJ3: Zn | CK3: VitA | CL3: VitD | CM3: VitE | CO3: Feed
B4: Solution type | D4: 2 | E4: =CHOOSE(parmSolution,"ELS","MLS") -> MLS | H4: 1:=Empirical, 2:=Mechanistic | K4: FALSE | V4: # | W4: ID | X4: Feed library feed's name | Z4: Feed name | AA4: =CHOOSE($AA$3,IF(parmUnit=1,"kg/d","lb/d"),IF(parmBasis=1,"% DM","% AF")) -> lb/d | AB4: =CHOOSE($AA$3,IF(parmBasis=1,"% DM","% AF"),IF(parmUnit=1,"kg/d","lb/d")) -> % DM | AC4: kg/d | AD4: % | AE4: kg/d | AF4: % | AK4: =AK37 -> $/Ton | AL4: %DM | AM4: %AF | AN4: %DM | AO4: %CP | AP4: %CP | AQ4: %DM | AR4: %DM | AS4: %DM | AT4: %DM | AU4: %DM | AV4: %DM | AW4: %DM | AX4: %DM | AY4: =AY37 -> Mcal/lb | AZ4: =AZ37 -> Mcal/lb | BA4: =BA37 -> Mcal/lb | BB4: %CP | BC4: %/h | BD4: %/h | BE4: %/h | BF4: %/h | BG4: % | BH4: % | BI4: % | BJ4: %NDF | BK4: %DM | BL4: %DM | BM4: %DM | BN4: %DM | BO4: %DM | BP4: %DM | BQ4: %DM | BR4: %DM | BS4: %DM | BT4: %DM | BU4: %DM | BV4: %DM | BW4: %DM | BX4: %DM | BY4: %DM | BZ4: %DM | CA4: %DM | CB4: %DM | CC4: %DM | CD4: mg/kg | CE4: mg/kg | CF4: mg/kg | CG4: mg/kg | CH4: mg/kg | CI4: mg/kg | CJ4: mg/kg | CK4: IU/g | CL4: IU/g | CM4: IU/kg | CO4: ID
B5: Unit system | D5: 2 | E5: =CHOOSE(parmUnit,"Metric","Imperial") -> Imperial | H5: 1:=Metric, 2:=Imperial (English) | K5: =IF(F25>VLOOKUP(Inputs!F20,Calc!$H$103:$L$106,4),MAX(VLOOKUP(Inputs!F20,Calc!$H$103:$L$106,5),VLOOKUP(Inputs!F20,Calc!$H$103:$L$106,4)-F25),0) -> 0 | V5: 1 | W5: 301 | X5: =IF(AH5=TRUE,IF(ISNUMBER(AI5),"*"&AJ5&"*",""),IF(ISNUMBER($W5),IF($W5<1000,IFERROR(VLOOKUP($W5,FeedLib[#All],2,FALSE),"!!! Feed not found !!!"),IFERROR(VLOOKUP($W5,FeedLibUser[#All],2,FALSE),"!!! Feed not found !!!")),IF(ISNUMBER(AI5),"*"&AJ5&"*",""))) -> *Barley, Silage* | Z5: =IF(AND(ISNUMBER(AI5),AJ5<>""),AJ5,"") -> Barley, Silage | AA5: 5 | AB5: =IF(AND(AJ5<>"",ISNUMBER(AA5),$AA$27>0),IF($AA$3=1,AA5*100/$AA$27,(AA5/100)*$AA$29),0) -> 20.57613169 | AC5: =IF(AND(AJ5<>"",ISNUMBER(AA5)),IF($AA$3=1,AA5,AB5)*IF(parmUnit=1,1,1/2.2046)*IF(parmBasis=2,1,IF(AND(AM5>0,ISNUMBER(AM5)),1/(AM5/100),0)),0) -> 5.815346467 | AD5: =IF(AND(AJ5<>"",ISNUMBER(AA5),$AC$27>0),AC5/$AC$27,0) -> 0.3693134128 | AE5: =IF(AND(AJ5<>"",ISNUMBER(AA5)),IF($AA$3=1,AA5,AB5)*IF(parmUnit=1,1,1/2.2046)*IF(parmBasis=2,IF(AND(AM5>0,ISNUMBER(AM5)),(AM5/100),0),1),0) -> 2.267985122 | AF5: =IF(AND(AJ5<>"",ISNUMBER(AA5),$AE$27>0),AE5/$AE$27,0) -> 0.2057613169 | AH5: TRUE | AI5: 301 | AJ5: Barley, Silage | AK5: 25 | AL5: 100 | AM5: 39 | AN5: 10.4 | AO5: 70 | AP5: 6.1 | AQ5: 0 | AR5: 0 | AS5: 3 | AT5: 8 | AU5: 14.06 | AV5: 48.7 | AW5: 3.09 | AX5: 60 | AY5: 0.98 | AZ5: 0.59 | BA5: 0.33 | BB5: 14 | BC5: 8.27 | BD5: 50 | BE5: 50 | BF5: 4 | BG5: 54 | BH5: 75 | BI5: 75 | BJ5: 65 | BK5: 0.15 | BL5: 0.16 | BM5: 0.32 | BN5: 0.57 | BO5: 0.32 | BP5: 0.15 | BQ5: 0 | BR5: 0.35 | BS5: 0 | BT5: 0.35 | BU5: 0.12 | BV5: 0.49 | BW5: 0.52 | BX5: 0.29 | BY5: 0.19 | BZ5: 0.15 | CA5: 2.57 | CB5: 0.12 | CC5: 0.24 | CD5: 0.72 | CE5: 7.7 | CF5: 0 | CG5: 375 | CH5: 44.8 | CI5: 0.15 | CJ5: 24.5 | CK5: 0 | CL5: 0 | CM5: 0 | CO5: =IF($AI5<>"",IF(ISNA(MATCH(IF($AI5<1000,$AI5+1000,$AI5),FeedLibUser[ID],0)),0,MATCH(IF($AI5<1000,$AI5+1000,$AI5),FeedLibUser[ID],0)),0) -> 0
B6: Feed basis | D6: 1 | E6: =CHOOSE(parmBasis,"DM","As-fed") -> DM | H6: 1:=Dry Matter, 2:=As-Fed | K6: FALSE | V6: 2 | W6: 402 | X6: =IF(AH6=TRUE,IF(ISNUMBER(AI6),"*"&AJ6&"*",""),IF(ISNUMBER($W6),IF($W6<1000,IFERROR(VLOOKUP($W6,FeedLib[#All],2,FALSE),"!!! Feed not found !!!"),IFERROR(VLOOKUP($W6,FeedLibUser[#All],2,FALSE),"!!! Feed not found !!!")),IF(ISNUMBER(AI6),"*"&AJ6&"*",""))) -> *Barley Grain, Heavy* | Z6: =IF(AND(ISNUMBER(AI6),AJ6<>""),AJ6,"") -> Barley Grain, Heavy | AA6: 19 | AB6: =IF(AND(AJ6<>"",ISNUMBER(AA6),$AA$27>0),IF($AA$3=1,AA6*100/$AA$27,(AA6/100)*$AA$29),0) -> 78.18930041 | AC6: 9.793572118 | AD6: =IF(AND(AJ6<>"",ISNUMBER(AA6),$AC$27>0),AC6/$AC$27,0) -> 0.6219573611 | AE6: 8.618343464 | AF6: =IF(AND(AJ6<>"",ISNUMBER(AA6),$AE$27>0),AE6/$AE$27,0) -> 0.7818930041 | AH6: TRUE | AI6: 402 | AJ6: Barley Grain, Heavy | AK6: 120 | AL6: 0 | AM6: 88 | AN6: 13 | AO6: 17 | AP6: 5 | AQ6: 0 | AR6: 0 | AS6: 2.1 | AT6: 3 | AU6: 57.69 | AV6: 19 | AW6: 1.91 | AX6: 84 | AY6: 1.38 | AZ6: 0.94 | BA6: 0.63 | BB6: 33.07 | BC6: 10.4 | BD6: 30 | BE6: 30 | BF6: 5 | BG6: 79.2 | BH6: 75 | BI6: 75 | BJ6: 34 | BK6: 0.43 | BL6: 0.2 | BM6: 0.35 | BN6: 0.61 | BO6: 0.27 | BP6: 0.07 | BQ6: 0 | BR6: 0.5 | BS6: 0 | BT6: 0.28 | BU6: 0.11 | BV6: 0.43 | BW6: 0.05 | BX6: 0.35 | BY6: 0.12 | BZ6: 0.29 | CA6: 0.57 | CB6: 0.01 | CC6: 0.15 | CD6: 0.35 | CE6: 5.3 | CF6: 0.05 | CG6: 59.5 | CH6: 18.3 | CI6: 0.18 | CJ6: 13 | CK6: 3.8 | CL6: 0 | CM6: 26.2 | CO6: =IF($AI6<>"",IF(ISNA(MATCH(IF($AI6<1000,$AI6+1000,$AI6),FeedLibUser[ID],0)),0,MATCH(IF($AI6<1000,$AI6+1000,$AI6),FeedLibUser[ID],0)),0) -> 0
B7: Animal class | D7: 1 | H7: 1:=Grow/Finish, 2:=Lactating, 3:=Dry, 4:=Replacement | V7: 3 | W7: 800 | X7: =IF(AH7=TRUE,IF(ISNUMBER(AI7),"*"&AJ7&"*",""),IF(ISNUMBER($W7),IF($W7<1000,IFERROR(VLOOKUP($W7,FeedLib[#All],2,FALSE),"!!! Feed not found !!!"),IFERROR(VLOOKUP($W7,FeedLibUser[#All],2,FALSE),"!!! Feed not found !!!")),IF(ISNUMBER(AI7),"*"&AJ7&"*",""))) -> *Minerals * | Z7: Minerals | AA7: 0.3 | AB7: 1.234567901 | AC7: 0.1374536438 | AD7: 0.008729226121 | AE7: 0.1360791073 | AF7: 0.01234567901 | AH7: TRUE | AI7: 800 | AJ7: Minerals | AK7: 200 | AL7: 0 | AM7: 99 | AN7: 0 | AO7: 0 | AP7: 0 | AQ7: 0 | AR7: 0 | AS7: 0 | AT7: 100 | AU7: 0 | AV7: 0 | AW7: 0 | AX7: 0 | AY7: 0 | AZ7: 0 | BA7: 0 | BB7: 100 | BC7: 0 | BD7: 0 | BE7: 0 | BF7: 0 | BG7: 0 | BH7: 0 | BI7: 75 | BJ7: 0 | BK7: 0 | BL7: 0 | BM7: 0 | BN7: 0 | BO7: 0 | BP7: 0 | BQ7: 0 | BR7: 0 | BS7: 0 | BT7: 0 | BU7: 0 | BV7: 0 | BW7: 0 | BX7: 0 | BY7: 0 | BZ7: 0 | CA7: 0 | CB7: 0 | CC7: 0 | CD7: 0 | CE7: 0 | CF7: 0 | CG7: 0 | CH7: 0 | CI7: 0 | CJ7: 0 | CK7: 0 | CL7: 0 | CM7: 0 | CO7: =IF($AI7<>"",IF(ISNA(MATCH(IF($AI7<1000,$AI7+1000,$AI7),FeedLibUser[ID],0)),0,MATCH(IF($AI7<1000,$AI7+1000,$AI7),FeedLibUser[ID],0)),0) -> 0
V8: 4 | X8: =IF(AH8=TRUE,IF(ISNUMBER(AI8),"*"&AJ8&"*",""),IF(ISNUMBER($W8),IF($W8<1000,IFERROR(VLOOKUP($W8,FeedLib[#All],2,FALSE),"!!! Feed not found !!!"),IFERROR(VLOOKUP($W8,FeedLibUser[#All],2,FALSE),"!!! Feed not found !!!")),IF(ISNUMBER(AI8),"*"&AJ8&"*",""))) ->  | AA8: 0 | AB8: 0 | AC8: 0 | AD8: 0 | AE8: 0 | AF8: 0 | AH8: FALSE | CO8: =IF($AI8<>"",IF(ISNA(MATCH(IF($AI8<1000,$AI8+1000,$AI8),FeedLibUser[ID],0)),0,MATCH(IF($AI8<1000,$AI8+1000,$AI8),FeedLibUser[ID],0)),0) -> 0
V9: 5 | X9: =IF(AH9=TRUE,IF(ISNUMBER(AI9),"*"&AJ9&"*",""),IF(ISNUMBER($W9),IF($W9<1000,IFERROR(VLOOKUP($W9,FeedLib[#All],2,FALSE),"!!! Feed not found !!!"),IFERROR(VLOOKUP($W9,FeedLibUser[#All],2,FALSE),"!!! Feed not found !!!")),IF(ISNUMBER(AI9),"*"&AJ9&"*",""))) ->  | AA9: 0 | AB9: 0 | AC9: 0 | AD9: 0 | AE9: 0 | AF9: 0 | AH9: FALSE | CO9: =IF($AI9<>"",IF(ISNA(MATCH(IF($AI9<1000,$AI9+1000,$AI9),FeedLibUser[ID],0)),0,MATCH(IF($AI9<1000,$AI9+1000,$AI9),FeedLibUser[ID],0)),0) -> 0
B10: Table 2. Animal | J10: Table 2.1. Breeds | V10: 6 | X10: =IF(AH10=TRUE,IF(ISNUMBER(AI10),"*"&AJ10&"*",""),IF(ISNUMBER($W10),IF($W10<1000,IFERROR(VLOOKUP($W10,FeedLib[#All],2,FALSE),"!!! Feed not found !!!"),IFERROR(VLOOKUP($W10,FeedLibUser[#All],2,FALSE),"!!! Feed not found !!!")),IF(ISNUMBER(AI10),"*"&AJ10&"*",""))) ->  | AA10: 0 | AB10: 0 | AC10: 0 | AD10: 0 | AE10: 0 | AF10: 0 | AH10: FALSE | CO10: =IF($AI10<>"",IF(ISNA(MATCH(IF($AI10<1000,$AI10+1000,$AI10),FeedLibUser[ID],0)),0,MATCH(IF($AI10<1000,$AI10+1000,$AI10),FeedLibUser[ID],0)),0) -> 0
B11: Item | C11: Acronym | D11: User | E11: Unit | F11: Metric | G11: Unit | H11: Description | J11: Code | K11: Breed | L11: BE | M11: L | N11: =IF(parmUnit=1,"CBW, kg","CBW, lb") -> CBW, lb | O11: =IF(parmUnit=1,"PKYD, kg","PKYD, lb") -> PKYD, lb | P11: MkFat | Q11: MkProt | R11: MkSNF | S11: %FBW | V11: 7 | X11: =IF(AH11=TRUE,IF(ISNUMBER(AI11),"*"&AJ11&"*",""),IF(ISNUMBER($W11),IF($W11<1000,IFERROR(VLOOKUP($W11,FeedLib[#All],2,FALSE),"!!! Feed not found !!!"),IFERROR(VLOOKUP($W11,FeedLibUser[#All],2,FALSE),"!!! Feed not found !!!")),IF(ISNUMBER(AI11),"*"&AJ11&"*",""))) ->  | AA11: 0 | AB11: 0 | AC11: 0 | AD11: 0 | AE11: 0 | AF11: 0 | AH11: FALSE | CO11: =IF($AI11<>"",IF(ISNA(MATCH(IF($AI11<1000,$AI11+1000,$AI11),FeedLibUser[ID],0)),0,MATCH(IF($AI11<1000,$AI11+1000,$AI11),FeedLibUser[ID],0)),0) -> 0
B12: Age | D12: 14 | F12: =D12 -> 14 | G12: mo | H12: Used to calculate tissue insulation | J12: 1 | K12: Angus | L12: 1 | M12: 1.2 | N12: =31*IF(parmUnit=1,1,2.2046) -> 68.3426 | O12: =8*IF(parmUnit=1,1,2.2046) -> 17.6368 | P12: 4 | Q12: 3.8 | R12: 8.3 | S12: 0.6 | V12: 8 | X12: =IF(AH12=TRUE,IF(ISNUMBER(AI12),"*"&AJ12&"*",""),IF(ISNUMBER($W12),IF($W12<1000,IFERROR(VLOOKUP($W12,FeedLib[#All],2,FALSE),"!!! Feed not found !!!"),IFERROR(VLOOKUP($W12,FeedLibUser[#All],2,FALSE),"!!! Feed not found !!!")),IF(ISNUMBER(AI12),"*"&AJ12&"*",""))) ->  | AA12: 0 | AB12: 0 | AC12: 0 | AD12: 0 | AE12: 0 | AF12: 0 | AH12: FALSE | CO12: =IF($AI12<>"",IF(ISNA(MATCH(IF($AI12<1000,$AI12+1000,$AI12),FeedLibUser[ID],0)),0,MATCH(IF($AI12<1000,$AI12+1000,$AI12),FeedLibUser[ID],0)),0) -> 0
B13: Age class (for DMI & WC) | D13: 2 | F13: =D13 -> 2 | H13: 1:=Calves, 2:=Yearlings | J13: 2 | K13: Braford | L13: 0.95 | M13: 1.2 | N13: =36*IF(parmUnit=1,1,2.2046) -> 79.3656 | O13: =7*IF(parmUnit=1,1,2.2046) -> 15.4322 | P13: 4 | Q13: 3.8 | R13: 8.3 | S13: 0.55 | V13: 9 | X13: =IF(AH13=TRUE,IF(ISNUMBER(AI13),"*"&AJ13&"*",""),IF(ISNUMBER($W13),IF($W13<1000,IFERROR(VLOOKUP($W13,FeedLib[#All],2,FALSE),"!!! Feed not found !!!"),IFERROR(VLOOKUP($W13,FeedLibUser[#All],2,FALSE),"!!! Feed not found !!!")),IF(ISNUMBER(AI13),"*"&AJ13&"*",""))) ->  | AA13: 0 | AB13: 0 | AC13: 0 | AD13: 0 | AE13: 0 | AF13: 0 | AH13: FALSE | CO13: =IF($AI13<>"",IF(ISNA(MATCH(IF($AI13<1000,$AI13+1000,$AI13),FeedLibUser[ID],0)),0,MATCH(IF($AI13<1000,$AI13+1000,$AI13),FeedLibUser[ID],0)),0) -> 0
B14: Sex | D14: 2 | F14: =D14 -> 2 | H14: 1:=Bull, 2:=Steer, 3:=Heifer, 4:=Cow | J14: 3 | K14: Brahman | L14: 0.9 | M14: 1.2 | N14: =31*IF(parmUnit=1,1,2.2046) -> 68.3426 | O14: =8*IF(parmUnit=1,1,2.2046) -> 17.6368 | P14: 4 | Q14: 3.8 | R14: 8.3 | S14: 0.55 | V14: 10 | X14: =IF(AH14=TRUE,IF(ISNUMBER(AI14),"*"&AJ14&"*",""),IF(ISNUMBER($W14),IF($W14<1000,IFERROR(VLOOKUP($W14,FeedLib[#All],2,FALSE),"!!! Feed not found !!!"),IFERROR(VLOOKUP($W14,FeedLibUser[#All],2,FALSE),"!!! Feed not found !!!")),IF(ISNUMBER(AI14),"*"&AJ14&"*",""))) ->  | AA14: 0 | AB14: 0 | AC14: 0 | AD14: 0 | AE14: 0 | AF14: 0 | AH14: FALSE | CO14: =IF($AI14<>"",IF(ISNA(MATCH(IF($AI14<1000,$AI14+1000,$AI14),FeedLibUser[ID],0)),0,MATCH(IF($AI14<1000,$AI14+1000,$AI14),FeedLibUser[ID],0)),0) -> 0
B15: Body condition score | C15: BCS | D15: 5 | F15: =D15 -> 5 | H15: 1:=Emaciated, 2:=Very thin, … , 8:=Fat, 9:=Very fat | J15: 4 | K15: Brangus | L15: 0.95 | M15: 1.2 | N15: =33*IF(parmUnit=1,1,2.2046) -> 72.7518 | O15: =8*IF(parmUnit=1,1,2.2046) -> 17.6368 | P15: 4 | Q15: 3.8 | R15: 8.3 | S15: 0.62 | V15: 11 | X15: =IF(AH15=TRUE,IF(ISNUMBER(AI15),"*"&AJ15&"*",""),IF(ISNUMBER($W15),IF($W15<1000,IFERROR(VLOOKUP($W15,FeedLib[#All],2,FALSE),"!!! Feed not found !!!"),IFERROR(VLOOKUP($W15,FeedLibUser[#All],2,FALSE),"!!! Feed not found !!!")),IF(ISNUMBER(AI15),"*"&AJ15&"*",""))) ->  | AA15: 0 | AB15: 0 | AC15: 0 | AD15: 0 | AE15: 0 | AF15: 0 | AH15: FALSE | CO15: =IF($AI15<>"",IF(ISNA(MATCH(IF($AI15<1000,$AI15+1000,$AI15),FeedLibUser[ID],0)),0,MATCH(IF($AI15<1000,$AI15+1000,$AI15),FeedLibUser[ID],0)),0) -> 0
B16: Initial body weight | C16: IBW | D16: 872 | E16: =CHOOSE(parmUnit,"kg","lb") -> lb | F16: =D16*IF(parmUnit=1,1,1/2.2046) -> 395.5366053 | G16: kg | H16: Live or full (unshrunk) initial BW of the feeding period | J16: 5 | K16: Braunvieh | L16: 1.2 | M16: 1 | N16: =39*IF(parmUnit=1,1,2.2046) -> 85.9794 | O16: =12*IF(parmUnit=1,1,2.2046) -> 26.4552 | P16: 4 | Q16: 3.8 | R16: 8.3 | S16: 0.62 | V16: 12 | X16: =IF(AH16=TRUE,IF(ISNUMBER(AI16),"*"&AJ16&"*",""),IF(ISNUMBER($W16),IF($W16<1000,IFERROR(VLOOKUP($W16,FeedLib[#All],2,FALSE),"!!! Feed not found !!!"),IFERROR(VLOOKUP($W16,FeedLibUser[#All],2,FALSE),"!!! Feed not found !!!")),IF(ISNUMBER(AI16),"*"&AJ16&"*",""))) ->  | AA16: 0 | AB16: 0 | AC16: 0 | AD16: 0 | AE16: 0 | AF16: 0 | AH16: FALSE | CO16: =IF($AI16<>"",IF(ISNA(MATCH(IF($AI16<1000,$AI16+1000,$AI16),FeedLibUser[ID],0)),0,MATCH(IF($AI16<1000,$AI16+1000,$AI16),FeedLibUser[ID],0)),0) -> 0
B17: Final body weight | C17: FBW | D17: 1337 | E17: =CHOOSE(parmUnit,"kg","lb") -> lb | F17: =D17*IF(parmUnit=1,1,1/2.2046) -> 606.4592216 | G17: kg | H17: Live or full (unshrunk) final BW of the feeding period | J17: 6 | K17: Canchim | L17: 0.9 | M17: 1.2 | N17: =32*IF(parmUnit=1,1,2.2046) -> 70.5472 | O17: =6*IF(parmUnit=1,1,2.2046) -> 13.2276 | P17: 4 | Q17: 3.8 | R17: 8.3 | S17: 0.62 | V17: 13 | X17: =IF(AH17=TRUE,IF(ISNUMBER(AI17),"*"&AJ17&"*",""),IF(ISNUMBER($W17),IF($W17<1000,IFERROR(VLOOKUP($W17,FeedLib[#All],2,FALSE),"!!! Feed not found !!!"),IFERROR(VLOOKUP($W17,FeedLibUser[#All],2,FALSE),"!!! Feed not found !!!")),IF(ISNUMBER(AI17),"*"&AJ17&"*",""))) ->  | AA17: 0 | AB17: 0 | AC17: 0 | AD17: 0 | AE17: 0 | AF17: 0 | AH17: FALSE | CO17: =IF($AI17<>"",IF(ISNA(MATCH(IF($AI17<1000,$AI17+1000,$AI17),FeedLibUser[ID],0)),0,MATCH(IF($AI17<1000,$AI17+1000,$AI17),FeedLibUser[ID],0)),0) -> 0
B18: Mature body weight | C18: MW | D18: 1337 | E18: =CHOOSE(parmUnit,"kg","lb") -> lb | F18: =D18*IF(parmUnit=1,1,1/2.2046) -> 606.4592216 | G18: kg | H18: Current animal's full BW at reference animal's EBF | J18: 7 | K18: Charolais | L18: 1 | M18: 1.2 | N18: =39*IF(parmUnit=1,1,2.2046) -> 85.9794 | O18: =9*IF(parmUnit=1,1,2.2046) -> 19.8414 | P18: 4 | Q18: 3.8 | R18: 8.3 | S18: 0.57 | V18: 14 | X18: =IF(AH18=TRUE,IF(ISNUMBER(AI18),"*"&AJ18&"*",""),IF(ISNUMBER($W18),IF($W18<1000,IFERROR(VLOOKUP($W18,FeedLib[#All],2,FALSE),"!!! Feed not found !!!"),IFERROR(VLOOKUP($W18,FeedLibUser[#All],2,FALSE),"!!! Feed not found !!!")),IF(ISNUMBER(AI18),"*"&AJ18&"*",""))) ->  | AA18: 0 | AB18: 0 | AC18: 0 | AD18: 0 | AE18: 0 | AF18: 0 | AH18: FALSE | CO18: =IF($AI18<>"",IF(ISNA(MATCH(IF($AI18<1000,$AI18+1000,$AI18),FeedLibUser[ID],0)),0,MATCH(IF($AI18<1000,$AI18+1000,$AI18),FeedLibUser[ID],0)),0) -> 0
B19: Reference animal's EBF | D19: 3 | F19: =D19 -> 3 | H19: EBF: 1:=22%, 2:=25% (Std), 3:=27% (Sel), 4:=28% (Ch-) | J19: 8 | K19: Chianina | L19: 1 | M19: 1.2 | N19: =41*IF(parmUnit=1,1,2.2046) -> 90.3886 | O19: =6*IF(parmUnit=1,1,2.2046) -> 13.2276 | P19: 4 | Q19: 3.8 | R19: 8.3 | S19: 0.65 | V19: 15 | X19: =IF(AH19=TRUE,IF(ISNUMBER(AI19),"*"&AJ19&"*",""),IF(ISNUMBER($W19),IF($W19<1000,IFERROR(VLOOKUP($W19,FeedLib[#All],2,FALSE),"!!! Feed not found !!!"),IFERROR(VLOOKUP($W19,FeedLibUser[#All],2,FALSE),"!!! Feed not found !!!")),IF(ISNUMBER(AI19),"*"&AJ19&"*",""))) ->  | AA19: 0 | AB19: 0 | AC19: 0 | AD19: 0 | AE19: 0 | AF19: 0 | AH19: FALSE | CO19: =IF($AI19<>"",IF(ISNA(MATCH(IF($AI19<1000,$AI19+1000,$AI19),FeedLibUser[ID],0)),0,MATCH(IF($AI19<1000,$AI19+1000,$AI19),FeedLibUser[ID],0)),0) -> 0
B20: Breed type | D20: 2 | F20: 2 | H20: 1:=Dual-purpose, 2:=Bos taurus, 3:=Bos indicus, 4:=Dairy | J20: 9 | K20: Devon | L20: 1 | M20: 1 | N20: 32 | O20: 8 | P20: 3.5 | Q20: 3.3 | R20: 8.3 | S20: 0.6 | V20: 16 | X20: =IF(AH20=TRUE,IF(ISNUMBER(AI20),"*"&AJ20&"*",""),IF(ISNUMBER($W20),IF($W20<1000,IFERROR(VLOOKUP($W20,FeedLib[#All],2,FALSE),"!!! Feed not found !!!"),IFERROR(VLOOKUP($W20,FeedLibUser[#All],2,FALSE),"!!! Feed not found !!!")),IF(ISNUMBER(AI20),"*"&AJ20&"*",""))) ->  | Z20: =IF(AND(ISNUMBER(AI20),AJ20<>""),AJ20,"") ->  | AA20: 0 | AB20: 0 | AC20: 0 | AD20: =IF(AND(AJ20<>"",ISNUMBER(AA20),$AC$27>0),AC20/$AC$27,0) -> 0 | AE20: 0 | AF20: =IF(AND(AJ20<>"",ISNUMBER(AA20),$AE$27>0),AE20/$AE$27,0) -> 0 | AH20: FALSE | CO20: =IF($AI20<>"",IF(ISNA(MATCH(IF($AI20<1000,$AI20+1000,$AI20),FeedLibUser[ID],0)),0,MATCH(IF($AI20<1000,$AI20+1000,$AI20),FeedLibUser[ID],0)),0) -> 0
B21: Breeding system | D21: 2 | F21: 2 | H21: 1:=Straightbred, 2:=2-Way X, 3:=3-Way X | J21: 10 | K21: Galloway | L21: 1 | M21: 1.2 | N21: =36*IF(parmUnit=1,1,2.2046) -> 79.3656 | O21: =8*IF(parmUnit=1,1,2.2046) -> 17.6368 | P21: 4 | Q21: 3.8 | R21: 8.3 | S21: 0.6 | V21: 17 | X21: =IF(AH21=TRUE,IF(ISNUMBER(AI21),"*"&AJ21&"*",""),IF(ISNUMBER($W21),IF($W21<1000,IFERROR(VLOOKUP($W21,FeedLib[#All],2,FALSE),"!!! Feed not found !!!"),IFERROR(VLOOKUP($W21,FeedLibUser[#All],2,FALSE),"!!! Feed not found !!!")),IF(ISNUMBER(AI21),"*"&AJ21&"*",""))) ->  | AA21: 0 | AB21: 0 | AC21: 0 | AD21: 0 | AE21: 0 | AF21: 0 | AH21: FALSE | CO21: =IF($AI21<>"",IF(ISNA(MATCH(IF($AI21<1000,$AI21+1000,$AI21),FeedLibUser[ID],0)),0,MATCH(IF($AI21<1000,$AI21+1000,$AI21),FeedLibUser[ID],0)),0) -> 0
B22: =CHOOSE(F21," Breed"," Dam's breed", " Sire's breed") -> Dam's breed | D22: 14 | F22: 14 | H22: =VLOOKUP(F22,$J$12:$K$42,2) -> Hereford | J22: 11 | K22: Gelbvieh | L22: 1 | M22: 1 | N22: =39*IF(parmUnit=1,1,2.2046) -> 85.9794 | O22: =11.5*IF(parmUnit=1,1,2.2046) -> 25.3529 | P22: 4 | Q22: 3.8 | R22: 8.3 | S22: 0.55 | V22: 18 | X22: =IF(AH22=TRUE,IF(ISNUMBER(AI22),"*"&AJ22&"*",""),IF(ISNUMBER($W22),IF($W22<1000,IFERROR(VLOOKUP($W22,FeedLib[#All],2,FALSE),"!!! Feed not found !!!"),IFERROR(VLOOKUP($W22,FeedLibUser[#All],2,FALSE),"!!! Feed not found !!!")),IF(ISNUMBER(AI22),"*"&AJ22&"*",""))) ->  | AA22: 0 | AB22: 0 | AC22: 0 | AD22: 0 | AE22: 0 | AF22: 0 | AH22: FALSE | CO22: =IF($AI22<>"",IF(ISNA(MATCH(IF($AI22<1000,$AI22+1000,$AI22),FeedLibUser[ID],0)),0,MATCH(IF($AI22<1000,$AI22+1000,$AI22),FeedLibUser[ID],0)),0) -> 0
B23: =CHOOSE(F21," *N/A*"," Sire's breed", " Maternal grandsire's breed") -> Sire's breed | D23: 7 | F23: 7 | H23: =IF(OR(F21=2,F21=3),VLOOKUP(F23,$J$12:$K$42,2),"*N/A*") -> Charolais | J23: 12 | K23: Gir | L23: 0.9 | M23: 1.2 | N23: =32*IF(parmUnit=1,1,2.2046) -> 70.5472 | O23: =10*IF(parmUnit=1,1,2.2046) -> 22.046 | P23: 4 | Q23: 3.8 | R23: 8.3 | S23: 0.65 | V23: 19 | X23: =IF(AH23=TRUE,IF(ISNUMBER(AI23),"*"&AJ23&"*",""),IF(ISNUMBER($W23),IF($W23<1000,IFERROR(VLOOKUP($W23,FeedLib[#All],2,FALSE),"!!! Feed not found !!!"),IFERROR(VLOOKUP($W23,FeedLibUser[#All],2,FALSE),"!!! Feed not found !!!")),IF(ISNUMBER(AI23),"*"&AJ23&"*",""))) ->  | AA23: 0 | AB23: 0 | AC23: 0 | AD23: 0 | AE23: 0 | AF23: 0 | AH23: FALSE | CO23: =IF($AI23<>"",IF(ISNA(MATCH(IF($AI23<1000,$AI23+1000,$AI23),FeedLibUser[ID],0)),0,MATCH(IF($AI23<1000,$AI23+1000,$AI23),FeedLibUser[ID],0)),0) -> 0
B24: =CHOOSE(F21," *N/A*"," *N/A*", " Maternal granddam's breed") -> *N/A* | D24: 1 | F24: 1 | H24: =IF(F21=3,VLOOKUP(F24,$J$12:$K$42,2),"*N/A*") -> *N/A* | J24: 13 | K24: Guzerat | L24: 0.9 | M24: 1.2 | N24: =32*IF(parmUnit=1,1,2.2046) -> 70.5472 | O24: =5*IF(parmUnit=1,1,2.2046) -> 11.023 | P24: 4 | Q24: 3.8 | R24: 8.3 | S24: 0.65 | V24: 20 | X24: =IF(AH24=TRUE,IF(ISNUMBER(AI24),"*"&AJ24&"*",""),IF(ISNUMBER($W24),IF($W24<1000,IFERROR(VLOOKUP($W24,FeedLib[#All],2,FALSE),"!!! Feed not found !!!"),IFERROR(VLOOKUP($W24,FeedLibUser[#All],2,FALSE),"!!! Feed not found !!!")),IF(ISNUMBER(AI24),"*"&AJ24&"*",""))) ->  | AA24: 0 | AB24: 0 | AC24: 0 | AD24: 0 | AE24: 0 | AF24: 0 | AH24: FALSE | CO24: =IF($AI24<>"",IF(ISNA(MATCH(IF($AI24<1000,$AI24+1000,$AI24),FeedLibUser[ID],0)),0,MATCH(IF($AI24<1000,$AI24+1000,$AI24),FeedLibUser[ID],0)),0) -> 0
B25: Days pregnant | C25: DP | D25: 0 | F25: 0 | G25: days | H25: =IF(OR(F14=3,F14=4),"Estimated DP is "&TEXT(IF(F27>F31*365/12-VLOOKUP(Inputs!F20,Calc!$H$103:$L$106,4),MIN(VLOOKUP(Inputs!F20,Calc!$H$103:$L$106,4),F27-(F31*365/12-VLOOKUP(Inputs!F20,Calc!$H$103:$L$106,4))),"*N/A*"),"##0")&" days","*N/A*") -> *N/A* | J25: 14 | K25: Hereford | L25: 1 | M25: 1 | N25: =36*IF(parmUnit=1,1,2.2046) -> 79.3656 | O25: =7*IF(parmUnit=1,1,2.2046) -> 15.4322 | P25: 4 | Q25: 3.8 | R25: 8.3 | S25: 0.6 | V25: 21 | X25: =IF(AH25=TRUE,IF(ISNUMBER(AI25),"*"&AJ25&"*",""),IF(ISNUMBER($W25),IF($W25<1000,IFERROR(VLOOKUP($W25,FeedLib[#All],2,FALSE),"!!! Feed not found !!!"),IFERROR(VLOOKUP($W25,FeedLibUser[#All],2,FALSE),"!!! Feed not found !!!")),IF(ISNUMBER(AI25),"*"&AJ25&"*",""))) ->  | AA25: 0 | AB25: 0 | AC25: 0 | AD25: 0 | AE25: 0 | AF25: 0 | AH25: FALSE | CO25: =IF($AI25<>"",IF(ISNA(MATCH(IF($AI25<1000,$AI25+1000,$AI25),FeedLibUser[ID],0)),0,MATCH(IF($AI25<1000,$AI25+1000,$AI25),FeedLibUser[ID],0)),0) -> 0
B26: Calf birth weight | C26: CBW | D26: 0 | E26: =CHOOSE(parmUnit,"kg","lb") -> lb | F26: =D26*IF(parmUnit=1,1,1/2.2046) -> 0 | G26: kg | H26: =IF(OR(F14=3,F14=4),"Recommended is " & TEXT(N49,"#0.0") & IF(parmUnit=1," kg "," lb "),"*N/A*") -> *N/A* | J26: 15 | K26: Holstein | L26: 1.2 | M26: 1 | N26: =43*IF(parmUnit=1,1,2.2046) -> 94.7978 | O26: =43*IF(parmUnit=1,1,2.2046) -> 94.7978 | P26: 3.5 | Q26: 3.3 | R26: 8.3 | S26: 0.55 | V26: 22 | X26: =IF(AH26=TRUE,IF(ISNUMBER(AI26),"*"&AJ26&"*",""),IF(ISNUMBER($W26),IF($W26<1000,IFERROR(VLOOKUP($W26,FeedLib[#All],2,FALSE),"!!! Feed not found !!!"),IFERROR(VLOOKUP($W26,FeedLibUser[#All],2,FALSE),"!!! Feed not found !!!")),IF(ISNUMBER(AI26),"*"&AJ26&"*",""))) ->  | AA26: 0 | AB26: 0 | AC26: 0 | AD26: 0 | AE26: 0 | AF26: 0 | AH26: FALSE | CO26: =IF($AI26<>"",IF(ISNA(MATCH(IF($AI26<1000,$AI26+1000,$AI26),FeedLibUser[ID],0)),0,MATCH(IF($AI26<1000,$AI26+1000,$AI26),FeedLibUser[ID],0)),0) -> 0
B27: Days since calving | C27: DIM | D27: 0 | F27: =D27 -> 0 | G27: days | H27: =IF(F14=4,"Estimated DIM is "&TEXT(IF(F25<VLOOKUP(Inputs!F20,Calc!$H$103:$L$106,4),IF(F25+F31*365/12-VLOOKUP(Inputs!F20,Calc!$H$103:$L$106,4)<=VLOOKUP(Inputs!F20,Calc!$H$103:$L$106,5),F25+F31*365/12-VLOOKUP(Inputs!F20,Calc!$H$103:$L$106,4),0),F25-VLOOKUP(Inputs!F20,Calc!$H$103:$L$106,4)),"##0") & " days","*N/A*") -> *N/A* | J27: 16 | K27: Jersey | L27: 1.2 | M27: 1 | N27: =32*IF(parmUnit=1,1,2.2046) -> 70.5472 | O27: =34*IF(parmUnit=1,1,2.2046) -> 74.9564 | P27: 5.2 | Q27: 3.9 | R27: 8.3 | S27: 0.55 | V27: Count | W27: =COUNTIF(W5:W26,"<>")-COUNTIF(X5:X26,"=!!! Feed not found !!!") -> 3 | Z27: Diet (sum or average) | AA27: =SUMIF(Z5:Z26,"><",AA5:AA26) -> 24.3 | AB27: =SUM(AB5:AB26) -> 100 | AC27: =SUM(AC5:AC26) -> 15.74637223 | AD27: =SUM(AD5:AD26) -> 1 | AE27: =SUM(AE5:AE26) -> 11.02240769 | AF27: =SUM(AF5:AF26) -> 1 | AH27: Diet (sum or average) | AK27: =SUMPRODUCT($AD$5:$AD$26,AK5:AK26) -> 85.61356387 | AL27: =SUMPRODUCT($AF$5:$AF$26,AL5:AL26) -> 20.57613169 | AM27: =SUMPRODUCT($AD$5:$AD$26,AM5:AM26) -> 69.99966426 | AN27: =SUMPRODUCT($AF$5:$AF$26,AN5:AN26) -> 12.30452675 | AO27: =SUMPRODUCT($AF$5:$AF$26,$AN$5:$AN$26,AO5:AO26)/$AN$27 -> 26.2173913 | AP27: =SUMPRODUCT($AF$5:$AF$26,$AN$5:$AN$26,AP5:AP26)/$AN$27 -> 5.191304348 | AQ27: =SUMPRODUCT($AF$5:$AF$26,AQ5:AQ26) -> 0 | AR27: =SUMPRODUCT($AF$5:$AF$26,AR5:AR26) -> 0 | AS27: 2.259259259 | AT27: =SUMPRODUCT($AF$5:$AF$26,AT5:AT26) -> 5.226337449 | AU27: 48.00041152 | AV27: 24.87654321 | AW27: 2.129218107 | AX27: 78.02469136 | AY27: =SUMPRODUCT($AF$5:$AF$26,AY5:AY26) -> 1.280658436 | AZ27: =SUMPRODUCT($AF$5:$AF$26,AZ5:AZ26) -> 0.8563786008 | BA27: =SUMPRODUCT($AF$5:$AF$26,BA5:BA26) -> 0.5604938272 | BB27: =SUMPRODUCT($AF$5:$AF$26,$AN$5:$AN$26,BB5:BB26)/$AN$27 -> 29.75347826 | BC27: — | BD27: — | BE27: — | BF27: — | BG27: — | BH27: — | BI27: — | BJ27: =SUMPRODUCT($AF$5:$AF$26,$AV$5:$AV$26,BJ5:BJ26)/$AV$27 -> 46.48717949 | BK27: =SUMPRODUCT($AF$5:$AF$26,BK5:BK26) -> 0.3670781893 | BL27: 0.1893004115 | BM27: 0.3395061728 | BN27: 0.5942386831 | BO27: 0.2769547325 | BP27: 0.08559670782 | BQ27: 0 | BR27: 0.462962963 | BS27: 0 | BT27: 0.2909465021 | BU27: 0.1106995885 | BV27: 0.437037037 | BW27: 0.146090535 | BX27: 0.3333333333 | BY27: 0.1329218107 | BZ27: 0.2576131687 | CA27: 0.9744855967 | CB27: 0.03251028807 | CC27: 0.1666666667 | CD27: 0.4218106996 | CE27: 5.728395062 | CF27: 0.03909465021 | CG27: 123.6831276 | CH27: 23.52674897 | CI27: 0.1716049383 | CJ27: 15.20576132 | CK27: 2.971193416 | CL27: 0 | CM27: 20.48559671
B28: Relative milk yield | C28: RMY | D28: 5 | F28: =D28 -> 5 | H28: =IF(OR(F14=3,F14=4),"1:=Low, …, 5:=Average, …, 9:=High","*N/A*") -> *N/A* | J28: 17 | K28: Limousin | L28: 1 | M28: 1.2 | N28: =37*IF(parmUnit=1,1,2.2046) -> 81.5702 | O28: =9*IF(parmUnit=1,1,2.2046) -> 19.8414 | P28: 4 | Q28: 3.8 | R28: 8.3 | S28: 0.6
B29: Milk production | C29: MY | D29: 0 | E29: =CHOOSE(parmUnit,"kg/d","lb/d") -> lb/d | F29: =D29*IF(parmUnit=1,1,1/2.2046) -> 0 | G29: kg/d | H29: =IF(OR(F14=3,F14=4),"User-inputted milk yield (MY)","*N/A*") -> *N/A* | J29: 18 | K29: Longhorn | L29: 1 | M29: 1.2 | N29: =33*IF(parmUnit=1,1,2.2046) -> 72.7518 | O29: =5*IF(parmUnit=1,1,2.2046) -> 11.023 | P29: 4 | Q29: 3.8 | R29: 8.3 | S29: 0.6 | Z29: Change ration intake to: | AA29: 0 | AB29: =IF(parmUnit=1,"kg/d","lb/d") -> lb/d
B30: Target calving age | C30: TCA | D30: 0 | F30: =D30 -> 0 | G30: mo | H30: =IF(OR(F14=3,F14=4),"Age at first calving","*N/A*") -> *N/A* | J30: 19 | K30: Maine Anjou | L30: 1 | M30: 1.2 | N30: =40*IF(parmUnit=1,1,2.2046) -> 88.184 | O30: =9*IF(parmUnit=1,1,2.2046) -> 19.8414 | P30: 4 | Q30: 3.8 | R30: 8.3 | S30: 0.6 | Z30: Scale ration intake to: | AA30: 100 | AB30: %
B31: Target calving interval | C31: TCI | D31: 0 | F31: =D31 -> 0 | G31: mo | H31: =IF(OR(F14=3,F14=4),"Herd calving interval","*N/A*") -> *N/A* | J31: 20 | K31: Nellore | L31: 1 | M31: 1.2 | N31: =32*IF(parmUnit=1,1,2.2046) -> 70.5472 | O31: =7*IF(parmUnit=1,1,2.2046) -> 15.4322 | P31: 4 | Q31: 3.8 | R31: 8.3 | S31: 0.65
J32: 21 | K32: Piedmontese | L32: 1 | M32: 1.2 | N32: =38*IF(parmUnit=1,1,2.2046) -> 83.7748 | O32: =7*IF(parmUnit=1,1,2.2046) -> 15.4322 | P32: 4 | Q32: 3.8 | R32: 8.3 | S32: 0.6
J33: 22 | K33: Pinzgauer | L33: 1 | M33: 1.2 | N33: =38*IF(parmUnit=1,1,2.2046) -> 83.7748 | O33: =11*IF(parmUnit=1,1,2.2046) -> 24.2506 | P33: 4 | Q33: 3.8 | R33: 8.3 | S33: 0.6
B34: Table 2.2. Prediction of empty body fat (EBF) and mature full (unshrunk) body weight (MW) from carcass traits | J34: 23 | K34: Polled Hereford | L34: 1 | M34: 1.2 | N34: =33*IF(parmUnit=1,1,2.2046) -> 72.7518 | O34: =7*IF(parmUnit=1,1,2.2046) -> 15.4322 | P34: 4 | Q34: 3.8 | R34: 8.3 | S34: 0.6
B35: Item | C35: Acronym | D35: User | E35: Unit | F35: Metric | G35: Unit | H35: Description | J35: 24 | K35: Red Poll | L35: 1 | M35: 1.2 | N35: =36*IF(parmUnit=1,1,2.2046) -> 79.3656 | O35: =10*IF(parmUnit=1,1,2.2046) -> 22.046 | P35: 4 | Q35: 3.8 | R35: 8.3 | S35: 0.6
B36: Hot carcass weight | C36: HCW | D36: 0 | E36: =CHOOSE(parmUnit,"kg","lb") -> lb | F36: =D36*IF(parmUnit=1,1,1/2.2046) -> 0 | G36: kg | J36: 25 | K36: Sahiwal | L36: 0.9 | M36: 1.2 | N36: =38*IF(parmUnit=1,1,2.2046) -> 83.7748 | O36: =8*IF(parmUnit=1,1,2.2046) -> 17.6368 | P36: 4 | Q36: 3.8 | R36: 8.3 | S36: 0.65 | AI36: ID | AJ36: Name | AK36: Cost, AF | AL36: Forage | AM36: DM | AN36: CP | AO36: SP | AP36: ADICP | AQ36: Sugars | AR36: OA | AS36: Fat | AT36: Ash | AU36: Starch | AV36: NDF | AW36: Lignin | AX36: TDN 1x | AY36: ME 1x | AZ36: NEm 1x | BA36: NEg 1x | BB36: RUP 1x | BC36: kd PB | BD36: kd CB1 | BE36: kd CB2 | BF36: kd CB3 | BG36: PBID | BH36: CB1ID | BI36: CB2ID | BJ36: pef | BK36: ARG | BL36: HIS | BM36: ILE | BN36: LEU | BO36: LYS | BP36: MET | BQ36: CYS | BR36: PHE | BS36: TYR | BT36: THR | BU36: TRP | BV36: VAL | BW36: Ca | BX36: P | BY36: Mg | BZ36: Cl | CA36: K | CB36: Na | CC36: S | CD36: Co | CE36: Cu | CF36: I | CG36: Fe | CH36: Mn | CI36: Se | CJ36: Zn | CK36: VitA | CL36: VitD | CM36: VitE
B37: Fat thickness | C37: FT | D37: 0 | E37: =CHOOSE(parmUnit,"cm","in") -> in | F37: =D37*IF(parmUnit=1,1,2.54^1) -> 0 | G37: cm | H37: Backfat | J37: 26 | K37: Salers | L37: 1 | M37: 1.2 | N37: =35*IF(parmUnit=1,1,2.2046) -> 77.161 | O37: =9*IF(parmUnit=1,1,2.2046) -> 19.8414 | P37: 4 | Q37: 3.8 | R37: 8.3 | S37: 0.6 | AK37: =IF(parmUnit=1,"$/Tonne","$/Ton") -> $/Ton | AL37: %DM | AM37: %AF | AN37: %DM | AO37: %CP | AP37: %CP | AQ37: %DM | AR37: %DM | AS37: %DM | AT37: %DM | AU37: %DM | AV37: %DM | AW37: %DM | AX37: %DM | AY37: =IF(parmUnit=1,"Mcal/kg","Mcal/lb") -> Mcal/lb | AZ37: =IF(parmUnit=1,"Mcal/kg","Mcal/lb") -> Mcal/lb | BA37: =IF(parmUnit=1,"Mcal/kg","Mcal/lb") -> Mcal/lb | BB37: %CP | BC37: %/h | BD37: %/h | BE37: %/h | BF37: %/h | BG37: % | BH37: % | BI37: % | BJ37: %NDF | BK37: %DM | BL37: %DM | BM37: %DM | BN37: %DM | BO37: %DM | BP37: %DM | BQ37: %DM | BR37: %DM | BS37: %DM | BT37: %DM | BU37: %DM | BV37: %DM | BW37: %DM | BX37: %DM | BY37: %DM | BZ37: %DM | CA37: %DM | CB37: %DM | CC37: %DM | CD37: mg/kg | CE37: mg/kg | CF37: mg/kg | CG37: mg/kg | CH37: mg/kg | CI37: mg/kg | CJ37: mg/kg | CK37: IU/g | CL37: IU/g | CM37: IU/kg
B38: Ribeye area | C38: REA | D38: 0 | E38: =CHOOSE(parmUnit,"cm^2","in^2") -> in^2 | F38: =D38*IF(parmUnit=1,1,2.54^2) -> 0 | G38: cm^2 | H38: Longissimus dorsi muscle area | J38: 27 | K38: Santa Gertrudis | L38: 0.95 | M38: 1.2 | N38: =33*IF(parmUnit=1,1,2.2046) -> 72.7518 | O38: =8*IF(parmUnit=1,1,2.2046) -> 17.6368 | P38: 4 | Q38: 3.8 | R38: 8.3 | S38: 0.62 | AI38: =IF(ISNUMBER($W5),IF($AH5=FALSE,W5,AI5),IF(AND(ISNUMBER($AI5),$AJ5<>""),AI5,"")) -> 301 | AJ38: =IF(ISNUMBER($W5),IF($AH5=FALSE,X5,AJ5),IF(AND(ISNUMBER($AI5),$AJ5<>""),AJ5,"")) -> Barley, Silage | AK38: =IF(ISNUMBER($W5),IF($AH5=FALSE,IF($W5<1000,IFERROR(VLOOKUP($W5,FeedLib[#All],AK$60,FALSE),"")*(IF(parmUnit=1,1,2000/2204.6)),IFERROR(VLOOKUP($W5,FeedLibUser[#All],AK$60,FALSE),"")*(IF(parmUnit=1,1,2000/2204.6))),AK5),IF(AND(ISNUMBER($AI5),$AJ5<>""),AK5,"")) -> 25 | AL38: =IF(ISNUMBER($W5),IF($AH5=FALSE,IF($W5<1000,IFERROR(VLOOKUP($W5,FeedLib[#All],AL$60,FALSE),""),IFERROR(VLOOKUP($W5,FeedLibUser[#All],AL$60,FALSE),"")),AL5),IF(AND(ISNUMBER($AI5),$AJ5<>""),AL5,"")) -> 100 | AM38: =IF(ISNUMBER($W5),IF($AH5=FALSE,IF($W5<1000,IFERROR(VLOOKUP($W5,FeedLib[#All],AM$60,FALSE),""),IFERROR(VLOOKUP($W5,FeedLibUser[#All],AM$60,FALSE),"")),AM5),IF(AND(ISNUMBER($AI5),$AJ5<>""),AM5,"")) -> 39 | AN38: =IF(ISNUMBER($W5),IF($AH5=FALSE,IF($W5<1000,IFERROR(VLOOKUP($W5,FeedLib[#All],AN$60,FALSE),""),IFERROR(VLOOKUP($W5,FeedLibUser[#All],AN$60,FALSE),"")),AN5),IF(AND(ISNUMBER($AI5),$AJ5<>""),AN5,"")) -> 10.4 | AO38: =IF(ISNUMBER($W5),IF($AH5=FALSE,IF($W5<1000,IFERROR(VLOOKUP($W5,FeedLib[#All],AO$60,FALSE),""),IFERROR(VLOOKUP($W5,FeedLibUser[#All],AO$60,FALSE),"")),AO5),IF(AND(ISNUMBER($AI5),$AJ5<>""),AO5,"")) -> 70 | AP38: =IF(ISNUMBER($W5),IF($AH5=FALSE,IF($W5<1000,IFERROR(VLOOKUP($W5,FeedLib[#All],AP$60,FALSE),""),IFERROR(VLOOKUP($W5,FeedLibUser[#All],AP$60,FALSE),"")),AP5),IF(AND(ISNUMBER($AI5),$AJ5<>""),AP5,"")) -> 6.1 | AQ38: =IF(ISNUMBER($W5),IF($AH5=FALSE,IF($W5<1000,IFERROR(VLOOKUP($W5,FeedLib[#All],AQ$60,FALSE),""),IFERROR(VLOOKUP($W5,FeedLibUser[#All],AQ$60,FALSE),"")),AQ5),IF(AND(ISNUMBER($AI5),$AJ5<>""),AQ5,"")) -> 0 | AR38: =IF(ISNUMBER($W5),IF($AH5=FALSE,IF($W5<1000,IFERROR(VLOOKUP($W5,FeedLib[#All],AR$60,FALSE),""),IFERROR(VLOOKUP($W5,FeedLibUser[#All],AR$60,FALSE),"")),AR5),IF(AND(ISNUMBER($AI5),$AJ5<>""),AR5,"")) -> 0 | AS38: =IF(ISNUMBER($W5),IF($AH5=FALSE,IF($W5<1000,IFERROR(VLOOKUP($W5,FeedLib[#All],AS$60,FALSE),""),IFERROR(VLOOKUP($W5,FeedLibUser[#All],AS$60,FALSE),"")),AS5),IF(AND(ISNUMBER($AI5),$AJ5<>""),AS5,"")) -> 3 | AT38: =IF(ISNUMBER($W5),IF($AH5=FALSE,IF($W5<1000,IFERROR(VLOOKUP($W5,FeedLib[#All],AT$60,FALSE),""),IFERROR(VLOOKUP($W5,FeedLibUser[#All],AT$60,FALSE),"")),AT5),IF(AND(ISNUMBER($AI5),$AJ5<>""),AT5,"")) -> 8 | AU38: =IF(ISNUMBER($W5),IF($AH5=FALSE,IF($W5<1000,IFERROR(VLOOKUP($W5,FeedLib[#All],AU$60,FALSE),""),IFERROR(VLOOKUP($W5,FeedLibUser[#All],AU$60,FALSE),"")),AU5),IF(AND(ISNUMBER($AI5),$AJ5<>""),AU5,"")) -> 14.06 | AV38: =IF(ISNUMBER($W5),IF($AH5=FALSE,IF($W5<1000,IFERROR(VLOOKUP($W5,FeedLib[#All],AV$60,FALSE),""),IFERROR(VLOOKUP($W5,FeedLibUser[#All],AV$60,FALSE),"")),AV5),IF(AND(ISNUMBER($AI5),$AJ5<>""),AV5,"")) -> 48.7 | AW38: =IF(ISNUMBER($W5),IF($AH5=FALSE,IF($W5<1000,IFERROR(VLOOKUP($W5,FeedLib[#All],AW$60,FALSE),""),IFERROR(VLOOKUP($W5,FeedLibUser[#All],AW$60,FALSE),"")),AW5),IF(AND(ISNUMBER($AI5),$AJ5<>""),AW5,"")) -> 3.09 | AX38: =IF(ISNUMBER($W5),IF($AH5=FALSE,IF($W5<1000,IFERROR(VLOOKUP($W5,FeedLib[#All],AX$60,FALSE),""),IFERROR(VLOOKUP($W5,FeedLibUser[#All],AX$60,FALSE),"")),AX5),IF(AND(ISNUMBER($AI5),$AJ5<>""),AX5,"")) -> 60 | AY38: =IF(ISNUMBER($W5),IF($AH5=FALSE,IF($W5<1000,IFERROR(VLOOKUP($W5,FeedLib[#All],AY$60,FALSE),"")/IF(parmUnit=1,1,2.2046),IFERROR(VLOOKUP($W5,FeedLibUser[#All],AY$60,FALSE),"")/IF(parmUnit=1,1,2.2046)),AY5),IF(AND(ISNUMBER($AI5),$AJ5<>""),AY5,"")) -> 0.98 | AZ38: =IF(ISNUMBER($W5),IF($AH5=FALSE,IF($W5<1000,IFERROR(VLOOKUP($W5,FeedLib[#All],AZ$60,FALSE),"")/IF(parmUnit=1,1,2.2046),IFERROR(VLOOKUP($W5,FeedLibUser[#All],AZ$60,FALSE),"")/IF(parmUnit=1,1,2.2046)),AZ5),IF(AND(ISNUMBER($AI5),$AJ5<>""),AZ5,"")) -> 0.59 | BA38: =IF(ISNUMBER($W5),IF($AH5=FALSE,IF($W5<1000,IFERROR(VLOOKUP($W5,FeedLib[#All],BA$60,FALSE),"")/IF(parmUnit=1,1,2.2046),IFERROR(VLOOKUP($W5,FeedLibUser[#All],BA$60,FALSE),"")/IF(parmUnit=1,1,2.2046)),BA5),IF(AND(ISNUMBER($AI5),$AJ5<>""),BA5,"")) -> 0.33 | BB38: =IF(ISNUMBER($W5),IF($AH5=FALSE,IF($W5<1000,IFERROR(VLOOKUP($W5,FeedLib[#All],BB$60,FALSE),""),IFERROR(VLOOKUP($W5,FeedLibUser[#All],BB$60,FALSE),"")),BB5),IF(AND(ISNUMBER($AI5),$AJ5<>""),BB5,"")) -> 14 | BC38: =IF(ISNUMBER($W5),IF($AH5=FALSE,IF($W5<1000,IFERROR(VLOOKUP($W5,FeedLib[#All],BC$60,FALSE),""),IFERROR(VLOOKUP($W5,FeedLibUser[#All],BC$60,FALSE),"")),BC5),IF(AND(ISNUMBER($AI5),$AJ5<>""),BC5,"")) -> 8.27 | BD38: =IF(ISNUMBER($W5),IF($AH5=FALSE,IF($W5<1000,IFERROR(VLOOKUP($W5,FeedLib[#All],BD$60,FALSE),""),IFERROR(VLOOKUP($W5,FeedLibUser[#All],BD$60,FALSE),"")),BD5),IF(AND(ISNUMBER($AI5),$AJ5<>""),BD5,"")) -> 50 | BE38: =IF(ISNUMBER($W5),IF($AH5=FALSE,IF($W5<1000,IFERROR(VLOOKUP($W5,FeedLib[#All],BE$60,FALSE),""),IFERROR(VLOOKUP($W5,FeedLibUser[#All],BE$60,FALSE),"")),BE5),IF(AND(ISNUMBER($AI5),$AJ5<>""),BE5,"")) -> 50 | BF38: =IF(ISNUMBER($W5),IF($AH5=FALSE,IF($W5<1000,IFERROR(VLOOKUP($W5,FeedLib[#All],BF$60,FALSE),""),IFERROR(VLOOKUP($W5,FeedLibUser[#All],BF$60,FALSE),"")),BF5),IF(AND(ISNUMBER($AI5),$AJ5<>""),BF5,"")) -> 4 | BG38: =IF(ISNUMBER($W5),IF($AH5=FALSE,IF($W5<1000,IFERROR(VLOOKUP($W5,FeedLib[#All],BG$60,FALSE),""),IFERROR(VLOOKUP($W5,FeedLibUser[#All],BG$60,FALSE),"")),BG5),IF(AND(ISNUMBER($AI5),$AJ5<>""),BG5,"")) -> 54 | BH38: =IF(ISNUMBER($W5),IF($AH5=FALSE,IF($W5<1000,IFERROR(VLOOKUP($W5,FeedLib[#All],BH$60,FALSE),""),IFERROR(VLOOKUP($W5,FeedLibUser[#All],BH$60,FALSE),"")),BH5),IF(AND(ISNUMBER($AI5),$AJ5<>""),BH5,"")) -> 75 | BI38: =IF(ISNUMBER($W5),IF($AH5=FALSE,IF($W5<1000,IFERROR(VLOOKUP($W5,FeedLib[#All],BI$60,FALSE),""),IFERROR(VLOOKUP($W5,FeedLibUser[#All],BI$60,FALSE),"")),BI5),IF(AND(ISNUMBER($AI5),$AJ5<>""),BI5,"")) -> 75 | BJ38: =IF(ISNUMBER($W5),IF($AH5=FALSE,IF($W5<1000,IFERROR(VLOOKUP($W5,FeedLib[#All],BJ$60,FALSE),""),IFERROR(VLOOKUP($W5,FeedLibUser[#All],BJ$60,FALSE),"")),BJ5),IF(AND(ISNUMBER($AI5),$AJ5<>""),BJ5,"")) -> 65 | BK38: =IF(ISNUMBER($W5),IF($AH5=FALSE,IF($W5<1000,IFERROR(VLOOKUP($W5,FeedLib[#All],BK$60,FALSE),""),IFERROR(VLOOKUP($W5,FeedLibUser[#All],BK$60,FALSE),"")),BK5),IF(AND(ISNUMBER($AI5),$AJ5<>""),BK5,"")) -> 0.15 | BL38: =IF(ISNUMBER($W5),IF($AH5=FALSE,IF($W5<1000,IFERROR(VLOOKUP($W5,FeedLib[#All],BL$60,FALSE),""),IFERROR(VLOOKUP($W5,FeedLibUser[#All],BL$60,FALSE),"")),BL5),IF(AND(ISNUMBER($AI5),$AJ5<>""),BL5,"")) -> 0.16 | BM38: =IF(ISNUMBER($W5),IF($AH5=FALSE,IF($W5<1000,IFERROR(VLOOKUP($W5,FeedLib[#All],BM$60,FALSE),""),IFERROR(VLOOKUP($W5,FeedLibUser[#All],BM$60,FALSE),"")),BM5),IF(AND(ISNUMBER($AI5),$AJ5<>""),BM5,"")) -> 0.32 | BN38: =IF(ISNUMBER($W5),IF($AH5=FALSE,IF($W5<1000,IFERROR(VLOOKUP($W5,FeedLib[#All],BN$60,FALSE),""),IFERROR(VLOOKUP($W5,FeedLibUser[#All],BN$60,FALSE),"")),BN5),IF(AND(ISNUMBER($AI5),$AJ5<>""),BN5,"")) -> 0.57 | BO38: =IF(ISNUMBER($W5),IF($AH5=FALSE,IF($W5<1000,IFERROR(VLOOKUP($W5,FeedLib[#All],BO$60,FALSE),""),IFERROR(VLOOKUP($W5,FeedLibUser[#All],BO$60,FALSE),"")),BO5),IF(AND(ISNUMBER($AI5),$AJ5<>""),BO5,"")) -> 0.32 | BP38: =IF(ISNUMBER($W5),IF($AH5=FALSE,IF($W5<1000,IFERROR(VLOOKUP($W5,FeedLib[#All],BP$60,FALSE),""),IFERROR(VLOOKUP($W5,FeedLibUser[#All],BP$60,FALSE),"")),BP5),IF(AND(ISNUMBER($AI5),$AJ5<>""),BP5,"")) -> 0.15 | BQ38: =IF(ISNUMBER($W5),IF($AH5=FALSE,IF($W5<1000,IFERROR(VLOOKUP($W5,FeedLib[#All],BQ$60,FALSE),""),IFERROR(VLOOKUP($W5,FeedLibUser[#All],BQ$60,FALSE),"")),BQ5),IF(AND(ISNUMBER($AI5),$AJ5<>""),BQ5,"")) -> 0 | BR38: =IF(ISNUMBER($W5),IF($AH5=FALSE,IF($W5<1000,IFERROR(VLOOKUP($W5,FeedLib[#All],BR$60,FALSE),""),IFERROR(VLOOKUP($W5,FeedLibUser[#All],BR$60,FALSE),"")),BR5),IF(AND(ISNUMBER($AI5),$AJ5<>""),BR5,"")) -> 0.35 | BS38: =IF(ISNUMBER($W5),IF($AH5=FALSE,IF($W5<1000,IFERROR(VLOOKUP($W5,FeedLib[#All],BS$60,FALSE),""),IFERROR(VLOOKUP($W5,FeedLibUser[#All],BS$60,FALSE),"")),BS5),IF(AND(ISNUMBER($AI5),$AJ5<>""),BS5,"")) -> 0 | BT38: =IF(ISNUMBER($W5),IF($AH5=FALSE,IF($W5<1000,IFERROR(VLOOKUP($W5,FeedLib[#All],BT$60,FALSE),""),IFERROR(VLOOKUP($W5,FeedLibUser[#All],BT$60,FALSE),"")),BT5),IF(AND(ISNUMBER($AI5),$AJ5<>""),BT5,"")) -> 0.35 | BU38: =IF(ISNUMBER($W5),IF($AH5=FALSE,IF($W5<1000,IFERROR(VLOOKUP($W5,FeedLib[#All],BU$60,FALSE),""),IFERROR(VLOOKUP($W5,FeedLibUser[#All],BU$60,FALSE),"")),BU5),IF(AND(ISNUMBER($AI5),$AJ5<>""),BU5,"")) -> 0.12 | BV38: =IF(ISNUMBER($W5),IF($AH5=FALSE,IF($W5<1000,IFERROR(VLOOKUP($W5,FeedLib[#All],BV$60,FALSE),""),IFERROR(VLOOKUP($W5,FeedLibUser[#All],BV$60,FALSE),"")),BV5),IF(AND(ISNUMBER($AI5),$AJ5<>""),BV5,"")) -> 0.49 | BW38: =IF(ISNUMBER($W5),IF($AH5=FALSE,IF($W5<1000,IFERROR(VLOOKUP($W5,FeedLib[#All],BW$60,FALSE),""),IFERROR(VLOOKUP($W5,FeedLibUser[#All],BW$60,FALSE),"")),BW5),IF(AND(ISNUMBER($AI5),$AJ5<>""),BW5,"")) -> 0.52 | BX38: =IF(ISNUMBER($W5),IF($AH5=FALSE,IF($W5<1000,IFERROR(VLOOKUP($W5,FeedLib[#All],BX$60,FALSE),""),IFERROR(VLOOKUP($W5,FeedLibUser[#All],BX$60,FALSE),"")),BX5),IF(AND(ISNUMBER($AI5),$AJ5<>""),BX5,"")) -> 0.29 | BY38: =IF(ISNUMBER($W5),IF($AH5=FALSE,IF($W5<1000,IFERROR(VLOOKUP($W5,FeedLib[#All],BY$60,FALSE),""),IFERROR(VLOOKUP($W5,FeedLibUser[#All],BY$60,FALSE),"")),BY5),IF(AND(ISNUMBER($AI5),$AJ5<>""),BY5,"")) -> 0.19 | BZ38: =IF(ISNUMBER($W5),IF($AH5=FALSE,IF($W5<1000,IFERROR(VLOOKUP($W5,FeedLib[#All],BZ$60,FALSE),""),IFERROR(VLOOKUP($W5,FeedLibUser[#All],BZ$60,FALSE),"")),BZ5),IF(AND(ISNUMBER($AI5),$AJ5<>""),BZ5,"")) -> 0.15 | CA38: =IF(ISNUMBER($W5),IF($AH5=FALSE,IF($W5<1000,IFERROR(VLOOKUP($W5,FeedLib[#All],CA$60,FALSE),""),IFERROR(VLOOKUP($W5,FeedLibUser[#All],CA$60,FALSE),"")),CA5),IF(AND(ISNUMBER($AI5),$AJ5<>""),CA5,"")) -> 2.57 | CB38: =IF(ISNUMBER($W5),IF($AH5=FALSE,IF($W5<1000,IFERROR(VLOOKUP($W5,FeedLib[#All],CB$60,FALSE),""),IFERROR(VLOOKUP($W5,FeedLibUser[#All],CB$60,FALSE),"")),CB5),IF(AND(ISNUMBER($AI5),$AJ5<>""),CB5,"")) -> 0.12 | CC38: =IF(ISNUMBER($W5),IF($AH5=FALSE,IF($W5<1000,IFERROR(VLOOKUP($W5,FeedLib[#All],CC$60,FALSE),""),IFERROR(VLOOKUP($W5,FeedLibUser[#All],CC$60,FALSE),"")),CC5),IF(AND(ISNUMBER($AI5),$AJ5<>""),CC5,"")) -> 0.24 | CD38: =IF(ISNUMBER($W5),IF($AH5=FALSE,IF($W5<1000,IFERROR(VLOOKUP($W5,FeedLib[#All],CD$60,FALSE),""),IFERROR(VLOOKUP($W5,FeedLibUser[#All],CD$60,FALSE),"")),CD5),IF(AND(ISNUMBER($AI5),$AJ5<>""),CD5,"")) -> 0.72 | CE38: =IF(ISNUMBER($W5),IF($AH5=FALSE,IF($W5<1000,IFERROR(VLOOKUP($W5,FeedLib[#All],CE$60,FALSE),""),IFERROR(VLOOKUP($W5,FeedLibUser[#All],CE$60,FALSE),"")),CE5),IF(AND(ISNUMBER($AI5),$AJ5<>""),CE5,"")) -> 7.7 | CF38: =IF(ISNUMBER($W5),IF($AH5=FALSE,IF($W5<1000,IFERROR(VLOOKUP($W5,FeedLib[#All],CF$60,FALSE),""),IFERROR(VLOOKUP($W5,FeedLibUser[#All],CF$60,FALSE),"")),CF5),IF(AND(ISNUMBER($AI5),$AJ5<>""),CF5,"")) -> 0 | CG38: =IF(ISNUMBER($W5),IF($AH5=FALSE,IF($W5<1000,IFERROR(VLOOKUP($W5,FeedLib[#All],CG$60,FALSE),""),IFERROR(VLOOKUP($W5,FeedLibUser[#All],CG$60,FALSE),"")),CG5),IF(AND(ISNUMBER($AI5),$AJ5<>""),CG5,"")) -> 375 | CH38: =IF(ISNUMBER($W5),IF($AH5=FALSE,IF($W5<1000,IFERROR(VLOOKUP($W5,FeedLib[#All],CH$60,FALSE),""),IFERROR(VLOOKUP($W5,FeedLibUser[#All],CH$60,FALSE),"")),CH5),IF(AND(ISNUMBER($AI5),$AJ5<>""),CH5,"")) -> 44.8 | CI38: =IF(ISNUMBER($W5),IF($AH5=FALSE,IF($W5<1000,IFERROR(VLOOKUP($W5,FeedLib[#All],CI$60,FALSE),""),IFERROR(VLOOKUP($W5,FeedLibUser[#All],CI$60,FALSE),"")),CI5),IF(AND(ISNUMBER($AI5),$AJ5<>""),CI5,"")) -> 0.15 | CJ38: =IF(ISNUMBER($W5),IF($AH5=FALSE,IF($W5<1000,IFERROR(VLOOKUP($W5,FeedLib[#All],CJ$60,FALSE),""),IFERROR(VLOOKUP($W5,FeedLibUser[#All],CJ$60,FALSE),"")),CJ5),IF(AND(ISNUMBER($AI5),$AJ5<>""),CJ5,"")) -> 24.5 | CK38: =IF(ISNUMBER($W5),IF($AH5=FALSE,IF($W5<1000,IFERROR(VLOOKUP($W5,FeedLib[#All],CK$60,FALSE),""),IFERROR(VLOOKUP($W5,FeedLibUser[#All],CK$60,FALSE),"")),CK5),IF(AND(ISNUMBER($AI5),$AJ5<>""),CK5,"")) -> 0 | CL38: =IF(ISNUMBER($W5),IF($AH5=FALSE,IF($W5<1000,IFERROR(VLOOKUP($W5,FeedLib[#All],CL$60,FALSE),""),IFERROR(VLOOKUP($W5,FeedLibUser[#All],CL$60,FALSE),"")),CL5),IF(AND(ISNUMBER($AI5),$AJ5<>""),CL5,"")) -> 0 | CM38: =IF(ISNUMBER($W5),IF($AH5=FALSE,IF($W5<1000,IFERROR(VLOOKUP($W5,FeedLib[#All],CM$60,FALSE),""),IFERROR(VLOOKUP($W5,FeedLibUser[#All],CM$60,FALSE),"")),CM5),IF(AND(ISNUMBER($AI5),$AJ5<>""),CM5,"")) -> 0
B39: Quality grade code | C39: QG | F39: =IF(D39<>0,D39,SUMPRODUCT(F40:F44,E40:E44)/100) -> 0 | H39: 4:=Select, 5:=Choice−, 6:=Choice, 7:=Choice+, 8:=Prime | J39: 28 | K39: Shorthorn | L39: 1 | M39: 1.2 | N39: =37*IF(parmUnit=1,1,2.2046) -> 81.5702 | O39: =8.5*IF(parmUnit=1,1,2.2046) -> 18.7391 | P39: 4 | Q39: 3.8 | R39: 8.3 | S39: 0.6 | AI39: 402 | AJ39: Barley Grain, Heavy | AK39: =IF(ISNUMBER($W6),IF($AH6=FALSE,IF($W6<1000,IFERROR(VLOOKUP($W6,FeedLib[#All],AK$60,FALSE),"")*(IF(parmUnit=1,1,2000/2204.6)),IFERROR(VLOOKUP($W6,FeedLibUser[#All],AK$60,FALSE),"")*(IF(parmUnit=1,1,2000/2204.6))),AK6),IF(AND(ISNUMBER($AI6),$AJ6<>""),AK6,"")) -> 120 | AL39: =IF(ISNUMBER($W6),IF($AH6=FALSE,IF($W6<1000,IFERROR(VLOOKUP($W6,FeedLib[#All],AL$60,FALSE),""),IFERROR(VLOOKUP($W6,FeedLibUser[#All],AL$60,FALSE),"")),AL6),IF(AND(ISNUMBER($AI6),$AJ6<>""),AL6,"")) -> 0 | AM39: =IF(ISNUMBER($W6),IF($AH6=FALSE,IF($W6<1000,IFERROR(VLOOKUP($W6,FeedLib[#All],AM$60,FALSE),""),IFERROR(VLOOKUP($W6,FeedLibUser[#All],AM$60,FALSE),"")),AM6),IF(AND(ISNUMBER($AI6),$AJ6<>""),AM6,"")) -> 88 | AN39: =IF(ISNUMBER($W6),IF($AH6=FALSE,IF($W6<1000,IFERROR(VLOOKUP($W6,FeedLib[#All],AN$60,FALSE),""),IFERROR(VLOOKUP($W6,FeedLibUser[#All],AN$60,FALSE),"")),AN6),IF(AND(ISNUMBER($AI6),$AJ6<>""),AN6,"")) -> 13 | AO39: =IF(ISNUMBER($W6),IF($AH6=FALSE,IF($W6<1000,IFERROR(VLOOKUP($W6,FeedLib[#All],AO$60,FALSE),""),IFERROR(VLOOKUP($W6,FeedLibUser[#All],AO$60,FALSE),"")),AO6),IF(AND(ISNUMBER($AI6),$AJ6<>""),AO6,"")) -> 17 | AP39: =IF(ISNUMBER($W6),IF($AH6=FALSE,IF($W6<1000,IFERROR(VLOOKUP($W6,FeedLib[#All],AP$60,FALSE),""),IFERROR(VLOOKUP($W6,FeedLibUser[#All],AP$60,FALSE),"")),AP6),IF(AND(ISNUMBER($AI6),$AJ6<>""),AP6,"")) -> 5 | AQ39: =IF(ISNUMBER($W6),IF($AH6=FALSE,IF($W6<1000,IFERROR(VLOOKUP($W6,FeedLib[#All],AQ$60,FALSE),""),IFERROR(VLOOKUP($W6,FeedLibUser[#All],AQ$60,FALSE),"")),AQ6),IF(AND(ISNUMBER($AI6),$AJ6<>""),AQ6,"")) -> 0 | AR39: =IF(ISNUMBER($W6),IF($AH6=FALSE,IF($W6<1000,IFERROR(VLOOKUP($W6,FeedLib[#All],AR$60,FALSE),""),IFERROR(VLOOKUP($W6,FeedLibUser[#All],AR$60,FALSE),"")),AR6),IF(AND(ISNUMBER($AI6),$AJ6<>""),AR6,"")) -> 0 | AS39: =IF(ISNUMBER($W6),IF($AH6=FALSE,IF($W6<1000,IFERROR(VLOOKUP($W6,FeedLib[#All],AS$60,FALSE),""),IFERROR(VLOOKUP($W6,FeedLibUser[#All],AS$60,FALSE),"")),AS6),IF(AND(ISNUMBER($AI6),$AJ6<>""),AS6,"")) -> 2.1 | AT39: =IF(ISNUMBER($W6),IF($AH6=FALSE,IF($W6<1000,IFERROR(VLOOKUP($W6,FeedLib[#All],AT$60,FALSE),""),IFERROR(VLOOKUP($W6,FeedLibUser[#All],AT$60,FALSE),"")),AT6),IF(AND(ISNUMBER($AI6),$AJ6<>""),AT6,"")) -> 3 | AU39: =IF(ISNUMBER($W6),IF($AH6=FALSE,IF($W6<1000,IFERROR(VLOOKUP($W6,FeedLib[#All],AU$60,FALSE),""),IFERROR(VLOOKUP($W6,FeedLibUser[#All],AU$60,FALSE),"")),AU6),IF(AND(ISNUMBER($AI6),$AJ6<>""),AU6,"")) -> 57.69 | AV39: =IF(ISNUMBER($W6),IF($AH6=FALSE,IF($W6<1000,IFERROR(VLOOKUP($W6,FeedLib[#All],AV$60,FALSE),""),IFERROR(VLOOKUP($W6,FeedLibUser[#All],AV$60,FALSE),"")),AV6),IF(AND(ISNUMBER($AI6),$AJ6<>""),AV6,"")) -> 19 | AW39: =IF(ISNUMBER($W6),IF($AH6=FALSE,IF($W6<1000,IFERROR(VLOOKUP($W6,FeedLib[#All],AW$60,FALSE),""),IFERROR(VLOOKUP($W6,FeedLibUser[#All],AW$60,FALSE),"")),AW6),IF(AND(ISNUMBER($AI6),$AJ6<>""),AW6,"")) -> 1.91 | AX39: =IF(ISNUMBER($W6),IF($AH6=FALSE,IF($W6<1000,IFERROR(VLOOKUP($W6,FeedLib[#All],AX$60,FALSE),""),IFERROR(VLOOKUP($W6,FeedLibUser[#All],AX$60,FALSE),"")),AX6),IF(AND(ISNUMBER($AI6),$AJ6<>""),AX6,"")) -> 84 | AY39: =IF(ISNUMBER($W6),IF($AH6=FALSE,IF($W6<1000,IFERROR(VLOOKUP($W6,FeedLib[#All],AY$60,FALSE),"")/IF(parmUnit=1,1,2.2046),IFERROR(VLOOKUP($W6,FeedLibUser[#All],AY$60,FALSE),"")/IF(parmUnit=1,1,2.2046)),AY6),IF(AND(ISNUMBER($AI6),$AJ6<>""),AY6,"")) -> 1.38 | AZ39: =IF(ISNUMBER($W6),IF($AH6=FALSE,IF($W6<1000,IFERROR(VLOOKUP($W6,FeedLib[#All],AZ$60,FALSE),"")/IF(parmUnit=1,1,2.2046),IFERROR(VLOOKUP($W6,FeedLibUser[#All],AZ$60,FALSE),"")/IF(parmUnit=1,1,2.2046)),AZ6),IF(AND(ISNUMBER($AI6),$AJ6<>""),AZ6,"")) -> 0.94 | BA39: =IF(ISNUMBER($W6),IF($AH6=FALSE,IF($W6<1000,IFERROR(VLOOKUP($W6,FeedLib[#All],BA$60,FALSE),"")/IF(parmUnit=1,1,2.2046),IFERROR(VLOOKUP($W6,FeedLibUser[#All],BA$60,FALSE),"")/IF(parmUnit=1,1,2.2046)),BA6),IF(AND(ISNUMBER($AI6),$AJ6<>""),BA6,"")) -> 0.63 | BB39: =IF(ISNUMBER($W6),IF($AH6=FALSE,IF($W6<1000,IFERROR(VLOOKUP($W6,FeedLib[#All],BB$60,FALSE),""),IFERROR(VLOOKUP($W6,FeedLibUser[#All],BB$60,FALSE),"")),BB6),IF(AND(ISNUMBER($AI6),$AJ6<>""),BB6,"")) -> 33.07 | BC39: =IF(ISNUMBER($W6),IF($AH6=FALSE,IF($W6<1000,IFERROR(VLOOKUP($W6,FeedLib[#All],BC$60,FALSE),""),IFERROR(VLOOKUP($W6,FeedLibUser[#All],BC$60,FALSE),"")),BC6),IF(AND(ISNUMBER($AI6),$AJ6<>""),BC6,"")) -> 10.4 | BD39: =IF(ISNUMBER($W6),IF($AH6=FALSE,IF($W6<1000,IFERROR(VLOOKUP($W6,FeedLib[#All],BD$60,FALSE),""),IFERROR(VLOOKUP($W6,FeedLibUser[#All],BD$60,FALSE),"")),BD6),IF(AND(ISNUMBER($AI6),$AJ6<>""),BD6,"")) -> 30 | BE39: =IF(ISNUMBER($W6),IF($AH6=FALSE,IF($W6<1000,IFERROR(VLOOKUP($W6,FeedLib[#All],BE$60,FALSE),""),IFERROR(VLOOKUP($W6,FeedLibUser[#All],BE$60,FALSE),"")),BE6),IF(AND(ISNUMBER($AI6),$AJ6<>""),BE6,"")) -> 30 | BF39: =IF(ISNUMBER($W6),IF($AH6=FALSE,IF($W6<1000,IFERROR(VLOOKUP($W6,FeedLib[#All],BF$60,FALSE),""),IFERROR(VLOOKUP($W6,FeedLibUser[#All],BF$60,FALSE),"")),BF6),IF(AND(ISNUMBER($AI6),$AJ6<>""),BF6,"")) -> 5 | BG39: =IF(ISNUMBER($W6),IF($AH6=FALSE,IF($W6<1000,IFERROR(VLOOKUP($W6,FeedLib[#All],BG$60,FALSE),""),IFERROR(VLOOKUP($W6,FeedLibUser[#All],BG$60,FALSE),"")),BG6),IF(AND(ISNUMBER($AI6),$AJ6<>""),BG6,"")) -> 79.2 | BH39: =IF(ISNUMBER($W6),IF($AH6=FALSE,IF($W6<1000,IFERROR(VLOOKUP($W6,FeedLib[#All],BH$60,FALSE),""),IFERROR(VLOOKUP($W6,FeedLibUser[#All],BH$60,FALSE),"")),BH6),IF(AND(ISNUMBER($AI6),$AJ6<>""),BH6,"")) -> 75 | BI39: =IF(ISNUMBER($W6),IF($AH6=FALSE,IF($W6<1000,IFERROR(VLOOKUP($W6,FeedLib[#All],BI$60,FALSE),""),IFERROR(VLOOKUP($W6,FeedLibUser[#All],BI$60,FALSE),"")),BI6),IF(AND(ISNUMBER($AI6),$AJ6<>""),BI6,"")) -> 75 | BJ39: =IF(ISNUMBER($W6),IF($AH6=FALSE,IF($W6<1000,IFERROR(VLOOKUP($W6,FeedLib[#All],BJ$60,FALSE),""),IFERROR(VLOOKUP($W6,FeedLibUser[#All],BJ$60,FALSE),"")),BJ6),IF(AND(ISNUMBER($AI6),$AJ6<>""),BJ6,"")) -> 34 | BK39: =IF(ISNUMBER($W6),IF($AH6=FALSE,IF($W6<1000,IFERROR(VLOOKUP($W6,FeedLib[#All],BK$60,FALSE),""),IFERROR(VLOOKUP($W6,FeedLibUser[#All],BK$60,FALSE),"")),BK6),IF(AND(ISNUMBER($AI6),$AJ6<>""),BK6,"")) -> 0.43 | BL39: =IF(ISNUMBER($W6),IF($AH6=FALSE,IF($W6<1000,IFERROR(VLOOKUP($W6,FeedLib[#All],BL$60,FALSE),""),IFERROR(VLOOKUP($W6,FeedLibUser[#All],BL$60,FALSE),"")),BL6),IF(AND(ISNUMBER($AI6),$AJ6<>""),BL6,"")) -> 0.2 | BM39: =IF(ISNUMBER($W6),IF($AH6=FALSE,IF($W6<1000,IFERROR(VLOOKUP($W6,FeedLib[#All],BM$60,FALSE),""),IFERROR(VLOOKUP($W6,FeedLibUser[#All],BM$60,FALSE),"")),BM6),IF(AND(ISNUMBER($AI6),$AJ6<>""),BM6,"")) -> 0.35 | BN39: =IF(ISNUMBER($W6),IF($AH6=FALSE,IF($W6<1000,IFERROR(VLOOKUP($W6,FeedLib[#All],BN$60,FALSE),""),IFERROR(VLOOKUP($W6,FeedLibUser[#All],BN$60,FALSE),"")),BN6),IF(AND(ISNUMBER($AI6),$AJ6<>""),BN6,"")) -> 0.61 | BO39: =IF(ISNUMBER($W6),IF($AH6=FALSE,IF($W6<1000,IFERROR(VLOOKUP($W6,FeedLib[#All],BO$60,FALSE),""),IFERROR(VLOOKUP($W6,FeedLibUser[#All],BO$60,FALSE),"")),BO6),IF(AND(ISNUMBER($AI6),$AJ6<>""),BO6,"")) -> 0.27 | BP39: =IF(ISNUMBER($W6),IF($AH6=FALSE,IF($W6<1000,IFERROR(VLOOKUP($W6,FeedLib[#All],BP$60,FALSE),""),IFERROR(VLOOKUP($W6,FeedLibUser[#All],BP$60,FALSE),"")),BP6),IF(AND(ISNUMBER($AI6),$AJ6<>""),BP6,"")) -> 0.07 | BQ39: =IF(ISNUMBER($W6),IF($AH6=FALSE,IF($W6<1000,IFERROR(VLOOKUP($W6,FeedLib[#All],BQ$60,FALSE),""),IFERROR(VLOOKUP($W6,FeedLibUser[#All],BQ$60,FALSE),"")),BQ6),IF(AND(ISNUMBER($AI6),$AJ6<>""),BQ6,"")) -> 0 | BR39: =IF(ISNUMBER($W6),IF($AH6=FALSE,IF($W6<1000,IFERROR(VLOOKUP($W6,FeedLib[#All],BR$60,FALSE),""),IFERROR(VLOOKUP($W6,FeedLibUser[#All],BR$60,FALSE),"")),BR6),IF(AND(ISNUMBER($AI6),$AJ6<>""),BR6,"")) -> 0.5 | BS39: =IF(ISNUMBER($W6),IF($AH6=FALSE,IF($W6<1000,IFERROR(VLOOKUP($W6,FeedLib[#All],BS$60,FALSE),""),IFERROR(VLOOKUP($W6,FeedLibUser[#All],BS$60,FALSE),"")),BS6),IF(AND(ISNUMBER($AI6),$AJ6<>""),BS6,"")) -> 0 | BT39: =IF(ISNUMBER($W6),IF($AH6=FALSE,IF($W6<1000,IFERROR(VLOOKUP($W6,FeedLib[#All],BT$60,FALSE),""),IFERROR(VLOOKUP($W6,FeedLibUser[#All],BT$60,FALSE),"")),BT6),IF(AND(ISNUMBER($AI6),$AJ6<>""),BT6,"")) -> 0.28 | BU39: =IF(ISNUMBER($W6),IF($AH6=FALSE,IF($W6<1000,IFERROR(VLOOKUP($W6,FeedLib[#All],BU$60,FALSE),""),IFERROR(VLOOKUP($W6,FeedLibUser[#All],BU$60,FALSE),"")),BU6),IF(AND(ISNUMBER($AI6),$AJ6<>""),BU6,"")) -> 0.11 | BV39: =IF(ISNUMBER($W6),IF($AH6=FALSE,IF($W6<1000,IFERROR(VLOOKUP($W6,FeedLib[#All],BV$60,FALSE),""),IFERROR(VLOOKUP($W6,FeedLibUser[#All],BV$60,FALSE),"")),BV6),IF(AND(ISNUMBER($AI6),$AJ6<>""),BV6,"")) -> 0.43 | BW39: =IF(ISNUMBER($W6),IF($AH6=FALSE,IF($W6<1000,IFERROR(VLOOKUP($W6,FeedLib[#All],BW$60,FALSE),""),IFERROR(VLOOKUP($W6,FeedLibUser[#All],BW$60,FALSE),"")),BW6),IF(AND(ISNUMBER($AI6),$AJ6<>""),BW6,"")) -> 0.05 | BX39: =IF(ISNUMBER($W6),IF($AH6=FALSE,IF($W6<1000,IFERROR(VLOOKUP($W6,FeedLib[#All],BX$60,FALSE),""),IFERROR(VLOOKUP($W6,FeedLibUser[#All],BX$60,FALSE),"")),BX6),IF(AND(ISNUMBER($AI6),$AJ6<>""),BX6,"")) -> 0.35 | BY39: =IF(ISNUMBER($W6),IF($AH6=FALSE,IF($W6<1000,IFERROR(VLOOKUP($W6,FeedLib[#All],BY$60,FALSE),""),IFERROR(VLOOKUP($W6,FeedLibUser[#All],BY$60,FALSE),"")),BY6),IF(AND(ISNUMBER($AI6),$AJ6<>""),BY6,"")) -> 0.12 | BZ39: =IF(ISNUMBER($W6),IF($AH6=FALSE,IF($W6<1000,IFERROR(VLOOKUP($W6,FeedLib[#All],BZ$60,FALSE),""),IFERROR(VLOOKUP($W6,FeedLibUser[#All],BZ$60,FALSE),"")),BZ6),IF(AND(ISNUMBER($AI6),$AJ6<>""),BZ6,"")) -> 0.29 | CA39: =IF(ISNUMBER($W6),IF($AH6=FALSE,IF($W6<1000,IFERROR(VLOOKUP($W6,FeedLib[#All],CA$60,FALSE),""),IFERROR(VLOOKUP($W6,FeedLibUser[#All],CA$60,FALSE),"")),CA6),IF(AND(ISNUMBER($AI6),$AJ6<>""),CA6,"")) -> 0.57 | CB39: =IF(ISNUMBER($W6),IF($AH6=FALSE,IF($W6<1000,IFERROR(VLOOKUP($W6,FeedLib[#All],CB$60,FALSE),""),IFERROR(VLOOKUP($W6,FeedLibUser[#All],CB$60,FALSE),"")),CB6),IF(AND(ISNUMBER($AI6),$AJ6<>""),CB6,"")) -> 0.01 | CC39: =IF(ISNUMBER($W6),IF($AH6=FALSE,IF($W6<1000,IFERROR(VLOOKUP($W6,FeedLib[#All],CC$60,FALSE),""),IFERROR(VLOOKUP($W6,FeedLibUser[#All],CC$60,FALSE),"")),CC6),IF(AND(ISNUMBER($AI6),$AJ6<>""),CC6,"")) -> 0.15 | CD39: =IF(ISNUMBER($W6),IF($AH6=FALSE,IF($W6<1000,IFERROR(VLOOKUP($W6,FeedLib[#All],CD$60,FALSE),""),IFERROR(VLOOKUP($W6,FeedLibUser[#All],CD$60,FALSE),"")),CD6),IF(AND(ISNUMBER($AI6),$AJ6<>""),CD6,"")) -> 0.35 | CE39: =IF(ISNUMBER($W6),IF($AH6=FALSE,IF($W6<1000,IFERROR(VLOOKUP($W6,FeedLib[#All],CE$60,FALSE),""),IFERROR(VLOOKUP($W6,FeedLibUser[#All],CE$60,FALSE),"")),CE6),IF(AND(ISNUMBER($AI6),$AJ6<>""),CE6,"")) -> 5.3 | CF39: =IF(ISNUMBER($W6),IF($AH6=FALSE,IF($W6<1000,IFERROR(VLOOKUP($W6,FeedLib[#All],CF$60,FALSE),""),IFERROR(VLOOKUP($W6,FeedLibUser[#All],CF$60,FALSE),"")),CF6),IF(AND(ISNUMBER($AI6),$AJ6<>""),CF6,"")) -> 0.05 | CG39: =IF(ISNUMBER($W6),IF($AH6=FALSE,IF($W6<1000,IFERROR(VLOOKUP($W6,FeedLib[#All],CG$60,FALSE),""),IFERROR(VLOOKUP($W6,FeedLibUser[#All],CG$60,FALSE),"")),CG6),IF(AND(ISNUMBER($AI6),$AJ6<>""),CG6,"")) -> 59.5 | CH39: =IF(ISNUMBER($W6),IF($AH6=FALSE,IF($W6<1000,IFERROR(VLOOKUP($W6,FeedLib[#All],CH$60,FALSE),""),IFERROR(VLOOKUP($W6,FeedLibUser[#All],CH$60,FALSE),"")),CH6),IF(AND(ISNUMBER($AI6),$AJ6<>""),CH6,"")) -> 18.3 | CI39: =IF(ISNUMBER($W6),IF($AH6=FALSE,IF($W6<1000,IFERROR(VLOOKUP($W6,FeedLib[#All],CI$60,FALSE),""),IFERROR(VLOOKUP($W6,FeedLibUser[#All],CI$60,FALSE),"")),CI6),IF(AND(ISNUMBER($AI6),$AJ6<>""),CI6,"")) -> 0.18 | CJ39: =IF(ISNUMBER($W6),IF($AH6=FALSE,IF($W6<1000,IFERROR(VLOOKUP($W6,FeedLib[#All],CJ$60,FALSE),""),IFERROR(VLOOKUP($W6,FeedLibUser[#All],CJ$60,FALSE),"")),CJ6),IF(AND(ISNUMBER($AI6),$AJ6<>""),CJ6,"")) -> 13 | CK39: =IF(ISNUMBER($W6),IF($AH6=FALSE,IF($W6<1000,IFERROR(VLOOKUP($W6,FeedLib[#All],CK$60,FALSE),""),IFERROR(VLOOKUP($W6,FeedLibUser[#All],CK$60,FALSE),"")),CK6),IF(AND(ISNUMBER($AI6),$AJ6<>""),CK6,"")) -> 3.8 | CL39: =IF(ISNUMBER($W6),IF($AH6=FALSE,IF($W6<1000,IFERROR(VLOOKUP($W6,FeedLib[#All],CL$60,FALSE),""),IFERROR(VLOOKUP($W6,FeedLibUser[#All],CL$60,FALSE),"")),CL6),IF(AND(ISNUMBER($AI6),$AJ6<>""),CL6,"")) -> 0 | CM39: =IF(ISNUMBER($W6),IF($AH6=FALSE,IF($W6<1000,IFERROR(VLOOKUP($W6,FeedLib[#All],CM$60,FALSE),""),IFERROR(VLOOKUP($W6,FeedLibUser[#All],CM$60,FALSE),"")),CM6),IF(AND(ISNUMBER($AI6),$AJ6<>""),CM6,"")) -> 26.2
B40: % Prime | C40: Pr | E40: 8 | F40: =IF(SUM($D$40:$D$44)<>100,"––",D40) -> –– | H40: The sum of Pr, Ch+, Ch, Ch-, and Se has to be 100% | J40: 29 | K40: Simmental | L40: 1.2 | M40: 1 | N40: =39*IF(parmUnit=1,1,2.2046) -> 85.9794 | O40: =12*IF(parmUnit=1,1,2.2046) -> 26.4552 | P40: 4 | Q40: 3.8 | R40: 8.3 | S40: 0.57 | AI40: 800 | AJ40: Minerals | AK40: =IF(ISNUMBER($W7),IF($AH7=FALSE,IF($W7<1000,IFERROR(VLOOKUP($W7,FeedLib[#All],AK$60,FALSE),"")*(IF(parmUnit=1,1,2000/2204.6)),IFERROR(VLOOKUP($W7,FeedLibUser[#All],AK$60,FALSE),"")*(IF(parmUnit=1,1,2000/2204.6))),AK7),IF(AND(ISNUMBER($AI7),$AJ7<>""),AK7,"")) -> 200 | AL40: =IF(ISNUMBER($W7),IF($AH7=FALSE,IF($W7<1000,IFERROR(VLOOKUP($W7,FeedLib[#All],AL$60,FALSE),""),IFERROR(VLOOKUP($W7,FeedLibUser[#All],AL$60,FALSE),"")),AL7),IF(AND(ISNUMBER($AI7),$AJ7<>""),AL7,"")) -> 0 | AM40: =IF(ISNUMBER($W7),IF($AH7=FALSE,IF($W7<1000,IFERROR(VLOOKUP($W7,FeedLib[#All],AM$60,FALSE),""),IFERROR(VLOOKUP($W7,FeedLibUser[#All],AM$60,FALSE),"")),AM7),IF(AND(ISNUMBER($AI7),$AJ7<>""),AM7,"")) -> 99 | AN40: =IF(ISNUMBER($W7),IF($AH7=FALSE,IF($W7<1000,IFERROR(VLOOKUP($W7,FeedLib[#All],AN$60,FALSE),""),IFERROR(VLOOKUP($W7,FeedLibUser[#All],AN$60,FALSE),"")),AN7),IF(AND(ISNUMBER($AI7),$AJ7<>""),AN7,"")) -> 0 | AO40: =IF(ISNUMBER($W7),IF($AH7=FALSE,IF($W7<1000,IFERROR(VLOOKUP($W7,FeedLib[#All],AO$60,FALSE),""),IFERROR(VLOOKUP($W7,FeedLibUser[#All],AO$60,FALSE),"")),AO7),IF(AND(ISNUMBER($AI7),$AJ7<>""),AO7,"")) -> 0 | AP40: =IF(ISNUMBER($W7),IF($AH7=FALSE,IF($W7<1000,IFERROR(VLOOKUP($W7,FeedLib[#All],AP$60,FALSE),""),IFERROR(VLOOKUP($W7,FeedLibUser[#All],AP$60,FALSE),"")),AP7),IF(AND(ISNUMBER($AI7),$AJ7<>""),AP7,"")) -> 0 | AQ40: =IF(ISNUMBER($W7),IF($AH7=FALSE,IF($W7<1000,IFERROR(VLOOKUP($W7,FeedLib[#All],AQ$60,FALSE),""),IFERROR(VLOOKUP($W7,FeedLibUser[#All],AQ$60,FALSE),"")),AQ7),IF(AND(ISNUMBER($AI7),$AJ7<>""),AQ7,"")) -> 0 | AR40: =IF(ISNUMBER($W7),IF($AH7=FALSE,IF($W7<1000,IFERROR(VLOOKUP($W7,FeedLib[#All],AR$60,FALSE),""),IFERROR(VLOOKUP($W7,FeedLibUser[#All],AR$60,FALSE),"")),AR7),IF(AND(ISNUMBER($AI7),$AJ7<>""),AR7,"")) -> 0 | AS40: =IF(ISNUMBER($W7),IF($AH7=FALSE,IF($W7<1000,IFERROR(VLOOKUP($W7,FeedLib[#All],AS$60,FALSE),""),IFERROR(VLOOKUP($W7,FeedLibUser[#All],AS$60,FALSE),"")),AS7),IF(AND(ISNUMBER($AI7),$AJ7<>""),AS7,"")) -> 0 | AT40: =IF(ISNUMBER($W7),IF($AH7=FALSE,IF($W7<1000,IFERROR(VLOOKUP($W7,FeedLib[#All],AT$60,FALSE),""),IFERROR(VLOOKUP($W7,FeedLibUser[#All],AT$60,FALSE),"")),AT7),IF(AND(ISNUMBER($AI7),$AJ7<>""),AT7,"")) -> 100 | AU40: =IF(ISNUMBER($W7),IF($AH7=FALSE,IF($W7<1000,IFERROR(VLOOKUP($W7,FeedLib[#All],AU$60,FALSE),""),IFERROR(VLOOKUP($W7,FeedLibUser[#All],AU$60,FALSE),"")),AU7),IF(AND(ISNUMBER($AI7),$AJ7<>""),AU7,"")) -> 0 | AV40: =IF(ISNUMBER($W7),IF($AH7=FALSE,IF($W7<1000,IFERROR(VLOOKUP($W7,FeedLib[#All],AV$60,FALSE),""),IFERROR(VLOOKUP($W7,FeedLibUser[#All],AV$60,FALSE),"")),AV7),IF(AND(ISNUMBER($AI7),$AJ7<>""),AV7,"")) -> 0 | AW40: =IF(ISNUMBER($W7),IF($AH7=FALSE,IF($W7<1000,IFERROR(VLOOKUP($W7,FeedLib[#All],AW$60,FALSE),""),IFERROR(VLOOKUP($W7,FeedLibUser[#All],AW$60,FALSE),"")),AW7),IF(AND(ISNUMBER($AI7),$AJ7<>""),AW7,"")) -> 0 | AX40: =IF(ISNUMBER($W7),IF($AH7=FALSE,IF($W7<1000,IFERROR(VLOOKUP($W7,FeedLib[#All],AX$60,FALSE),""),IFERROR(VLOOKUP($W7,FeedLibUser[#All],AX$60,FALSE),"")),AX7),IF(AND(ISNUMBER($AI7),$AJ7<>""),AX7,"")) -> 0 | AY40: =IF(ISNUMBER($W7),IF($AH7=FALSE,IF($W7<1000,IFERROR(VLOOKUP($W7,FeedLib[#All],AY$60,FALSE),"")/IF(parmUnit=1,1,2.2046),IFERROR(VLOOKUP($W7,FeedLibUser[#All],AY$60,FALSE),"")/IF(parmUnit=1,1,2.2046)),AY7),IF(AND(ISNUMBER($AI7),$AJ7<>""),AY7,"")) -> 0 | AZ40: =IF(ISNUMBER($W7),IF($AH7=FALSE,IF($W7<1000,IFERROR(VLOOKUP($W7,FeedLib[#All],AZ$60,FALSE),"")/IF(parmUnit=1,1,2.2046),IFERROR(VLOOKUP($W7,FeedLibUser[#All],AZ$60,FALSE),"")/IF(parmUnit=1,1,2.2046)),AZ7),IF(AND(ISNUMBER($AI7),$AJ7<>""),AZ7,"")) -> 0 | BA40: =IF(ISNUMBER($W7),IF($AH7=FALSE,IF($W7<1000,IFERROR(VLOOKUP($W7,FeedLib[#All],BA$60,FALSE),"")/IF(parmUnit=1,1,2.2046),IFERROR(VLOOKUP($W7,FeedLibUser[#All],BA$60,FALSE),"")/IF(parmUnit=1,1,2.2046)),BA7),IF(AND(ISNUMBER($AI7),$AJ7<>""),BA7,"")) -> 0 | BB40: =IF(ISNUMBER($W7),IF($AH7=FALSE,IF($W7<1000,IFERROR(VLOOKUP($W7,FeedLib[#All],BB$60,FALSE),""),IFERROR(VLOOKUP($W7,FeedLibUser[#All],BB$60,FALSE),"")),BB7),IF(AND(ISNUMBER($AI7),$AJ7<>""),BB7,"")) -> 100 | BC40: =IF(ISNUMBER($W7),IF($AH7=FALSE,IF($W7<1000,IFERROR(VLOOKUP($W7,FeedLib[#All],BC$60,FALSE),""),IFERROR(VLOOKUP($W7,FeedLibUser[#All],BC$60,FALSE),"")),BC7),IF(AND(ISNUMBER($AI7),$AJ7<>""),BC7,"")) -> 0 | BD40: =IF(ISNUMBER($W7),IF($AH7=FALSE,IF($W7<1000,IFERROR(VLOOKUP($W7,FeedLib[#All],BD$60,FALSE),""),IFERROR(VLOOKUP($W7,FeedLibUser[#All],BD$60,FALSE),"")),BD7),IF(AND(ISNUMBER($AI7),$AJ7<>""),BD7,"")) -> 0 | BE40: =IF(ISNUMBER($W7),IF($AH7=FALSE,IF($W7<1000,IFERROR(VLOOKUP($W7,FeedLib[#All],BE$60,FALSE),""),IFERROR(VLOOKUP($W7,FeedLibUser[#All],BE$60,FALSE),"")),BE7),IF(AND(ISNUMBER($AI7),$AJ7<>""),BE7,"")) -> 0 | BF40: =IF(ISNUMBER($W7),IF($AH7=FALSE,IF($W7<1000,IFERROR(VLOOKUP($W7,FeedLib[#All],BF$60,FALSE),""),IFERROR(VLOOKUP($W7,FeedLibUser[#All],BF$60,FALSE),"")),BF7),IF(AND(ISNUMBER($AI7),$AJ7<>""),BF7,"")) -> 0 | BG40: =IF(ISNUMBER($W7),IF($AH7=FALSE,IF($W7<1000,IFERROR(VLOOKUP($W7,FeedLib[#All],BG$60,FALSE),""),IFERROR(VLOOKUP($W7,FeedLibUser[#All],BG$60,FALSE),"")),BG7),IF(AND(ISNUMBER($AI7),$AJ7<>""),BG7,"")) -> 0 | BH40: =IF(ISNUMBER($W7),IF($AH7=FALSE,IF($W7<1000,IFERROR(VLOOKUP($W7,FeedLib[#All],BH$60,FALSE),""),IFERROR(VLOOKUP($W7,FeedLibUser[#All],BH$60,FALSE),"")),BH7),IF(AND(ISNUMBER($AI7),$AJ7<>""),BH7,"")) -> 0 | BI40: =IF(ISNUMBER($W7),IF($AH7=FALSE,IF($W7<1000,IFERROR(VLOOKUP($W7,FeedLib[#All],BI$60,FALSE),""),IFERROR(VLOOKUP($W7,FeedLibUser[#All],BI$60,FALSE),"")),BI7),IF(AND(ISNUMBER($AI7),$AJ7<>""),BI7,"")) -> 75 | BJ40: =IF(ISNUMBER($W7),IF($AH7=FALSE,IF($W7<1000,IFERROR(VLOOKUP($W7,FeedLib[#All],BJ$60,FALSE),""),IFERROR(VLOOKUP($W7,FeedLibUser[#All],BJ$60,FALSE),"")),BJ7),IF(AND(ISNUMBER($AI7),$AJ7<>""),BJ7,"")) -> 0 | BK40: =IF(ISNUMBER($W7),IF($AH7=FALSE,IF($W7<1000,IFERROR(VLOOKUP($W7,FeedLib[#All],BK$60,FALSE),""),IFERROR(VLOOKUP($W7,FeedLibUser[#All],BK$60,FALSE),"")),BK7),IF(AND(ISNUMBER($AI7),$AJ7<>""),BK7,"")) -> 0 | BL40: =IF(ISNUMBER($W7),IF($AH7=FALSE,IF($W7<1000,IFERROR(VLOOKUP($W7,FeedLib[#All],BL$60,FALSE),""),IFERROR(VLOOKUP($W7,FeedLibUser[#All],BL$60,FALSE),"")),BL7),IF(AND(ISNUMBER($AI7),$AJ7<>""),BL7,"")) -> 0 | BM40: =IF(ISNUMBER($W7),IF($AH7=FALSE,IF($W7<1000,IFERROR(VLOOKUP($W7,FeedLib[#All],BM$60,FALSE),""),IFERROR(VLOOKUP($W7,FeedLibUser[#All],BM$60,FALSE),"")),BM7),IF(AND(ISNUMBER($AI7),$AJ7<>""),BM7,"")) -> 0 | BN40: =IF(ISNUMBER($W7),IF($AH7=FALSE,IF($W7<1000,IFERROR(VLOOKUP($W7,FeedLib[#All],BN$60,FALSE),""),IFERROR(VLOOKUP($W7,FeedLibUser[#All],BN$60,FALSE),"")),BN7),IF(AND(ISNUMBER($AI7),$AJ7<>""),BN7,"")) -> 0 | BO40: =IF(ISNUMBER($W7),IF($AH7=FALSE,IF($W7<1000,IFERROR(VLOOKUP($W7,FeedLib[#All],BO$60,FALSE),""),IFERROR(VLOOKUP($W7,FeedLibUser[#All],BO$60,FALSE),"")),BO7),IF(AND(ISNUMBER($AI7),$AJ7<>""),BO7,"")) -> 0 | BP40: =IF(ISNUMBER($W7),IF($AH7=FALSE,IF($W7<1000,IFERROR(VLOOKUP($W7,FeedLib[#All],BP$60,FALSE),""),IFERROR(VLOOKUP($W7,FeedLibUser[#All],BP$60,FALSE),"")),BP7),IF(AND(ISNUMBER($AI7),$AJ7<>""),BP7,"")) -> 0 | BQ40: =IF(ISNUMBER($W7),IF($AH7=FALSE,IF($W7<1000,IFERROR(VLOOKUP($W7,FeedLib[#All],BQ$60,FALSE),""),IFERROR(VLOOKUP($W7,FeedLibUser[#All],BQ$60,FALSE),"")),BQ7),IF(AND(ISNUMBER($AI7),$AJ7<>""),BQ7,"")) -> 0 | BR40: =IF(ISNUMBER($W7),IF($AH7=FALSE,IF($W7<1000,IFERROR(VLOOKUP($W7,FeedLib[#All],BR$60,FALSE),""),IFERROR(VLOOKUP($W7,FeedLibUser[#All],BR$60,FALSE),"")),BR7),IF(AND(ISNUMBER($AI7),$AJ7<>""),BR7,"")) -> 0 | BS40: =IF(ISNUMBER($W7),IF($AH7=FALSE,IF($W7<1000,IFERROR(VLOOKUP($W7,FeedLib[#All],BS$60,FALSE),""),IFERROR(VLOOKUP($W7,FeedLibUser[#All],BS$60,FALSE),"")),BS7),IF(AND(ISNUMBER($AI7),$AJ7<>""),BS7,"")) -> 0 | BT40: =IF(ISNUMBER($W7),IF($AH7=FALSE,IF($W7<1000,IFERROR(VLOOKUP($W7,FeedLib[#All],BT$60,FALSE),""),IFERROR(VLOOKUP($W7,FeedLibUser[#All],BT$60,FALSE),"")),BT7),IF(AND(ISNUMBER($AI7),$AJ7<>""),BT7,"")) -> 0 | BU40: =IF(ISNUMBER($W7),IF($AH7=FALSE,IF($W7<1000,IFERROR(VLOOKUP($W7,FeedLib[#All],BU$60,FALSE),""),IFERROR(VLOOKUP($W7,FeedLibUser[#All],BU$60,FALSE),"")),BU7),IF(AND(ISNUMBER($AI7),$AJ7<>""),BU7,"")) -> 0 | BV40: =IF(ISNUMBER($W7),IF($AH7=FALSE,IF($W7<1000,IFERROR(VLOOKUP($W7,FeedLib[#All],BV$60,FALSE),""),IFERROR(VLOOKUP($W7,FeedLibUser[#All],BV$60,FALSE),"")),BV7),IF(AND(ISNUMBER($AI7),$AJ7<>""),BV7,"")) -> 0 | BW40: =IF(ISNUMBER($W7),IF($AH7=FALSE,IF($W7<1000,IFERROR(VLOOKUP($W7,FeedLib[#All],BW$60,FALSE),""),IFERROR(VLOOKUP($W7,FeedLibUser[#All],BW$60,FALSE),"")),BW7),IF(AND(ISNUMBER($AI7),$AJ7<>""),BW7,"")) -> 0 | BX40: =IF(ISNUMBER($W7),IF($AH7=FALSE,IF($W7<1000,IFERROR(VLOOKUP($W7,FeedLib[#All],BX$60,FALSE),""),IFERROR(VLOOKUP($W7,FeedLibUser[#All],BX$60,FALSE),"")),BX7),IF(AND(ISNUMBER($AI7),$AJ7<>""),BX7,"")) -> 0 | BY40: =IF(ISNUMBER($W7),IF($AH7=FALSE,IF($W7<1000,IFERROR(VLOOKUP($W7,FeedLib[#All],BY$60,FALSE),""),IFERROR(VLOOKUP($W7,FeedLibUser[#All],BY$60,FALSE),"")),BY7),IF(AND(ISNUMBER($AI7),$AJ7<>""),BY7,"")) -> 0 | BZ40: =IF(ISNUMBER($W7),IF($AH7=FALSE,IF($W7<1000,IFERROR(VLOOKUP($W7,FeedLib[#All],BZ$60,FALSE),""),IFERROR(VLOOKUP($W7,FeedLibUser[#All],BZ$60,FALSE),"")),BZ7),IF(AND(ISNUMBER($AI7),$AJ7<>""),BZ7,"")) -> 0 | CA40: =IF(ISNUMBER($W7),IF($AH7=FALSE,IF($W7<1000,IFERROR(VLOOKUP($W7,FeedLib[#All],CA$60,FALSE),""),IFERROR(VLOOKUP($W7,FeedLibUser[#All],CA$60,FALSE),"")),CA7),IF(AND(ISNUMBER($AI7),$AJ7<>""),CA7,"")) -> 0 | CB40: =IF(ISNUMBER($W7),IF($AH7=FALSE,IF($W7<1000,IFERROR(VLOOKUP($W7,FeedLib[#All],CB$60,FALSE),""),IFERROR(VLOOKUP($W7,FeedLibUser[#All],CB$60,FALSE),"")),CB7),IF(AND(ISNUMBER($AI7),$AJ7<>""),CB7,"")) -> 0 | CC40: =IF(ISNUMBER($W7),IF($AH7=FALSE,IF($W7<1000,IFERROR(VLOOKUP($W7,FeedLib[#All],CC$60,FALSE),""),IFERROR(VLOOKUP($W7,FeedLibUser[#All],CC$60,FALSE),"")),CC7),IF(AND(ISNUMBER($AI7),$AJ7<>""),CC7,"")) -> 0 | CD40: =IF(ISNUMBER($W7),IF($AH7=FALSE,IF($W7<1000,IFERROR(VLOOKUP($W7,FeedLib[#All],CD$60,FALSE),""),IFERROR(VLOOKUP($W7,FeedLibUser[#All],CD$60,FALSE),"")),CD7),IF(AND(ISNUMBER($AI7),$AJ7<>""),CD7,"")) -> 0 | CE40: =IF(ISNUMBER($W7),IF($AH7=FALSE,IF($W7<1000,IFERROR(VLOOKUP($W7,FeedLib[#All],CE$60,FALSE),""),IFERROR(VLOOKUP($W7,FeedLibUser[#All],CE$60,FALSE),"")),CE7),IF(AND(ISNUMBER($AI7),$AJ7<>""),CE7,"")) -> 0 | CF40: =IF(ISNUMBER($W7),IF($AH7=FALSE,IF($W7<1000,IFERROR(VLOOKUP($W7,FeedLib[#All],CF$60,FALSE),""),IFERROR(VLOOKUP($W7,FeedLibUser[#All],CF$60,FALSE),"")),CF7),IF(AND(ISNUMBER($AI7),$AJ7<>""),CF7,"")) -> 0 | CG40: =IF(ISNUMBER($W7),IF($AH7=FALSE,IF($W7<1000,IFERROR(VLOOKUP($W7,FeedLib[#All],CG$60,FALSE),""),IFERROR(VLOOKUP($W7,FeedLibUser[#All],CG$60,FALSE),"")),CG7),IF(AND(ISNUMBER($AI7),$AJ7<>""),CG7,"")) -> 0 | CH40: =IF(ISNUMBER($W7),IF($AH7=FALSE,IF($W7<1000,IFERROR(VLOOKUP($W7,FeedLib[#All],CH$60,FALSE),""),IFERROR(VLOOKUP($W7,FeedLibUser[#All],CH$60,FALSE),"")),CH7),IF(AND(ISNUMBER($AI7),$AJ7<>""),CH7,"")) -> 0 | CI40: =IF(ISNUMBER($W7),IF($AH7=FALSE,IF($W7<1000,IFERROR(VLOOKUP($W7,FeedLib[#All],CI$60,FALSE),""),IFERROR(VLOOKUP($W7,FeedLibUser[#All],CI$60,FALSE),"")),CI7),IF(AND(ISNUMBER($AI7),$AJ7<>""),CI7,"")) -> 0 | CJ40: =IF(ISNUMBER($W7),IF($AH7=FALSE,IF($W7<1000,IFERROR(VLOOKUP($W7,FeedLib[#All],CJ$60,FALSE),""),IFERROR(VLOOKUP($W7,FeedLibUser[#All],CJ$60,FALSE),"")),CJ7),IF(AND(ISNUMBER($AI7),$AJ7<>""),CJ7,"")) -> 0 | CK40: =IF(ISNUMBER($W7),IF($AH7=FALSE,IF($W7<1000,IFERROR(VLOOKUP($W7,FeedLib[#All],CK$60,FALSE),""),IFERROR(VLOOKUP($W7,FeedLibUser[#All],CK$60,FALSE),"")),CK7),IF(AND(ISNUMBER($AI7),$AJ7<>""),CK7,"")) -> 0 | CL40: =IF(ISNUMBER($W7),IF($AH7=FALSE,IF($W7<1000,IFERROR(VLOOKUP($W7,FeedLib[#All],CL$60,FALSE),""),IFERROR(VLOOKUP($W7,FeedLibUser[#All],CL$60,FALSE),"")),CL7),IF(AND(ISNUMBER($AI7),$AJ7<>""),CL7,"")) -> 0 | CM40: =IF(ISNUMBER($W7),IF($AH7=FALSE,IF($W7<1000,IFERROR(VLOOKUP($W7,FeedLib[#All],CM$60,FALSE),""),IFERROR(VLOOKUP($W7,FeedLibUser[#All],CM$60,FALSE),"")),CM7),IF(AND(ISNUMBER($AI7),$AJ7<>""),CM7,"")) -> 0
B41: % high Choice | C41: Ch+ | E41: 7 | F41: =IF(SUM($D$40:$D$44)<>100,"––",D41) -> –– | H41: The sum of Pr, Ch+, Ch, Ch-, and Se has to be 100% | J41: 30 | K41: South Devon | L41: 1 | M41: 1.2 | N41: =33*IF(parmUnit=1,1,2.2046) -> 72.7518 | O41: =8*IF(parmUnit=1,1,2.2046) -> 17.6368 | P41: 4 | Q41: 3.8 | R41: 8.3 | S41: 0.6 | AK41: =IF(ISNUMBER($W8),IF($AH8=FALSE,IF($W8<1000,IFERROR(VLOOKUP($W8,FeedLib[#All],AK$60,FALSE),"")*(IF(parmUnit=1,1,2000/2204.6)),IFERROR(VLOOKUP($W8,FeedLibUser[#All],AK$60,FALSE),"")*(IF(parmUnit=1,1,2000/2204.6))),AK8),IF(AND(ISNUMBER($AI8),$AJ8<>""),AK8,"")) ->  | AL41: =IF(ISNUMBER($W8),IF($AH8=FALSE,IF($W8<1000,IFERROR(VLOOKUP($W8,FeedLib[#All],AL$60,FALSE),""),IFERROR(VLOOKUP($W8,FeedLibUser[#All],AL$60,FALSE),"")),AL8),IF(AND(ISNUMBER($AI8),$AJ8<>""),AL8,"")) ->  | AM41: =IF(ISNUMBER($W8),IF($AH8=FALSE,IF($W8<1000,IFERROR(VLOOKUP($W8,FeedLib[#All],AM$60,FALSE),""),IFERROR(VLOOKUP($W8,FeedLibUser[#All],AM$60,FALSE),"")),AM8),IF(AND(ISNUMBER($AI8),$AJ8<>""),AM8,"")) ->  | AN41: =IF(ISNUMBER($W8),IF($AH8=FALSE,IF($W8<1000,IFERROR(VLOOKUP($W8,FeedLib[#All],AN$60,FALSE),""),IFERROR(VLOOKUP($W8,FeedLibUser[#All],AN$60,FALSE),"")),AN8),IF(AND(ISNUMBER($AI8),$AJ8<>""),AN8,"")) ->  | AO41: =IF(ISNUMBER($W8),IF($AH8=FALSE,IF($W8<1000,IFERROR(VLOOKUP($W8,FeedLib[#All],AO$60,FALSE),""),IFERROR(VLOOKUP($W8,FeedLibUser[#All],AO$60,FALSE),"")),AO8),IF(AND(ISNUMBER($AI8),$AJ8<>""),AO8,"")) ->  | AP41: =IF(ISNUMBER($W8),IF($AH8=FALSE,IF($W8<1000,IFERROR(VLOOKUP($W8,FeedLib[#All],AP$60,FALSE),""),IFERROR(VLOOKUP($W8,FeedLibUser[#All],AP$60,FALSE),"")),AP8),IF(AND(ISNUMBER($AI8),$AJ8<>""),AP8,"")) ->  | AQ41: =IF(ISNUMBER($W8),IF($AH8=FALSE,IF($W8<1000,IFERROR(VLOOKUP($W8,FeedLib[#All],AQ$60,FALSE),""),IFERROR(VLOOKUP($W8,FeedLibUser[#All],AQ$60,FALSE),"")),AQ8),IF(AND(ISNUMBER($AI8),$AJ8<>""),AQ8,"")) ->  | AR41: =IF(ISNUMBER($W8),IF($AH8=FALSE,IF($W8<1000,IFERROR(VLOOKUP($W8,FeedLib[#All],AR$60,FALSE),""),IFERROR(VLOOKUP($W8,FeedLibUser[#All],AR$60,FALSE),"")),AR8),IF(AND(ISNUMBER($AI8),$AJ8<>""),AR8,"")) ->  | AS41: =IF(ISNUMBER($W8),IF($AH8=FALSE,IF($W8<1000,IFERROR(VLOOKUP($W8,FeedLib[#All],AS$60,FALSE),""),IFERROR(VLOOKUP($W8,FeedLibUser[#All],AS$60,FALSE),"")),AS8),IF(AND(ISNUMBER($AI8),$AJ8<>""),AS8,"")) ->  | AT41: =IF(ISNUMBER($W8),IF($AH8=FALSE,IF($W8<1000,IFERROR(VLOOKUP($W8,FeedLib[#All],AT$60,FALSE),""),IFERROR(VLOOKUP($W8,FeedLibUser[#All],AT$60,FALSE),"")),AT8),IF(AND(ISNUMBER($AI8),$AJ8<>""),AT8,"")) ->  | AU41: =IF(ISNUMBER($W8),IF($AH8=FALSE,IF($W8<1000,IFERROR(VLOOKUP($W8,FeedLib[#All],AU$60,FALSE),""),IFERROR(VLOOKUP($W8,FeedLibUser[#All],AU$60,FALSE),"")),AU8),IF(AND(ISNUMBER($AI8),$AJ8<>""),AU8,"")) ->  | AV41: =IF(ISNUMBER($W8),IF($AH8=FALSE,IF($W8<1000,IFERROR(VLOOKUP($W8,FeedLib[#All],AV$60,FALSE),""),IFERROR(VLOOKUP($W8,FeedLibUser[#All],AV$60,FALSE),"")),AV8),IF(AND(ISNUMBER($AI8),$AJ8<>""),AV8,"")) ->  | AW41: =IF(ISNUMBER($W8),IF($AH8=FALSE,IF($W8<1000,IFERROR(VLOOKUP($W8,FeedLib[#All],AW$60,FALSE),""),IFERROR(VLOOKUP($W8,FeedLibUser[#All],AW$60,FALSE),"")),AW8),IF(AND(ISNUMBER($AI8),$AJ8<>""),AW8,"")) ->  | AX41: =IF(ISNUMBER($W8),IF($AH8=FALSE,IF($W8<1000,IFERROR(VLOOKUP($W8,FeedLib[#All],AX$60,FALSE),""),IFERROR(VLOOKUP($W8,FeedLibUser[#All],AX$60,FALSE),"")),AX8),IF(AND(ISNUMBER($AI8),$AJ8<>""),AX8,"")) ->  | AY41: =IF(ISNUMBER($W8),IF($AH8=FALSE,IF($W8<1000,IFERROR(VLOOKUP($W8,FeedLib[#All],AY$60,FALSE),"")/IF(parmUnit=1,1,2.2046),IFERROR(VLOOKUP($W8,FeedLibUser[#All],AY$60,FALSE),"")/IF(parmUnit=1,1,2.2046)),AY8),IF(AND(ISNUMBER($AI8),$AJ8<>""),AY8,"")) ->  | AZ41: =IF(ISNUMBER($W8),IF($AH8=FALSE,IF($W8<1000,IFERROR(VLOOKUP($W8,FeedLib[#All],AZ$60,FALSE),"")/IF(parmUnit=1,1,2.2046),IFERROR(VLOOKUP($W8,FeedLibUser[#All],AZ$60,FALSE),"")/IF(parmUnit=1,1,2.2046)),AZ8),IF(AND(ISNUMBER($AI8),$AJ8<>""),AZ8,"")) ->  | BA41: =IF(ISNUMBER($W8),IF($AH8=FALSE,IF($W8<1000,IFERROR(VLOOKUP($W8,FeedLib[#All],BA$60,FALSE),"")/IF(parmUnit=1,1,2.2046),IFERROR(VLOOKUP($W8,FeedLibUser[#All],BA$60,FALSE),"")/IF(parmUnit=1,1,2.2046)),BA8),IF(AND(ISNUMBER($AI8),$AJ8<>""),BA8,"")) ->  | BB41: =IF(ISNUMBER($W8),IF($AH8=FALSE,IF($W8<1000,IFERROR(VLOOKUP($W8,FeedLib[#All],BB$60,FALSE),""),IFERROR(VLOOKUP($W8,FeedLibUser[#All],BB$60,FALSE),"")),BB8),IF(AND(ISNUMBER($AI8),$AJ8<>""),BB8,"")) ->  | BC41: =IF(ISNUMBER($W8),IF($AH8=FALSE,IF($W8<1000,IFERROR(VLOOKUP($W8,FeedLib[#All],BC$60,FALSE),""),IFERROR(VLOOKUP($W8,FeedLibUser[#All],BC$60,FALSE),"")),BC8),IF(AND(ISNUMBER($AI8),$AJ8<>""),BC8,"")) ->  | BD41: =IF(ISNUMBER($W8),IF($AH8=FALSE,IF($W8<1000,IFERROR(VLOOKUP($W8,FeedLib[#All],BD$60,FALSE),""),IFERROR(VLOOKUP($W8,FeedLibUser[#All],BD$60,FALSE),"")),BD8),IF(AND(ISNUMBER($AI8),$AJ8<>""),BD8,"")) ->  | BE41: =IF(ISNUMBER($W8),IF($AH8=FALSE,IF($W8<1000,IFERROR(VLOOKUP($W8,FeedLib[#All],BE$60,FALSE),""),IFERROR(VLOOKUP($W8,FeedLibUser[#All],BE$60,FALSE),"")),BE8),IF(AND(ISNUMBER($AI8),$AJ8<>""),BE8,"")) ->  | BF41: =IF(ISNUMBER($W8),IF($AH8=FALSE,IF($W8<1000,IFERROR(VLOOKUP($W8,FeedLib[#All],BF$60,FALSE),""),IFERROR(VLOOKUP($W8,FeedLibUser[#All],BF$60,FALSE),"")),BF8),IF(AND(ISNUMBER($AI8),$AJ8<>""),BF8,"")) ->  | BG41: =IF(ISNUMBER($W8),IF($AH8=FALSE,IF($W8<1000,IFERROR(VLOOKUP($W8,FeedLib[#All],BG$60,FALSE),""),IFERROR(VLOOKUP($W8,FeedLibUser[#All],BG$60,FALSE),"")),BG8),IF(AND(ISNUMBER($AI8),$AJ8<>""),BG8,"")) ->  | BH41: =IF(ISNUMBER($W8),IF($AH8=FALSE,IF($W8<1000,IFERROR(VLOOKUP($W8,FeedLib[#All],BH$60,FALSE),""),IFERROR(VLOOKUP($W8,FeedLibUser[#All],BH$60,FALSE),"")),BH8),IF(AND(ISNUMBER($AI8),$AJ8<>""),BH8,"")) ->  | BI41: =IF(ISNUMBER($W8),IF($AH8=FALSE,IF($W8<1000,IFERROR(VLOOKUP($W8,FeedLib[#All],BI$60,FALSE),""),IFERROR(VLOOKUP($W8,FeedLibUser[#All],BI$60,FALSE),"")),BI8),IF(AND(ISNUMBER($AI8),$AJ8<>""),BI8,"")) ->  | BJ41: =IF(ISNUMBER($W8),IF($AH8=FALSE,IF($W8<1000,IFERROR(VLOOKUP($W8,FeedLib[#All],BJ$60,FALSE),""),IFERROR(VLOOKUP($W8,FeedLibUser[#All],BJ$60,FALSE),"")),BJ8),IF(AND(ISNUMBER($AI8),$AJ8<>""),BJ8,"")) ->  | BK41: =IF(ISNUMBER($W8),IF($AH8=FALSE,IF($W8<1000,IFERROR(VLOOKUP($W8,FeedLib[#All],BK$60,FALSE),""),IFERROR(VLOOKUP($W8,FeedLibUser[#All],BK$60,FALSE),"")),BK8),IF(AND(ISNUMBER($AI8),$AJ8<>""),BK8,"")) ->  | BL41: =IF(ISNUMBER($W8),IF($AH8=FALSE,IF($W8<1000,IFERROR(VLOOKUP($W8,FeedLib[#All],BL$60,FALSE),""),IFERROR(VLOOKUP($W8,FeedLibUser[#All],BL$60,FALSE),"")),BL8),IF(AND(ISNUMBER($AI8),$AJ8<>""),BL8,"")) ->  | BM41: =IF(ISNUMBER($W8),IF($AH8=FALSE,IF($W8<1000,IFERROR(VLOOKUP($W8,FeedLib[#All],BM$60,FALSE),""),IFERROR(VLOOKUP($W8,FeedLibUser[#All],BM$60,FALSE),"")),BM8),IF(AND(ISNUMBER($AI8),$AJ8<>""),BM8,"")) ->  | BN41: =IF(ISNUMBER($W8),IF($AH8=FALSE,IF($W8<1000,IFERROR(VLOOKUP($W8,FeedLib[#All],BN$60,FALSE),""),IFERROR(VLOOKUP($W8,FeedLibUser[#All],BN$60,FALSE),"")),BN8),IF(AND(ISNUMBER($AI8),$AJ8<>""),BN8,"")) ->  | BO41: =IF(ISNUMBER($W8),IF($AH8=FALSE,IF($W8<1000,IFERROR(VLOOKUP($W8,FeedLib[#All],BO$60,FALSE),""),IFERROR(VLOOKUP($W8,FeedLibUser[#All],BO$60,FALSE),"")),BO8),IF(AND(ISNUMBER($AI8),$AJ8<>""),BO8,"")) ->  | BP41: =IF(ISNUMBER($W8),IF($AH8=FALSE,IF($W8<1000,IFERROR(VLOOKUP($W8,FeedLib[#All],BP$60,FALSE),""),IFERROR(VLOOKUP($W8,FeedLibUser[#All],BP$60,FALSE),"")),BP8),IF(AND(ISNUMBER($AI8),$AJ8<>""),BP8,"")) ->  | BQ41: =IF(ISNUMBER($W8),IF($AH8=FALSE,IF($W8<1000,IFERROR(VLOOKUP($W8,FeedLib[#All],BQ$60,FALSE),""),IFERROR(VLOOKUP($W8,FeedLibUser[#All],BQ$60,FALSE),"")),BQ8),IF(AND(ISNUMBER($AI8),$AJ8<>""),BQ8,"")) ->  | BR41: =IF(ISNUMBER($W8),IF($AH8=FALSE,IF($W8<1000,IFERROR(VLOOKUP($W8,FeedLib[#All],BR$60,FALSE),""),IFERROR(VLOOKUP($W8,FeedLibUser[#All],BR$60,FALSE),"")),BR8),IF(AND(ISNUMBER($AI8),$AJ8<>""),BR8,"")) ->  | BS41: =IF(ISNUMBER($W8),IF($AH8=FALSE,IF($W8<1000,IFERROR(VLOOKUP($W8,FeedLib[#All],BS$60,FALSE),""),IFERROR(VLOOKUP($W8,FeedLibUser[#All],BS$60,FALSE),"")),BS8),IF(AND(ISNUMBER($AI8),$AJ8<>""),BS8,"")) ->  | BT41: =IF(ISNUMBER($W8),IF($AH8=FALSE,IF($W8<1000,IFERROR(VLOOKUP($W8,FeedLib[#All],BT$60,FALSE),""),IFERROR(VLOOKUP($W8,FeedLibUser[#All],BT$60,FALSE),"")),BT8),IF(AND(ISNUMBER($AI8),$AJ8<>""),BT8,"")) ->  | BU41: =IF(ISNUMBER($W8),IF($AH8=FALSE,IF($W8<1000,IFERROR(VLOOKUP($W8,FeedLib[#All],BU$60,FALSE),""),IFERROR(VLOOKUP($W8,FeedLibUser[#All],BU$60,FALSE),"")),BU8),IF(AND(ISNUMBER($AI8),$AJ8<>""),BU8,"")) ->  | BV41: =IF(ISNUMBER($W8),IF($AH8=FALSE,IF($W8<1000,IFERROR(VLOOKUP($W8,FeedLib[#All],BV$60,FALSE),""),IFERROR(VLOOKUP($W8,FeedLibUser[#All],BV$60,FALSE),"")),BV8),IF(AND(ISNUMBER($AI8),$AJ8<>""),BV8,"")) ->  | BW41: =IF(ISNUMBER($W8),IF($AH8=FALSE,IF($W8<1000,IFERROR(VLOOKUP($W8,FeedLib[#All],BW$60,FALSE),""),IFERROR(VLOOKUP($W8,FeedLibUser[#All],BW$60,FALSE),"")),BW8),IF(AND(ISNUMBER($AI8),$AJ8<>""),BW8,"")) ->  | BX41: =IF(ISNUMBER($W8),IF($AH8=FALSE,IF($W8<1000,IFERROR(VLOOKUP($W8,FeedLib[#All],BX$60,FALSE),""),IFERROR(VLOOKUP($W8,FeedLibUser[#All],BX$60,FALSE),"")),BX8),IF(AND(ISNUMBER($AI8),$AJ8<>""),BX8,"")) ->  | BY41: =IF(ISNUMBER($W8),IF($AH8=FALSE,IF($W8<1000,IFERROR(VLOOKUP($W8,FeedLib[#All],BY$60,FALSE),""),IFERROR(VLOOKUP($W8,FeedLibUser[#All],BY$60,FALSE),"")),BY8),IF(AND(ISNUMBER($AI8),$AJ8<>""),BY8,"")) ->  | BZ41: =IF(ISNUMBER($W8),IF($AH8=FALSE,IF($W8<1000,IFERROR(VLOOKUP($W8,FeedLib[#All],BZ$60,FALSE),""),IFERROR(VLOOKUP($W8,FeedLibUser[#All],BZ$60,FALSE),"")),BZ8),IF(AND(ISNUMBER($AI8),$AJ8<>""),BZ8,"")) ->  | CA41: =IF(ISNUMBER($W8),IF($AH8=FALSE,IF($W8<1000,IFERROR(VLOOKUP($W8,FeedLib[#All],CA$60,FALSE),""),IFERROR(VLOOKUP($W8,FeedLibUser[#All],CA$60,FALSE),"")),CA8),IF(AND(ISNUMBER($AI8),$AJ8<>""),CA8,"")) ->  | CB41: =IF(ISNUMBER($W8),IF($AH8=FALSE,IF($W8<1000,IFERROR(VLOOKUP($W8,FeedLib[#All],CB$60,FALSE),""),IFERROR(VLOOKUP($W8,FeedLibUser[#All],CB$60,FALSE),"")),CB8),IF(AND(ISNUMBER($AI8),$AJ8<>""),CB8,"")) ->  | CC41: =IF(ISNUMBER($W8),IF($AH8=FALSE,IF($W8<1000,IFERROR(VLOOKUP($W8,FeedLib[#All],CC$60,FALSE),""),IFERROR(VLOOKUP($W8,FeedLibUser[#All],CC$60,FALSE),"")),CC8),IF(AND(ISNUMBER($AI8),$AJ8<>""),CC8,"")) ->  | CD41: =IF(ISNUMBER($W8),IF($AH8=FALSE,IF($W8<1000,IFERROR(VLOOKUP($W8,FeedLib[#All],CD$60,FALSE),""),IFERROR(VLOOKUP($W8,FeedLibUser[#All],CD$60,FALSE),"")),CD8),IF(AND(ISNUMBER($AI8),$AJ8<>""),CD8,"")) ->  | CE41: =IF(ISNUMBER($W8),IF($AH8=FALSE,IF($W8<1000,IFERROR(VLOOKUP($W8,FeedLib[#All],CE$60,FALSE),""),IFERROR(VLOOKUP($W8,FeedLibUser[#All],CE$60,FALSE),"")),CE8),IF(AND(ISNUMBER($AI8),$AJ8<>""),CE8,"")) ->  | CF41: =IF(ISNUMBER($W8),IF($AH8=FALSE,IF($W8<1000,IFERROR(VLOOKUP($W8,FeedLib[#All],CF$60,FALSE),""),IFERROR(VLOOKUP($W8,FeedLibUser[#All],CF$60,FALSE),"")),CF8),IF(AND(ISNUMBER($AI8),$AJ8<>""),CF8,"")) ->  | CG41: =IF(ISNUMBER($W8),IF($AH8=FALSE,IF($W8<1000,IFERROR(VLOOKUP($W8,FeedLib[#All],CG$60,FALSE),""),IFERROR(VLOOKUP($W8,FeedLibUser[#All],CG$60,FALSE),"")),CG8),IF(AND(ISNUMBER($AI8),$AJ8<>""),CG8,"")) ->  | CH41: =IF(ISNUMBER($W8),IF($AH8=FALSE,IF($W8<1000,IFERROR(VLOOKUP($W8,FeedLib[#All],CH$60,FALSE),""),IFERROR(VLOOKUP($W8,FeedLibUser[#All],CH$60,FALSE),"")),CH8),IF(AND(ISNUMBER($AI8),$AJ8<>""),CH8,"")) ->  | CI41: =IF(ISNUMBER($W8),IF($AH8=FALSE,IF($W8<1000,IFERROR(VLOOKUP($W8,FeedLib[#All],CI$60,FALSE),""),IFERROR(VLOOKUP($W8,FeedLibUser[#All],CI$60,FALSE),"")),CI8),IF(AND(ISNUMBER($AI8),$AJ8<>""),CI8,"")) ->  | CJ41: =IF(ISNUMBER($W8),IF($AH8=FALSE,IF($W8<1000,IFERROR(VLOOKUP($W8,FeedLib[#All],CJ$60,FALSE),""),IFERROR(VLOOKUP($W8,FeedLibUser[#All],CJ$60,FALSE),"")),CJ8),IF(AND(ISNUMBER($AI8),$AJ8<>""),CJ8,"")) ->  | CK41: =IF(ISNUMBER($W8),IF($AH8=FALSE,IF($W8<1000,IFERROR(VLOOKUP($W8,FeedLib[#All],CK$60,FALSE),""),IFERROR(VLOOKUP($W8,FeedLibUser[#All],CK$60,FALSE),"")),CK8),IF(AND(ISNUMBER($AI8),$AJ8<>""),CK8,"")) ->  | CL41: =IF(ISNUMBER($W8),IF($AH8=FALSE,IF($W8<1000,IFERROR(VLOOKUP($W8,FeedLib[#All],CL$60,FALSE),""),IFERROR(VLOOKUP($W8,FeedLibUser[#All],CL$60,FALSE),"")),CL8),IF(AND(ISNUMBER($AI8),$AJ8<>""),CL8,"")) ->  | CM41: =IF(ISNUMBER($W8),IF($AH8=FALSE,IF($W8<1000,IFERROR(VLOOKUP($W8,FeedLib[#All],CM$60,FALSE),""),IFERROR(VLOOKUP($W8,FeedLibUser[#All],CM$60,FALSE),"")),CM8),IF(AND(ISNUMBER($AI8),$AJ8<>""),CM8,"")) -> 
B42: % Choice | C42: Ch | E42: 6 | F42: =IF(SUM($D$40:$D$44)<>100,"––",D42) -> –– | H42: The sum of Pr, Ch+, Ch, Ch-, and Se has to be 100% | J42: 31 | K42: Tarentaise | L42: 1 | M42: 1.2 | N42: =33*IF(parmUnit=1,1,2.2046) -> 72.7518 | O42: =9*IF(parmUnit=1,1,2.2046) -> 19.8414 | P42: 4 | Q42: 3.8 | R42: 8.3 | S42: 0.6 | AK42: =IF(ISNUMBER($W9),IF($AH9=FALSE,IF($W9<1000,IFERROR(VLOOKUP($W9,FeedLib[#All],AK$60,FALSE),"")*(IF(parmUnit=1,1,2000/2204.6)),IFERROR(VLOOKUP($W9,FeedLibUser[#All],AK$60,FALSE),"")*(IF(parmUnit=1,1,2000/2204.6))),AK9),IF(AND(ISNUMBER($AI9),$AJ9<>""),AK9,"")) ->  | AL42: =IF(ISNUMBER($W9),IF($AH9=FALSE,IF($W9<1000,IFERROR(VLOOKUP($W9,FeedLib[#All],AL$60,FALSE),""),IFERROR(VLOOKUP($W9,FeedLibUser[#All],AL$60,FALSE),"")),AL9),IF(AND(ISNUMBER($AI9),$AJ9<>""),AL9,"")) ->  | AM42: =IF(ISNUMBER($W9),IF($AH9=FALSE,IF($W9<1000,IFERROR(VLOOKUP($W9,FeedLib[#All],AM$60,FALSE),""),IFERROR(VLOOKUP($W9,FeedLibUser[#All],AM$60,FALSE),"")),AM9),IF(AND(ISNUMBER($AI9),$AJ9<>""),AM9,"")) ->  | AN42: =IF(ISNUMBER($W9),IF($AH9=FALSE,IF($W9<1000,IFERROR(VLOOKUP($W9,FeedLib[#All],AN$60,FALSE),""),IFERROR(VLOOKUP($W9,FeedLibUser[#All],AN$60,FALSE),"")),AN9),IF(AND(ISNUMBER($AI9),$AJ9<>""),AN9,"")) ->  | AO42: =IF(ISNUMBER($W9),IF($AH9=FALSE,IF($W9<1000,IFERROR(VLOOKUP($W9,FeedLib[#All],AO$60,FALSE),""),IFERROR(VLOOKUP($W9,FeedLibUser[#All],AO$60,FALSE),"")),AO9),IF(AND(ISNUMBER($AI9),$AJ9<>""),AO9,"")) ->  | AP42: =IF(ISNUMBER($W9),IF($AH9=FALSE,IF($W9<1000,IFERROR(VLOOKUP($W9,FeedLib[#All],AP$60,FALSE),""),IFERROR(VLOOKUP($W9,FeedLibUser[#All],AP$60,FALSE),"")),AP9),IF(AND(ISNUMBER($AI9),$AJ9<>""),AP9,"")) ->  | AQ42: =IF(ISNUMBER($W9),IF($AH9=FALSE,IF($W9<1000,IFERROR(VLOOKUP($W9,FeedLib[#All],AQ$60,FALSE),""),IFERROR(VLOOKUP($W9,FeedLibUser[#All],AQ$60,FALSE),"")),AQ9),IF(AND(ISNUMBER($AI9),$AJ9<>""),AQ9,"")) ->  | AR42: =IF(ISNUMBER($W9),IF($AH9=FALSE,IF($W9<1000,IFERROR(VLOOKUP($W9,FeedLib[#All],AR$60,FALSE),""),IFERROR(VLOOKUP($W9,FeedLibUser[#All],AR$60,FALSE),"")),AR9),IF(AND(ISNUMBER($AI9),$AJ9<>""),AR9,"")) ->  | AS42: =IF(ISNUMBER($W9),IF($AH9=FALSE,IF($W9<1000,IFERROR(VLOOKUP($W9,FeedLib[#All],AS$60,FALSE),""),IFERROR(VLOOKUP($W9,FeedLibUser[#All],AS$60,FALSE),"")),AS9),IF(AND(ISNUMBER($AI9),$AJ9<>""),AS9,"")) ->  | AT42: =IF(ISNUMBER($W9),IF($AH9=FALSE,IF($W9<1000,IFERROR(VLOOKUP($W9,FeedLib[#All],AT$60,FALSE),""),IFERROR(VLOOKUP($W9,FeedLibUser[#All],AT$60,FALSE),"")),AT9),IF(AND(ISNUMBER($AI9),$AJ9<>""),AT9,"")) ->  | AU42: =IF(ISNUMBER($W9),IF($AH9=FALSE,IF($W9<1000,IFERROR(VLOOKUP($W9,FeedLib[#All],AU$60,FALSE),""),IFERROR(VLOOKUP($W9,FeedLibUser[#All],AU$60,FALSE),"")),AU9),IF(AND(ISNUMBER($AI9),$AJ9<>""),AU9,"")) ->  | AV42: =IF(ISNUMBER($W9),IF($AH9=FALSE,IF($W9<1000,IFERROR(VLOOKUP($W9,FeedLib[#All],AV$60,FALSE),""),IFERROR(VLOOKUP($W9,FeedLibUser[#All],AV$60,FALSE),"")),AV9),IF(AND(ISNUMBER($AI9),$AJ9<>""),AV9,"")) ->  | AW42: =IF(ISNUMBER($W9),IF($AH9=FALSE,IF($W9<1000,IFERROR(VLOOKUP($W9,FeedLib[#All],AW$60,FALSE),""),IFERROR(VLOOKUP($W9,FeedLibUser[#All],AW$60,FALSE),"")),AW9),IF(AND(ISNUMBER($AI9),$AJ9<>""),AW9,"")) ->  | AX42: =IF(ISNUMBER($W9),IF($AH9=FALSE,IF($W9<1000,IFERROR(VLOOKUP($W9,FeedLib[#All],AX$60,FALSE),""),IFERROR(VLOOKUP($W9,FeedLibUser[#All],AX$60,FALSE),"")),AX9),IF(AND(ISNUMBER($AI9),$AJ9<>""),AX9,"")) ->  | AY42: =IF(ISNUMBER($W9),IF($AH9=FALSE,IF($W9<1000,IFERROR(VLOOKUP($W9,FeedLib[#All],AY$60,FALSE),"")/IF(parmUnit=1,1,2.2046),IFERROR(VLOOKUP($W9,FeedLibUser[#All],AY$60,FALSE),"")/IF(parmUnit=1,1,2.2046)),AY9),IF(AND(ISNUMBER($AI9),$AJ9<>""),AY9,"")) ->  | AZ42: =IF(ISNUMBER($W9),IF($AH9=FALSE,IF($W9<1000,IFERROR(VLOOKUP($W9,FeedLib[#All],AZ$60,FALSE),"")/IF(parmUnit=1,1,2.2046),IFERROR(VLOOKUP($W9,FeedLibUser[#All],AZ$60,FALSE),"")/IF(parmUnit=1,1,2.2046)),AZ9),IF(AND(ISNUMBER($AI9),$AJ9<>""),AZ9,"")) ->  | BA42: =IF(ISNUMBER($W9),IF($AH9=FALSE,IF($W9<1000,IFERROR(VLOOKUP($W9,FeedLib[#All],BA$60,FALSE),"")/IF(parmUnit=1,1,2.2046),IFERROR(VLOOKUP($W9,FeedLibUser[#All],BA$60,FALSE),"")/IF(parmUnit=1,1,2.2046)),BA9),IF(AND(ISNUMBER($AI9),$AJ9<>""),BA9,"")) ->  | BB42: =IF(ISNUMBER($W9),IF($AH9=FALSE,IF($W9<1000,IFERROR(VLOOKUP($W9,FeedLib[#All],BB$60,FALSE),""),IFERROR(VLOOKUP($W9,FeedLibUser[#All],BB$60,FALSE),"")),BB9),IF(AND(ISNUMBER($AI9),$AJ9<>""),BB9,"")) ->  | BC42: =IF(ISNUMBER($W9),IF($AH9=FALSE,IF($W9<1000,IFERROR(VLOOKUP($W9,FeedLib[#All],BC$60,FALSE),""),IFERROR(VLOOKUP($W9,FeedLibUser[#All],BC$60,FALSE),"")),BC9),IF(AND(ISNUMBER($AI9),$AJ9<>""),BC9,"")) ->  | BD42: =IF(ISNUMBER($W9),IF($AH9=FALSE,IF($W9<1000,IFERROR(VLOOKUP($W9,FeedLib[#All],BD$60,FALSE),""),IFERROR(VLOOKUP($W9,FeedLibUser[#All],BD$60,FALSE),"")),BD9),IF(AND(ISNUMBER($AI9),$AJ9<>""),BD9,"")) ->  | BE42: =IF(ISNUMBER($W9),IF($AH9=FALSE,IF($W9<1000,IFERROR(VLOOKUP($W9,FeedLib[#All],BE$60,FALSE),""),IFERROR(VLOOKUP($W9,FeedLibUser[#All],BE$60,FALSE),"")),BE9),IF(AND(ISNUMBER($AI9),$AJ9<>""),BE9,"")) ->  | BF42: =IF(ISNUMBER($W9),IF($AH9=FALSE,IF($W9<1000,IFERROR(VLOOKUP($W9,FeedLib[#All],BF$60,FALSE),""),IFERROR(VLOOKUP($W9,FeedLibUser[#All],BF$60,FALSE),"")),BF9),IF(AND(ISNUMBER($AI9),$AJ9<>""),BF9,"")) ->  | BG42: =IF(ISNUMBER($W9),IF($AH9=FALSE,IF($W9<1000,IFERROR(VLOOKUP($W9,FeedLib[#All],BG$60,FALSE),""),IFERROR(VLOOKUP($W9,FeedLibUser[#All],BG$60,FALSE),"")),BG9),IF(AND(ISNUMBER($AI9),$AJ9<>""),BG9,"")) ->  | BH42: =IF(ISNUMBER($W9),IF($AH9=FALSE,IF($W9<1000,IFERROR(VLOOKUP($W9,FeedLib[#All],BH$60,FALSE),""),IFERROR(VLOOKUP($W9,FeedLibUser[#All],BH$60,FALSE),"")),BH9),IF(AND(ISNUMBER($AI9),$AJ9<>""),BH9,"")) ->  | BI42: =IF(ISNUMBER($W9),IF($AH9=FALSE,IF($W9<1000,IFERROR(VLOOKUP($W9,FeedLib[#All],BI$60,FALSE),""),IFERROR(VLOOKUP($W9,FeedLibUser[#All],BI$60,FALSE),"")),BI9),IF(AND(ISNUMBER($AI9),$AJ9<>""),BI9,"")) ->  | BJ42: =IF(ISNUMBER($W9),IF($AH9=FALSE,IF($W9<1000,IFERROR(VLOOKUP($W9,FeedLib[#All],BJ$60,FALSE),""),IFERROR(VLOOKUP($W9,FeedLibUser[#All],BJ$60,FALSE),"")),BJ9),IF(AND(ISNUMBER($AI9),$AJ9<>""),BJ9,"")) ->  | BK42: =IF(ISNUMBER($W9),IF($AH9=FALSE,IF($W9<1000,IFERROR(VLOOKUP($W9,FeedLib[#All],BK$60,FALSE),""),IFERROR(VLOOKUP($W9,FeedLibUser[#All],BK$60,FALSE),"")),BK9),IF(AND(ISNUMBER($AI9),$AJ9<>""),BK9,"")) ->  | BL42: =IF(ISNUMBER($W9),IF($AH9=FALSE,IF($W9<1000,IFERROR(VLOOKUP($W9,FeedLib[#All],BL$60,FALSE),""),IFERROR(VLOOKUP($W9,FeedLibUser[#All],BL$60,FALSE),"")),BL9),IF(AND(ISNUMBER($AI9),$AJ9<>""),BL9,"")) ->  | BM42: =IF(ISNUMBER($W9),IF($AH9=FALSE,IF($W9<1000,IFERROR(VLOOKUP($W9,FeedLib[#All],BM$60,FALSE),""),IFERROR(VLOOKUP($W9,FeedLibUser[#All],BM$60,FALSE),"")),BM9),IF(AND(ISNUMBER($AI9),$AJ9<>""),BM9,"")) ->  | BN42: =IF(ISNUMBER($W9),IF($AH9=FALSE,IF($W9<1000,IFERROR(VLOOKUP($W9,FeedLib[#All],BN$60,FALSE),""),IFERROR(VLOOKUP($W9,FeedLibUser[#All],BN$60,FALSE),"")),BN9),IF(AND(ISNUMBER($AI9),$AJ9<>""),BN9,"")) ->  | BO42: =IF(ISNUMBER($W9),IF($AH9=FALSE,IF($W9<1000,IFERROR(VLOOKUP($W9,FeedLib[#All],BO$60,FALSE),""),IFERROR(VLOOKUP($W9,FeedLibUser[#All],BO$60,FALSE),"")),BO9),IF(AND(ISNUMBER($AI9),$AJ9<>""),BO9,"")) ->  | BP42: =IF(ISNUMBER($W9),IF($AH9=FALSE,IF($W9<1000,IFERROR(VLOOKUP($W9,FeedLib[#All],BP$60,FALSE),""),IFERROR(VLOOKUP($W9,FeedLibUser[#All],BP$60,FALSE),"")),BP9),IF(AND(ISNUMBER($AI9),$AJ9<>""),BP9,"")) ->  | BQ42: =IF(ISNUMBER($W9),IF($AH9=FALSE,IF($W9<1000,IFERROR(VLOOKUP($W9,FeedLib[#All],BQ$60,FALSE),""),IFERROR(VLOOKUP($W9,FeedLibUser[#All],BQ$60,FALSE),"")),BQ9),IF(AND(ISNUMBER($AI9),$AJ9<>""),BQ9,"")) ->  | BR42: =IF(ISNUMBER($W9),IF($AH9=FALSE,IF($W9<1000,IFERROR(VLOOKUP($W9,FeedLib[#All],BR$60,FALSE),""),IFERROR(VLOOKUP($W9,FeedLibUser[#All],BR$60,FALSE),"")),BR9),IF(AND(ISNUMBER($AI9),$AJ9<>""),BR9,"")) ->  | BS42: =IF(ISNUMBER($W9),IF($AH9=FALSE,IF($W9<1000,IFERROR(VLOOKUP($W9,FeedLib[#All],BS$60,FALSE),""),IFERROR(VLOOKUP($W9,FeedLibUser[#All],BS$60,FALSE),"")),BS9),IF(AND(ISNUMBER($AI9),$AJ9<>""),BS9,"")) ->  | BT42: =IF(ISNUMBER($W9),IF($AH9=FALSE,IF($W9<1000,IFERROR(VLOOKUP($W9,FeedLib[#All],BT$60,FALSE),""),IFERROR(VLOOKUP($W9,FeedLibUser[#All],BT$60,FALSE),"")),BT9),IF(AND(ISNUMBER($AI9),$AJ9<>""),BT9,"")) ->  | BU42: =IF(ISNUMBER($W9),IF($AH9=FALSE,IF($W9<1000,IFERROR(VLOOKUP($W9,FeedLib[#All],BU$60,FALSE),""),IFERROR(VLOOKUP($W9,FeedLibUser[#All],BU$60,FALSE),"")),BU9),IF(AND(ISNUMBER($AI9),$AJ9<>""),BU9,"")) ->  | BV42: =IF(ISNUMBER($W9),IF($AH9=FALSE,IF($W9<1000,IFERROR(VLOOKUP($W9,FeedLib[#All],BV$60,FALSE),""),IFERROR(VLOOKUP($W9,FeedLibUser[#All],BV$60,FALSE),"")),BV9),IF(AND(ISNUMBER($AI9),$AJ9<>""),BV9,"")) ->  | BW42: =IF(ISNUMBER($W9),IF($AH9=FALSE,IF($W9<1000,IFERROR(VLOOKUP($W9,FeedLib[#All],BW$60,FALSE),""),IFERROR(VLOOKUP($W9,FeedLibUser[#All],BW$60,FALSE),"")),BW9),IF(AND(ISNUMBER($AI9),$AJ9<>""),BW9,"")) ->  | BX42: =IF(ISNUMBER($W9),IF($AH9=FALSE,IF($W9<1000,IFERROR(VLOOKUP($W9,FeedLib[#All],BX$60,FALSE),""),IFERROR(VLOOKUP($W9,FeedLibUser[#All],BX$60,FALSE),"")),BX9),IF(AND(ISNUMBER($AI9),$AJ9<>""),BX9,"")) ->  | BY42: =IF(ISNUMBER($W9),IF($AH9=FALSE,IF($W9<1000,IFERROR(VLOOKUP($W9,FeedLib[#All],BY$60,FALSE),""),IFERROR(VLOOKUP($W9,FeedLibUser[#All],BY$60,FALSE),"")),BY9),IF(AND(ISNUMBER($AI9),$AJ9<>""),BY9,"")) ->  | BZ42: =IF(ISNUMBER($W9),IF($AH9=FALSE,IF($W9<1000,IFERROR(VLOOKUP($W9,FeedLib[#All],BZ$60,FALSE),""),IFERROR(VLOOKUP($W9,FeedLibUser[#All],BZ$60,FALSE),"")),BZ9),IF(AND(ISNUMBER($AI9),$AJ9<>""),BZ9,"")) ->  | CA42: =IF(ISNUMBER($W9),IF($AH9=FALSE,IF($W9<1000,IFERROR(VLOOKUP($W9,FeedLib[#All],CA$60,FALSE),""),IFERROR(VLOOKUP($W9,FeedLibUser[#All],CA$60,FALSE),"")),CA9),IF(AND(ISNUMBER($AI9),$AJ9<>""),CA9,"")) ->  | CB42: =IF(ISNUMBER($W9),IF($AH9=FALSE,IF($W9<1000,IFERROR(VLOOKUP($W9,FeedLib[#All],CB$60,FALSE),""),IFERROR(VLOOKUP($W9,FeedLibUser[#All],CB$60,FALSE),"")),CB9),IF(AND(ISNUMBER($AI9),$AJ9<>""),CB9,"")) ->  | CC42: =IF(ISNUMBER($W9),IF($AH9=FALSE,IF($W9<1000,IFERROR(VLOOKUP($W9,FeedLib[#All],CC$60,FALSE),""),IFERROR(VLOOKUP($W9,FeedLibUser[#All],CC$60,FALSE),"")),CC9),IF(AND(ISNUMBER($AI9),$AJ9<>""),CC9,"")) ->  | CD42: =IF(ISNUMBER($W9),IF($AH9=FALSE,IF($W9<1000,IFERROR(VLOOKUP($W9,FeedLib[#All],CD$60,FALSE),""),IFERROR(VLOOKUP($W9,FeedLibUser[#All],CD$60,FALSE),"")),CD9),IF(AND(ISNUMBER($AI9),$AJ9<>""),CD9,"")) ->  | CE42: =IF(ISNUMBER($W9),IF($AH9=FALSE,IF($W9<1000,IFERROR(VLOOKUP($W9,FeedLib[#All],CE$60,FALSE),""),IFERROR(VLOOKUP($W9,FeedLibUser[#All],CE$60,FALSE),"")),CE9),IF(AND(ISNUMBER($AI9),$AJ9<>""),CE9,"")) ->  | CF42: =IF(ISNUMBER($W9),IF($AH9=FALSE,IF($W9<1000,IFERROR(VLOOKUP($W9,FeedLib[#All],CF$60,FALSE),""),IFERROR(VLOOKUP($W9,FeedLibUser[#All],CF$60,FALSE),"")),CF9),IF(AND(ISNUMBER($AI9),$AJ9<>""),CF9,"")) ->  | CG42: =IF(ISNUMBER($W9),IF($AH9=FALSE,IF($W9<1000,IFERROR(VLOOKUP($W9,FeedLib[#All],CG$60,FALSE),""),IFERROR(VLOOKUP($W9,FeedLibUser[#All],CG$60,FALSE),"")),CG9),IF(AND(ISNUMBER($AI9),$AJ9<>""),CG9,"")) ->  | CH42: =IF(ISNUMBER($W9),IF($AH9=FALSE,IF($W9<1000,IFERROR(VLOOKUP($W9,FeedLib[#All],CH$60,FALSE),""),IFERROR(VLOOKUP($W9,FeedLibUser[#All],CH$60,FALSE),"")),CH9),IF(AND(ISNUMBER($AI9),$AJ9<>""),CH9,"")) ->  | CI42: =IF(ISNUMBER($W9),IF($AH9=FALSE,IF($W9<1000,IFERROR(VLOOKUP($W9,FeedLib[#All],CI$60,FALSE),""),IFERROR(VLOOKUP($W9,FeedLibUser[#All],CI$60,FALSE),"")),CI9),IF(AND(ISNUMBER($AI9),$AJ9<>""),CI9,"")) ->  | CJ42: =IF(ISNUMBER($W9),IF($AH9=FALSE,IF($W9<1000,IFERROR(VLOOKUP($W9,FeedLib[#All],CJ$60,FALSE),""),IFERROR(VLOOKUP($W9,FeedLibUser[#All],CJ$60,FALSE),"")),CJ9),IF(AND(ISNUMBER($AI9),$AJ9<>""),CJ9,"")) ->  | CK42: =IF(ISNUMBER($W9),IF($AH9=FALSE,IF($W9<1000,IFERROR(VLOOKUP($W9,FeedLib[#All],CK$60,FALSE),""),IFERROR(VLOOKUP($W9,FeedLibUser[#All],CK$60,FALSE),"")),CK9),IF(AND(ISNUMBER($AI9),$AJ9<>""),CK9,"")) ->  | CL42: =IF(ISNUMBER($W9),IF($AH9=FALSE,IF($W9<1000,IFERROR(VLOOKUP($W9,FeedLib[#All],CL$60,FALSE),""),IFERROR(VLOOKUP($W9,FeedLibUser[#All],CL$60,FALSE),"")),CL9),IF(AND(ISNUMBER($AI9),$AJ9<>""),CL9,"")) ->  | CM42: =IF(ISNUMBER($W9),IF($AH9=FALSE,IF($W9<1000,IFERROR(VLOOKUP($W9,FeedLib[#All],CM$60,FALSE),""),IFERROR(VLOOKUP($W9,FeedLibUser[#All],CM$60,FALSE),"")),CM9),IF(AND(ISNUMBER($AI9),$AJ9<>""),CM9,"")) -> 
B43: % low Choice | C43: Ch- | E43: 5 | F43: =IF(SUM($D$40:$D$44)<>100,"––",D43) -> –– | H43: The sum of Pr, Ch+, Ch, Ch-, and Se has to be 100% | AK43: =IF(ISNUMBER($W10),IF($AH10=FALSE,IF($W10<1000,IFERROR(VLOOKUP($W10,FeedLib[#All],AK$60,FALSE),"")*(IF(parmUnit=1,1,2000/2204.6)),IFERROR(VLOOKUP($W10,FeedLibUser[#All],AK$60,FALSE),"")*(IF(parmUnit=1,1,2000/2204.6))),AK10),IF(AND(ISNUMBER($AI10),$AJ10<>""),AK10,"")) ->  | AL43: =IF(ISNUMBER($W10),IF($AH10=FALSE,IF($W10<1000,IFERROR(VLOOKUP($W10,FeedLib[#All],AL$60,FALSE),""),IFERROR(VLOOKUP($W10,FeedLibUser[#All],AL$60,FALSE),"")),AL10),IF(AND(ISNUMBER($AI10),$AJ10<>""),AL10,"")) ->  | AM43: =IF(ISNUMBER($W10),IF($AH10=FALSE,IF($W10<1000,IFERROR(VLOOKUP($W10,FeedLib[#All],AM$60,FALSE),""),IFERROR(VLOOKUP($W10,FeedLibUser[#All],AM$60,FALSE),"")),AM10),IF(AND(ISNUMBER($AI10),$AJ10<>""),AM10,"")) ->  | AN43: =IF(ISNUMBER($W10),IF($AH10=FALSE,IF($W10<1000,IFERROR(VLOOKUP($W10,FeedLib[#All],AN$60,FALSE),""),IFERROR(VLOOKUP($W10,FeedLibUser[#All],AN$60,FALSE),"")),AN10),IF(AND(ISNUMBER($AI10),$AJ10<>""),AN10,"")) ->  | AO43: =IF(ISNUMBER($W10),IF($AH10=FALSE,IF($W10<1000,IFERROR(VLOOKUP($W10,FeedLib[#All],AO$60,FALSE),""),IFERROR(VLOOKUP($W10,FeedLibUser[#All],AO$60,FALSE),"")),AO10),IF(AND(ISNUMBER($AI10),$AJ10<>""),AO10,"")) ->  | AP43: =IF(ISNUMBER($W10),IF($AH10=FALSE,IF($W10<1000,IFERROR(VLOOKUP($W10,FeedLib[#All],AP$60,FALSE),""),IFERROR(VLOOKUP($W10,FeedLibUser[#All],AP$60,FALSE),"")),AP10),IF(AND(ISNUMBER($AI10),$AJ10<>""),AP10,"")) ->  | AQ43: =IF(ISNUMBER($W10),IF($AH10=FALSE,IF($W10<1000,IFERROR(VLOOKUP($W10,FeedLib[#All],AQ$60,FALSE),""),IFERROR(VLOOKUP($W10,FeedLibUser[#All],AQ$60,FALSE),"")),AQ10),IF(AND(ISNUMBER($AI10),$AJ10<>""),AQ10,"")) ->  | AR43: =IF(ISNUMBER($W10),IF($AH10=FALSE,IF($W10<1000,IFERROR(VLOOKUP($W10,FeedLib[#All],AR$60,FALSE),""),IFERROR(VLOOKUP($W10,FeedLibUser[#All],AR$60,FALSE),"")),AR10),IF(AND(ISNUMBER($AI10),$AJ10<>""),AR10,"")) ->  | AS43: =IF(ISNUMBER($W10),IF($AH10=FALSE,IF($W10<1000,IFERROR(VLOOKUP($W10,FeedLib[#All],AS$60,FALSE),""),IFERROR(VLOOKUP($W10,FeedLibUser[#All],AS$60,FALSE),"")),AS10),IF(AND(ISNUMBER($AI10),$AJ10<>""),AS10,"")) ->  | AT43: =IF(ISNUMBER($W10),IF($AH10=FALSE,IF($W10<1000,IFERROR(VLOOKUP($W10,FeedLib[#All],AT$60,FALSE),""),IFERROR(VLOOKUP($W10,FeedLibUser[#All],AT$60,FALSE),"")),AT10),IF(AND(ISNUMBER($AI10),$AJ10<>""),AT10,"")) ->  | AU43: =IF(ISNUMBER($W10),IF($AH10=FALSE,IF($W10<1000,IFERROR(VLOOKUP($W10,FeedLib[#All],AU$60,FALSE),""),IFERROR(VLOOKUP($W10,FeedLibUser[#All],AU$60,FALSE),"")),AU10),IF(AND(ISNUMBER($AI10),$AJ10<>""),AU10,"")) ->  | AV43: =IF(ISNUMBER($W10),IF($AH10=FALSE,IF($W10<1000,IFERROR(VLOOKUP($W10,FeedLib[#All],AV$60,FALSE),""),IFERROR(VLOOKUP($W10,FeedLibUser[#All],AV$60,FALSE),"")),AV10),IF(AND(ISNUMBER($AI10),$AJ10<>""),AV10,"")) ->  | AW43: =IF(ISNUMBER($W10),IF($AH10=FALSE,IF($W10<1000,IFERROR(VLOOKUP($W10,FeedLib[#All],AW$60,FALSE),""),IFERROR(VLOOKUP($W10,FeedLibUser[#All],AW$60,FALSE),"")),AW10),IF(AND(ISNUMBER($AI10),$AJ10<>""),AW10,"")) ->  | AX43: =IF(ISNUMBER($W10),IF($AH10=FALSE,IF($W10<1000,IFERROR(VLOOKUP($W10,FeedLib[#All],AX$60,FALSE),""),IFERROR(VLOOKUP($W10,FeedLibUser[#All],AX$60,FALSE),"")),AX10),IF(AND(ISNUMBER($AI10),$AJ10<>""),AX10,"")) ->  | AY43: =IF(ISNUMBER($W10),IF($AH10=FALSE,IF($W10<1000,IFERROR(VLOOKUP($W10,FeedLib[#All],AY$60,FALSE),"")/IF(parmUnit=1,1,2.2046),IFERROR(VLOOKUP($W10,FeedLibUser[#All],AY$60,FALSE),"")/IF(parmUnit=1,1,2.2046)),AY10),IF(AND(ISNUMBER($AI10),$AJ10<>""),AY10,"")) ->  | AZ43: =IF(ISNUMBER($W10),IF($AH10=FALSE,IF($W10<1000,IFERROR(VLOOKUP($W10,FeedLib[#All],AZ$60,FALSE),"")/IF(parmUnit=1,1,2.2046),IFERROR(VLOOKUP($W10,FeedLibUser[#All],AZ$60,FALSE),"")/IF(parmUnit=1,1,2.2046)),AZ10),IF(AND(ISNUMBER($AI10),$AJ10<>""),AZ10,"")) ->  | BA43: =IF(ISNUMBER($W10),IF($AH10=FALSE,IF($W10<1000,IFERROR(VLOOKUP($W10,FeedLib[#All],BA$60,FALSE),"")/IF(parmUnit=1,1,2.2046),IFERROR(VLOOKUP($W10,FeedLibUser[#All],BA$60,FALSE),"")/IF(parmUnit=1,1,2.2046)),BA10),IF(AND(ISNUMBER($AI10),$AJ10<>""),BA10,"")) ->  | BB43: =IF(ISNUMBER($W10),IF($AH10=FALSE,IF($W10<1000,IFERROR(VLOOKUP($W10,FeedLib[#All],BB$60,FALSE),""),IFERROR(VLOOKUP($W10,FeedLibUser[#All],BB$60,FALSE),"")),BB10),IF(AND(ISNUMBER($AI10),$AJ10<>""),BB10,"")) ->  | BC43: =IF(ISNUMBER($W10),IF($AH10=FALSE,IF($W10<1000,IFERROR(VLOOKUP($W10,FeedLib[#All],BC$60,FALSE),""),IFERROR(VLOOKUP($W10,FeedLibUser[#All],BC$60,FALSE),"")),BC10),IF(AND(ISNUMBER($AI10),$AJ10<>""),BC10,"")) ->  | BD43: =IF(ISNUMBER($W10),IF($AH10=FALSE,IF($W10<1000,IFERROR(VLOOKUP($W10,FeedLib[#All],BD$60,FALSE),""),IFERROR(VLOOKUP($W10,FeedLibUser[#All],BD$60,FALSE),"")),BD10),IF(AND(ISNUMBER($AI10),$AJ10<>""),BD10,"")) ->  | BE43: =IF(ISNUMBER($W10),IF($AH10=FALSE,IF($W10<1000,IFERROR(VLOOKUP($W10,FeedLib[#All],BE$60,FALSE),""),IFERROR(VLOOKUP($W10,FeedLibUser[#All],BE$60,FALSE),"")),BE10),IF(AND(ISNUMBER($AI10),$AJ10<>""),BE10,"")) ->  | BF43: =IF(ISNUMBER($W10),IF($AH10=FALSE,IF($W10<1000,IFERROR(VLOOKUP($W10,FeedLib[#All],BF$60,FALSE),""),IFERROR(VLOOKUP($W10,FeedLibUser[#All],BF$60,FALSE),"")),BF10),IF(AND(ISNUMBER($AI10),$AJ10<>""),BF10,"")) ->  | BG43: =IF(ISNUMBER($W10),IF($AH10=FALSE,IF($W10<1000,IFERROR(VLOOKUP($W10,FeedLib[#All],BG$60,FALSE),""),IFERROR(VLOOKUP($W10,FeedLibUser[#All],BG$60,FALSE),"")),BG10),IF(AND(ISNUMBER($AI10),$AJ10<>""),BG10,"")) ->  | BH43: =IF(ISNUMBER($W10),IF($AH10=FALSE,IF($W10<1000,IFERROR(VLOOKUP($W10,FeedLib[#All],BH$60,FALSE),""),IFERROR(VLOOKUP($W10,FeedLibUser[#All],BH$60,FALSE),"")),BH10),IF(AND(ISNUMBER($AI10),$AJ10<>""),BH10,"")) ->  | BI43: =IF(ISNUMBER($W10),IF($AH10=FALSE,IF($W10<1000,IFERROR(VLOOKUP($W10,FeedLib[#All],BI$60,FALSE),""),IFERROR(VLOOKUP($W10,FeedLibUser[#All],BI$60,FALSE),"")),BI10),IF(AND(ISNUMBER($AI10),$AJ10<>""),BI10,"")) ->  | BJ43: =IF(ISNUMBER($W10),IF($AH10=FALSE,IF($W10<1000,IFERROR(VLOOKUP($W10,FeedLib[#All],BJ$60,FALSE),""),IFERROR(VLOOKUP($W10,FeedLibUser[#All],BJ$60,FALSE),"")),BJ10),IF(AND(ISNUMBER($AI10),$AJ10<>""),BJ10,"")) ->  | BK43: =IF(ISNUMBER($W10),IF($AH10=FALSE,IF($W10<1000,IFERROR(VLOOKUP($W10,FeedLib[#All],BK$60,FALSE),""),IFERROR(VLOOKUP($W10,FeedLibUser[#All],BK$60,FALSE),"")),BK10),IF(AND(ISNUMBER($AI10),$AJ10<>""),BK10,"")) ->  | BL43: =IF(ISNUMBER($W10),IF($AH10=FALSE,IF($W10<1000,IFERROR(VLOOKUP($W10,FeedLib[#All],BL$60,FALSE),""),IFERROR(VLOOKUP($W10,FeedLibUser[#All],BL$60,FALSE),"")),BL10),IF(AND(ISNUMBER($AI10),$AJ10<>""),BL10,"")) ->  | BM43: =IF(ISNUMBER($W10),IF($AH10=FALSE,IF($W10<1000,IFERROR(VLOOKUP($W10,FeedLib[#All],BM$60,FALSE),""),IFERROR(VLOOKUP($W10,FeedLibUser[#All],BM$60,FALSE),"")),BM10),IF(AND(ISNUMBER($AI10),$AJ10<>""),BM10,"")) ->  | BN43: =IF(ISNUMBER($W10),IF($AH10=FALSE,IF($W10<1000,IFERROR(VLOOKUP($W10,FeedLib[#All],BN$60,FALSE),""),IFERROR(VLOOKUP($W10,FeedLibUser[#All],BN$60,FALSE),"")),BN10),IF(AND(ISNUMBER($AI10),$AJ10<>""),BN10,"")) ->  | BO43: =IF(ISNUMBER($W10),IF($AH10=FALSE,IF($W10<1000,IFERROR(VLOOKUP($W10,FeedLib[#All],BO$60,FALSE),""),IFERROR(VLOOKUP($W10,FeedLibUser[#All],BO$60,FALSE),"")),BO10),IF(AND(ISNUMBER($AI10),$AJ10<>""),BO10,"")) ->  | BP43: =IF(ISNUMBER($W10),IF($AH10=FALSE,IF($W10<1000,IFERROR(VLOOKUP($W10,FeedLib[#All],BP$60,FALSE),""),IFERROR(VLOOKUP($W10,FeedLibUser[#All],BP$60,FALSE),"")),BP10),IF(AND(ISNUMBER($AI10),$AJ10<>""),BP10,"")) ->  | BQ43: =IF(ISNUMBER($W10),IF($AH10=FALSE,IF($W10<1000,IFERROR(VLOOKUP($W10,FeedLib[#All],BQ$60,FALSE),""),IFERROR(VLOOKUP($W10,FeedLibUser[#All],BQ$60,FALSE),"")),BQ10),IF(AND(ISNUMBER($AI10),$AJ10<>""),BQ10,"")) ->  | BR43: =IF(ISNUMBER($W10),IF($AH10=FALSE,IF($W10<1000,IFERROR(VLOOKUP($W10,FeedLib[#All],BR$60,FALSE),""),IFERROR(VLOOKUP($W10,FeedLibUser[#All],BR$60,FALSE),"")),BR10),IF(AND(ISNUMBER($AI10),$AJ10<>""),BR10,"")) ->  | BS43: =IF(ISNUMBER($W10),IF($AH10=FALSE,IF($W10<1000,IFERROR(VLOOKUP($W10,FeedLib[#All],BS$60,FALSE),""),IFERROR(VLOOKUP($W10,FeedLibUser[#All],BS$60,FALSE),"")),BS10),IF(AND(ISNUMBER($AI10),$AJ10<>""),BS10,"")) ->  | BT43: =IF(ISNUMBER($W10),IF($AH10=FALSE,IF($W10<1000,IFERROR(VLOOKUP($W10,FeedLib[#All],BT$60,FALSE),""),IFERROR(VLOOKUP($W10,FeedLibUser[#All],BT$60,FALSE),"")),BT10),IF(AND(ISNUMBER($AI10),$AJ10<>""),BT10,"")) ->  | BU43: =IF(ISNUMBER($W10),IF($AH10=FALSE,IF($W10<1000,IFERROR(VLOOKUP($W10,FeedLib[#All],BU$60,FALSE),""),IFERROR(VLOOKUP($W10,FeedLibUser[#All],BU$60,FALSE),"")),BU10),IF(AND(ISNUMBER($AI10),$AJ10<>""),BU10,"")) ->  | BV43: =IF(ISNUMBER($W10),IF($AH10=FALSE,IF($W10<1000,IFERROR(VLOOKUP($W10,FeedLib[#All],BV$60,FALSE),""),IFERROR(VLOOKUP($W10,FeedLibUser[#All],BV$60,FALSE),"")),BV10),IF(AND(ISNUMBER($AI10),$AJ10<>""),BV10,"")) ->  | BW43: =IF(ISNUMBER($W10),IF($AH10=FALSE,IF($W10<1000,IFERROR(VLOOKUP($W10,FeedLib[#All],BW$60,FALSE),""),IFERROR(VLOOKUP($W10,FeedLibUser[#All],BW$60,FALSE),"")),BW10),IF(AND(ISNUMBER($AI10),$AJ10<>""),BW10,"")) ->  | BX43: =IF(ISNUMBER($W10),IF($AH10=FALSE,IF($W10<1000,IFERROR(VLOOKUP($W10,FeedLib[#All],BX$60,FALSE),""),IFERROR(VLOOKUP($W10,FeedLibUser[#All],BX$60,FALSE),"")),BX10),IF(AND(ISNUMBER($AI10),$AJ10<>""),BX10,"")) ->  | BY43: =IF(ISNUMBER($W10),IF($AH10=FALSE,IF($W10<1000,IFERROR(VLOOKUP($W10,FeedLib[#All],BY$60,FALSE),""),IFERROR(VLOOKUP($W10,FeedLibUser[#All],BY$60,FALSE),"")),BY10),IF(AND(ISNUMBER($AI10),$AJ10<>""),BY10,"")) ->  | BZ43: =IF(ISNUMBER($W10),IF($AH10=FALSE,IF($W10<1000,IFERROR(VLOOKUP($W10,FeedLib[#All],BZ$60,FALSE),""),IFERROR(VLOOKUP($W10,FeedLibUser[#All],BZ$60,FALSE),"")),BZ10),IF(AND(ISNUMBER($AI10),$AJ10<>""),BZ10,"")) ->  | CA43: =IF(ISNUMBER($W10),IF($AH10=FALSE,IF($W10<1000,IFERROR(VLOOKUP($W10,FeedLib[#All],CA$60,FALSE),""),IFERROR(VLOOKUP($W10,FeedLibUser[#All],CA$60,FALSE),"")),CA10),IF(AND(ISNUMBER($AI10),$AJ10<>""),CA10,"")) ->  | CB43: =IF(ISNUMBER($W10),IF($AH10=FALSE,IF($W10<1000,IFERROR(VLOOKUP($W10,FeedLib[#All],CB$60,FALSE),""),IFERROR(VLOOKUP($W10,FeedLibUser[#All],CB$60,FALSE),"")),CB10),IF(AND(ISNUMBER($AI10),$AJ10<>""),CB10,"")) ->  | CC43: =IF(ISNUMBER($W10),IF($AH10=FALSE,IF($W10<1000,IFERROR(VLOOKUP($W10,FeedLib[#All],CC$60,FALSE),""),IFERROR(VLOOKUP($W10,FeedLibUser[#All],CC$60,FALSE),"")),CC10),IF(AND(ISNUMBER($AI10),$AJ10<>""),CC10,"")) ->  | CD43: =IF(ISNUMBER($W10),IF($AH10=FALSE,IF($W10<1000,IFERROR(VLOOKUP($W10,FeedLib[#All],CD$60,FALSE),""),IFERROR(VLOOKUP($W10,FeedLibUser[#All],CD$60,FALSE),"")),CD10),IF(AND(ISNUMBER($AI10),$AJ10<>""),CD10,"")) ->  | CE43: =IF(ISNUMBER($W10),IF($AH10=FALSE,IF($W10<1000,IFERROR(VLOOKUP($W10,FeedLib[#All],CE$60,FALSE),""),IFERROR(VLOOKUP($W10,FeedLibUser[#All],CE$60,FALSE),"")),CE10),IF(AND(ISNUMBER($AI10),$AJ10<>""),CE10,"")) ->  | CF43: =IF(ISNUMBER($W10),IF($AH10=FALSE,IF($W10<1000,IFERROR(VLOOKUP($W10,FeedLib[#All],CF$60,FALSE),""),IFERROR(VLOOKUP($W10,FeedLibUser[#All],CF$60,FALSE),"")),CF10),IF(AND(ISNUMBER($AI10),$AJ10<>""),CF10,"")) ->  | CG43: =IF(ISNUMBER($W10),IF($AH10=FALSE,IF($W10<1000,IFERROR(VLOOKUP($W10,FeedLib[#All],CG$60,FALSE),""),IFERROR(VLOOKUP($W10,FeedLibUser[#All],CG$60,FALSE),"")),CG10),IF(AND(ISNUMBER($AI10),$AJ10<>""),CG10,"")) ->  | CH43: =IF(ISNUMBER($W10),IF($AH10=FALSE,IF($W10<1000,IFERROR(VLOOKUP($W10,FeedLib[#All],CH$60,FALSE),""),IFERROR(VLOOKUP($W10,FeedLibUser[#All],CH$60,FALSE),"")),CH10),IF(AND(ISNUMBER($AI10),$AJ10<>""),CH10,"")) ->  | CI43: =IF(ISNUMBER($W10),IF($AH10=FALSE,IF($W10<1000,IFERROR(VLOOKUP($W10,FeedLib[#All],CI$60,FALSE),""),IFERROR(VLOOKUP($W10,FeedLibUser[#All],CI$60,FALSE),"")),CI10),IF(AND(ISNUMBER($AI10),$AJ10<>""),CI10,"")) ->  | CJ43: =IF(ISNUMBER($W10),IF($AH10=FALSE,IF($W10<1000,IFERROR(VLOOKUP($W10,FeedLib[#All],CJ$60,FALSE),""),IFERROR(VLOOKUP($W10,FeedLibUser[#All],CJ$60,FALSE),"")),CJ10),IF(AND(ISNUMBER($AI10),$AJ10<>""),CJ10,"")) ->  | CK43: =IF(ISNUMBER($W10),IF($AH10=FALSE,IF($W10<1000,IFERROR(VLOOKUP($W10,FeedLib[#All],CK$60,FALSE),""),IFERROR(VLOOKUP($W10,FeedLibUser[#All],CK$60,FALSE),"")),CK10),IF(AND(ISNUMBER($AI10),$AJ10<>""),CK10,"")) ->  | CL43: =IF(ISNUMBER($W10),IF($AH10=FALSE,IF($W10<1000,IFERROR(VLOOKUP($W10,FeedLib[#All],CL$60,FALSE),""),IFERROR(VLOOKUP($W10,FeedLibUser[#All],CL$60,FALSE),"")),CL10),IF(AND(ISNUMBER($AI10),$AJ10<>""),CL10,"")) ->  | CM43: =IF(ISNUMBER($W10),IF($AH10=FALSE,IF($W10<1000,IFERROR(VLOOKUP($W10,FeedLib[#All],CM$60,FALSE),""),IFERROR(VLOOKUP($W10,FeedLibUser[#All],CM$60,FALSE),"")),CM10),IF(AND(ISNUMBER($AI10),$AJ10<>""),CM10,"")) -> 
B44: % Select | C44: Se | E44: 4 | F44: =IF(SUM($D$40:$D$44)<>100,"––",D44) -> –– | H44: The sum of Pr, Ch+, Ch, Ch-, and Se has to be 100% | J44: Breeding System | L44: 3 | M44: 4 | N44: 5 | O44: 6 | P44: 7 | Q44: 8 | R44: 9 | S44: 10 | AK44: =IF(ISNUMBER($W11),IF($AH11=FALSE,IF($W11<1000,IFERROR(VLOOKUP($W11,FeedLib[#All],AK$60,FALSE),"")*(IF(parmUnit=1,1,2000/2204.6)),IFERROR(VLOOKUP($W11,FeedLibUser[#All],AK$60,FALSE),"")*(IF(parmUnit=1,1,2000/2204.6))),AK11),IF(AND(ISNUMBER($AI11),$AJ11<>""),AK11,"")) ->  | AL44: =IF(ISNUMBER($W11),IF($AH11=FALSE,IF($W11<1000,IFERROR(VLOOKUP($W11,FeedLib[#All],AL$60,FALSE),""),IFERROR(VLOOKUP($W11,FeedLibUser[#All],AL$60,FALSE),"")),AL11),IF(AND(ISNUMBER($AI11),$AJ11<>""),AL11,"")) ->  | AM44: =IF(ISNUMBER($W11),IF($AH11=FALSE,IF($W11<1000,IFERROR(VLOOKUP($W11,FeedLib[#All],AM$60,FALSE),""),IFERROR(VLOOKUP($W11,FeedLibUser[#All],AM$60,FALSE),"")),AM11),IF(AND(ISNUMBER($AI11),$AJ11<>""),AM11,"")) ->  | AN44: =IF(ISNUMBER($W11),IF($AH11=FALSE,IF($W11<1000,IFERROR(VLOOKUP($W11,FeedLib[#All],AN$60,FALSE),""),IFERROR(VLOOKUP($W11,FeedLibUser[#All],AN$60,FALSE),"")),AN11),IF(AND(ISNUMBER($AI11),$AJ11<>""),AN11,"")) ->  | AO44: =IF(ISNUMBER($W11),IF($AH11=FALSE,IF($W11<1000,IFERROR(VLOOKUP($W11,FeedLib[#All],AO$60,FALSE),""),IFERROR(VLOOKUP($W11,FeedLibUser[#All],AO$60,FALSE),"")),AO11),IF(AND(ISNUMBER($AI11),$AJ11<>""),AO11,"")) ->  | AP44: =IF(ISNUMBER($W11),IF($AH11=FALSE,IF($W11<1000,IFERROR(VLOOKUP($W11,FeedLib[#All],AP$60,FALSE),""),IFERROR(VLOOKUP($W11,FeedLibUser[#All],AP$60,FALSE),"")),AP11),IF(AND(ISNUMBER($AI11),$AJ11<>""),AP11,"")) ->  | AQ44: =IF(ISNUMBER($W11),IF($AH11=FALSE,IF($W11<1000,IFERROR(VLOOKUP($W11,FeedLib[#All],AQ$60,FALSE),""),IFERROR(VLOOKUP($W11,FeedLibUser[#All],AQ$60,FALSE),"")),AQ11),IF(AND(ISNUMBER($AI11),$AJ11<>""),AQ11,"")) ->  | AR44: =IF(ISNUMBER($W11),IF($AH11=FALSE,IF($W11<1000,IFERROR(VLOOKUP($W11,FeedLib[#All],AR$60,FALSE),""),IFERROR(VLOOKUP($W11,FeedLibUser[#All],AR$60,FALSE),"")),AR11),IF(AND(ISNUMBER($AI11),$AJ11<>""),AR11,"")) ->  | AS44: =IF(ISNUMBER($W11),IF($AH11=FALSE,IF($W11<1000,IFERROR(VLOOKUP($W11,FeedLib[#All],AS$60,FALSE),""),IFERROR(VLOOKUP($W11,FeedLibUser[#All],AS$60,FALSE),"")),AS11),IF(AND(ISNUMBER($AI11),$AJ11<>""),AS11,"")) ->  | AT44: =IF(ISNUMBER($W11),IF($AH11=FALSE,IF($W11<1000,IFERROR(VLOOKUP($W11,FeedLib[#All],AT$60,FALSE),""),IFERROR(VLOOKUP($W11,FeedLibUser[#All],AT$60,FALSE),"")),AT11),IF(AND(ISNUMBER($AI11),$AJ11<>""),AT11,"")) ->  | AU44: =IF(ISNUMBER($W11),IF($AH11=FALSE,IF($W11<1000,IFERROR(VLOOKUP($W11,FeedLib[#All],AU$60,FALSE),""),IFERROR(VLOOKUP($W11,FeedLibUser[#All],AU$60,FALSE),"")),AU11),IF(AND(ISNUMBER($AI11),$AJ11<>""),AU11,"")) ->  | AV44: =IF(ISNUMBER($W11),IF($AH11=FALSE,IF($W11<1000,IFERROR(VLOOKUP($W11,FeedLib[#All],AV$60,FALSE),""),IFERROR(VLOOKUP($W11,FeedLibUser[#All],AV$60,FALSE),"")),AV11),IF(AND(ISNUMBER($AI11),$AJ11<>""),AV11,"")) ->  | AW44: =IF(ISNUMBER($W11),IF($AH11=FALSE,IF($W11<1000,IFERROR(VLOOKUP($W11,FeedLib[#All],AW$60,FALSE),""),IFERROR(VLOOKUP($W11,FeedLibUser[#All],AW$60,FALSE),"")),AW11),IF(AND(ISNUMBER($AI11),$AJ11<>""),AW11,"")) ->  | AX44: =IF(ISNUMBER($W11),IF($AH11=FALSE,IF($W11<1000,IFERROR(VLOOKUP($W11,FeedLib[#All],AX$60,FALSE),""),IFERROR(VLOOKUP($W11,FeedLibUser[#All],AX$60,FALSE),"")),AX11),IF(AND(ISNUMBER($AI11),$AJ11<>""),AX11,"")) ->  | AY44: =IF(ISNUMBER($W11),IF($AH11=FALSE,IF($W11<1000,IFERROR(VLOOKUP($W11,FeedLib[#All],AY$60,FALSE),"")/IF(parmUnit=1,1,2.2046),IFERROR(VLOOKUP($W11,FeedLibUser[#All],AY$60,FALSE),"")/IF(parmUnit=1,1,2.2046)),AY11),IF(AND(ISNUMBER($AI11),$AJ11<>""),AY11,"")) ->  | AZ44: =IF(ISNUMBER($W11),IF($AH11=FALSE,IF($W11<1000,IFERROR(VLOOKUP($W11,FeedLib[#All],AZ$60,FALSE),"")/IF(parmUnit=1,1,2.2046),IFERROR(VLOOKUP($W11,FeedLibUser[#All],AZ$60,FALSE),"")/IF(parmUnit=1,1,2.2046)),AZ11),IF(AND(ISNUMBER($AI11),$AJ11<>""),AZ11,"")) ->  | BA44: =IF(ISNUMBER($W11),IF($AH11=FALSE,IF($W11<1000,IFERROR(VLOOKUP($W11,FeedLib[#All],BA$60,FALSE),"")/IF(parmUnit=1,1,2.2046),IFERROR(VLOOKUP($W11,FeedLibUser[#All],BA$60,FALSE),"")/IF(parmUnit=1,1,2.2046)),BA11),IF(AND(ISNUMBER($AI11),$AJ11<>""),BA11,"")) ->  | BB44: =IF(ISNUMBER($W11),IF($AH11=FALSE,IF($W11<1000,IFERROR(VLOOKUP($W11,FeedLib[#All],BB$60,FALSE),""),IFERROR(VLOOKUP($W11,FeedLibUser[#All],BB$60,FALSE),"")),BB11),IF(AND(ISNUMBER($AI11),$AJ11<>""),BB11,"")) ->  | BC44: =IF(ISNUMBER($W11),IF($AH11=FALSE,IF($W11<1000,IFERROR(VLOOKUP($W11,FeedLib[#All],BC$60,FALSE),""),IFERROR(VLOOKUP($W11,FeedLibUser[#All],BC$60,FALSE),"")),BC11),IF(AND(ISNUMBER($AI11),$AJ11<>""),BC11,"")) ->  | BD44: =IF(ISNUMBER($W11),IF($AH11=FALSE,IF($W11<1000,IFERROR(VLOOKUP($W11,FeedLib[#All],BD$60,FALSE),""),IFERROR(VLOOKUP($W11,FeedLibUser[#All],BD$60,FALSE),"")),BD11),IF(AND(ISNUMBER($AI11),$AJ11<>""),BD11,"")) ->  | BE44: =IF(ISNUMBER($W11),IF($AH11=FALSE,IF($W11<1000,IFERROR(VLOOKUP($W11,FeedLib[#All],BE$60,FALSE),""),IFERROR(VLOOKUP($W11,FeedLibUser[#All],BE$60,FALSE),"")),BE11),IF(AND(ISNUMBER($AI11),$AJ11<>""),BE11,"")) ->  | BF44: =IF(ISNUMBER($W11),IF($AH11=FALSE,IF($W11<1000,IFERROR(VLOOKUP($W11,FeedLib[#All],BF$60,FALSE),""),IFERROR(VLOOKUP($W11,FeedLibUser[#All],BF$60,FALSE),"")),BF11),IF(AND(ISNUMBER($AI11),$AJ11<>""),BF11,"")) ->  | BG44: =IF(ISNUMBER($W11),IF($AH11=FALSE,IF($W11<1000,IFERROR(VLOOKUP($W11,FeedLib[#All],BG$60,FALSE),""),IFERROR(VLOOKUP($W11,FeedLibUser[#All],BG$60,FALSE),"")),BG11),IF(AND(ISNUMBER($AI11),$AJ11<>""),BG11,"")) ->  | BH44: =IF(ISNUMBER($W11),IF($AH11=FALSE,IF($W11<1000,IFERROR(VLOOKUP($W11,FeedLib[#All],BH$60,FALSE),""),IFERROR(VLOOKUP($W11,FeedLibUser[#All],BH$60,FALSE),"")),BH11),IF(AND(ISNUMBER($AI11),$AJ11<>""),BH11,"")) ->  | BI44: =IF(ISNUMBER($W11),IF($AH11=FALSE,IF($W11<1000,IFERROR(VLOOKUP($W11,FeedLib[#All],BI$60,FALSE),""),IFERROR(VLOOKUP($W11,FeedLibUser[#All],BI$60,FALSE),"")),BI11),IF(AND(ISNUMBER($AI11),$AJ11<>""),BI11,"")) ->  | BJ44: =IF(ISNUMBER($W11),IF($AH11=FALSE,IF($W11<1000,IFERROR(VLOOKUP($W11,FeedLib[#All],BJ$60,FALSE),""),IFERROR(VLOOKUP($W11,FeedLibUser[#All],BJ$60,FALSE),"")),BJ11),IF(AND(ISNUMBER($AI11),$AJ11<>""),BJ11,"")) ->  | BK44: =IF(ISNUMBER($W11),IF($AH11=FALSE,IF($W11<1000,IFERROR(VLOOKUP($W11,FeedLib[#All],BK$60,FALSE),""),IFERROR(VLOOKUP($W11,FeedLibUser[#All],BK$60,FALSE),"")),BK11),IF(AND(ISNUMBER($AI11),$AJ11<>""),BK11,"")) ->  | BL44: =IF(ISNUMBER($W11),IF($AH11=FALSE,IF($W11<1000,IFERROR(VLOOKUP($W11,FeedLib[#All],BL$60,FALSE),""),IFERROR(VLOOKUP($W11,FeedLibUser[#All],BL$60,FALSE),"")),BL11),IF(AND(ISNUMBER($AI11),$AJ11<>""),BL11,"")) ->  | BM44: =IF(ISNUMBER($W11),IF($AH11=FALSE,IF($W11<1000,IFERROR(VLOOKUP($W11,FeedLib[#All],BM$60,FALSE),""),IFERROR(VLOOKUP($W11,FeedLibUser[#All],BM$60,FALSE),"")),BM11),IF(AND(ISNUMBER($AI11),$AJ11<>""),BM11,"")) ->  | BN44: =IF(ISNUMBER($W11),IF($AH11=FALSE,IF($W11<1000,IFERROR(VLOOKUP($W11,FeedLib[#All],BN$60,FALSE),""),IFERROR(VLOOKUP($W11,FeedLibUser[#All],BN$60,FALSE),"")),BN11),IF(AND(ISNUMBER($AI11),$AJ11<>""),BN11,"")) ->  | BO44: =IF(ISNUMBER($W11),IF($AH11=FALSE,IF($W11<1000,IFERROR(VLOOKUP($W11,FeedLib[#All],BO$60,FALSE),""),IFERROR(VLOOKUP($W11,FeedLibUser[#All],BO$60,FALSE),"")),BO11),IF(AND(ISNUMBER($AI11),$AJ11<>""),BO11,"")) ->  | BP44: =IF(ISNUMBER($W11),IF($AH11=FALSE,IF($W11<1000,IFERROR(VLOOKUP($W11,FeedLib[#All],BP$60,FALSE),""),IFERROR(VLOOKUP($W11,FeedLibUser[#All],BP$60,FALSE),"")),BP11),IF(AND(ISNUMBER($AI11),$AJ11<>""),BP11,"")) ->  | BQ44: =IF(ISNUMBER($W11),IF($AH11=FALSE,IF($W11<1000,IFERROR(VLOOKUP($W11,FeedLib[#All],BQ$60,FALSE),""),IFERROR(VLOOKUP($W11,FeedLibUser[#All],BQ$60,FALSE),"")),BQ11),IF(AND(ISNUMBER($AI11),$AJ11<>""),BQ11,"")) ->  | BR44: =IF(ISNUMBER($W11),IF($AH11=FALSE,IF($W11<1000,IFERROR(VLOOKUP($W11,FeedLib[#All],BR$60,FALSE),""),IFERROR(VLOOKUP($W11,FeedLibUser[#All],BR$60,FALSE),"")),BR11),IF(AND(ISNUMBER($AI11),$AJ11<>""),BR11,"")) ->  | BS44: =IF(ISNUMBER($W11),IF($AH11=FALSE,IF($W11<1000,IFERROR(VLOOKUP($W11,FeedLib[#All],BS$60,FALSE),""),IFERROR(VLOOKUP($W11,FeedLibUser[#All],BS$60,FALSE),"")),BS11),IF(AND(ISNUMBER($AI11),$AJ11<>""),BS11,"")) ->  | BT44: =IF(ISNUMBER($W11),IF($AH11=FALSE,IF($W11<1000,IFERROR(VLOOKUP($W11,FeedLib[#All],BT$60,FALSE),""),IFERROR(VLOOKUP($W11,FeedLibUser[#All],BT$60,FALSE),"")),BT11),IF(AND(ISNUMBER($AI11),$AJ11<>""),BT11,"")) ->  | BU44: =IF(ISNUMBER($W11),IF($AH11=FALSE,IF($W11<1000,IFERROR(VLOOKUP($W11,FeedLib[#All],BU$60,FALSE),""),IFERROR(VLOOKUP($W11,FeedLibUser[#All],BU$60,FALSE),"")),BU11),IF(AND(ISNUMBER($AI11),$AJ11<>""),BU11,"")) ->  | BV44: =IF(ISNUMBER($W11),IF($AH11=FALSE,IF($W11<1000,IFERROR(VLOOKUP($W11,FeedLib[#All],BV$60,FALSE),""),IFERROR(VLOOKUP($W11,FeedLibUser[#All],BV$60,FALSE),"")),BV11),IF(AND(ISNUMBER($AI11),$AJ11<>""),BV11,"")) ->  | BW44: =IF(ISNUMBER($W11),IF($AH11=FALSE,IF($W11<1000,IFERROR(VLOOKUP($W11,FeedLib[#All],BW$60,FALSE),""),IFERROR(VLOOKUP($W11,FeedLibUser[#All],BW$60,FALSE),"")),BW11),IF(AND(ISNUMBER($AI11),$AJ11<>""),BW11,"")) ->  | BX44: =IF(ISNUMBER($W11),IF($AH11=FALSE,IF($W11<1000,IFERROR(VLOOKUP($W11,FeedLib[#All],BX$60,FALSE),""),IFERROR(VLOOKUP($W11,FeedLibUser[#All],BX$60,FALSE),"")),BX11),IF(AND(ISNUMBER($AI11),$AJ11<>""),BX11,"")) ->  | BY44: =IF(ISNUMBER($W11),IF($AH11=FALSE,IF($W11<1000,IFERROR(VLOOKUP($W11,FeedLib[#All],BY$60,FALSE),""),IFERROR(VLOOKUP($W11,FeedLibUser[#All],BY$60,FALSE),"")),BY11),IF(AND(ISNUMBER($AI11),$AJ11<>""),BY11,"")) ->  | BZ44: =IF(ISNUMBER($W11),IF($AH11=FALSE,IF($W11<1000,IFERROR(VLOOKUP($W11,FeedLib[#All],BZ$60,FALSE),""),IFERROR(VLOOKUP($W11,FeedLibUser[#All],BZ$60,FALSE),"")),BZ11),IF(AND(ISNUMBER($AI11),$AJ11<>""),BZ11,"")) ->  | CA44: =IF(ISNUMBER($W11),IF($AH11=FALSE,IF($W11<1000,IFERROR(VLOOKUP($W11,FeedLib[#All],CA$60,FALSE),""),IFERROR(VLOOKUP($W11,FeedLibUser[#All],CA$60,FALSE),"")),CA11),IF(AND(ISNUMBER($AI11),$AJ11<>""),CA11,"")) ->  | CB44: =IF(ISNUMBER($W11),IF($AH11=FALSE,IF($W11<1000,IFERROR(VLOOKUP($W11,FeedLib[#All],CB$60,FALSE),""),IFERROR(VLOOKUP($W11,FeedLibUser[#All],CB$60,FALSE),"")),CB11),IF(AND(ISNUMBER($AI11),$AJ11<>""),CB11,"")) ->  | CC44: =IF(ISNUMBER($W11),IF($AH11=FALSE,IF($W11<1000,IFERROR(VLOOKUP($W11,FeedLib[#All],CC$60,FALSE),""),IFERROR(VLOOKUP($W11,FeedLibUser[#All],CC$60,FALSE),"")),CC11),IF(AND(ISNUMBER($AI11),$AJ11<>""),CC11,"")) ->  | CD44: =IF(ISNUMBER($W11),IF($AH11=FALSE,IF($W11<1000,IFERROR(VLOOKUP($W11,FeedLib[#All],CD$60,FALSE),""),IFERROR(VLOOKUP($W11,FeedLibUser[#All],CD$60,FALSE),"")),CD11),IF(AND(ISNUMBER($AI11),$AJ11<>""),CD11,"")) ->  | CE44: =IF(ISNUMBER($W11),IF($AH11=FALSE,IF($W11<1000,IFERROR(VLOOKUP($W11,FeedLib[#All],CE$60,FALSE),""),IFERROR(VLOOKUP($W11,FeedLibUser[#All],CE$60,FALSE),"")),CE11),IF(AND(ISNUMBER($AI11),$AJ11<>""),CE11,"")) ->  | CF44: =IF(ISNUMBER($W11),IF($AH11=FALSE,IF($W11<1000,IFERROR(VLOOKUP($W11,FeedLib[#All],CF$60,FALSE),""),IFERROR(VLOOKUP($W11,FeedLibUser[#All],CF$60,FALSE),"")),CF11),IF(AND(ISNUMBER($AI11),$AJ11<>""),CF11,"")) ->  | CG44: =IF(ISNUMBER($W11),IF($AH11=FALSE,IF($W11<1000,IFERROR(VLOOKUP($W11,FeedLib[#All],CG$60,FALSE),""),IFERROR(VLOOKUP($W11,FeedLibUser[#All],CG$60,FALSE),"")),CG11),IF(AND(ISNUMBER($AI11),$AJ11<>""),CG11,"")) ->  | CH44: =IF(ISNUMBER($W11),IF($AH11=FALSE,IF($W11<1000,IFERROR(VLOOKUP($W11,FeedLib[#All],CH$60,FALSE),""),IFERROR(VLOOKUP($W11,FeedLibUser[#All],CH$60,FALSE),"")),CH11),IF(AND(ISNUMBER($AI11),$AJ11<>""),CH11,"")) ->  | CI44: =IF(ISNUMBER($W11),IF($AH11=FALSE,IF($W11<1000,IFERROR(VLOOKUP($W11,FeedLib[#All],CI$60,FALSE),""),IFERROR(VLOOKUP($W11,FeedLibUser[#All],CI$60,FALSE),"")),CI11),IF(AND(ISNUMBER($AI11),$AJ11<>""),CI11,"")) ->  | CJ44: =IF(ISNUMBER($W11),IF($AH11=FALSE,IF($W11<1000,IFERROR(VLOOKUP($W11,FeedLib[#All],CJ$60,FALSE),""),IFERROR(VLOOKUP($W11,FeedLibUser[#All],CJ$60,FALSE),"")),CJ11),IF(AND(ISNUMBER($AI11),$AJ11<>""),CJ11,"")) ->  | CK44: =IF(ISNUMBER($W11),IF($AH11=FALSE,IF($W11<1000,IFERROR(VLOOKUP($W11,FeedLib[#All],CK$60,FALSE),""),IFERROR(VLOOKUP($W11,FeedLibUser[#All],CK$60,FALSE),"")),CK11),IF(AND(ISNUMBER($AI11),$AJ11<>""),CK11,"")) ->  | CL44: =IF(ISNUMBER($W11),IF($AH11=FALSE,IF($W11<1000,IFERROR(VLOOKUP($W11,FeedLib[#All],CL$60,FALSE),""),IFERROR(VLOOKUP($W11,FeedLibUser[#All],CL$60,FALSE),"")),CL11),IF(AND(ISNUMBER($AI11),$AJ11<>""),CL11,"")) ->  | CM44: =IF(ISNUMBER($W11),IF($AH11=FALSE,IF($W11<1000,IFERROR(VLOOKUP($W11,FeedLib[#All],CM$60,FALSE),""),IFERROR(VLOOKUP($W11,FeedLibUser[#All],CM$60,FALSE),"")),CM11),IF(AND(ISNUMBER($AI11),$AJ11<>""),CM11,"")) -> 
B45: Predicted empty body fat (EBF) | F45: =IF(AND(F36<>0,F39<>0,F37<>0),IF(F38<>0,17.76207+4.68142 *F37+0.01945*F36+0.81855*F39-0.06754*F38,14.8796+ 4.7135*F37+0.01316*F36+0.90855*F39),0) -> 0 | G45: % EBW | H45: =IF(AND(F36<>0,F39<>0,F37<>0),IF(F38<>0,"Guiroy et al. (2001)","Tedeschi et al. (2004)"),"Guirroy et al. (2001) or Tedeschi et al. (2004)") -> Guirroy et al. (2001) or Tedeschi et al. (2004) | J45: Straightbred | L45: =VLOOKUP($F$22,$J$12:$S$42,L$44) -> 1 | M45: 1 | N45: 79.3656 | O45: 15.4322 | P45: 4 | Q45: 3.8 | R45: 8.3 | S45: 0.6 | AK45: =IF(ISNUMBER($W12),IF($AH12=FALSE,IF($W12<1000,IFERROR(VLOOKUP($W12,FeedLib[#All],AK$60,FALSE),"")*(IF(parmUnit=1,1,2000/2204.6)),IFERROR(VLOOKUP($W12,FeedLibUser[#All],AK$60,FALSE),"")*(IF(parmUnit=1,1,2000/2204.6))),AK12),IF(AND(ISNUMBER($AI12),$AJ12<>""),AK12,"")) ->  | AL45: =IF(ISNUMBER($W12),IF($AH12=FALSE,IF($W12<1000,IFERROR(VLOOKUP($W12,FeedLib[#All],AL$60,FALSE),""),IFERROR(VLOOKUP($W12,FeedLibUser[#All],AL$60,FALSE),"")),AL12),IF(AND(ISNUMBER($AI12),$AJ12<>""),AL12,"")) ->  | AM45: =IF(ISNUMBER($W12),IF($AH12=FALSE,IF($W12<1000,IFERROR(VLOOKUP($W12,FeedLib[#All],AM$60,FALSE),""),IFERROR(VLOOKUP($W12,FeedLibUser[#All],AM$60,FALSE),"")),AM12),IF(AND(ISNUMBER($AI12),$AJ12<>""),AM12,"")) ->  | AN45: =IF(ISNUMBER($W12),IF($AH12=FALSE,IF($W12<1000,IFERROR(VLOOKUP($W12,FeedLib[#All],AN$60,FALSE),""),IFERROR(VLOOKUP($W12,FeedLibUser[#All],AN$60,FALSE),"")),AN12),IF(AND(ISNUMBER($AI12),$AJ12<>""),AN12,"")) ->  | AO45: =IF(ISNUMBER($W12),IF($AH12=FALSE,IF($W12<1000,IFERROR(VLOOKUP($W12,FeedLib[#All],AO$60,FALSE),""),IFERROR(VLOOKUP($W12,FeedLibUser[#All],AO$60,FALSE),"")),AO12),IF(AND(ISNUMBER($AI12),$AJ12<>""),AO12,"")) ->  | AP45: =IF(ISNUMBER($W12),IF($AH12=FALSE,IF($W12<1000,IFERROR(VLOOKUP($W12,FeedLib[#All],AP$60,FALSE),""),IFERROR(VLOOKUP($W12,FeedLibUser[#All],AP$60,FALSE),"")),AP12),IF(AND(ISNUMBER($AI12),$AJ12<>""),AP12,"")) ->  | AQ45: =IF(ISNUMBER($W12),IF($AH12=FALSE,IF($W12<1000,IFERROR(VLOOKUP($W12,FeedLib[#All],AQ$60,FALSE),""),IFERROR(VLOOKUP($W12,FeedLibUser[#All],AQ$60,FALSE),"")),AQ12),IF(AND(ISNUMBER($AI12),$AJ12<>""),AQ12,"")) ->  | AR45: =IF(ISNUMBER($W12),IF($AH12=FALSE,IF($W12<1000,IFERROR(VLOOKUP($W12,FeedLib[#All],AR$60,FALSE),""),IFERROR(VLOOKUP($W12,FeedLibUser[#All],AR$60,FALSE),"")),AR12),IF(AND(ISNUMBER($AI12),$AJ12<>""),AR12,"")) ->  | AS45: =IF(ISNUMBER($W12),IF($AH12=FALSE,IF($W12<1000,IFERROR(VLOOKUP($W12,FeedLib[#All],AS$60,FALSE),""),IFERROR(VLOOKUP($W12,FeedLibUser[#All],AS$60,FALSE),"")),AS12),IF(AND(ISNUMBER($AI12),$AJ12<>""),AS12,"")) ->  | AT45: =IF(ISNUMBER($W12),IF($AH12=FALSE,IF($W12<1000,IFERROR(VLOOKUP($W12,FeedLib[#All],AT$60,FALSE),""),IFERROR(VLOOKUP($W12,FeedLibUser[#All],AT$60,FALSE),"")),AT12),IF(AND(ISNUMBER($AI12),$AJ12<>""),AT12,"")) ->  | AU45: =IF(ISNUMBER($W12),IF($AH12=FALSE,IF($W12<1000,IFERROR(VLOOKUP($W12,FeedLib[#All],AU$60,FALSE),""),IFERROR(VLOOKUP($W12,FeedLibUser[#All],AU$60,FALSE),"")),AU12),IF(AND(ISNUMBER($AI12),$AJ12<>""),AU12,"")) ->  | AV45: =IF(ISNUMBER($W12),IF($AH12=FALSE,IF($W12<1000,IFERROR(VLOOKUP($W12,FeedLib[#All],AV$60,FALSE),""),IFERROR(VLOOKUP($W12,FeedLibUser[#All],AV$60,FALSE),"")),AV12),IF(AND(ISNUMBER($AI12),$AJ12<>""),AV12,"")) ->  | AW45: =IF(ISNUMBER($W12),IF($AH12=FALSE,IF($W12<1000,IFERROR(VLOOKUP($W12,FeedLib[#All],AW$60,FALSE),""),IFERROR(VLOOKUP($W12,FeedLibUser[#All],AW$60,FALSE),"")),AW12),IF(AND(ISNUMBER($AI12),$AJ12<>""),AW12,"")) ->  | AX45: =IF(ISNUMBER($W12),IF($AH12=FALSE,IF($W12<1000,IFERROR(VLOOKUP($W12,FeedLib[#All],AX$60,FALSE),""),IFERROR(VLOOKUP($W12,FeedLibUser[#All],AX$60,FALSE),"")),AX12),IF(AND(ISNUMBER($AI12),$AJ12<>""),AX12,"")) ->  | AY45: =IF(ISNUMBER($W12),IF($AH12=FALSE,IF($W12<1000,IFERROR(VLOOKUP($W12,FeedLib[#All],AY$60,FALSE),"")/IF(parmUnit=1,1,2.2046),IFERROR(VLOOKUP($W12,FeedLibUser[#All],AY$60,FALSE),"")/IF(parmUnit=1,1,2.2046)),AY12),IF(AND(ISNUMBER($AI12),$AJ12<>""),AY12,"")) ->  | AZ45: =IF(ISNUMBER($W12),IF($AH12=FALSE,IF($W12<1000,IFERROR(VLOOKUP($W12,FeedLib[#All],AZ$60,FALSE),"")/IF(parmUnit=1,1,2.2046),IFERROR(VLOOKUP($W12,FeedLibUser[#All],AZ$60,FALSE),"")/IF(parmUnit=1,1,2.2046)),AZ12),IF(AND(ISNUMBER($AI12),$AJ12<>""),AZ12,"")) ->  | BA45: =IF(ISNUMBER($W12),IF($AH12=FALSE,IF($W12<1000,IFERROR(VLOOKUP($W12,FeedLib[#All],BA$60,FALSE),"")/IF(parmUnit=1,1,2.2046),IFERROR(VLOOKUP($W12,FeedLibUser[#All],BA$60,FALSE),"")/IF(parmUnit=1,1,2.2046)),BA12),IF(AND(ISNUMBER($AI12),$AJ12<>""),BA12,"")) ->  | BB45: =IF(ISNUMBER($W12),IF($AH12=FALSE,IF($W12<1000,IFERROR(VLOOKUP($W12,FeedLib[#All],BB$60,FALSE),""),IFERROR(VLOOKUP($W12,FeedLibUser[#All],BB$60,FALSE),"")),BB12),IF(AND(ISNUMBER($AI12),$AJ12<>""),BB12,"")) ->  | BC45: =IF(ISNUMBER($W12),IF($AH12=FALSE,IF($W12<1000,IFERROR(VLOOKUP($W12,FeedLib[#All],BC$60,FALSE),""),IFERROR(VLOOKUP($W12,FeedLibUser[#All],BC$60,FALSE),"")),BC12),IF(AND(ISNUMBER($AI12),$AJ12<>""),BC12,"")) ->  | BD45: =IF(ISNUMBER($W12),IF($AH12=FALSE,IF($W12<1000,IFERROR(VLOOKUP($W12,FeedLib[#All],BD$60,FALSE),""),IFERROR(VLOOKUP($W12,FeedLibUser[#All],BD$60,FALSE),"")),BD12),IF(AND(ISNUMBER($AI12),$AJ12<>""),BD12,"")) ->  | BE45: =IF(ISNUMBER($W12),IF($AH12=FALSE,IF($W12<1000,IFERROR(VLOOKUP($W12,FeedLib[#All],BE$60,FALSE),""),IFERROR(VLOOKUP($W12,FeedLibUser[#All],BE$60,FALSE),"")),BE12),IF(AND(ISNUMBER($AI12),$AJ12<>""),BE12,"")) ->  | BF45: =IF(ISNUMBER($W12),IF($AH12=FALSE,IF($W12<1000,IFERROR(VLOOKUP($W12,FeedLib[#All],BF$60,FALSE),""),IFERROR(VLOOKUP($W12,FeedLibUser[#All],BF$60,FALSE),"")),BF12),IF(AND(ISNUMBER($AI12),$AJ12<>""),BF12,"")) ->  | BG45: =IF(ISNUMBER($W12),IF($AH12=FALSE,IF($W12<1000,IFERROR(VLOOKUP($W12,FeedLib[#All],BG$60,FALSE),""),IFERROR(VLOOKUP($W12,FeedLibUser[#All],BG$60,FALSE),"")),BG12),IF(AND(ISNUMBER($AI12),$AJ12<>""),BG12,"")) ->  | BH45: =IF(ISNUMBER($W12),IF($AH12=FALSE,IF($W12<1000,IFERROR(VLOOKUP($W12,FeedLib[#All],BH$60,FALSE),""),IFERROR(VLOOKUP($W12,FeedLibUser[#All],BH$60,FALSE),"")),BH12),IF(AND(ISNUMBER($AI12),$AJ12<>""),BH12,"")) ->  | BI45: =IF(ISNUMBER($W12),IF($AH12=FALSE,IF($W12<1000,IFERROR(VLOOKUP($W12,FeedLib[#All],BI$60,FALSE),""),IFERROR(VLOOKUP($W12,FeedLibUser[#All],BI$60,FALSE),"")),BI12),IF(AND(ISNUMBER($AI12),$AJ12<>""),BI12,"")) ->  | BJ45: =IF(ISNUMBER($W12),IF($AH12=FALSE,IF($W12<1000,IFERROR(VLOOKUP($W12,FeedLib[#All],BJ$60,FALSE),""),IFERROR(VLOOKUP($W12,FeedLibUser[#All],BJ$60,FALSE),"")),BJ12),IF(AND(ISNUMBER($AI12),$AJ12<>""),BJ12,"")) ->  | BK45: =IF(ISNUMBER($W12),IF($AH12=FALSE,IF($W12<1000,IFERROR(VLOOKUP($W12,FeedLib[#All],BK$60,FALSE),""),IFERROR(VLOOKUP($W12,FeedLibUser[#All],BK$60,FALSE),"")),BK12),IF(AND(ISNUMBER($AI12),$AJ12<>""),BK12,"")) ->  | BL45: =IF(ISNUMBER($W12),IF($AH12=FALSE,IF($W12<1000,IFERROR(VLOOKUP($W12,FeedLib[#All],BL$60,FALSE),""),IFERROR(VLOOKUP($W12,FeedLibUser[#All],BL$60,FALSE),"")),BL12),IF(AND(ISNUMBER($AI12),$AJ12<>""),BL12,"")) ->  | BM45: =IF(ISNUMBER($W12),IF($AH12=FALSE,IF($W12<1000,IFERROR(VLOOKUP($W12,FeedLib[#All],BM$60,FALSE),""),IFERROR(VLOOKUP($W12,FeedLibUser[#All],BM$60,FALSE),"")),BM12),IF(AND(ISNUMBER($AI12),$AJ12<>""),BM12,"")) ->  | BN45: =IF(ISNUMBER($W12),IF($AH12=FALSE,IF($W12<1000,IFERROR(VLOOKUP($W12,FeedLib[#All],BN$60,FALSE),""),IFERROR(VLOOKUP($W12,FeedLibUser[#All],BN$60,FALSE),"")),BN12),IF(AND(ISNUMBER($AI12),$AJ12<>""),BN12,"")) ->  | BO45: =IF(ISNUMBER($W12),IF($AH12=FALSE,IF($W12<1000,IFERROR(VLOOKUP($W12,FeedLib[#All],BO$60,FALSE),""),IFERROR(VLOOKUP($W12,FeedLibUser[#All],BO$60,FALSE),"")),BO12),IF(AND(ISNUMBER($AI12),$AJ12<>""),BO12,"")) ->  | BP45: =IF(ISNUMBER($W12),IF($AH12=FALSE,IF($W12<1000,IFERROR(VLOOKUP($W12,FeedLib[#All],BP$60,FALSE),""),IFERROR(VLOOKUP($W12,FeedLibUser[#All],BP$60,FALSE),"")),BP12),IF(AND(ISNUMBER($AI12),$AJ12<>""),BP12,"")) ->  | BQ45: =IF(ISNUMBER($W12),IF($AH12=FALSE,IF($W12<1000,IFERROR(VLOOKUP($W12,FeedLib[#All],BQ$60,FALSE),""),IFERROR(VLOOKUP($W12,FeedLibUser[#All],BQ$60,FALSE),"")),BQ12),IF(AND(ISNUMBER($AI12),$AJ12<>""),BQ12,"")) ->  | BR45: =IF(ISNUMBER($W12),IF($AH12=FALSE,IF($W12<1000,IFERROR(VLOOKUP($W12,FeedLib[#All],BR$60,FALSE),""),IFERROR(VLOOKUP($W12,FeedLibUser[#All],BR$60,FALSE),"")),BR12),IF(AND(ISNUMBER($AI12),$AJ12<>""),BR12,"")) ->  | BS45: =IF(ISNUMBER($W12),IF($AH12=FALSE,IF($W12<1000,IFERROR(VLOOKUP($W12,FeedLib[#All],BS$60,FALSE),""),IFERROR(VLOOKUP($W12,FeedLibUser[#All],BS$60,FALSE),"")),BS12),IF(AND(ISNUMBER($AI12),$AJ12<>""),BS12,"")) ->  | BT45: =IF(ISNUMBER($W12),IF($AH12=FALSE,IF($W12<1000,IFERROR(VLOOKUP($W12,FeedLib[#All],BT$60,FALSE),""),IFERROR(VLOOKUP($W12,FeedLibUser[#All],BT$60,FALSE),"")),BT12),IF(AND(ISNUMBER($AI12),$AJ12<>""),BT12,"")) ->  | BU45: =IF(ISNUMBER($W12),IF($AH12=FALSE,IF($W12<1000,IFERROR(VLOOKUP($W12,FeedLib[#All],BU$60,FALSE),""),IFERROR(VLOOKUP($W12,FeedLibUser[#All],BU$60,FALSE),"")),BU12),IF(AND(ISNUMBER($AI12),$AJ12<>""),BU12,"")) ->  | BV45: =IF(ISNUMBER($W12),IF($AH12=FALSE,IF($W12<1000,IFERROR(VLOOKUP($W12,FeedLib[#All],BV$60,FALSE),""),IFERROR(VLOOKUP($W12,FeedLibUser[#All],BV$60,FALSE),"")),BV12),IF(AND(ISNUMBER($AI12),$AJ12<>""),BV12,"")) ->  | BW45: =IF(ISNUMBER($W12),IF($AH12=FALSE,IF($W12<1000,IFERROR(VLOOKUP($W12,FeedLib[#All],BW$60,FALSE),""),IFERROR(VLOOKUP($W12,FeedLibUser[#All],BW$60,FALSE),"")),BW12),IF(AND(ISNUMBER($AI12),$AJ12<>""),BW12,"")) ->  | BX45: =IF(ISNUMBER($W12),IF($AH12=FALSE,IF($W12<1000,IFERROR(VLOOKUP($W12,FeedLib[#All],BX$60,FALSE),""),IFERROR(VLOOKUP($W12,FeedLibUser[#All],BX$60,FALSE),"")),BX12),IF(AND(ISNUMBER($AI12),$AJ12<>""),BX12,"")) ->  | BY45: =IF(ISNUMBER($W12),IF($AH12=FALSE,IF($W12<1000,IFERROR(VLOOKUP($W12,FeedLib[#All],BY$60,FALSE),""),IFERROR(VLOOKUP($W12,FeedLibUser[#All],BY$60,FALSE),"")),BY12),IF(AND(ISNUMBER($AI12),$AJ12<>""),BY12,"")) ->  | BZ45: =IF(ISNUMBER($W12),IF($AH12=FALSE,IF($W12<1000,IFERROR(VLOOKUP($W12,FeedLib[#All],BZ$60,FALSE),""),IFERROR(VLOOKUP($W12,FeedLibUser[#All],BZ$60,FALSE),"")),BZ12),IF(AND(ISNUMBER($AI12),$AJ12<>""),BZ12,"")) ->  | CA45: =IF(ISNUMBER($W12),IF($AH12=FALSE,IF($W12<1000,IFERROR(VLOOKUP($W12,FeedLib[#All],CA$60,FALSE),""),IFERROR(VLOOKUP($W12,FeedLibUser[#All],CA$60,FALSE),"")),CA12),IF(AND(ISNUMBER($AI12),$AJ12<>""),CA12,"")) ->  | CB45: =IF(ISNUMBER($W12),IF($AH12=FALSE,IF($W12<1000,IFERROR(VLOOKUP($W12,FeedLib[#All],CB$60,FALSE),""),IFERROR(VLOOKUP($W12,FeedLibUser[#All],CB$60,FALSE),"")),CB12),IF(AND(ISNUMBER($AI12),$AJ12<>""),CB12,"")) ->  | CC45: =IF(ISNUMBER($W12),IF($AH12=FALSE,IF($W12<1000,IFERROR(VLOOKUP($W12,FeedLib[#All],CC$60,FALSE),""),IFERROR(VLOOKUP($W12,FeedLibUser[#All],CC$60,FALSE),"")),CC12),IF(AND(ISNUMBER($AI12),$AJ12<>""),CC12,"")) ->  | CD45: =IF(ISNUMBER($W12),IF($AH12=FALSE,IF($W12<1000,IFERROR(VLOOKUP($W12,FeedLib[#All],CD$60,FALSE),""),IFERROR(VLOOKUP($W12,FeedLibUser[#All],CD$60,FALSE),"")),CD12),IF(AND(ISNUMBER($AI12),$AJ12<>""),CD12,"")) ->  | CE45: =IF(ISNUMBER($W12),IF($AH12=FALSE,IF($W12<1000,IFERROR(VLOOKUP($W12,FeedLib[#All],CE$60,FALSE),""),IFERROR(VLOOKUP($W12,FeedLibUser[#All],CE$60,FALSE),"")),CE12),IF(AND(ISNUMBER($AI12),$AJ12<>""),CE12,"")) ->  | CF45: =IF(ISNUMBER($W12),IF($AH12=FALSE,IF($W12<1000,IFERROR(VLOOKUP($W12,FeedLib[#All],CF$60,FALSE),""),IFERROR(VLOOKUP($W12,FeedLibUser[#All],CF$60,FALSE),"")),CF12),IF(AND(ISNUMBER($AI12),$AJ12<>""),CF12,"")) ->  | CG45: =IF(ISNUMBER($W12),IF($AH12=FALSE,IF($W12<1000,IFERROR(VLOOKUP($W12,FeedLib[#All],CG$60,FALSE),""),IFERROR(VLOOKUP($W12,FeedLibUser[#All],CG$60,FALSE),"")),CG12),IF(AND(ISNUMBER($AI12),$AJ12<>""),CG12,"")) ->  | CH45: =IF(ISNUMBER($W12),IF($AH12=FALSE,IF($W12<1000,IFERROR(VLOOKUP($W12,FeedLib[#All],CH$60,FALSE),""),IFERROR(VLOOKUP($W12,FeedLibUser[#All],CH$60,FALSE),"")),CH12),IF(AND(ISNUMBER($AI12),$AJ12<>""),CH12,"")) ->  | CI45: =IF(ISNUMBER($W12),IF($AH12=FALSE,IF($W12<1000,IFERROR(VLOOKUP($W12,FeedLib[#All],CI$60,FALSE),""),IFERROR(VLOOKUP($W12,FeedLibUser[#All],CI$60,FALSE),"")),CI12),IF(AND(ISNUMBER($AI12),$AJ12<>""),CI12,"")) ->  | CJ45: =IF(ISNUMBER($W12),IF($AH12=FALSE,IF($W12<1000,IFERROR(VLOOKUP($W12,FeedLib[#All],CJ$60,FALSE),""),IFERROR(VLOOKUP($W12,FeedLibUser[#All],CJ$60,FALSE),"")),CJ12),IF(AND(ISNUMBER($AI12),$AJ12<>""),CJ12,"")) ->  | CK45: =IF(ISNUMBER($W12),IF($AH12=FALSE,IF($W12<1000,IFERROR(VLOOKUP($W12,FeedLib[#All],CK$60,FALSE),""),IFERROR(VLOOKUP($W12,FeedLibUser[#All],CK$60,FALSE),"")),CK12),IF(AND(ISNUMBER($AI12),$AJ12<>""),CK12,"")) ->  | CL45: =IF(ISNUMBER($W12),IF($AH12=FALSE,IF($W12<1000,IFERROR(VLOOKUP($W12,FeedLib[#All],CL$60,FALSE),""),IFERROR(VLOOKUP($W12,FeedLibUser[#All],CL$60,FALSE),"")),CL12),IF(AND(ISNUMBER($AI12),$AJ12<>""),CL12,"")) ->  | CM45: =IF(ISNUMBER($W12),IF($AH12=FALSE,IF($W12<1000,IFERROR(VLOOKUP($W12,FeedLib[#All],CM$60,FALSE),""),IFERROR(VLOOKUP($W12,FeedLibUser[#All],CM$60,FALSE),"")),CM12),IF(AND(ISNUMBER($AI12),$AJ12<>""),CM12,"")) -> 
B46: Predicted empty body weight (EBW) | D46: =F46/IF(parmUnit=1,1,1/2.2046) -> 0 | E46: =CHOOSE(parmUnit,"kg","lb") -> lb | F46: =IF(F36<>0,(30.26+1.362*F36),0) -> 0 | G46: kg | H46: Garrett and Hinman (1969) and Tedeschi et al. (2004) | J46: 2-Way | L46: =(VLOOKUP($F$22,$J$12:$S$42,L$44)+VLOOKUP($F$23,$J$12:$S$42,L$44))/2 -> 1 | M46: 1.1 | N46: 82.6725 | O46: 17.6368 | P46: 4 | Q46: 3.8 | R46: 8.3 | S46: 0.585 | AK46: =IF(ISNUMBER($W13),IF($AH13=FALSE,IF($W13<1000,IFERROR(VLOOKUP($W13,FeedLib[#All],AK$60,FALSE),"")*(IF(parmUnit=1,1,2000/2204.6)),IFERROR(VLOOKUP($W13,FeedLibUser[#All],AK$60,FALSE),"")*(IF(parmUnit=1,1,2000/2204.6))),AK13),IF(AND(ISNUMBER($AI13),$AJ13<>""),AK13,"")) ->  | AL46: =IF(ISNUMBER($W13),IF($AH13=FALSE,IF($W13<1000,IFERROR(VLOOKUP($W13,FeedLib[#All],AL$60,FALSE),""),IFERROR(VLOOKUP($W13,FeedLibUser[#All],AL$60,FALSE),"")),AL13),IF(AND(ISNUMBER($AI13),$AJ13<>""),AL13,"")) ->  | AM46: =IF(ISNUMBER($W13),IF($AH13=FALSE,IF($W13<1000,IFERROR(VLOOKUP($W13,FeedLib[#All],AM$60,FALSE),""),IFERROR(VLOOKUP($W13,FeedLibUser[#All],AM$60,FALSE),"")),AM13),IF(AND(ISNUMBER($AI13),$AJ13<>""),AM13,"")) ->  | AN46: =IF(ISNUMBER($W13),IF($AH13=FALSE,IF($W13<1000,IFERROR(VLOOKUP($W13,FeedLib[#All],AN$60,FALSE),""),IFERROR(VLOOKUP($W13,FeedLibUser[#All],AN$60,FALSE),"")),AN13),IF(AND(ISNUMBER($AI13),$AJ13<>""),AN13,"")) ->  | AO46: =IF(ISNUMBER($W13),IF($AH13=FALSE,IF($W13<1000,IFERROR(VLOOKUP($W13,FeedLib[#All],AO$60,FALSE),""),IFERROR(VLOOKUP($W13,FeedLibUser[#All],AO$60,FALSE),"")),AO13),IF(AND(ISNUMBER($AI13),$AJ13<>""),AO13,"")) ->  | AP46: =IF(ISNUMBER($W13),IF($AH13=FALSE,IF($W13<1000,IFERROR(VLOOKUP($W13,FeedLib[#All],AP$60,FALSE),""),IFERROR(VLOOKUP($W13,FeedLibUser[#All],AP$60,FALSE),"")),AP13),IF(AND(ISNUMBER($AI13),$AJ13<>""),AP13,"")) ->  | AQ46: =IF(ISNUMBER($W13),IF($AH13=FALSE,IF($W13<1000,IFERROR(VLOOKUP($W13,FeedLib[#All],AQ$60,FALSE),""),IFERROR(VLOOKUP($W13,FeedLibUser[#All],AQ$60,FALSE),"")),AQ13),IF(AND(ISNUMBER($AI13),$AJ13<>""),AQ13,"")) ->  | AR46: =IF(ISNUMBER($W13),IF($AH13=FALSE,IF($W13<1000,IFERROR(VLOOKUP($W13,FeedLib[#All],AR$60,FALSE),""),IFERROR(VLOOKUP($W13,FeedLibUser[#All],AR$60,FALSE),"")),AR13),IF(AND(ISNUMBER($AI13),$AJ13<>""),AR13,"")) ->  | AS46: =IF(ISNUMBER($W13),IF($AH13=FALSE,IF($W13<1000,IFERROR(VLOOKUP($W13,FeedLib[#All],AS$60,FALSE),""),IFERROR(VLOOKUP($W13,FeedLibUser[#All],AS$60,FALSE),"")),AS13),IF(AND(ISNUMBER($AI13),$AJ13<>""),AS13,"")) ->  | AT46: =IF(ISNUMBER($W13),IF($AH13=FALSE,IF($W13<1000,IFERROR(VLOOKUP($W13,FeedLib[#All],AT$60,FALSE),""),IFERROR(VLOOKUP($W13,FeedLibUser[#All],AT$60,FALSE),"")),AT13),IF(AND(ISNUMBER($AI13),$AJ13<>""),AT13,"")) ->  | AU46: =IF(ISNUMBER($W13),IF($AH13=FALSE,IF($W13<1000,IFERROR(VLOOKUP($W13,FeedLib[#All],AU$60,FALSE),""),IFERROR(VLOOKUP($W13,FeedLibUser[#All],AU$60,FALSE),"")),AU13),IF(AND(ISNUMBER($AI13),$AJ13<>""),AU13,"")) ->  | AV46: =IF(ISNUMBER($W13),IF($AH13=FALSE,IF($W13<1000,IFERROR(VLOOKUP($W13,FeedLib[#All],AV$60,FALSE),""),IFERROR(VLOOKUP($W13,FeedLibUser[#All],AV$60,FALSE),"")),AV13),IF(AND(ISNUMBER($AI13),$AJ13<>""),AV13,"")) ->  | AW46: =IF(ISNUMBER($W13),IF($AH13=FALSE,IF($W13<1000,IFERROR(VLOOKUP($W13,FeedLib[#All],AW$60,FALSE),""),IFERROR(VLOOKUP($W13,FeedLibUser[#All],AW$60,FALSE),"")),AW13),IF(AND(ISNUMBER($AI13),$AJ13<>""),AW13,"")) ->  | AX46: =IF(ISNUMBER($W13),IF($AH13=FALSE,IF($W13<1000,IFERROR(VLOOKUP($W13,FeedLib[#All],AX$60,FALSE),""),IFERROR(VLOOKUP($W13,FeedLibUser[#All],AX$60,FALSE),"")),AX13),IF(AND(ISNUMBER($AI13),$AJ13<>""),AX13,"")) ->  | AY46: =IF(ISNUMBER($W13),IF($AH13=FALSE,IF($W13<1000,IFERROR(VLOOKUP($W13,FeedLib[#All],AY$60,FALSE),"")/IF(parmUnit=1,1,2.2046),IFERROR(VLOOKUP($W13,FeedLibUser[#All],AY$60,FALSE),"")/IF(parmUnit=1,1,2.2046)),AY13),IF(AND(ISNUMBER($AI13),$AJ13<>""),AY13,"")) ->  | AZ46: =IF(ISNUMBER($W13),IF($AH13=FALSE,IF($W13<1000,IFERROR(VLOOKUP($W13,FeedLib[#All],AZ$60,FALSE),"")/IF(parmUnit=1,1,2.2046),IFERROR(VLOOKUP($W13,FeedLibUser[#All],AZ$60,FALSE),"")/IF(parmUnit=1,1,2.2046)),AZ13),IF(AND(ISNUMBER($AI13),$AJ13<>""),AZ13,"")) ->  | BA46: =IF(ISNUMBER($W13),IF($AH13=FALSE,IF($W13<1000,IFERROR(VLOOKUP($W13,FeedLib[#All],BA$60,FALSE),"")/IF(parmUnit=1,1,2.2046),IFERROR(VLOOKUP($W13,FeedLibUser[#All],BA$60,FALSE),"")/IF(parmUnit=1,1,2.2046)),BA13),IF(AND(ISNUMBER($AI13),$AJ13<>""),BA13,"")) ->  | BB46: =IF(ISNUMBER($W13),IF($AH13=FALSE,IF($W13<1000,IFERROR(VLOOKUP($W13,FeedLib[#All],BB$60,FALSE),""),IFERROR(VLOOKUP($W13,FeedLibUser[#All],BB$60,FALSE),"")),BB13),IF(AND(ISNUMBER($AI13),$AJ13<>""),BB13,"")) ->  | BC46: =IF(ISNUMBER($W13),IF($AH13=FALSE,IF($W13<1000,IFERROR(VLOOKUP($W13,FeedLib[#All],BC$60,FALSE),""),IFERROR(VLOOKUP($W13,FeedLibUser[#All],BC$60,FALSE),"")),BC13),IF(AND(ISNUMBER($AI13),$AJ13<>""),BC13,"")) ->  | BD46: =IF(ISNUMBER($W13),IF($AH13=FALSE,IF($W13<1000,IFERROR(VLOOKUP($W13,FeedLib[#All],BD$60,FALSE),""),IFERROR(VLOOKUP($W13,FeedLibUser[#All],BD$60,FALSE),"")),BD13),IF(AND(ISNUMBER($AI13),$AJ13<>""),BD13,"")) ->  | BE46: =IF(ISNUMBER($W13),IF($AH13=FALSE,IF($W13<1000,IFERROR(VLOOKUP($W13,FeedLib[#All],BE$60,FALSE),""),IFERROR(VLOOKUP($W13,FeedLibUser[#All],BE$60,FALSE),"")),BE13),IF(AND(ISNUMBER($AI13),$AJ13<>""),BE13,"")) ->  | BF46: =IF(ISNUMBER($W13),IF($AH13=FALSE,IF($W13<1000,IFERROR(VLOOKUP($W13,FeedLib[#All],BF$60,FALSE),""),IFERROR(VLOOKUP($W13,FeedLibUser[#All],BF$60,FALSE),"")),BF13),IF(AND(ISNUMBER($AI13),$AJ13<>""),BF13,"")) ->  | BG46: =IF(ISNUMBER($W13),IF($AH13=FALSE,IF($W13<1000,IFERROR(VLOOKUP($W13,FeedLib[#All],BG$60,FALSE),""),IFERROR(VLOOKUP($W13,FeedLibUser[#All],BG$60,FALSE),"")),BG13),IF(AND(ISNUMBER($AI13),$AJ13<>""),BG13,"")) ->  | BH46: =IF(ISNUMBER($W13),IF($AH13=FALSE,IF($W13<1000,IFERROR(VLOOKUP($W13,FeedLib[#All],BH$60,FALSE),""),IFERROR(VLOOKUP($W13,FeedLibUser[#All],BH$60,FALSE),"")),BH13),IF(AND(ISNUMBER($AI13),$AJ13<>""),BH13,"")) ->  | BI46: =IF(ISNUMBER($W13),IF($AH13=FALSE,IF($W13<1000,IFERROR(VLOOKUP($W13,FeedLib[#All],BI$60,FALSE),""),IFERROR(VLOOKUP($W13,FeedLibUser[#All],BI$60,FALSE),"")),BI13),IF(AND(ISNUMBER($AI13),$AJ13<>""),BI13,"")) ->  | BJ46: =IF(ISNUMBER($W13),IF($AH13=FALSE,IF($W13<1000,IFERROR(VLOOKUP($W13,FeedLib[#All],BJ$60,FALSE),""),IFERROR(VLOOKUP($W13,FeedLibUser[#All],BJ$60,FALSE),"")),BJ13),IF(AND(ISNUMBER($AI13),$AJ13<>""),BJ13,"")) ->  | BK46: =IF(ISNUMBER($W13),IF($AH13=FALSE,IF($W13<1000,IFERROR(VLOOKUP($W13,FeedLib[#All],BK$60,FALSE),""),IFERROR(VLOOKUP($W13,FeedLibUser[#All],BK$60,FALSE),"")),BK13),IF(AND(ISNUMBER($AI13),$AJ13<>""),BK13,"")) ->  | BL46: =IF(ISNUMBER($W13),IF($AH13=FALSE,IF($W13<1000,IFERROR(VLOOKUP($W13,FeedLib[#All],BL$60,FALSE),""),IFERROR(VLOOKUP($W13,FeedLibUser[#All],BL$60,FALSE),"")),BL13),IF(AND(ISNUMBER($AI13),$AJ13<>""),BL13,"")) ->  | BM46: =IF(ISNUMBER($W13),IF($AH13=FALSE,IF($W13<1000,IFERROR(VLOOKUP($W13,FeedLib[#All],BM$60,FALSE),""),IFERROR(VLOOKUP($W13,FeedLibUser[#All],BM$60,FALSE),"")),BM13),IF(AND(ISNUMBER($AI13),$AJ13<>""),BM13,"")) ->  | BN46: =IF(ISNUMBER($W13),IF($AH13=FALSE,IF($W13<1000,IFERROR(VLOOKUP($W13,FeedLib[#All],BN$60,FALSE),""),IFERROR(VLOOKUP($W13,FeedLibUser[#All],BN$60,FALSE),"")),BN13),IF(AND(ISNUMBER($AI13),$AJ13<>""),BN13,"")) ->  | BO46: =IF(ISNUMBER($W13),IF($AH13=FALSE,IF($W13<1000,IFERROR(VLOOKUP($W13,FeedLib[#All],BO$60,FALSE),""),IFERROR(VLOOKUP($W13,FeedLibUser[#All],BO$60,FALSE),"")),BO13),IF(AND(ISNUMBER($AI13),$AJ13<>""),BO13,"")) ->  | BP46: =IF(ISNUMBER($W13),IF($AH13=FALSE,IF($W13<1000,IFERROR(VLOOKUP($W13,FeedLib[#All],BP$60,FALSE),""),IFERROR(VLOOKUP($W13,FeedLibUser[#All],BP$60,FALSE),"")),BP13),IF(AND(ISNUMBER($AI13),$AJ13<>""),BP13,"")) ->  | BQ46: =IF(ISNUMBER($W13),IF($AH13=FALSE,IF($W13<1000,IFERROR(VLOOKUP($W13,FeedLib[#All],BQ$60,FALSE),""),IFERROR(VLOOKUP($W13,FeedLibUser[#All],BQ$60,FALSE),"")),BQ13),IF(AND(ISNUMBER($AI13),$AJ13<>""),BQ13,"")) ->  | BR46: =IF(ISNUMBER($W13),IF($AH13=FALSE,IF($W13<1000,IFERROR(VLOOKUP($W13,FeedLib[#All],BR$60,FALSE),""),IFERROR(VLOOKUP($W13,FeedLibUser[#All],BR$60,FALSE),"")),BR13),IF(AND(ISNUMBER($AI13),$AJ13<>""),BR13,"")) ->  | BS46: =IF(ISNUMBER($W13),IF($AH13=FALSE,IF($W13<1000,IFERROR(VLOOKUP($W13,FeedLib[#All],BS$60,FALSE),""),IFERROR(VLOOKUP($W13,FeedLibUser[#All],BS$60,FALSE),"")),BS13),IF(AND(ISNUMBER($AI13),$AJ13<>""),BS13,"")) ->  | BT46: =IF(ISNUMBER($W13),IF($AH13=FALSE,IF($W13<1000,IFERROR(VLOOKUP($W13,FeedLib[#All],BT$60,FALSE),""),IFERROR(VLOOKUP($W13,FeedLibUser[#All],BT$60,FALSE),"")),BT13),IF(AND(ISNUMBER($AI13),$AJ13<>""),BT13,"")) ->  | BU46: =IF(ISNUMBER($W13),IF($AH13=FALSE,IF($W13<1000,IFERROR(VLOOKUP($W13,FeedLib[#All],BU$60,FALSE),""),IFERROR(VLOOKUP($W13,FeedLibUser[#All],BU$60,FALSE),"")),BU13),IF(AND(ISNUMBER($AI13),$AJ13<>""),BU13,"")) ->  | BV46: =IF(ISNUMBER($W13),IF($AH13=FALSE,IF($W13<1000,IFERROR(VLOOKUP($W13,FeedLib[#All],BV$60,FALSE),""),IFERROR(VLOOKUP($W13,FeedLibUser[#All],BV$60,FALSE),"")),BV13),IF(AND(ISNUMBER($AI13),$AJ13<>""),BV13,"")) ->  | BW46: =IF(ISNUMBER($W13),IF($AH13=FALSE,IF($W13<1000,IFERROR(VLOOKUP($W13,FeedLib[#All],BW$60,FALSE),""),IFERROR(VLOOKUP($W13,FeedLibUser[#All],BW$60,FALSE),"")),BW13),IF(AND(ISNUMBER($AI13),$AJ13<>""),BW13,"")) ->  | BX46: =IF(ISNUMBER($W13),IF($AH13=FALSE,IF($W13<1000,IFERROR(VLOOKUP($W13,FeedLib[#All],BX$60,FALSE),""),IFERROR(VLOOKUP($W13,FeedLibUser[#All],BX$60,FALSE),"")),BX13),IF(AND(ISNUMBER($AI13),$AJ13<>""),BX13,"")) ->  | BY46: =IF(ISNUMBER($W13),IF($AH13=FALSE,IF($W13<1000,IFERROR(VLOOKUP($W13,FeedLib[#All],BY$60,FALSE),""),IFERROR(VLOOKUP($W13,FeedLibUser[#All],BY$60,FALSE),"")),BY13),IF(AND(ISNUMBER($AI13),$AJ13<>""),BY13,"")) ->  | BZ46: =IF(ISNUMBER($W13),IF($AH13=FALSE,IF($W13<1000,IFERROR(VLOOKUP($W13,FeedLib[#All],BZ$60,FALSE),""),IFERROR(VLOOKUP($W13,FeedLibUser[#All],BZ$60,FALSE),"")),BZ13),IF(AND(ISNUMBER($AI13),$AJ13<>""),BZ13,"")) ->  | CA46: =IF(ISNUMBER($W13),IF($AH13=FALSE,IF($W13<1000,IFERROR(VLOOKUP($W13,FeedLib[#All],CA$60,FALSE),""),IFERROR(VLOOKUP($W13,FeedLibUser[#All],CA$60,FALSE),"")),CA13),IF(AND(ISNUMBER($AI13),$AJ13<>""),CA13,"")) ->  | CB46: =IF(ISNUMBER($W13),IF($AH13=FALSE,IF($W13<1000,IFERROR(VLOOKUP($W13,FeedLib[#All],CB$60,FALSE),""),IFERROR(VLOOKUP($W13,FeedLibUser[#All],CB$60,FALSE),"")),CB13),IF(AND(ISNUMBER($AI13),$AJ13<>""),CB13,"")) ->  | CC46: =IF(ISNUMBER($W13),IF($AH13=FALSE,IF($W13<1000,IFERROR(VLOOKUP($W13,FeedLib[#All],CC$60,FALSE),""),IFERROR(VLOOKUP($W13,FeedLibUser[#All],CC$60,FALSE),"")),CC13),IF(AND(ISNUMBER($AI13),$AJ13<>""),CC13,"")) ->  | CD46: =IF(ISNUMBER($W13),IF($AH13=FALSE,IF($W13<1000,IFERROR(VLOOKUP($W13,FeedLib[#All],CD$60,FALSE),""),IFERROR(VLOOKUP($W13,FeedLibUser[#All],CD$60,FALSE),"")),CD13),IF(AND(ISNUMBER($AI13),$AJ13<>""),CD13,"")) ->  | CE46: =IF(ISNUMBER($W13),IF($AH13=FALSE,IF($W13<1000,IFERROR(VLOOKUP($W13,FeedLib[#All],CE$60,FALSE),""),IFERROR(VLOOKUP($W13,FeedLibUser[#All],CE$60,FALSE),"")),CE13),IF(AND(ISNUMBER($AI13),$AJ13<>""),CE13,"")) ->  | CF46: =IF(ISNUMBER($W13),IF($AH13=FALSE,IF($W13<1000,IFERROR(VLOOKUP($W13,FeedLib[#All],CF$60,FALSE),""),IFERROR(VLOOKUP($W13,FeedLibUser[#All],CF$60,FALSE),"")),CF13),IF(AND(ISNUMBER($AI13),$AJ13<>""),CF13,"")) ->  | CG46: =IF(ISNUMBER($W13),IF($AH13=FALSE,IF($W13<1000,IFERROR(VLOOKUP($W13,FeedLib[#All],CG$60,FALSE),""),IFERROR(VLOOKUP($W13,FeedLibUser[#All],CG$60,FALSE),"")),CG13),IF(AND(ISNUMBER($AI13),$AJ13<>""),CG13,"")) ->  | CH46: =IF(ISNUMBER($W13),IF($AH13=FALSE,IF($W13<1000,IFERROR(VLOOKUP($W13,FeedLib[#All],CH$60,FALSE),""),IFERROR(VLOOKUP($W13,FeedLibUser[#All],CH$60,FALSE),"")),CH13),IF(AND(ISNUMBER($AI13),$AJ13<>""),CH13,"")) ->  | CI46: =IF(ISNUMBER($W13),IF($AH13=FALSE,IF($W13<1000,IFERROR(VLOOKUP($W13,FeedLib[#All],CI$60,FALSE),""),IFERROR(VLOOKUP($W13,FeedLibUser[#All],CI$60,FALSE),"")),CI13),IF(AND(ISNUMBER($AI13),$AJ13<>""),CI13,"")) ->  | CJ46: =IF(ISNUMBER($W13),IF($AH13=FALSE,IF($W13<1000,IFERROR(VLOOKUP($W13,FeedLib[#All],CJ$60,FALSE),""),IFERROR(VLOOKUP($W13,FeedLibUser[#All],CJ$60,FALSE),"")),CJ13),IF(AND(ISNUMBER($AI13),$AJ13<>""),CJ13,"")) ->  | CK46: =IF(ISNUMBER($W13),IF($AH13=FALSE,IF($W13<1000,IFERROR(VLOOKUP($W13,FeedLib[#All],CK$60,FALSE),""),IFERROR(VLOOKUP($W13,FeedLibUser[#All],CK$60,FALSE),"")),CK13),IF(AND(ISNUMBER($AI13),$AJ13<>""),CK13,"")) ->  | CL46: =IF(ISNUMBER($W13),IF($AH13=FALSE,IF($W13<1000,IFERROR(VLOOKUP($W13,FeedLib[#All],CL$60,FALSE),""),IFERROR(VLOOKUP($W13,FeedLibUser[#All],CL$60,FALSE),"")),CL13),IF(AND(ISNUMBER($AI13),$AJ13<>""),CL13,"")) ->  | CM46: =IF(ISNUMBER($W13),IF($AH13=FALSE,IF($W13<1000,IFERROR(VLOOKUP($W13,FeedLib[#All],CM$60,FALSE),""),IFERROR(VLOOKUP($W13,FeedLibUser[#All],CM$60,FALSE),"")),CM13),IF(AND(ISNUMBER($AI13),$AJ13<>""),CM13,"")) -> 
B47: ="Predicted unshrunk MW at "&CHOOSE(F19,"22%","25%","27%","28%")&" EBF" -> Predicted unshrunk MW at 27% EBF | D47: =F47/IF(parmUnit=1,1,1/2.2046) -> 0 | E47: =CHOOSE(parmUnit,"kg","lb") -> lb | F47: =IF(AND(F45<>0,F46<>0),(F46+(CHOOSE(F19,22,25,27,28)-F45)*14.26)/0.891/0.96,0) -> 0 | G47: kg | H47: Guirroy et al. (2001) | J47: 3-Way | L47: =(VLOOKUP($F$22,$J$12:$S$42,L$44)+(VLOOKUP($F$23,$J$12:$S$42,L$44)+VLOOKUP($F$24,$J$12:$S$42,L$44))/2)/2 -> 1 | M47: =(VLOOKUP($F$22,$J$12:$S$42,M$44)+(VLOOKUP($F$23,$J$12:$S$42,M$44)+VLOOKUP($F$24,$J$12:$S$42,M$44))/2)/2 -> 1.1 | N47: 78.2633 | O47: 17.08565 | P47: 4 | Q47: 3.8 | R47: 8.3 | S47: 0.5925 | AK47: =IF(ISNUMBER($W14),IF($AH14=FALSE,IF($W14<1000,IFERROR(VLOOKUP($W14,FeedLib[#All],AK$60,FALSE),"")*(IF(parmUnit=1,1,2000/2204.6)),IFERROR(VLOOKUP($W14,FeedLibUser[#All],AK$60,FALSE),"")*(IF(parmUnit=1,1,2000/2204.6))),AK14),IF(AND(ISNUMBER($AI14),$AJ14<>""),AK14,"")) ->  | AL47: =IF(ISNUMBER($W14),IF($AH14=FALSE,IF($W14<1000,IFERROR(VLOOKUP($W14,FeedLib[#All],AL$60,FALSE),""),IFERROR(VLOOKUP($W14,FeedLibUser[#All],AL$60,FALSE),"")),AL14),IF(AND(ISNUMBER($AI14),$AJ14<>""),AL14,"")) ->  | AM47: =IF(ISNUMBER($W14),IF($AH14=FALSE,IF($W14<1000,IFERROR(VLOOKUP($W14,FeedLib[#All],AM$60,FALSE),""),IFERROR(VLOOKUP($W14,FeedLibUser[#All],AM$60,FALSE),"")),AM14),IF(AND(ISNUMBER($AI14),$AJ14<>""),AM14,"")) ->  | AN47: =IF(ISNUMBER($W14),IF($AH14=FALSE,IF($W14<1000,IFERROR(VLOOKUP($W14,FeedLib[#All],AN$60,FALSE),""),IFERROR(VLOOKUP($W14,FeedLibUser[#All],AN$60,FALSE),"")),AN14),IF(AND(ISNUMBER($AI14),$AJ14<>""),AN14,"")) ->  | AO47: =IF(ISNUMBER($W14),IF($AH14=FALSE,IF($W14<1000,IFERROR(VLOOKUP($W14,FeedLib[#All],AO$60,FALSE),""),IFERROR(VLOOKUP($W14,FeedLibUser[#All],AO$60,FALSE),"")),AO14),IF(AND(ISNUMBER($AI14),$AJ14<>""),AO14,"")) ->  | AP47: =IF(ISNUMBER($W14),IF($AH14=FALSE,IF($W14<1000,IFERROR(VLOOKUP($W14,FeedLib[#All],AP$60,FALSE),""),IFERROR(VLOOKUP($W14,FeedLibUser[#All],AP$60,FALSE),"")),AP14),IF(AND(ISNUMBER($AI14),$AJ14<>""),AP14,"")) ->  | AQ47: =IF(ISNUMBER($W14),IF($AH14=FALSE,IF($W14<1000,IFERROR(VLOOKUP($W14,FeedLib[#All],AQ$60,FALSE),""),IFERROR(VLOOKUP($W14,FeedLibUser[#All],AQ$60,FALSE),"")),AQ14),IF(AND(ISNUMBER($AI14),$AJ14<>""),AQ14,"")) ->  | AR47: =IF(ISNUMBER($W14),IF($AH14=FALSE,IF($W14<1000,IFERROR(VLOOKUP($W14,FeedLib[#All],AR$60,FALSE),""),IFERROR(VLOOKUP($W14,FeedLibUser[#All],AR$60,FALSE),"")),AR14),IF(AND(ISNUMBER($AI14),$AJ14<>""),AR14,"")) ->  | AS47: =IF(ISNUMBER($W14),IF($AH14=FALSE,IF($W14<1000,IFERROR(VLOOKUP($W14,FeedLib[#All],AS$60,FALSE),""),IFERROR(VLOOKUP($W14,FeedLibUser[#All],AS$60,FALSE),"")),AS14),IF(AND(ISNUMBER($AI14),$AJ14<>""),AS14,"")) ->  | AT47: =IF(ISNUMBER($W14),IF($AH14=FALSE,IF($W14<1000,IFERROR(VLOOKUP($W14,FeedLib[#All],AT$60,FALSE),""),IFERROR(VLOOKUP($W14,FeedLibUser[#All],AT$60,FALSE),"")),AT14),IF(AND(ISNUMBER($AI14),$AJ14<>""),AT14,"")) ->  | AU47: =IF(ISNUMBER($W14),IF($AH14=FALSE,IF($W14<1000,IFERROR(VLOOKUP($W14,FeedLib[#All],AU$60,FALSE),""),IFERROR(VLOOKUP($W14,FeedLibUser[#All],AU$60,FALSE),"")),AU14),IF(AND(ISNUMBER($AI14),$AJ14<>""),AU14,"")) ->  | AV47: =IF(ISNUMBER($W14),IF($AH14=FALSE,IF($W14<1000,IFERROR(VLOOKUP($W14,FeedLib[#All],AV$60,FALSE),""),IFERROR(VLOOKUP($W14,FeedLibUser[#All],AV$60,FALSE),"")),AV14),IF(AND(ISNUMBER($AI14),$AJ14<>""),AV14,"")) ->  | AW47: =IF(ISNUMBER($W14),IF($AH14=FALSE,IF($W14<1000,IFERROR(VLOOKUP($W14,FeedLib[#All],AW$60,FALSE),""),IFERROR(VLOOKUP($W14,FeedLibUser[#All],AW$60,FALSE),"")),AW14),IF(AND(ISNUMBER($AI14),$AJ14<>""),AW14,"")) ->  | AX47: =IF(ISNUMBER($W14),IF($AH14=FALSE,IF($W14<1000,IFERROR(VLOOKUP($W14,FeedLib[#All],AX$60,FALSE),""),IFERROR(VLOOKUP($W14,FeedLibUser[#All],AX$60,FALSE),"")),AX14),IF(AND(ISNUMBER($AI14),$AJ14<>""),AX14,"")) ->  | AY47: =IF(ISNUMBER($W14),IF($AH14=FALSE,IF($W14<1000,IFERROR(VLOOKUP($W14,FeedLib[#All],AY$60,FALSE),"")/IF(parmUnit=1,1,2.2046),IFERROR(VLOOKUP($W14,FeedLibUser[#All],AY$60,FALSE),"")/IF(parmUnit=1,1,2.2046)),AY14),IF(AND(ISNUMBER($AI14),$AJ14<>""),AY14,"")) ->  | AZ47: =IF(ISNUMBER($W14),IF($AH14=FALSE,IF($W14<1000,IFERROR(VLOOKUP($W14,FeedLib[#All],AZ$60,FALSE),"")/IF(parmUnit=1,1,2.2046),IFERROR(VLOOKUP($W14,FeedLibUser[#All],AZ$60,FALSE),"")/IF(parmUnit=1,1,2.2046)),AZ14),IF(AND(ISNUMBER($AI14),$AJ14<>""),AZ14,"")) ->  | BA47: =IF(ISNUMBER($W14),IF($AH14=FALSE,IF($W14<1000,IFERROR(VLOOKUP($W14,FeedLib[#All],BA$60,FALSE),"")/IF(parmUnit=1,1,2.2046),IFERROR(VLOOKUP($W14,FeedLibUser[#All],BA$60,FALSE),"")/IF(parmUnit=1,1,2.2046)),BA14),IF(AND(ISNUMBER($AI14),$AJ14<>""),BA14,"")) ->  | BB47: =IF(ISNUMBER($W14),IF($AH14=FALSE,IF($W14<1000,IFERROR(VLOOKUP($W14,FeedLib[#All],BB$60,FALSE),""),IFERROR(VLOOKUP($W14,FeedLibUser[#All],BB$60,FALSE),"")),BB14),IF(AND(ISNUMBER($AI14),$AJ14<>""),BB14,"")) ->  | BC47: =IF(ISNUMBER($W14),IF($AH14=FALSE,IF($W14<1000,IFERROR(VLOOKUP($W14,FeedLib[#All],BC$60,FALSE),""),IFERROR(VLOOKUP($W14,FeedLibUser[#All],BC$60,FALSE),"")),BC14),IF(AND(ISNUMBER($AI14),$AJ14<>""),BC14,"")) ->  | BD47: =IF(ISNUMBER($W14),IF($AH14=FALSE,IF($W14<1000,IFERROR(VLOOKUP($W14,FeedLib[#All],BD$60,FALSE),""),IFERROR(VLOOKUP($W14,FeedLibUser[#All],BD$60,FALSE),"")),BD14),IF(AND(ISNUMBER($AI14),$AJ14<>""),BD14,"")) ->  | BE47: =IF(ISNUMBER($W14),IF($AH14=FALSE,IF($W14<1000,IFERROR(VLOOKUP($W14,FeedLib[#All],BE$60,FALSE),""),IFERROR(VLOOKUP($W14,FeedLibUser[#All],BE$60,FALSE),"")),BE14),IF(AND(ISNUMBER($AI14),$AJ14<>""),BE14,"")) ->  | BF47: =IF(ISNUMBER($W14),IF($AH14=FALSE,IF($W14<1000,IFERROR(VLOOKUP($W14,FeedLib[#All],BF$60,FALSE),""),IFERROR(VLOOKUP($W14,FeedLibUser[#All],BF$60,FALSE),"")),BF14),IF(AND(ISNUMBER($AI14),$AJ14<>""),BF14,"")) ->  | BG47: =IF(ISNUMBER($W14),IF($AH14=FALSE,IF($W14<1000,IFERROR(VLOOKUP($W14,FeedLib[#All],BG$60,FALSE),""),IFERROR(VLOOKUP($W14,FeedLibUser[#All],BG$60,FALSE),"")),BG14),IF(AND(ISNUMBER($AI14),$AJ14<>""),BG14,"")) ->  | BH47: =IF(ISNUMBER($W14),IF($AH14=FALSE,IF($W14<1000,IFERROR(VLOOKUP($W14,FeedLib[#All],BH$60,FALSE),""),IFERROR(VLOOKUP($W14,FeedLibUser[#All],BH$60,FALSE),"")),BH14),IF(AND(ISNUMBER($AI14),$AJ14<>""),BH14,"")) ->  | BI47: =IF(ISNUMBER($W14),IF($AH14=FALSE,IF($W14<1000,IFERROR(VLOOKUP($W14,FeedLib[#All],BI$60,FALSE),""),IFERROR(VLOOKUP($W14,FeedLibUser[#All],BI$60,FALSE),"")),BI14),IF(AND(ISNUMBER($AI14),$AJ14<>""),BI14,"")) ->  | BJ47: =IF(ISNUMBER($W14),IF($AH14=FALSE,IF($W14<1000,IFERROR(VLOOKUP($W14,FeedLib[#All],BJ$60,FALSE),""),IFERROR(VLOOKUP($W14,FeedLibUser[#All],BJ$60,FALSE),"")),BJ14),IF(AND(ISNUMBER($AI14),$AJ14<>""),BJ14,"")) ->  | BK47: =IF(ISNUMBER($W14),IF($AH14=FALSE,IF($W14<1000,IFERROR(VLOOKUP($W14,FeedLib[#All],BK$60,FALSE),""),IFERROR(VLOOKUP($W14,FeedLibUser[#All],BK$60,FALSE),"")),BK14),IF(AND(ISNUMBER($AI14),$AJ14<>""),BK14,"")) ->  | BL47: =IF(ISNUMBER($W14),IF($AH14=FALSE,IF($W14<1000,IFERROR(VLOOKUP($W14,FeedLib[#All],BL$60,FALSE),""),IFERROR(VLOOKUP($W14,FeedLibUser[#All],BL$60,FALSE),"")),BL14),IF(AND(ISNUMBER($AI14),$AJ14<>""),BL14,"")) ->  | BM47: =IF(ISNUMBER($W14),IF($AH14=FALSE,IF($W14<1000,IFERROR(VLOOKUP($W14,FeedLib[#All],BM$60,FALSE),""),IFERROR(VLOOKUP($W14,FeedLibUser[#All],BM$60,FALSE),"")),BM14),IF(AND(ISNUMBER($AI14),$AJ14<>""),BM14,"")) ->  | BN47: =IF(ISNUMBER($W14),IF($AH14=FALSE,IF($W14<1000,IFERROR(VLOOKUP($W14,FeedLib[#All],BN$60,FALSE),""),IFERROR(VLOOKUP($W14,FeedLibUser[#All],BN$60,FALSE),"")),BN14),IF(AND(ISNUMBER($AI14),$AJ14<>""),BN14,"")) ->  | BO47: =IF(ISNUMBER($W14),IF($AH14=FALSE,IF($W14<1000,IFERROR(VLOOKUP($W14,FeedLib[#All],BO$60,FALSE),""),IFERROR(VLOOKUP($W14,FeedLibUser[#All],BO$60,FALSE),"")),BO14),IF(AND(ISNUMBER($AI14),$AJ14<>""),BO14,"")) ->  | BP47: =IF(ISNUMBER($W14),IF($AH14=FALSE,IF($W14<1000,IFERROR(VLOOKUP($W14,FeedLib[#All],BP$60,FALSE),""),IFERROR(VLOOKUP($W14,FeedLibUser[#All],BP$60,FALSE),"")),BP14),IF(AND(ISNUMBER($AI14),$AJ14<>""),BP14,"")) ->  | BQ47: =IF(ISNUMBER($W14),IF($AH14=FALSE,IF($W14<1000,IFERROR(VLOOKUP($W14,FeedLib[#All],BQ$60,FALSE),""),IFERROR(VLOOKUP($W14,FeedLibUser[#All],BQ$60,FALSE),"")),BQ14),IF(AND(ISNUMBER($AI14),$AJ14<>""),BQ14,"")) ->  | BR47: =IF(ISNUMBER($W14),IF($AH14=FALSE,IF($W14<1000,IFERROR(VLOOKUP($W14,FeedLib[#All],BR$60,FALSE),""),IFERROR(VLOOKUP($W14,FeedLibUser[#All],BR$60,FALSE),"")),BR14),IF(AND(ISNUMBER($AI14),$AJ14<>""),BR14,"")) ->  | BS47: =IF(ISNUMBER($W14),IF($AH14=FALSE,IF($W14<1000,IFERROR(VLOOKUP($W14,FeedLib[#All],BS$60,FALSE),""),IFERROR(VLOOKUP($W14,FeedLibUser[#All],BS$60,FALSE),"")),BS14),IF(AND(ISNUMBER($AI14),$AJ14<>""),BS14,"")) ->  | BT47: =IF(ISNUMBER($W14),IF($AH14=FALSE,IF($W14<1000,IFERROR(VLOOKUP($W14,FeedLib[#All],BT$60,FALSE),""),IFERROR(VLOOKUP($W14,FeedLibUser[#All],BT$60,FALSE),"")),BT14),IF(AND(ISNUMBER($AI14),$AJ14<>""),BT14,"")) ->  | BU47: =IF(ISNUMBER($W14),IF($AH14=FALSE,IF($W14<1000,IFERROR(VLOOKUP($W14,FeedLib[#All],BU$60,FALSE),""),IFERROR(VLOOKUP($W14,FeedLibUser[#All],BU$60,FALSE),"")),BU14),IF(AND(ISNUMBER($AI14),$AJ14<>""),BU14,"")) ->  | BV47: =IF(ISNUMBER($W14),IF($AH14=FALSE,IF($W14<1000,IFERROR(VLOOKUP($W14,FeedLib[#All],BV$60,FALSE),""),IFERROR(VLOOKUP($W14,FeedLibUser[#All],BV$60,FALSE),"")),BV14),IF(AND(ISNUMBER($AI14),$AJ14<>""),BV14,"")) ->  | BW47: =IF(ISNUMBER($W14),IF($AH14=FALSE,IF($W14<1000,IFERROR(VLOOKUP($W14,FeedLib[#All],BW$60,FALSE),""),IFERROR(VLOOKUP($W14,FeedLibUser[#All],BW$60,FALSE),"")),BW14),IF(AND(ISNUMBER($AI14),$AJ14<>""),BW14,"")) ->  | BX47: =IF(ISNUMBER($W14),IF($AH14=FALSE,IF($W14<1000,IFERROR(VLOOKUP($W14,FeedLib[#All],BX$60,FALSE),""),IFERROR(VLOOKUP($W14,FeedLibUser[#All],BX$60,FALSE),"")),BX14),IF(AND(ISNUMBER($AI14),$AJ14<>""),BX14,"")) ->  | BY47: =IF(ISNUMBER($W14),IF($AH14=FALSE,IF($W14<1000,IFERROR(VLOOKUP($W14,FeedLib[#All],BY$60,FALSE),""),IFERROR(VLOOKUP($W14,FeedLibUser[#All],BY$60,FALSE),"")),BY14),IF(AND(ISNUMBER($AI14),$AJ14<>""),BY14,"")) ->  | BZ47: =IF(ISNUMBER($W14),IF($AH14=FALSE,IF($W14<1000,IFERROR(VLOOKUP($W14,FeedLib[#All],BZ$60,FALSE),""),IFERROR(VLOOKUP($W14,FeedLibUser[#All],BZ$60,FALSE),"")),BZ14),IF(AND(ISNUMBER($AI14),$AJ14<>""),BZ14,"")) ->  | CA47: =IF(ISNUMBER($W14),IF($AH14=FALSE,IF($W14<1000,IFERROR(VLOOKUP($W14,FeedLib[#All],CA$60,FALSE),""),IFERROR(VLOOKUP($W14,FeedLibUser[#All],CA$60,FALSE),"")),CA14),IF(AND(ISNUMBER($AI14),$AJ14<>""),CA14,"")) ->  | CB47: =IF(ISNUMBER($W14),IF($AH14=FALSE,IF($W14<1000,IFERROR(VLOOKUP($W14,FeedLib[#All],CB$60,FALSE),""),IFERROR(VLOOKUP($W14,FeedLibUser[#All],CB$60,FALSE),"")),CB14),IF(AND(ISNUMBER($AI14),$AJ14<>""),CB14,"")) ->  | CC47: =IF(ISNUMBER($W14),IF($AH14=FALSE,IF($W14<1000,IFERROR(VLOOKUP($W14,FeedLib[#All],CC$60,FALSE),""),IFERROR(VLOOKUP($W14,FeedLibUser[#All],CC$60,FALSE),"")),CC14),IF(AND(ISNUMBER($AI14),$AJ14<>""),CC14,"")) ->  | CD47: =IF(ISNUMBER($W14),IF($AH14=FALSE,IF($W14<1000,IFERROR(VLOOKUP($W14,FeedLib[#All],CD$60,FALSE),""),IFERROR(VLOOKUP($W14,FeedLibUser[#All],CD$60,FALSE),"")),CD14),IF(AND(ISNUMBER($AI14),$AJ14<>""),CD14,"")) ->  | CE47: =IF(ISNUMBER($W14),IF($AH14=FALSE,IF($W14<1000,IFERROR(VLOOKUP($W14,FeedLib[#All],CE$60,FALSE),""),IFERROR(VLOOKUP($W14,FeedLibUser[#All],CE$60,FALSE),"")),CE14),IF(AND(ISNUMBER($AI14),$AJ14<>""),CE14,"")) ->  | CF47: =IF(ISNUMBER($W14),IF($AH14=FALSE,IF($W14<1000,IFERROR(VLOOKUP($W14,FeedLib[#All],CF$60,FALSE),""),IFERROR(VLOOKUP($W14,FeedLibUser[#All],CF$60,FALSE),"")),CF14),IF(AND(ISNUMBER($AI14),$AJ14<>""),CF14,"")) ->  | CG47: =IF(ISNUMBER($W14),IF($AH14=FALSE,IF($W14<1000,IFERROR(VLOOKUP($W14,FeedLib[#All],CG$60,FALSE),""),IFERROR(VLOOKUP($W14,FeedLibUser[#All],CG$60,FALSE),"")),CG14),IF(AND(ISNUMBER($AI14),$AJ14<>""),CG14,"")) ->  | CH47: =IF(ISNUMBER($W14),IF($AH14=FALSE,IF($W14<1000,IFERROR(VLOOKUP($W14,FeedLib[#All],CH$60,FALSE),""),IFERROR(VLOOKUP($W14,FeedLibUser[#All],CH$60,FALSE),"")),CH14),IF(AND(ISNUMBER($AI14),$AJ14<>""),CH14,"")) ->  | CI47: =IF(ISNUMBER($W14),IF($AH14=FALSE,IF($W14<1000,IFERROR(VLOOKUP($W14,FeedLib[#All],CI$60,FALSE),""),IFERROR(VLOOKUP($W14,FeedLibUser[#All],CI$60,FALSE),"")),CI14),IF(AND(ISNUMBER($AI14),$AJ14<>""),CI14,"")) ->  | CJ47: =IF(ISNUMBER($W14),IF($AH14=FALSE,IF($W14<1000,IFERROR(VLOOKUP($W14,FeedLib[#All],CJ$60,FALSE),""),IFERROR(VLOOKUP($W14,FeedLibUser[#All],CJ$60,FALSE),"")),CJ14),IF(AND(ISNUMBER($AI14),$AJ14<>""),CJ14,"")) ->  | CK47: =IF(ISNUMBER($W14),IF($AH14=FALSE,IF($W14<1000,IFERROR(VLOOKUP($W14,FeedLib[#All],CK$60,FALSE),""),IFERROR(VLOOKUP($W14,FeedLibUser[#All],CK$60,FALSE),"")),CK14),IF(AND(ISNUMBER($AI14),$AJ14<>""),CK14,"")) ->  | CL47: =IF(ISNUMBER($W14),IF($AH14=FALSE,IF($W14<1000,IFERROR(VLOOKUP($W14,FeedLib[#All],CL$60,FALSE),""),IFERROR(VLOOKUP($W14,FeedLibUser[#All],CL$60,FALSE),"")),CL14),IF(AND(ISNUMBER($AI14),$AJ14<>""),CL14,"")) ->  | CM47: =IF(ISNUMBER($W14),IF($AH14=FALSE,IF($W14<1000,IFERROR(VLOOKUP($W14,FeedLib[#All],CM$60,FALSE),""),IFERROR(VLOOKUP($W14,FeedLibUser[#All],CM$60,FALSE),"")),CM14),IF(AND(ISNUMBER($AI14),$AJ14<>""),CM14,"")) -> 
J48: User input | AK48: =IF(ISNUMBER($W15),IF($AH15=FALSE,IF($W15<1000,IFERROR(VLOOKUP($W15,FeedLib[#All],AK$60,FALSE),"")*(IF(parmUnit=1,1,2000/2204.6)),IFERROR(VLOOKUP($W15,FeedLibUser[#All],AK$60,FALSE),"")*(IF(parmUnit=1,1,2000/2204.6))),AK15),IF(AND(ISNUMBER($AI15),$AJ15<>""),AK15,"")) ->  | AL48: =IF(ISNUMBER($W15),IF($AH15=FALSE,IF($W15<1000,IFERROR(VLOOKUP($W15,FeedLib[#All],AL$60,FALSE),""),IFERROR(VLOOKUP($W15,FeedLibUser[#All],AL$60,FALSE),"")),AL15),IF(AND(ISNUMBER($AI15),$AJ15<>""),AL15,"")) ->  | AM48: =IF(ISNUMBER($W15),IF($AH15=FALSE,IF($W15<1000,IFERROR(VLOOKUP($W15,FeedLib[#All],AM$60,FALSE),""),IFERROR(VLOOKUP($W15,FeedLibUser[#All],AM$60,FALSE),"")),AM15),IF(AND(ISNUMBER($AI15),$AJ15<>""),AM15,"")) ->  | AN48: =IF(ISNUMBER($W15),IF($AH15=FALSE,IF($W15<1000,IFERROR(VLOOKUP($W15,FeedLib[#All],AN$60,FALSE),""),IFERROR(VLOOKUP($W15,FeedLibUser[#All],AN$60,FALSE),"")),AN15),IF(AND(ISNUMBER($AI15),$AJ15<>""),AN15,"")) ->  | AO48: =IF(ISNUMBER($W15),IF($AH15=FALSE,IF($W15<1000,IFERROR(VLOOKUP($W15,FeedLib[#All],AO$60,FALSE),""),IFERROR(VLOOKUP($W15,FeedLibUser[#All],AO$60,FALSE),"")),AO15),IF(AND(ISNUMBER($AI15),$AJ15<>""),AO15,"")) ->  | AP48: =IF(ISNUMBER($W15),IF($AH15=FALSE,IF($W15<1000,IFERROR(VLOOKUP($W15,FeedLib[#All],AP$60,FALSE),""),IFERROR(VLOOKUP($W15,FeedLibUser[#All],AP$60,FALSE),"")),AP15),IF(AND(ISNUMBER($AI15),$AJ15<>""),AP15,"")) ->  | AQ48: =IF(ISNUMBER($W15),IF($AH15=FALSE,IF($W15<1000,IFERROR(VLOOKUP($W15,FeedLib[#All],AQ$60,FALSE),""),IFERROR(VLOOKUP($W15,FeedLibUser[#All],AQ$60,FALSE),"")),AQ15),IF(AND(ISNUMBER($AI15),$AJ15<>""),AQ15,"")) ->  | AR48: =IF(ISNUMBER($W15),IF($AH15=FALSE,IF($W15<1000,IFERROR(VLOOKUP($W15,FeedLib[#All],AR$60,FALSE),""),IFERROR(VLOOKUP($W15,FeedLibUser[#All],AR$60,FALSE),"")),AR15),IF(AND(ISNUMBER($AI15),$AJ15<>""),AR15,"")) ->  | AS48: =IF(ISNUMBER($W15),IF($AH15=FALSE,IF($W15<1000,IFERROR(VLOOKUP($W15,FeedLib[#All],AS$60,FALSE),""),IFERROR(VLOOKUP($W15,FeedLibUser[#All],AS$60,FALSE),"")),AS15),IF(AND(ISNUMBER($AI15),$AJ15<>""),AS15,"")) ->  | AT48: =IF(ISNUMBER($W15),IF($AH15=FALSE,IF($W15<1000,IFERROR(VLOOKUP($W15,FeedLib[#All],AT$60,FALSE),""),IFERROR(VLOOKUP($W15,FeedLibUser[#All],AT$60,FALSE),"")),AT15),IF(AND(ISNUMBER($AI15),$AJ15<>""),AT15,"")) ->  | AU48: =IF(ISNUMBER($W15),IF($AH15=FALSE,IF($W15<1000,IFERROR(VLOOKUP($W15,FeedLib[#All],AU$60,FALSE),""),IFERROR(VLOOKUP($W15,FeedLibUser[#All],AU$60,FALSE),"")),AU15),IF(AND(ISNUMBER($AI15),$AJ15<>""),AU15,"")) ->  | AV48: =IF(ISNUMBER($W15),IF($AH15=FALSE,IF($W15<1000,IFERROR(VLOOKUP($W15,FeedLib[#All],AV$60,FALSE),""),IFERROR(VLOOKUP($W15,FeedLibUser[#All],AV$60,FALSE),"")),AV15),IF(AND(ISNUMBER($AI15),$AJ15<>""),AV15,"")) ->  | AW48: =IF(ISNUMBER($W15),IF($AH15=FALSE,IF($W15<1000,IFERROR(VLOOKUP($W15,FeedLib[#All],AW$60,FALSE),""),IFERROR(VLOOKUP($W15,FeedLibUser[#All],AW$60,FALSE),"")),AW15),IF(AND(ISNUMBER($AI15),$AJ15<>""),AW15,"")) ->  | AX48: =IF(ISNUMBER($W15),IF($AH15=FALSE,IF($W15<1000,IFERROR(VLOOKUP($W15,FeedLib[#All],AX$60,FALSE),""),IFERROR(VLOOKUP($W15,FeedLibUser[#All],AX$60,FALSE),"")),AX15),IF(AND(ISNUMBER($AI15),$AJ15<>""),AX15,"")) ->  | AY48: =IF(ISNUMBER($W15),IF($AH15=FALSE,IF($W15<1000,IFERROR(VLOOKUP($W15,FeedLib[#All],AY$60,FALSE),"")/IF(parmUnit=1,1,2.2046),IFERROR(VLOOKUP($W15,FeedLibUser[#All],AY$60,FALSE),"")/IF(parmUnit=1,1,2.2046)),AY15),IF(AND(ISNUMBER($AI15),$AJ15<>""),AY15,"")) ->  | AZ48: =IF(ISNUMBER($W15),IF($AH15=FALSE,IF($W15<1000,IFERROR(VLOOKUP($W15,FeedLib[#All],AZ$60,FALSE),"")/IF(parmUnit=1,1,2.2046),IFERROR(VLOOKUP($W15,FeedLibUser[#All],AZ$60,FALSE),"")/IF(parmUnit=1,1,2.2046)),AZ15),IF(AND(ISNUMBER($AI15),$AJ15<>""),AZ15,"")) ->  | BA48: =IF(ISNUMBER($W15),IF($AH15=FALSE,IF($W15<1000,IFERROR(VLOOKUP($W15,FeedLib[#All],BA$60,FALSE),"")/IF(parmUnit=1,1,2.2046),IFERROR(VLOOKUP($W15,FeedLibUser[#All],BA$60,FALSE),"")/IF(parmUnit=1,1,2.2046)),BA15),IF(AND(ISNUMBER($AI15),$AJ15<>""),BA15,"")) ->  | BB48: =IF(ISNUMBER($W15),IF($AH15=FALSE,IF($W15<1000,IFERROR(VLOOKUP($W15,FeedLib[#All],BB$60,FALSE),""),IFERROR(VLOOKUP($W15,FeedLibUser[#All],BB$60,FALSE),"")),BB15),IF(AND(ISNUMBER($AI15),$AJ15<>""),BB15,"")) ->  | BC48: =IF(ISNUMBER($W15),IF($AH15=FALSE,IF($W15<1000,IFERROR(VLOOKUP($W15,FeedLib[#All],BC$60,FALSE),""),IFERROR(VLOOKUP($W15,FeedLibUser[#All],BC$60,FALSE),"")),BC15),IF(AND(ISNUMBER($AI15),$AJ15<>""),BC15,"")) ->  | BD48: =IF(ISNUMBER($W15),IF($AH15=FALSE,IF($W15<1000,IFERROR(VLOOKUP($W15,FeedLib[#All],BD$60,FALSE),""),IFERROR(VLOOKUP($W15,FeedLibUser[#All],BD$60,FALSE),"")),BD15),IF(AND(ISNUMBER($AI15),$AJ15<>""),BD15,"")) ->  | BE48: =IF(ISNUMBER($W15),IF($AH15=FALSE,IF($W15<1000,IFERROR(VLOOKUP($W15,FeedLib[#All],BE$60,FALSE),""),IFERROR(VLOOKUP($W15,FeedLibUser[#All],BE$60,FALSE),"")),BE15),IF(AND(ISNUMBER($AI15),$AJ15<>""),BE15,"")) ->  | BF48: =IF(ISNUMBER($W15),IF($AH15=FALSE,IF($W15<1000,IFERROR(VLOOKUP($W15,FeedLib[#All],BF$60,FALSE),""),IFERROR(VLOOKUP($W15,FeedLibUser[#All],BF$60,FALSE),"")),BF15),IF(AND(ISNUMBER($AI15),$AJ15<>""),BF15,"")) ->  | BG48: =IF(ISNUMBER($W15),IF($AH15=FALSE,IF($W15<1000,IFERROR(VLOOKUP($W15,FeedLib[#All],BG$60,FALSE),""),IFERROR(VLOOKUP($W15,FeedLibUser[#All],BG$60,FALSE),"")),BG15),IF(AND(ISNUMBER($AI15),$AJ15<>""),BG15,"")) ->  | BH48: =IF(ISNUMBER($W15),IF($AH15=FALSE,IF($W15<1000,IFERROR(VLOOKUP($W15,FeedLib[#All],BH$60,FALSE),""),IFERROR(VLOOKUP($W15,FeedLibUser[#All],BH$60,FALSE),"")),BH15),IF(AND(ISNUMBER($AI15),$AJ15<>""),BH15,"")) ->  | BI48: =IF(ISNUMBER($W15),IF($AH15=FALSE,IF($W15<1000,IFERROR(VLOOKUP($W15,FeedLib[#All],BI$60,FALSE),""),IFERROR(VLOOKUP($W15,FeedLibUser[#All],BI$60,FALSE),"")),BI15),IF(AND(ISNUMBER($AI15),$AJ15<>""),BI15,"")) ->  | BJ48: =IF(ISNUMBER($W15),IF($AH15=FALSE,IF($W15<1000,IFERROR(VLOOKUP($W15,FeedLib[#All],BJ$60,FALSE),""),IFERROR(VLOOKUP($W15,FeedLibUser[#All],BJ$60,FALSE),"")),BJ15),IF(AND(ISNUMBER($AI15),$AJ15<>""),BJ15,"")) ->  | BK48: =IF(ISNUMBER($W15),IF($AH15=FALSE,IF($W15<1000,IFERROR(VLOOKUP($W15,FeedLib[#All],BK$60,FALSE),""),IFERROR(VLOOKUP($W15,FeedLibUser[#All],BK$60,FALSE),"")),BK15),IF(AND(ISNUMBER($AI15),$AJ15<>""),BK15,"")) ->  | BL48: =IF(ISNUMBER($W15),IF($AH15=FALSE,IF($W15<1000,IFERROR(VLOOKUP($W15,FeedLib[#All],BL$60,FALSE),""),IFERROR(VLOOKUP($W15,FeedLibUser[#All],BL$60,FALSE),"")),BL15),IF(AND(ISNUMBER($AI15),$AJ15<>""),BL15,"")) ->  | BM48: =IF(ISNUMBER($W15),IF($AH15=FALSE,IF($W15<1000,IFERROR(VLOOKUP($W15,FeedLib[#All],BM$60,FALSE),""),IFERROR(VLOOKUP($W15,FeedLibUser[#All],BM$60,FALSE),"")),BM15),IF(AND(ISNUMBER($AI15),$AJ15<>""),BM15,"")) ->  | BN48: =IF(ISNUMBER($W15),IF($AH15=FALSE,IF($W15<1000,IFERROR(VLOOKUP($W15,FeedLib[#All],BN$60,FALSE),""),IFERROR(VLOOKUP($W15,FeedLibUser[#All],BN$60,FALSE),"")),BN15),IF(AND(ISNUMBER($AI15),$AJ15<>""),BN15,"")) ->  | BO48: =IF(ISNUMBER($W15),IF($AH15=FALSE,IF($W15<1000,IFERROR(VLOOKUP($W15,FeedLib[#All],BO$60,FALSE),""),IFERROR(VLOOKUP($W15,FeedLibUser[#All],BO$60,FALSE),"")),BO15),IF(AND(ISNUMBER($AI15),$AJ15<>""),BO15,"")) ->  | BP48: =IF(ISNUMBER($W15),IF($AH15=FALSE,IF($W15<1000,IFERROR(VLOOKUP($W15,FeedLib[#All],BP$60,FALSE),""),IFERROR(VLOOKUP($W15,FeedLibUser[#All],BP$60,FALSE),"")),BP15),IF(AND(ISNUMBER($AI15),$AJ15<>""),BP15,"")) ->  | BQ48: =IF(ISNUMBER($W15),IF($AH15=FALSE,IF($W15<1000,IFERROR(VLOOKUP($W15,FeedLib[#All],BQ$60,FALSE),""),IFERROR(VLOOKUP($W15,FeedLibUser[#All],BQ$60,FALSE),"")),BQ15),IF(AND(ISNUMBER($AI15),$AJ15<>""),BQ15,"")) ->  | BR48: =IF(ISNUMBER($W15),IF($AH15=FALSE,IF($W15<1000,IFERROR(VLOOKUP($W15,FeedLib[#All],BR$60,FALSE),""),IFERROR(VLOOKUP($W15,FeedLibUser[#All],BR$60,FALSE),"")),BR15),IF(AND(ISNUMBER($AI15),$AJ15<>""),BR15,"")) ->  | BS48: =IF(ISNUMBER($W15),IF($AH15=FALSE,IF($W15<1000,IFERROR(VLOOKUP($W15,FeedLib[#All],BS$60,FALSE),""),IFERROR(VLOOKUP($W15,FeedLibUser[#All],BS$60,FALSE),"")),BS15),IF(AND(ISNUMBER($AI15),$AJ15<>""),BS15,"")) ->  | BT48: =IF(ISNUMBER($W15),IF($AH15=FALSE,IF($W15<1000,IFERROR(VLOOKUP($W15,FeedLib[#All],BT$60,FALSE),""),IFERROR(VLOOKUP($W15,FeedLibUser[#All],BT$60,FALSE),"")),BT15),IF(AND(ISNUMBER($AI15),$AJ15<>""),BT15,"")) ->  | BU48: =IF(ISNUMBER($W15),IF($AH15=FALSE,IF($W15<1000,IFERROR(VLOOKUP($W15,FeedLib[#All],BU$60,FALSE),""),IFERROR(VLOOKUP($W15,FeedLibUser[#All],BU$60,FALSE),"")),BU15),IF(AND(ISNUMBER($AI15),$AJ15<>""),BU15,"")) ->  | BV48: =IF(ISNUMBER($W15),IF($AH15=FALSE,IF($W15<1000,IFERROR(VLOOKUP($W15,FeedLib[#All],BV$60,FALSE),""),IFERROR(VLOOKUP($W15,FeedLibUser[#All],BV$60,FALSE),"")),BV15),IF(AND(ISNUMBER($AI15),$AJ15<>""),BV15,"")) ->  | BW48: =IF(ISNUMBER($W15),IF($AH15=FALSE,IF($W15<1000,IFERROR(VLOOKUP($W15,FeedLib[#All],BW$60,FALSE),""),IFERROR(VLOOKUP($W15,FeedLibUser[#All],BW$60,FALSE),"")),BW15),IF(AND(ISNUMBER($AI15),$AJ15<>""),BW15,"")) ->  | BX48: =IF(ISNUMBER($W15),IF($AH15=FALSE,IF($W15<1000,IFERROR(VLOOKUP($W15,FeedLib[#All],BX$60,FALSE),""),IFERROR(VLOOKUP($W15,FeedLibUser[#All],BX$60,FALSE),"")),BX15),IF(AND(ISNUMBER($AI15),$AJ15<>""),BX15,"")) ->  | BY48: =IF(ISNUMBER($W15),IF($AH15=FALSE,IF($W15<1000,IFERROR(VLOOKUP($W15,FeedLib[#All],BY$60,FALSE),""),IFERROR(VLOOKUP($W15,FeedLibUser[#All],BY$60,FALSE),"")),BY15),IF(AND(ISNUMBER($AI15),$AJ15<>""),BY15,"")) ->  | BZ48: =IF(ISNUMBER($W15),IF($AH15=FALSE,IF($W15<1000,IFERROR(VLOOKUP($W15,FeedLib[#All],BZ$60,FALSE),""),IFERROR(VLOOKUP($W15,FeedLibUser[#All],BZ$60,FALSE),"")),BZ15),IF(AND(ISNUMBER($AI15),$AJ15<>""),BZ15,"")) ->  | CA48: =IF(ISNUMBER($W15),IF($AH15=FALSE,IF($W15<1000,IFERROR(VLOOKUP($W15,FeedLib[#All],CA$60,FALSE),""),IFERROR(VLOOKUP($W15,FeedLibUser[#All],CA$60,FALSE),"")),CA15),IF(AND(ISNUMBER($AI15),$AJ15<>""),CA15,"")) ->  | CB48: =IF(ISNUMBER($W15),IF($AH15=FALSE,IF($W15<1000,IFERROR(VLOOKUP($W15,FeedLib[#All],CB$60,FALSE),""),IFERROR(VLOOKUP($W15,FeedLibUser[#All],CB$60,FALSE),"")),CB15),IF(AND(ISNUMBER($AI15),$AJ15<>""),CB15,"")) ->  | CC48: =IF(ISNUMBER($W15),IF($AH15=FALSE,IF($W15<1000,IFERROR(VLOOKUP($W15,FeedLib[#All],CC$60,FALSE),""),IFERROR(VLOOKUP($W15,FeedLibUser[#All],CC$60,FALSE),"")),CC15),IF(AND(ISNUMBER($AI15),$AJ15<>""),CC15,"")) ->  | CD48: =IF(ISNUMBER($W15),IF($AH15=FALSE,IF($W15<1000,IFERROR(VLOOKUP($W15,FeedLib[#All],CD$60,FALSE),""),IFERROR(VLOOKUP($W15,FeedLibUser[#All],CD$60,FALSE),"")),CD15),IF(AND(ISNUMBER($AI15),$AJ15<>""),CD15,"")) ->  | CE48: =IF(ISNUMBER($W15),IF($AH15=FALSE,IF($W15<1000,IFERROR(VLOOKUP($W15,FeedLib[#All],CE$60,FALSE),""),IFERROR(VLOOKUP($W15,FeedLibUser[#All],CE$60,FALSE),"")),CE15),IF(AND(ISNUMBER($AI15),$AJ15<>""),CE15,"")) ->  | CF48: =IF(ISNUMBER($W15),IF($AH15=FALSE,IF($W15<1000,IFERROR(VLOOKUP($W15,FeedLib[#All],CF$60,FALSE),""),IFERROR(VLOOKUP($W15,FeedLibUser[#All],CF$60,FALSE),"")),CF15),IF(AND(ISNUMBER($AI15),$AJ15<>""),CF15,"")) ->  | CG48: =IF(ISNUMBER($W15),IF($AH15=FALSE,IF($W15<1000,IFERROR(VLOOKUP($W15,FeedLib[#All],CG$60,FALSE),""),IFERROR(VLOOKUP($W15,FeedLibUser[#All],CG$60,FALSE),"")),CG15),IF(AND(ISNUMBER($AI15),$AJ15<>""),CG15,"")) ->  | CH48: =IF(ISNUMBER($W15),IF($AH15=FALSE,IF($W15<1000,IFERROR(VLOOKUP($W15,FeedLib[#All],CH$60,FALSE),""),IFERROR(VLOOKUP($W15,FeedLibUser[#All],CH$60,FALSE),"")),CH15),IF(AND(ISNUMBER($AI15),$AJ15<>""),CH15,"")) ->  | CI48: =IF(ISNUMBER($W15),IF($AH15=FALSE,IF($W15<1000,IFERROR(VLOOKUP($W15,FeedLib[#All],CI$60,FALSE),""),IFERROR(VLOOKUP($W15,FeedLibUser[#All],CI$60,FALSE),"")),CI15),IF(AND(ISNUMBER($AI15),$AJ15<>""),CI15,"")) ->  | CJ48: =IF(ISNUMBER($W15),IF($AH15=FALSE,IF($W15<1000,IFERROR(VLOOKUP($W15,FeedLib[#All],CJ$60,FALSE),""),IFERROR(VLOOKUP($W15,FeedLibUser[#All],CJ$60,FALSE),"")),CJ15),IF(AND(ISNUMBER($AI15),$AJ15<>""),CJ15,"")) ->  | CK48: =IF(ISNUMBER($W15),IF($AH15=FALSE,IF($W15<1000,IFERROR(VLOOKUP($W15,FeedLib[#All],CK$60,FALSE),""),IFERROR(VLOOKUP($W15,FeedLibUser[#All],CK$60,FALSE),"")),CK15),IF(AND(ISNUMBER($AI15),$AJ15<>""),CK15,"")) ->  | CL48: =IF(ISNUMBER($W15),IF($AH15=FALSE,IF($W15<1000,IFERROR(VLOOKUP($W15,FeedLib[#All],CL$60,FALSE),""),IFERROR(VLOOKUP($W15,FeedLibUser[#All],CL$60,FALSE),"")),CL15),IF(AND(ISNUMBER($AI15),$AJ15<>""),CL15,"")) ->  | CM48: =IF(ISNUMBER($W15),IF($AH15=FALSE,IF($W15<1000,IFERROR(VLOOKUP($W15,FeedLib[#All],CM$60,FALSE),""),IFERROR(VLOOKUP($W15,FeedLibUser[#All],CM$60,FALSE),"")),CM15),IF(AND(ISNUMBER($AI15),$AJ15<>""),CM15,"")) -> 
J49: Current | L49: =IF(L48<>"",L48,IF(AND($F$21>=1,$F$21<=3),CHOOSE($F$21,L45,L46,L47),L45)) -> 1 | M49: 1.1 | N49: 82.6725 | O49: 17.6368 | P49: 4 | Q49: 3.8 | R49: 8.3 | S49: 0.585 | AK49: =IF(ISNUMBER($W16),IF($AH16=FALSE,IF($W16<1000,IFERROR(VLOOKUP($W16,FeedLib[#All],AK$60,FALSE),"")*(IF(parmUnit=1,1,2000/2204.6)),IFERROR(VLOOKUP($W16,FeedLibUser[#All],AK$60,FALSE),"")*(IF(parmUnit=1,1,2000/2204.6))),AK16),IF(AND(ISNUMBER($AI16),$AJ16<>""),AK16,"")) ->  | AL49: =IF(ISNUMBER($W16),IF($AH16=FALSE,IF($W16<1000,IFERROR(VLOOKUP($W16,FeedLib[#All],AL$60,FALSE),""),IFERROR(VLOOKUP($W16,FeedLibUser[#All],AL$60,FALSE),"")),AL16),IF(AND(ISNUMBER($AI16),$AJ16<>""),AL16,"")) ->  | AM49: =IF(ISNUMBER($W16),IF($AH16=FALSE,IF($W16<1000,IFERROR(VLOOKUP($W16,FeedLib[#All],AM$60,FALSE),""),IFERROR(VLOOKUP($W16,FeedLibUser[#All],AM$60,FALSE),"")),AM16),IF(AND(ISNUMBER($AI16),$AJ16<>""),AM16,"")) ->  | AN49: =IF(ISNUMBER($W16),IF($AH16=FALSE,IF($W16<1000,IFERROR(VLOOKUP($W16,FeedLib[#All],AN$60,FALSE),""),IFERROR(VLOOKUP($W16,FeedLibUser[#All],AN$60,FALSE),"")),AN16),IF(AND(ISNUMBER($AI16),$AJ16<>""),AN16,"")) ->  | AO49: =IF(ISNUMBER($W16),IF($AH16=FALSE,IF($W16<1000,IFERROR(VLOOKUP($W16,FeedLib[#All],AO$60,FALSE),""),IFERROR(VLOOKUP($W16,FeedLibUser[#All],AO$60,FALSE),"")),AO16),IF(AND(ISNUMBER($AI16),$AJ16<>""),AO16,"")) ->  | AP49: =IF(ISNUMBER($W16),IF($AH16=FALSE,IF($W16<1000,IFERROR(VLOOKUP($W16,FeedLib[#All],AP$60,FALSE),""),IFERROR(VLOOKUP($W16,FeedLibUser[#All],AP$60,FALSE),"")),AP16),IF(AND(ISNUMBER($AI16),$AJ16<>""),AP16,"")) ->  | AQ49: =IF(ISNUMBER($W16),IF($AH16=FALSE,IF($W16<1000,IFERROR(VLOOKUP($W16,FeedLib[#All],AQ$60,FALSE),""),IFERROR(VLOOKUP($W16,FeedLibUser[#All],AQ$60,FALSE),"")),AQ16),IF(AND(ISNUMBER($AI16),$AJ16<>""),AQ16,"")) ->  | AR49: =IF(ISNUMBER($W16),IF($AH16=FALSE,IF($W16<1000,IFERROR(VLOOKUP($W16,FeedLib[#All],AR$60,FALSE),""),IFERROR(VLOOKUP($W16,FeedLibUser[#All],AR$60,FALSE),"")),AR16),IF(AND(ISNUMBER($AI16),$AJ16<>""),AR16,"")) ->  | AS49: =IF(ISNUMBER($W16),IF($AH16=FALSE,IF($W16<1000,IFERROR(VLOOKUP($W16,FeedLib[#All],AS$60,FALSE),""),IFERROR(VLOOKUP($W16,FeedLibUser[#All],AS$60,FALSE),"")),AS16),IF(AND(ISNUMBER($AI16),$AJ16<>""),AS16,"")) ->  | AT49: =IF(ISNUMBER($W16),IF($AH16=FALSE,IF($W16<1000,IFERROR(VLOOKUP($W16,FeedLib[#All],AT$60,FALSE),""),IFERROR(VLOOKUP($W16,FeedLibUser[#All],AT$60,FALSE),"")),AT16),IF(AND(ISNUMBER($AI16),$AJ16<>""),AT16,"")) ->  | AU49: =IF(ISNUMBER($W16),IF($AH16=FALSE,IF($W16<1000,IFERROR(VLOOKUP($W16,FeedLib[#All],AU$60,FALSE),""),IFERROR(VLOOKUP($W16,FeedLibUser[#All],AU$60,FALSE),"")),AU16),IF(AND(ISNUMBER($AI16),$AJ16<>""),AU16,"")) ->  | AV49: =IF(ISNUMBER($W16),IF($AH16=FALSE,IF($W16<1000,IFERROR(VLOOKUP($W16,FeedLib[#All],AV$60,FALSE),""),IFERROR(VLOOKUP($W16,FeedLibUser[#All],AV$60,FALSE),"")),AV16),IF(AND(ISNUMBER($AI16),$AJ16<>""),AV16,"")) ->  | AW49: =IF(ISNUMBER($W16),IF($AH16=FALSE,IF($W16<1000,IFERROR(VLOOKUP($W16,FeedLib[#All],AW$60,FALSE),""),IFERROR(VLOOKUP($W16,FeedLibUser[#All],AW$60,FALSE),"")),AW16),IF(AND(ISNUMBER($AI16),$AJ16<>""),AW16,"")) ->  | AX49: =IF(ISNUMBER($W16),IF($AH16=FALSE,IF($W16<1000,IFERROR(VLOOKUP($W16,FeedLib[#All],AX$60,FALSE),""),IFERROR(VLOOKUP($W16,FeedLibUser[#All],AX$60,FALSE),"")),AX16),IF(AND(ISNUMBER($AI16),$AJ16<>""),AX16,"")) ->  | AY49: =IF(ISNUMBER($W16),IF($AH16=FALSE,IF($W16<1000,IFERROR(VLOOKUP($W16,FeedLib[#All],AY$60,FALSE),"")/IF(parmUnit=1,1,2.2046),IFERROR(VLOOKUP($W16,FeedLibUser[#All],AY$60,FALSE),"")/IF(parmUnit=1,1,2.2046)),AY16),IF(AND(ISNUMBER($AI16),$AJ16<>""),AY16,"")) ->  | AZ49: =IF(ISNUMBER($W16),IF($AH16=FALSE,IF($W16<1000,IFERROR(VLOOKUP($W16,FeedLib[#All],AZ$60,FALSE),"")/IF(parmUnit=1,1,2.2046),IFERROR(VLOOKUP($W16,FeedLibUser[#All],AZ$60,FALSE),"")/IF(parmUnit=1,1,2.2046)),AZ16),IF(AND(ISNUMBER($AI16),$AJ16<>""),AZ16,"")) ->  | BA49: =IF(ISNUMBER($W16),IF($AH16=FALSE,IF($W16<1000,IFERROR(VLOOKUP($W16,FeedLib[#All],BA$60,FALSE),"")/IF(parmUnit=1,1,2.2046),IFERROR(VLOOKUP($W16,FeedLibUser[#All],BA$60,FALSE),"")/IF(parmUnit=1,1,2.2046)),BA16),IF(AND(ISNUMBER($AI16),$AJ16<>""),BA16,"")) ->  | BB49: =IF(ISNUMBER($W16),IF($AH16=FALSE,IF($W16<1000,IFERROR(VLOOKUP($W16,FeedLib[#All],BB$60,FALSE),""),IFERROR(VLOOKUP($W16,FeedLibUser[#All],BB$60,FALSE),"")),BB16),IF(AND(ISNUMBER($AI16),$AJ16<>""),BB16,"")) ->  | BC49: =IF(ISNUMBER($W16),IF($AH16=FALSE,IF($W16<1000,IFERROR(VLOOKUP($W16,FeedLib[#All],BC$60,FALSE),""),IFERROR(VLOOKUP($W16,FeedLibUser[#All],BC$60,FALSE),"")),BC16),IF(AND(ISNUMBER($AI16),$AJ16<>""),BC16,"")) ->  | BD49: =IF(ISNUMBER($W16),IF($AH16=FALSE,IF($W16<1000,IFERROR(VLOOKUP($W16,FeedLib[#All],BD$60,FALSE),""),IFERROR(VLOOKUP($W16,FeedLibUser[#All],BD$60,FALSE),"")),BD16),IF(AND(ISNUMBER($AI16),$AJ16<>""),BD16,"")) ->  | BE49: =IF(ISNUMBER($W16),IF($AH16=FALSE,IF($W16<1000,IFERROR(VLOOKUP($W16,FeedLib[#All],BE$60,FALSE),""),IFERROR(VLOOKUP($W16,FeedLibUser[#All],BE$60,FALSE),"")),BE16),IF(AND(ISNUMBER($AI16),$AJ16<>""),BE16,"")) ->  | BF49: =IF(ISNUMBER($W16),IF($AH16=FALSE,IF($W16<1000,IFERROR(VLOOKUP($W16,FeedLib[#All],BF$60,FALSE),""),IFERROR(VLOOKUP($W16,FeedLibUser[#All],BF$60,FALSE),"")),BF16),IF(AND(ISNUMBER($AI16),$AJ16<>""),BF16,"")) ->  | BG49: =IF(ISNUMBER($W16),IF($AH16=FALSE,IF($W16<1000,IFERROR(VLOOKUP($W16,FeedLib[#All],BG$60,FALSE),""),IFERROR(VLOOKUP($W16,FeedLibUser[#All],BG$60,FALSE),"")),BG16),IF(AND(ISNUMBER($AI16),$AJ16<>""),BG16,"")) ->  | BH49: =IF(ISNUMBER($W16),IF($AH16=FALSE,IF($W16<1000,IFERROR(VLOOKUP($W16,FeedLib[#All],BH$60,FALSE),""),IFERROR(VLOOKUP($W16,FeedLibUser[#All],BH$60,FALSE),"")),BH16),IF(AND(ISNUMBER($AI16),$AJ16<>""),BH16,"")) ->  | BI49: =IF(ISNUMBER($W16),IF($AH16=FALSE,IF($W16<1000,IFERROR(VLOOKUP($W16,FeedLib[#All],BI$60,FALSE),""),IFERROR(VLOOKUP($W16,FeedLibUser[#All],BI$60,FALSE),"")),BI16),IF(AND(ISNUMBER($AI16),$AJ16<>""),BI16,"")) ->  | BJ49: =IF(ISNUMBER($W16),IF($AH16=FALSE,IF($W16<1000,IFERROR(VLOOKUP($W16,FeedLib[#All],BJ$60,FALSE),""),IFERROR(VLOOKUP($W16,FeedLibUser[#All],BJ$60,FALSE),"")),BJ16),IF(AND(ISNUMBER($AI16),$AJ16<>""),BJ16,"")) ->  | BK49: =IF(ISNUMBER($W16),IF($AH16=FALSE,IF($W16<1000,IFERROR(VLOOKUP($W16,FeedLib[#All],BK$60,FALSE),""),IFERROR(VLOOKUP($W16,FeedLibUser[#All],BK$60,FALSE),"")),BK16),IF(AND(ISNUMBER($AI16),$AJ16<>""),BK16,"")) ->  | BL49: =IF(ISNUMBER($W16),IF($AH16=FALSE,IF($W16<1000,IFERROR(VLOOKUP($W16,FeedLib[#All],BL$60,FALSE),""),IFERROR(VLOOKUP($W16,FeedLibUser[#All],BL$60,FALSE),"")),BL16),IF(AND(ISNUMBER($AI16),$AJ16<>""),BL16,"")) ->  | BM49: =IF(ISNUMBER($W16),IF($AH16=FALSE,IF($W16<1000,IFERROR(VLOOKUP($W16,FeedLib[#All],BM$60,FALSE),""),IFERROR(VLOOKUP($W16,FeedLibUser[#All],BM$60,FALSE),"")),BM16),IF(AND(ISNUMBER($AI16),$AJ16<>""),BM16,"")) ->  | BN49: =IF(ISNUMBER($W16),IF($AH16=FALSE,IF($W16<1000,IFERROR(VLOOKUP($W16,FeedLib[#All],BN$60,FALSE),""),IFERROR(VLOOKUP($W16,FeedLibUser[#All],BN$60,FALSE),"")),BN16),IF(AND(ISNUMBER($AI16),$AJ16<>""),BN16,"")) ->  | BO49: =IF(ISNUMBER($W16),IF($AH16=FALSE,IF($W16<1000,IFERROR(VLOOKUP($W16,FeedLib[#All],BO$60,FALSE),""),IFERROR(VLOOKUP($W16,FeedLibUser[#All],BO$60,FALSE),"")),BO16),IF(AND(ISNUMBER($AI16),$AJ16<>""),BO16,"")) ->  | BP49: =IF(ISNUMBER($W16),IF($AH16=FALSE,IF($W16<1000,IFERROR(VLOOKUP($W16,FeedLib[#All],BP$60,FALSE),""),IFERROR(VLOOKUP($W16,FeedLibUser[#All],BP$60,FALSE),"")),BP16),IF(AND(ISNUMBER($AI16),$AJ16<>""),BP16,"")) ->  | BQ49: =IF(ISNUMBER($W16),IF($AH16=FALSE,IF($W16<1000,IFERROR(VLOOKUP($W16,FeedLib[#All],BQ$60,FALSE),""),IFERROR(VLOOKUP($W16,FeedLibUser[#All],BQ$60,FALSE),"")),BQ16),IF(AND(ISNUMBER($AI16),$AJ16<>""),BQ16,"")) ->  | BR49: =IF(ISNUMBER($W16),IF($AH16=FALSE,IF($W16<1000,IFERROR(VLOOKUP($W16,FeedLib[#All],BR$60,FALSE),""),IFERROR(VLOOKUP($W16,FeedLibUser[#All],BR$60,FALSE),"")),BR16),IF(AND(ISNUMBER($AI16),$AJ16<>""),BR16,"")) ->  | BS49: =IF(ISNUMBER($W16),IF($AH16=FALSE,IF($W16<1000,IFERROR(VLOOKUP($W16,FeedLib[#All],BS$60,FALSE),""),IFERROR(VLOOKUP($W16,FeedLibUser[#All],BS$60,FALSE),"")),BS16),IF(AND(ISNUMBER($AI16),$AJ16<>""),BS16,"")) ->  | BT49: =IF(ISNUMBER($W16),IF($AH16=FALSE,IF($W16<1000,IFERROR(VLOOKUP($W16,FeedLib[#All],BT$60,FALSE),""),IFERROR(VLOOKUP($W16,FeedLibUser[#All],BT$60,FALSE),"")),BT16),IF(AND(ISNUMBER($AI16),$AJ16<>""),BT16,"")) ->  | BU49: =IF(ISNUMBER($W16),IF($AH16=FALSE,IF($W16<1000,IFERROR(VLOOKUP($W16,FeedLib[#All],BU$60,FALSE),""),IFERROR(VLOOKUP($W16,FeedLibUser[#All],BU$60,FALSE),"")),BU16),IF(AND(ISNUMBER($AI16),$AJ16<>""),BU16,"")) ->  | BV49: =IF(ISNUMBER($W16),IF($AH16=FALSE,IF($W16<1000,IFERROR(VLOOKUP($W16,FeedLib[#All],BV$60,FALSE),""),IFERROR(VLOOKUP($W16,FeedLibUser[#All],BV$60,FALSE),"")),BV16),IF(AND(ISNUMBER($AI16),$AJ16<>""),BV16,"")) ->  | BW49: =IF(ISNUMBER($W16),IF($AH16=FALSE,IF($W16<1000,IFERROR(VLOOKUP($W16,FeedLib[#All],BW$60,FALSE),""),IFERROR(VLOOKUP($W16,FeedLibUser[#All],BW$60,FALSE),"")),BW16),IF(AND(ISNUMBER($AI16),$AJ16<>""),BW16,"")) ->  | BX49: =IF(ISNUMBER($W16),IF($AH16=FALSE,IF($W16<1000,IFERROR(VLOOKUP($W16,FeedLib[#All],BX$60,FALSE),""),IFERROR(VLOOKUP($W16,FeedLibUser[#All],BX$60,FALSE),"")),BX16),IF(AND(ISNUMBER($AI16),$AJ16<>""),BX16,"")) ->  | BY49: =IF(ISNUMBER($W16),IF($AH16=FALSE,IF($W16<1000,IFERROR(VLOOKUP($W16,FeedLib[#All],BY$60,FALSE),""),IFERROR(VLOOKUP($W16,FeedLibUser[#All],BY$60,FALSE),"")),BY16),IF(AND(ISNUMBER($AI16),$AJ16<>""),BY16,"")) ->  | BZ49: =IF(ISNUMBER($W16),IF($AH16=FALSE,IF($W16<1000,IFERROR(VLOOKUP($W16,FeedLib[#All],BZ$60,FALSE),""),IFERROR(VLOOKUP($W16,FeedLibUser[#All],BZ$60,FALSE),"")),BZ16),IF(AND(ISNUMBER($AI16),$AJ16<>""),BZ16,"")) ->  | CA49: =IF(ISNUMBER($W16),IF($AH16=FALSE,IF($W16<1000,IFERROR(VLOOKUP($W16,FeedLib[#All],CA$60,FALSE),""),IFERROR(VLOOKUP($W16,FeedLibUser[#All],CA$60,FALSE),"")),CA16),IF(AND(ISNUMBER($AI16),$AJ16<>""),CA16,"")) ->  | CB49: =IF(ISNUMBER($W16),IF($AH16=FALSE,IF($W16<1000,IFERROR(VLOOKUP($W16,FeedLib[#All],CB$60,FALSE),""),IFERROR(VLOOKUP($W16,FeedLibUser[#All],CB$60,FALSE),"")),CB16),IF(AND(ISNUMBER($AI16),$AJ16<>""),CB16,"")) ->  | CC49: =IF(ISNUMBER($W16),IF($AH16=FALSE,IF($W16<1000,IFERROR(VLOOKUP($W16,FeedLib[#All],CC$60,FALSE),""),IFERROR(VLOOKUP($W16,FeedLibUser[#All],CC$60,FALSE),"")),CC16),IF(AND(ISNUMBER($AI16),$AJ16<>""),CC16,"")) ->  | CD49: =IF(ISNUMBER($W16),IF($AH16=FALSE,IF($W16<1000,IFERROR(VLOOKUP($W16,FeedLib[#All],CD$60,FALSE),""),IFERROR(VLOOKUP($W16,FeedLibUser[#All],CD$60,FALSE),"")),CD16),IF(AND(ISNUMBER($AI16),$AJ16<>""),CD16,"")) ->  | CE49: =IF(ISNUMBER($W16),IF($AH16=FALSE,IF($W16<1000,IFERROR(VLOOKUP($W16,FeedLib[#All],CE$60,FALSE),""),IFERROR(VLOOKUP($W16,FeedLibUser[#All],CE$60,FALSE),"")),CE16),IF(AND(ISNUMBER($AI16),$AJ16<>""),CE16,"")) ->  | CF49: =IF(ISNUMBER($W16),IF($AH16=FALSE,IF($W16<1000,IFERROR(VLOOKUP($W16,FeedLib[#All],CF$60,FALSE),""),IFERROR(VLOOKUP($W16,FeedLibUser[#All],CF$60,FALSE),"")),CF16),IF(AND(ISNUMBER($AI16),$AJ16<>""),CF16,"")) ->  | CG49: =IF(ISNUMBER($W16),IF($AH16=FALSE,IF($W16<1000,IFERROR(VLOOKUP($W16,FeedLib[#All],CG$60,FALSE),""),IFERROR(VLOOKUP($W16,FeedLibUser[#All],CG$60,FALSE),"")),CG16),IF(AND(ISNUMBER($AI16),$AJ16<>""),CG16,"")) ->  | CH49: =IF(ISNUMBER($W16),IF($AH16=FALSE,IF($W16<1000,IFERROR(VLOOKUP($W16,FeedLib[#All],CH$60,FALSE),""),IFERROR(VLOOKUP($W16,FeedLibUser[#All],CH$60,FALSE),"")),CH16),IF(AND(ISNUMBER($AI16),$AJ16<>""),CH16,"")) ->  | CI49: =IF(ISNUMBER($W16),IF($AH16=FALSE,IF($W16<1000,IFERROR(VLOOKUP($W16,FeedLib[#All],CI$60,FALSE),""),IFERROR(VLOOKUP($W16,FeedLibUser[#All],CI$60,FALSE),"")),CI16),IF(AND(ISNUMBER($AI16),$AJ16<>""),CI16,"")) ->  | CJ49: =IF(ISNUMBER($W16),IF($AH16=FALSE,IF($W16<1000,IFERROR(VLOOKUP($W16,FeedLib[#All],CJ$60,FALSE),""),IFERROR(VLOOKUP($W16,FeedLibUser[#All],CJ$60,FALSE),"")),CJ16),IF(AND(ISNUMBER($AI16),$AJ16<>""),CJ16,"")) ->  | CK49: =IF(ISNUMBER($W16),IF($AH16=FALSE,IF($W16<1000,IFERROR(VLOOKUP($W16,FeedLib[#All],CK$60,FALSE),""),IFERROR(VLOOKUP($W16,FeedLibUser[#All],CK$60,FALSE),"")),CK16),IF(AND(ISNUMBER($AI16),$AJ16<>""),CK16,"")) ->  | CL49: =IF(ISNUMBER($W16),IF($AH16=FALSE,IF($W16<1000,IFERROR(VLOOKUP($W16,FeedLib[#All],CL$60,FALSE),""),IFERROR(VLOOKUP($W16,FeedLibUser[#All],CL$60,FALSE),"")),CL16),IF(AND(ISNUMBER($AI16),$AJ16<>""),CL16,"")) ->  | CM49: =IF(ISNUMBER($W16),IF($AH16=FALSE,IF($W16<1000,IFERROR(VLOOKUP($W16,FeedLib[#All],CM$60,FALSE),""),IFERROR(VLOOKUP($W16,FeedLibUser[#All],CM$60,FALSE),"")),CM16),IF(AND(ISNUMBER($AI16),$AJ16<>""),CM16,"")) -> 
J50: ="Breed: "&IF(AND($F$21>=1,$F$21<=3),CHOOSE(F21,H22,"0.5"&H22&" x 0.5"&H23,"0.5"&H22&" x 0.25"&H23&" x 0.25"&H24),H22) -> Breed: 0.5Hereford x 0.5Charolais | AK50: =IF(ISNUMBER($W17),IF($AH17=FALSE,IF($W17<1000,IFERROR(VLOOKUP($W17,FeedLib[#All],AK$60,FALSE),"")*(IF(parmUnit=1,1,2000/2204.6)),IFERROR(VLOOKUP($W17,FeedLibUser[#All],AK$60,FALSE),"")*(IF(parmUnit=1,1,2000/2204.6))),AK17),IF(AND(ISNUMBER($AI17),$AJ17<>""),AK17,"")) ->  | AL50: =IF(ISNUMBER($W17),IF($AH17=FALSE,IF($W17<1000,IFERROR(VLOOKUP($W17,FeedLib[#All],AL$60,FALSE),""),IFERROR(VLOOKUP($W17,FeedLibUser[#All],AL$60,FALSE),"")),AL17),IF(AND(ISNUMBER($AI17),$AJ17<>""),AL17,"")) ->  | AM50: =IF(ISNUMBER($W17),IF($AH17=FALSE,IF($W17<1000,IFERROR(VLOOKUP($W17,FeedLib[#All],AM$60,FALSE),""),IFERROR(VLOOKUP($W17,FeedLibUser[#All],AM$60,FALSE),"")),AM17),IF(AND(ISNUMBER($AI17),$AJ17<>""),AM17,"")) ->  | AN50: =IF(ISNUMBER($W17),IF($AH17=FALSE,IF($W17<1000,IFERROR(VLOOKUP($W17,FeedLib[#All],AN$60,FALSE),""),IFERROR(VLOOKUP($W17,FeedLibUser[#All],AN$60,FALSE),"")),AN17),IF(AND(ISNUMBER($AI17),$AJ17<>""),AN17,"")) ->  | AO50: =IF(ISNUMBER($W17),IF($AH17=FALSE,IF($W17<1000,IFERROR(VLOOKUP($W17,FeedLib[#All],AO$60,FALSE),""),IFERROR(VLOOKUP($W17,FeedLibUser[#All],AO$60,FALSE),"")),AO17),IF(AND(ISNUMBER($AI17),$AJ17<>""),AO17,"")) ->  | AP50: =IF(ISNUMBER($W17),IF($AH17=FALSE,IF($W17<1000,IFERROR(VLOOKUP($W17,FeedLib[#All],AP$60,FALSE),""),IFERROR(VLOOKUP($W17,FeedLibUser[#All],AP$60,FALSE),"")),AP17),IF(AND(ISNUMBER($AI17),$AJ17<>""),AP17,"")) ->  | AQ50: =IF(ISNUMBER($W17),IF($AH17=FALSE,IF($W17<1000,IFERROR(VLOOKUP($W17,FeedLib[#All],AQ$60,FALSE),""),IFERROR(VLOOKUP($W17,FeedLibUser[#All],AQ$60,FALSE),"")),AQ17),IF(AND(ISNUMBER($AI17),$AJ17<>""),AQ17,"")) ->  | AR50: =IF(ISNUMBER($W17),IF($AH17=FALSE,IF($W17<1000,IFERROR(VLOOKUP($W17,FeedLib[#All],AR$60,FALSE),""),IFERROR(VLOOKUP($W17,FeedLibUser[#All],AR$60,FALSE),"")),AR17),IF(AND(ISNUMBER($AI17),$AJ17<>""),AR17,"")) ->  | AS50: =IF(ISNUMBER($W17),IF($AH17=FALSE,IF($W17<1000,IFERROR(VLOOKUP($W17,FeedLib[#All],AS$60,FALSE),""),IFERROR(VLOOKUP($W17,FeedLibUser[#All],AS$60,FALSE),"")),AS17),IF(AND(ISNUMBER($AI17),$AJ17<>""),AS17,"")) ->  | AT50: =IF(ISNUMBER($W17),IF($AH17=FALSE,IF($W17<1000,IFERROR(VLOOKUP($W17,FeedLib[#All],AT$60,FALSE),""),IFERROR(VLOOKUP($W17,FeedLibUser[#All],AT$60,FALSE),"")),AT17),IF(AND(ISNUMBER($AI17),$AJ17<>""),AT17,"")) ->  | AU50: =IF(ISNUMBER($W17),IF($AH17=FALSE,IF($W17<1000,IFERROR(VLOOKUP($W17,FeedLib[#All],AU$60,FALSE),""),IFERROR(VLOOKUP($W17,FeedLibUser[#All],AU$60,FALSE),"")),AU17),IF(AND(ISNUMBER($AI17),$AJ17<>""),AU17,"")) ->  | AV50: =IF(ISNUMBER($W17),IF($AH17=FALSE,IF($W17<1000,IFERROR(VLOOKUP($W17,FeedLib[#All],AV$60,FALSE),""),IFERROR(VLOOKUP($W17,FeedLibUser[#All],AV$60,FALSE),"")),AV17),IF(AND(ISNUMBER($AI17),$AJ17<>""),AV17,"")) ->  | AW50: =IF(ISNUMBER($W17),IF($AH17=FALSE,IF($W17<1000,IFERROR(VLOOKUP($W17,FeedLib[#All],AW$60,FALSE),""),IFERROR(VLOOKUP($W17,FeedLibUser[#All],AW$60,FALSE),"")),AW17),IF(AND(ISNUMBER($AI17),$AJ17<>""),AW17,"")) ->  | AX50: =IF(ISNUMBER($W17),IF($AH17=FALSE,IF($W17<1000,IFERROR(VLOOKUP($W17,FeedLib[#All],AX$60,FALSE),""),IFERROR(VLOOKUP($W17,FeedLibUser[#All],AX$60,FALSE),"")),AX17),IF(AND(ISNUMBER($AI17),$AJ17<>""),AX17,"")) ->  | AY50: =IF(ISNUMBER($W17),IF($AH17=FALSE,IF($W17<1000,IFERROR(VLOOKUP($W17,FeedLib[#All],AY$60,FALSE),"")/IF(parmUnit=1,1,2.2046),IFERROR(VLOOKUP($W17,FeedLibUser[#All],AY$60,FALSE),"")/IF(parmUnit=1,1,2.2046)),AY17),IF(AND(ISNUMBER($AI17),$AJ17<>""),AY17,"")) ->  | AZ50: =IF(ISNUMBER($W17),IF($AH17=FALSE,IF($W17<1000,IFERROR(VLOOKUP($W17,FeedLib[#All],AZ$60,FALSE),"")/IF(parmUnit=1,1,2.2046),IFERROR(VLOOKUP($W17,FeedLibUser[#All],AZ$60,FALSE),"")/IF(parmUnit=1,1,2.2046)),AZ17),IF(AND(ISNUMBER($AI17),$AJ17<>""),AZ17,"")) ->  | BA50: =IF(ISNUMBER($W17),IF($AH17=FALSE,IF($W17<1000,IFERROR(VLOOKUP($W17,FeedLib[#All],BA$60,FALSE),"")/IF(parmUnit=1,1,2.2046),IFERROR(VLOOKUP($W17,FeedLibUser[#All],BA$60,FALSE),"")/IF(parmUnit=1,1,2.2046)),BA17),IF(AND(ISNUMBER($AI17),$AJ17<>""),BA17,"")) ->  | BB50: =IF(ISNUMBER($W17),IF($AH17=FALSE,IF($W17<1000,IFERROR(VLOOKUP($W17,FeedLib[#All],BB$60,FALSE),""),IFERROR(VLOOKUP($W17,FeedLibUser[#All],BB$60,FALSE),"")),BB17),IF(AND(ISNUMBER($AI17),$AJ17<>""),BB17,"")) ->  | BC50: =IF(ISNUMBER($W17),IF($AH17=FALSE,IF($W17<1000,IFERROR(VLOOKUP($W17,FeedLib[#All],BC$60,FALSE),""),IFERROR(VLOOKUP($W17,FeedLibUser[#All],BC$60,FALSE),"")),BC17),IF(AND(ISNUMBER($AI17),$AJ17<>""),BC17,"")) ->  | BD50: =IF(ISNUMBER($W17),IF($AH17=FALSE,IF($W17<1000,IFERROR(VLOOKUP($W17,FeedLib[#All],BD$60,FALSE),""),IFERROR(VLOOKUP($W17,FeedLibUser[#All],BD$60,FALSE),"")),BD17),IF(AND(ISNUMBER($AI17),$AJ17<>""),BD17,"")) ->  | BE50: =IF(ISNUMBER($W17),IF($AH17=FALSE,IF($W17<1000,IFERROR(VLOOKUP($W17,FeedLib[#All],BE$60,FALSE),""),IFERROR(VLOOKUP($W17,FeedLibUser[#All],BE$60,FALSE),"")),BE17),IF(AND(ISNUMBER($AI17),$AJ17<>""),BE17,"")) ->  | BF50: =IF(ISNUMBER($W17),IF($AH17=FALSE,IF($W17<1000,IFERROR(VLOOKUP($W17,FeedLib[#All],BF$60,FALSE),""),IFERROR(VLOOKUP($W17,FeedLibUser[#All],BF$60,FALSE),"")),BF17),IF(AND(ISNUMBER($AI17),$AJ17<>""),BF17,"")) ->  | BG50: =IF(ISNUMBER($W17),IF($AH17=FALSE,IF($W17<1000,IFERROR(VLOOKUP($W17,FeedLib[#All],BG$60,FALSE),""),IFERROR(VLOOKUP($W17,FeedLibUser[#All],BG$60,FALSE),"")),BG17),IF(AND(ISNUMBER($AI17),$AJ17<>""),BG17,"")) ->  | BH50: =IF(ISNUMBER($W17),IF($AH17=FALSE,IF($W17<1000,IFERROR(VLOOKUP($W17,FeedLib[#All],BH$60,FALSE),""),IFERROR(VLOOKUP($W17,FeedLibUser[#All],BH$60,FALSE),"")),BH17),IF(AND(ISNUMBER($AI17),$AJ17<>""),BH17,"")) ->  | BI50: =IF(ISNUMBER($W17),IF($AH17=FALSE,IF($W17<1000,IFERROR(VLOOKUP($W17,FeedLib[#All],BI$60,FALSE),""),IFERROR(VLOOKUP($W17,FeedLibUser[#All],BI$60,FALSE),"")),BI17),IF(AND(ISNUMBER($AI17),$AJ17<>""),BI17,"")) ->  | BJ50: =IF(ISNUMBER($W17),IF($AH17=FALSE,IF($W17<1000,IFERROR(VLOOKUP($W17,FeedLib[#All],BJ$60,FALSE),""),IFERROR(VLOOKUP($W17,FeedLibUser[#All],BJ$60,FALSE),"")),BJ17),IF(AND(ISNUMBER($AI17),$AJ17<>""),BJ17,"")) ->  | BK50: =IF(ISNUMBER($W17),IF($AH17=FALSE,IF($W17<1000,IFERROR(VLOOKUP($W17,FeedLib[#All],BK$60,FALSE),""),IFERROR(VLOOKUP($W17,FeedLibUser[#All],BK$60,FALSE),"")),BK17),IF(AND(ISNUMBER($AI17),$AJ17<>""),BK17,"")) ->  | BL50: =IF(ISNUMBER($W17),IF($AH17=FALSE,IF($W17<1000,IFERROR(VLOOKUP($W17,FeedLib[#All],BL$60,FALSE),""),IFERROR(VLOOKUP($W17,FeedLibUser[#All],BL$60,FALSE),"")),BL17),IF(AND(ISNUMBER($AI17),$AJ17<>""),BL17,"")) ->  | BM50: =IF(ISNUMBER($W17),IF($AH17=FALSE,IF($W17<1000,IFERROR(VLOOKUP($W17,FeedLib[#All],BM$60,FALSE),""),IFERROR(VLOOKUP($W17,FeedLibUser[#All],BM$60,FALSE),"")),BM17),IF(AND(ISNUMBER($AI17),$AJ17<>""),BM17,"")) ->  | BN50: =IF(ISNUMBER($W17),IF($AH17=FALSE,IF($W17<1000,IFERROR(VLOOKUP($W17,FeedLib[#All],BN$60,FALSE),""),IFERROR(VLOOKUP($W17,FeedLibUser[#All],BN$60,FALSE),"")),BN17),IF(AND(ISNUMBER($AI17),$AJ17<>""),BN17,"")) ->  | BO50: =IF(ISNUMBER($W17),IF($AH17=FALSE,IF($W17<1000,IFERROR(VLOOKUP($W17,FeedLib[#All],BO$60,FALSE),""),IFERROR(VLOOKUP($W17,FeedLibUser[#All],BO$60,FALSE),"")),BO17),IF(AND(ISNUMBER($AI17),$AJ17<>""),BO17,"")) ->  | BP50: =IF(ISNUMBER($W17),IF($AH17=FALSE,IF($W17<1000,IFERROR(VLOOKUP($W17,FeedLib[#All],BP$60,FALSE),""),IFERROR(VLOOKUP($W17,FeedLibUser[#All],BP$60,FALSE),"")),BP17),IF(AND(ISNUMBER($AI17),$AJ17<>""),BP17,"")) ->  | BQ50: =IF(ISNUMBER($W17),IF($AH17=FALSE,IF($W17<1000,IFERROR(VLOOKUP($W17,FeedLib[#All],BQ$60,FALSE),""),IFERROR(VLOOKUP($W17,FeedLibUser[#All],BQ$60,FALSE),"")),BQ17),IF(AND(ISNUMBER($AI17),$AJ17<>""),BQ17,"")) ->  | BR50: =IF(ISNUMBER($W17),IF($AH17=FALSE,IF($W17<1000,IFERROR(VLOOKUP($W17,FeedLib[#All],BR$60,FALSE),""),IFERROR(VLOOKUP($W17,FeedLibUser[#All],BR$60,FALSE),"")),BR17),IF(AND(ISNUMBER($AI17),$AJ17<>""),BR17,"")) ->  | BS50: =IF(ISNUMBER($W17),IF($AH17=FALSE,IF($W17<1000,IFERROR(VLOOKUP($W17,FeedLib[#All],BS$60,FALSE),""),IFERROR(VLOOKUP($W17,FeedLibUser[#All],BS$60,FALSE),"")),BS17),IF(AND(ISNUMBER($AI17),$AJ17<>""),BS17,"")) ->  | BT50: =IF(ISNUMBER($W17),IF($AH17=FALSE,IF($W17<1000,IFERROR(VLOOKUP($W17,FeedLib[#All],BT$60,FALSE),""),IFERROR(VLOOKUP($W17,FeedLibUser[#All],BT$60,FALSE),"")),BT17),IF(AND(ISNUMBER($AI17),$AJ17<>""),BT17,"")) ->  | BU50: =IF(ISNUMBER($W17),IF($AH17=FALSE,IF($W17<1000,IFERROR(VLOOKUP($W17,FeedLib[#All],BU$60,FALSE),""),IFERROR(VLOOKUP($W17,FeedLibUser[#All],BU$60,FALSE),"")),BU17),IF(AND(ISNUMBER($AI17),$AJ17<>""),BU17,"")) ->  | BV50: =IF(ISNUMBER($W17),IF($AH17=FALSE,IF($W17<1000,IFERROR(VLOOKUP($W17,FeedLib[#All],BV$60,FALSE),""),IFERROR(VLOOKUP($W17,FeedLibUser[#All],BV$60,FALSE),"")),BV17),IF(AND(ISNUMBER($AI17),$AJ17<>""),BV17,"")) ->  | BW50: =IF(ISNUMBER($W17),IF($AH17=FALSE,IF($W17<1000,IFERROR(VLOOKUP($W17,FeedLib[#All],BW$60,FALSE),""),IFERROR(VLOOKUP($W17,FeedLibUser[#All],BW$60,FALSE),"")),BW17),IF(AND(ISNUMBER($AI17),$AJ17<>""),BW17,"")) ->  | BX50: =IF(ISNUMBER($W17),IF($AH17=FALSE,IF($W17<1000,IFERROR(VLOOKUP($W17,FeedLib[#All],BX$60,FALSE),""),IFERROR(VLOOKUP($W17,FeedLibUser[#All],BX$60,FALSE),"")),BX17),IF(AND(ISNUMBER($AI17),$AJ17<>""),BX17,"")) ->  | BY50: =IF(ISNUMBER($W17),IF($AH17=FALSE,IF($W17<1000,IFERROR(VLOOKUP($W17,FeedLib[#All],BY$60,FALSE),""),IFERROR(VLOOKUP($W17,FeedLibUser[#All],BY$60,FALSE),"")),BY17),IF(AND(ISNUMBER($AI17),$AJ17<>""),BY17,"")) ->  | BZ50: =IF(ISNUMBER($W17),IF($AH17=FALSE,IF($W17<1000,IFERROR(VLOOKUP($W17,FeedLib[#All],BZ$60,FALSE),""),IFERROR(VLOOKUP($W17,FeedLibUser[#All],BZ$60,FALSE),"")),BZ17),IF(AND(ISNUMBER($AI17),$AJ17<>""),BZ17,"")) ->  | CA50: =IF(ISNUMBER($W17),IF($AH17=FALSE,IF($W17<1000,IFERROR(VLOOKUP($W17,FeedLib[#All],CA$60,FALSE),""),IFERROR(VLOOKUP($W17,FeedLibUser[#All],CA$60,FALSE),"")),CA17),IF(AND(ISNUMBER($AI17),$AJ17<>""),CA17,"")) ->  | CB50: =IF(ISNUMBER($W17),IF($AH17=FALSE,IF($W17<1000,IFERROR(VLOOKUP($W17,FeedLib[#All],CB$60,FALSE),""),IFERROR(VLOOKUP($W17,FeedLibUser[#All],CB$60,FALSE),"")),CB17),IF(AND(ISNUMBER($AI17),$AJ17<>""),CB17,"")) ->  | CC50: =IF(ISNUMBER($W17),IF($AH17=FALSE,IF($W17<1000,IFERROR(VLOOKUP($W17,FeedLib[#All],CC$60,FALSE),""),IFERROR(VLOOKUP($W17,FeedLibUser[#All],CC$60,FALSE),"")),CC17),IF(AND(ISNUMBER($AI17),$AJ17<>""),CC17,"")) ->  | CD50: =IF(ISNUMBER($W17),IF($AH17=FALSE,IF($W17<1000,IFERROR(VLOOKUP($W17,FeedLib[#All],CD$60,FALSE),""),IFERROR(VLOOKUP($W17,FeedLibUser[#All],CD$60,FALSE),"")),CD17),IF(AND(ISNUMBER($AI17),$AJ17<>""),CD17,"")) ->  | CE50: =IF(ISNUMBER($W17),IF($AH17=FALSE,IF($W17<1000,IFERROR(VLOOKUP($W17,FeedLib[#All],CE$60,FALSE),""),IFERROR(VLOOKUP($W17,FeedLibUser[#All],CE$60,FALSE),"")),CE17),IF(AND(ISNUMBER($AI17),$AJ17<>""),CE17,"")) ->  | CF50: =IF(ISNUMBER($W17),IF($AH17=FALSE,IF($W17<1000,IFERROR(VLOOKUP($W17,FeedLib[#All],CF$60,FALSE),""),IFERROR(VLOOKUP($W17,FeedLibUser[#All],CF$60,FALSE),"")),CF17),IF(AND(ISNUMBER($AI17),$AJ17<>""),CF17,"")) ->  | CG50: =IF(ISNUMBER($W17),IF($AH17=FALSE,IF($W17<1000,IFERROR(VLOOKUP($W17,FeedLib[#All],CG$60,FALSE),""),IFERROR(VLOOKUP($W17,FeedLibUser[#All],CG$60,FALSE),"")),CG17),IF(AND(ISNUMBER($AI17),$AJ17<>""),CG17,"")) ->  | CH50: =IF(ISNUMBER($W17),IF($AH17=FALSE,IF($W17<1000,IFERROR(VLOOKUP($W17,FeedLib[#All],CH$60,FALSE),""),IFERROR(VLOOKUP($W17,FeedLibUser[#All],CH$60,FALSE),"")),CH17),IF(AND(ISNUMBER($AI17),$AJ17<>""),CH17,"")) ->  | CI50: =IF(ISNUMBER($W17),IF($AH17=FALSE,IF($W17<1000,IFERROR(VLOOKUP($W17,FeedLib[#All],CI$60,FALSE),""),IFERROR(VLOOKUP($W17,FeedLibUser[#All],CI$60,FALSE),"")),CI17),IF(AND(ISNUMBER($AI17),$AJ17<>""),CI17,"")) ->  | CJ50: =IF(ISNUMBER($W17),IF($AH17=FALSE,IF($W17<1000,IFERROR(VLOOKUP($W17,FeedLib[#All],CJ$60,FALSE),""),IFERROR(VLOOKUP($W17,FeedLibUser[#All],CJ$60,FALSE),"")),CJ17),IF(AND(ISNUMBER($AI17),$AJ17<>""),CJ17,"")) ->  | CK50: =IF(ISNUMBER($W17),IF($AH17=FALSE,IF($W17<1000,IFERROR(VLOOKUP($W17,FeedLib[#All],CK$60,FALSE),""),IFERROR(VLOOKUP($W17,FeedLibUser[#All],CK$60,FALSE),"")),CK17),IF(AND(ISNUMBER($AI17),$AJ17<>""),CK17,"")) ->  | CL50: =IF(ISNUMBER($W17),IF($AH17=FALSE,IF($W17<1000,IFERROR(VLOOKUP($W17,FeedLib[#All],CL$60,FALSE),""),IFERROR(VLOOKUP($W17,FeedLibUser[#All],CL$60,FALSE),"")),CL17),IF(AND(ISNUMBER($AI17),$AJ17<>""),CL17,"")) ->  | CM50: =IF(ISNUMBER($W17),IF($AH17=FALSE,IF($W17<1000,IFERROR(VLOOKUP($W17,FeedLib[#All],CM$60,FALSE),""),IFERROR(VLOOKUP($W17,FeedLibUser[#All],CM$60,FALSE),"")),CM17),IF(AND(ISNUMBER($AI17),$AJ17<>""),CM17,"")) -> 
AK51: =IF(ISNUMBER($W18),IF($AH18=FALSE,IF($W18<1000,IFERROR(VLOOKUP($W18,FeedLib[#All],AK$60,FALSE),"")*(IF(parmUnit=1,1,2000/2204.6)),IFERROR(VLOOKUP($W18,FeedLibUser[#All],AK$60,FALSE),"")*(IF(parmUnit=1,1,2000/2204.6))),AK18),IF(AND(ISNUMBER($AI18),$AJ18<>""),AK18,"")) ->  | AL51: =IF(ISNUMBER($W18),IF($AH18=FALSE,IF($W18<1000,IFERROR(VLOOKUP($W18,FeedLib[#All],AL$60,FALSE),""),IFERROR(VLOOKUP($W18,FeedLibUser[#All],AL$60,FALSE),"")),AL18),IF(AND(ISNUMBER($AI18),$AJ18<>""),AL18,"")) ->  | AM51: =IF(ISNUMBER($W18),IF($AH18=FALSE,IF($W18<1000,IFERROR(VLOOKUP($W18,FeedLib[#All],AM$60,FALSE),""),IFERROR(VLOOKUP($W18,FeedLibUser[#All],AM$60,FALSE),"")),AM18),IF(AND(ISNUMBER($AI18),$AJ18<>""),AM18,"")) ->  | AN51: =IF(ISNUMBER($W18),IF($AH18=FALSE,IF($W18<1000,IFERROR(VLOOKUP($W18,FeedLib[#All],AN$60,FALSE),""),IFERROR(VLOOKUP($W18,FeedLibUser[#All],AN$60,FALSE),"")),AN18),IF(AND(ISNUMBER($AI18),$AJ18<>""),AN18,"")) ->  | AO51: =IF(ISNUMBER($W18),IF($AH18=FALSE,IF($W18<1000,IFERROR(VLOOKUP($W18,FeedLib[#All],AO$60,FALSE),""),IFERROR(VLOOKUP($W18,FeedLibUser[#All],AO$60,FALSE),"")),AO18),IF(AND(ISNUMBER($AI18),$AJ18<>""),AO18,"")) ->  | AP51: =IF(ISNUMBER($W18),IF($AH18=FALSE,IF($W18<1000,IFERROR(VLOOKUP($W18,FeedLib[#All],AP$60,FALSE),""),IFERROR(VLOOKUP($W18,FeedLibUser[#All],AP$60,FALSE),"")),AP18),IF(AND(ISNUMBER($AI18),$AJ18<>""),AP18,"")) ->  | AQ51: =IF(ISNUMBER($W18),IF($AH18=FALSE,IF($W18<1000,IFERROR(VLOOKUP($W18,FeedLib[#All],AQ$60,FALSE),""),IFERROR(VLOOKUP($W18,FeedLibUser[#All],AQ$60,FALSE),"")),AQ18),IF(AND(ISNUMBER($AI18),$AJ18<>""),AQ18,"")) ->  | AR51: =IF(ISNUMBER($W18),IF($AH18=FALSE,IF($W18<1000,IFERROR(VLOOKUP($W18,FeedLib[#All],AR$60,FALSE),""),IFERROR(VLOOKUP($W18,FeedLibUser[#All],AR$60,FALSE),"")),AR18),IF(AND(ISNUMBER($AI18),$AJ18<>""),AR18,"")) ->  | AS51: =IF(ISNUMBER($W18),IF($AH18=FALSE,IF($W18<1000,IFERROR(VLOOKUP($W18,FeedLib[#All],AS$60,FALSE),""),IFERROR(VLOOKUP($W18,FeedLibUser[#All],AS$60,FALSE),"")),AS18),IF(AND(ISNUMBER($AI18),$AJ18<>""),AS18,"")) ->  | AT51: =IF(ISNUMBER($W18),IF($AH18=FALSE,IF($W18<1000,IFERROR(VLOOKUP($W18,FeedLib[#All],AT$60,FALSE),""),IFERROR(VLOOKUP($W18,FeedLibUser[#All],AT$60,FALSE),"")),AT18),IF(AND(ISNUMBER($AI18),$AJ18<>""),AT18,"")) ->  | AU51: =IF(ISNUMBER($W18),IF($AH18=FALSE,IF($W18<1000,IFERROR(VLOOKUP($W18,FeedLib[#All],AU$60,FALSE),""),IFERROR(VLOOKUP($W18,FeedLibUser[#All],AU$60,FALSE),"")),AU18),IF(AND(ISNUMBER($AI18),$AJ18<>""),AU18,"")) ->  | AV51: =IF(ISNUMBER($W18),IF($AH18=FALSE,IF($W18<1000,IFERROR(VLOOKUP($W18,FeedLib[#All],AV$60,FALSE),""),IFERROR(VLOOKUP($W18,FeedLibUser[#All],AV$60,FALSE),"")),AV18),IF(AND(ISNUMBER($AI18),$AJ18<>""),AV18,"")) ->  | AW51: =IF(ISNUMBER($W18),IF($AH18=FALSE,IF($W18<1000,IFERROR(VLOOKUP($W18,FeedLib[#All],AW$60,FALSE),""),IFERROR(VLOOKUP($W18,FeedLibUser[#All],AW$60,FALSE),"")),AW18),IF(AND(ISNUMBER($AI18),$AJ18<>""),AW18,"")) ->  | AX51: =IF(ISNUMBER($W18),IF($AH18=FALSE,IF($W18<1000,IFERROR(VLOOKUP($W18,FeedLib[#All],AX$60,FALSE),""),IFERROR(VLOOKUP($W18,FeedLibUser[#All],AX$60,FALSE),"")),AX18),IF(AND(ISNUMBER($AI18),$AJ18<>""),AX18,"")) ->  | AY51: =IF(ISNUMBER($W18),IF($AH18=FALSE,IF($W18<1000,IFERROR(VLOOKUP($W18,FeedLib[#All],AY$60,FALSE),"")/IF(parmUnit=1,1,2.2046),IFERROR(VLOOKUP($W18,FeedLibUser[#All],AY$60,FALSE),"")/IF(parmUnit=1,1,2.2046)),AY18),IF(AND(ISNUMBER($AI18),$AJ18<>""),AY18,"")) ->  | AZ51: =IF(ISNUMBER($W18),IF($AH18=FALSE,IF($W18<1000,IFERROR(VLOOKUP($W18,FeedLib[#All],AZ$60,FALSE),"")/IF(parmUnit=1,1,2.2046),IFERROR(VLOOKUP($W18,FeedLibUser[#All],AZ$60,FALSE),"")/IF(parmUnit=1,1,2.2046)),AZ18),IF(AND(ISNUMBER($AI18),$AJ18<>""),AZ18,"")) ->  | BA51: =IF(ISNUMBER($W18),IF($AH18=FALSE,IF($W18<1000,IFERROR(VLOOKUP($W18,FeedLib[#All],BA$60,FALSE),"")/IF(parmUnit=1,1,2.2046),IFERROR(VLOOKUP($W18,FeedLibUser[#All],BA$60,FALSE),"")/IF(parmUnit=1,1,2.2046)),BA18),IF(AND(ISNUMBER($AI18),$AJ18<>""),BA18,"")) ->  | BB51: =IF(ISNUMBER($W18),IF($AH18=FALSE,IF($W18<1000,IFERROR(VLOOKUP($W18,FeedLib[#All],BB$60,FALSE),""),IFERROR(VLOOKUP($W18,FeedLibUser[#All],BB$60,FALSE),"")),BB18),IF(AND(ISNUMBER($AI18),$AJ18<>""),BB18,"")) ->  | BC51: =IF(ISNUMBER($W18),IF($AH18=FALSE,IF($W18<1000,IFERROR(VLOOKUP($W18,FeedLib[#All],BC$60,FALSE),""),IFERROR(VLOOKUP($W18,FeedLibUser[#All],BC$60,FALSE),"")),BC18),IF(AND(ISNUMBER($AI18),$AJ18<>""),BC18,"")) ->  | BD51: =IF(ISNUMBER($W18),IF($AH18=FALSE,IF($W18<1000,IFERROR(VLOOKUP($W18,FeedLib[#All],BD$60,FALSE),""),IFERROR(VLOOKUP($W18,FeedLibUser[#All],BD$60,FALSE),"")),BD18),IF(AND(ISNUMBER($AI18),$AJ18<>""),BD18,"")) ->  | BE51: =IF(ISNUMBER($W18),IF($AH18=FALSE,IF($W18<1000,IFERROR(VLOOKUP($W18,FeedLib[#All],BE$60,FALSE),""),IFERROR(VLOOKUP($W18,FeedLibUser[#All],BE$60,FALSE),"")),BE18),IF(AND(ISNUMBER($AI18),$AJ18<>""),BE18,"")) ->  | BF51: =IF(ISNUMBER($W18),IF($AH18=FALSE,IF($W18<1000,IFERROR(VLOOKUP($W18,FeedLib[#All],BF$60,FALSE),""),IFERROR(VLOOKUP($W18,FeedLibUser[#All],BF$60,FALSE),"")),BF18),IF(AND(ISNUMBER($AI18),$AJ18<>""),BF18,"")) ->  | BG51: =IF(ISNUMBER($W18),IF($AH18=FALSE,IF($W18<1000,IFERROR(VLOOKUP($W18,FeedLib[#All],BG$60,FALSE),""),IFERROR(VLOOKUP($W18,FeedLibUser[#All],BG$60,FALSE),"")),BG18),IF(AND(ISNUMBER($AI18),$AJ18<>""),BG18,"")) ->  | BH51: =IF(ISNUMBER($W18),IF($AH18=FALSE,IF($W18<1000,IFERROR(VLOOKUP($W18,FeedLib[#All],BH$60,FALSE),""),IFERROR(VLOOKUP($W18,FeedLibUser[#All],BH$60,FALSE),"")),BH18),IF(AND(ISNUMBER($AI18),$AJ18<>""),BH18,"")) ->  | BI51: =IF(ISNUMBER($W18),IF($AH18=FALSE,IF($W18<1000,IFERROR(VLOOKUP($W18,FeedLib[#All],BI$60,FALSE),""),IFERROR(VLOOKUP($W18,FeedLibUser[#All],BI$60,FALSE),"")),BI18),IF(AND(ISNUMBER($AI18),$AJ18<>""),BI18,"")) ->  | BJ51: =IF(ISNUMBER($W18),IF($AH18=FALSE,IF($W18<1000,IFERROR(VLOOKUP($W18,FeedLib[#All],BJ$60,FALSE),""),IFERROR(VLOOKUP($W18,FeedLibUser[#All],BJ$60,FALSE),"")),BJ18),IF(AND(ISNUMBER($AI18),$AJ18<>""),BJ18,"")) ->  | BK51: =IF(ISNUMBER($W18),IF($AH18=FALSE,IF($W18<1000,IFERROR(VLOOKUP($W18,FeedLib[#All],BK$60,FALSE),""),IFERROR(VLOOKUP($W18,FeedLibUser[#All],BK$60,FALSE),"")),BK18),IF(AND(ISNUMBER($AI18),$AJ18<>""),BK18,"")) ->  | BL51: =IF(ISNUMBER($W18),IF($AH18=FALSE,IF($W18<1000,IFERROR(VLOOKUP($W18,FeedLib[#All],BL$60,FALSE),""),IFERROR(VLOOKUP($W18,FeedLibUser[#All],BL$60,FALSE),"")),BL18),IF(AND(ISNUMBER($AI18),$AJ18<>""),BL18,"")) ->  | BM51: =IF(ISNUMBER($W18),IF($AH18=FALSE,IF($W18<1000,IFERROR(VLOOKUP($W18,FeedLib[#All],BM$60,FALSE),""),IFERROR(VLOOKUP($W18,FeedLibUser[#All],BM$60,FALSE),"")),BM18),IF(AND(ISNUMBER($AI18),$AJ18<>""),BM18,"")) ->  | BN51: =IF(ISNUMBER($W18),IF($AH18=FALSE,IF($W18<1000,IFERROR(VLOOKUP($W18,FeedLib[#All],BN$60,FALSE),""),IFERROR(VLOOKUP($W18,FeedLibUser[#All],BN$60,FALSE),"")),BN18),IF(AND(ISNUMBER($AI18),$AJ18<>""),BN18,"")) ->  | BO51: =IF(ISNUMBER($W18),IF($AH18=FALSE,IF($W18<1000,IFERROR(VLOOKUP($W18,FeedLib[#All],BO$60,FALSE),""),IFERROR(VLOOKUP($W18,FeedLibUser[#All],BO$60,FALSE),"")),BO18),IF(AND(ISNUMBER($AI18),$AJ18<>""),BO18,"")) ->  | BP51: =IF(ISNUMBER($W18),IF($AH18=FALSE,IF($W18<1000,IFERROR(VLOOKUP($W18,FeedLib[#All],BP$60,FALSE),""),IFERROR(VLOOKUP($W18,FeedLibUser[#All],BP$60,FALSE),"")),BP18),IF(AND(ISNUMBER($AI18),$AJ18<>""),BP18,"")) ->  | BQ51: =IF(ISNUMBER($W18),IF($AH18=FALSE,IF($W18<1000,IFERROR(VLOOKUP($W18,FeedLib[#All],BQ$60,FALSE),""),IFERROR(VLOOKUP($W18,FeedLibUser[#All],BQ$60,FALSE),"")),BQ18),IF(AND(ISNUMBER($AI18),$AJ18<>""),BQ18,"")) ->  | BR51: =IF(ISNUMBER($W18),IF($AH18=FALSE,IF($W18<1000,IFERROR(VLOOKUP($W18,FeedLib[#All],BR$60,FALSE),""),IFERROR(VLOOKUP($W18,FeedLibUser[#All],BR$60,FALSE),"")),BR18),IF(AND(ISNUMBER($AI18),$AJ18<>""),BR18,"")) ->  | BS51: =IF(ISNUMBER($W18),IF($AH18=FALSE,IF($W18<1000,IFERROR(VLOOKUP($W18,FeedLib[#All],BS$60,FALSE),""),IFERROR(VLOOKUP($W18,FeedLibUser[#All],BS$60,FALSE),"")),BS18),IF(AND(ISNUMBER($AI18),$AJ18<>""),BS18,"")) ->  | BT51: =IF(ISNUMBER($W18),IF($AH18=FALSE,IF($W18<1000,IFERROR(VLOOKUP($W18,FeedLib[#All],BT$60,FALSE),""),IFERROR(VLOOKUP($W18,FeedLibUser[#All],BT$60,FALSE),"")),BT18),IF(AND(ISNUMBER($AI18),$AJ18<>""),BT18,"")) ->  | BU51: =IF(ISNUMBER($W18),IF($AH18=FALSE,IF($W18<1000,IFERROR(VLOOKUP($W18,FeedLib[#All],BU$60,FALSE),""),IFERROR(VLOOKUP($W18,FeedLibUser[#All],BU$60,FALSE),"")),BU18),IF(AND(ISNUMBER($AI18),$AJ18<>""),BU18,"")) ->  | BV51: =IF(ISNUMBER($W18),IF($AH18=FALSE,IF($W18<1000,IFERROR(VLOOKUP($W18,FeedLib[#All],BV$60,FALSE),""),IFERROR(VLOOKUP($W18,FeedLibUser[#All],BV$60,FALSE),"")),BV18),IF(AND(ISNUMBER($AI18),$AJ18<>""),BV18,"")) ->  | BW51: =IF(ISNUMBER($W18),IF($AH18=FALSE,IF($W18<1000,IFERROR(VLOOKUP($W18,FeedLib[#All],BW$60,FALSE),""),IFERROR(VLOOKUP($W18,FeedLibUser[#All],BW$60,FALSE),"")),BW18),IF(AND(ISNUMBER($AI18),$AJ18<>""),BW18,"")) ->  | BX51: =IF(ISNUMBER($W18),IF($AH18=FALSE,IF($W18<1000,IFERROR(VLOOKUP($W18,FeedLib[#All],BX$60,FALSE),""),IFERROR(VLOOKUP($W18,FeedLibUser[#All],BX$60,FALSE),"")),BX18),IF(AND(ISNUMBER($AI18),$AJ18<>""),BX18,"")) ->  | BY51: =IF(ISNUMBER($W18),IF($AH18=FALSE,IF($W18<1000,IFERROR(VLOOKUP($W18,FeedLib[#All],BY$60,FALSE),""),IFERROR(VLOOKUP($W18,FeedLibUser[#All],BY$60,FALSE),"")),BY18),IF(AND(ISNUMBER($AI18),$AJ18<>""),BY18,"")) ->  | BZ51: =IF(ISNUMBER($W18),IF($AH18=FALSE,IF($W18<1000,IFERROR(VLOOKUP($W18,FeedLib[#All],BZ$60,FALSE),""),IFERROR(VLOOKUP($W18,FeedLibUser[#All],BZ$60,FALSE),"")),BZ18),IF(AND(ISNUMBER($AI18),$AJ18<>""),BZ18,"")) ->  | CA51: =IF(ISNUMBER($W18),IF($AH18=FALSE,IF($W18<1000,IFERROR(VLOOKUP($W18,FeedLib[#All],CA$60,FALSE),""),IFERROR(VLOOKUP($W18,FeedLibUser[#All],CA$60,FALSE),"")),CA18),IF(AND(ISNUMBER($AI18),$AJ18<>""),CA18,"")) ->  | CB51: =IF(ISNUMBER($W18),IF($AH18=FALSE,IF($W18<1000,IFERROR(VLOOKUP($W18,FeedLib[#All],CB$60,FALSE),""),IFERROR(VLOOKUP($W18,FeedLibUser[#All],CB$60,FALSE),"")),CB18),IF(AND(ISNUMBER($AI18),$AJ18<>""),CB18,"")) ->  | CC51: =IF(ISNUMBER($W18),IF($AH18=FALSE,IF($W18<1000,IFERROR(VLOOKUP($W18,FeedLib[#All],CC$60,FALSE),""),IFERROR(VLOOKUP($W18,FeedLibUser[#All],CC$60,FALSE),"")),CC18),IF(AND(ISNUMBER($AI18),$AJ18<>""),CC18,"")) ->  | CD51: =IF(ISNUMBER($W18),IF($AH18=FALSE,IF($W18<1000,IFERROR(VLOOKUP($W18,FeedLib[#All],CD$60,FALSE),""),IFERROR(VLOOKUP($W18,FeedLibUser[#All],CD$60,FALSE),"")),CD18),IF(AND(ISNUMBER($AI18),$AJ18<>""),CD18,"")) ->  | CE51: =IF(ISNUMBER($W18),IF($AH18=FALSE,IF($W18<1000,IFERROR(VLOOKUP($W18,FeedLib[#All],CE$60,FALSE),""),IFERROR(VLOOKUP($W18,FeedLibUser[#All],CE$60,FALSE),"")),CE18),IF(AND(ISNUMBER($AI18),$AJ18<>""),CE18,"")) ->  | CF51: =IF(ISNUMBER($W18),IF($AH18=FALSE,IF($W18<1000,IFERROR(VLOOKUP($W18,FeedLib[#All],CF$60,FALSE),""),IFERROR(VLOOKUP($W18,FeedLibUser[#All],CF$60,FALSE),"")),CF18),IF(AND(ISNUMBER($AI18),$AJ18<>""),CF18,"")) ->  | CG51: =IF(ISNUMBER($W18),IF($AH18=FALSE,IF($W18<1000,IFERROR(VLOOKUP($W18,FeedLib[#All],CG$60,FALSE),""),IFERROR(VLOOKUP($W18,FeedLibUser[#All],CG$60,FALSE),"")),CG18),IF(AND(ISNUMBER($AI18),$AJ18<>""),CG18,"")) ->  | CH51: =IF(ISNUMBER($W18),IF($AH18=FALSE,IF($W18<1000,IFERROR(VLOOKUP($W18,FeedLib[#All],CH$60,FALSE),""),IFERROR(VLOOKUP($W18,FeedLibUser[#All],CH$60,FALSE),"")),CH18),IF(AND(ISNUMBER($AI18),$AJ18<>""),CH18,"")) ->  | CI51: =IF(ISNUMBER($W18),IF($AH18=FALSE,IF($W18<1000,IFERROR(VLOOKUP($W18,FeedLib[#All],CI$60,FALSE),""),IFERROR(VLOOKUP($W18,FeedLibUser[#All],CI$60,FALSE),"")),CI18),IF(AND(ISNUMBER($AI18),$AJ18<>""),CI18,"")) ->  | CJ51: =IF(ISNUMBER($W18),IF($AH18=FALSE,IF($W18<1000,IFERROR(VLOOKUP($W18,FeedLib[#All],CJ$60,FALSE),""),IFERROR(VLOOKUP($W18,FeedLibUser[#All],CJ$60,FALSE),"")),CJ18),IF(AND(ISNUMBER($AI18),$AJ18<>""),CJ18,"")) ->  | CK51: =IF(ISNUMBER($W18),IF($AH18=FALSE,IF($W18<1000,IFERROR(VLOOKUP($W18,FeedLib[#All],CK$60,FALSE),""),IFERROR(VLOOKUP($W18,FeedLibUser[#All],CK$60,FALSE),"")),CK18),IF(AND(ISNUMBER($AI18),$AJ18<>""),CK18,"")) ->  | CL51: =IF(ISNUMBER($W18),IF($AH18=FALSE,IF($W18<1000,IFERROR(VLOOKUP($W18,FeedLib[#All],CL$60,FALSE),""),IFERROR(VLOOKUP($W18,FeedLibUser[#All],CL$60,FALSE),"")),CL18),IF(AND(ISNUMBER($AI18),$AJ18<>""),CL18,"")) ->  | CM51: =IF(ISNUMBER($W18),IF($AH18=FALSE,IF($W18<1000,IFERROR(VLOOKUP($W18,FeedLib[#All],CM$60,FALSE),""),IFERROR(VLOOKUP($W18,FeedLibUser[#All],CM$60,FALSE),"")),CM18),IF(AND(ISNUMBER($AI18),$AJ18<>""),CM18,"")) -> 
AK52: =IF(ISNUMBER($W19),IF($AH19=FALSE,IF($W19<1000,IFERROR(VLOOKUP($W19,FeedLib[#All],AK$60,FALSE),"")*(IF(parmUnit=1,1,2000/2204.6)),IFERROR(VLOOKUP($W19,FeedLibUser[#All],AK$60,FALSE),"")*(IF(parmUnit=1,1,2000/2204.6))),AK19),IF(AND(ISNUMBER($AI19),$AJ19<>""),AK19,"")) ->  | AL52: =IF(ISNUMBER($W19),IF($AH19=FALSE,IF($W19<1000,IFERROR(VLOOKUP($W19,FeedLib[#All],AL$60,FALSE),""),IFERROR(VLOOKUP($W19,FeedLibUser[#All],AL$60,FALSE),"")),AL19),IF(AND(ISNUMBER($AI19),$AJ19<>""),AL19,"")) ->  | AM52: =IF(ISNUMBER($W19),IF($AH19=FALSE,IF($W19<1000,IFERROR(VLOOKUP($W19,FeedLib[#All],AM$60,FALSE),""),IFERROR(VLOOKUP($W19,FeedLibUser[#All],AM$60,FALSE),"")),AM19),IF(AND(ISNUMBER($AI19),$AJ19<>""),AM19,"")) ->  | AN52: =IF(ISNUMBER($W19),IF($AH19=FALSE,IF($W19<1000,IFERROR(VLOOKUP($W19,FeedLib[#All],AN$60,FALSE),""),IFERROR(VLOOKUP($W19,FeedLibUser[#All],AN$60,FALSE),"")),AN19),IF(AND(ISNUMBER($AI19),$AJ19<>""),AN19,"")) ->  | AO52: =IF(ISNUMBER($W19),IF($AH19=FALSE,IF($W19<1000,IFERROR(VLOOKUP($W19,FeedLib[#All],AO$60,FALSE),""),IFERROR(VLOOKUP($W19,FeedLibUser[#All],AO$60,FALSE),"")),AO19),IF(AND(ISNUMBER($AI19),$AJ19<>""),AO19,"")) ->  | AP52: =IF(ISNUMBER($W19),IF($AH19=FALSE,IF($W19<1000,IFERROR(VLOOKUP($W19,FeedLib[#All],AP$60,FALSE),""),IFERROR(VLOOKUP($W19,FeedLibUser[#All],AP$60,FALSE),"")),AP19),IF(AND(ISNUMBER($AI19),$AJ19<>""),AP19,"")) ->  | AQ52: =IF(ISNUMBER($W19),IF($AH19=FALSE,IF($W19<1000,IFERROR(VLOOKUP($W19,FeedLib[#All],AQ$60,FALSE),""),IFERROR(VLOOKUP($W19,FeedLibUser[#All],AQ$60,FALSE),"")),AQ19),IF(AND(ISNUMBER($AI19),$AJ19<>""),AQ19,"")) ->  | AR52: =IF(ISNUMBER($W19),IF($AH19=FALSE,IF($W19<1000,IFERROR(VLOOKUP($W19,FeedLib[#All],AR$60,FALSE),""),IFERROR(VLOOKUP($W19,FeedLibUser[#All],AR$60,FALSE),"")),AR19),IF(AND(ISNUMBER($AI19),$AJ19<>""),AR19,"")) ->  | AS52: =IF(ISNUMBER($W19),IF($AH19=FALSE,IF($W19<1000,IFERROR(VLOOKUP($W19,FeedLib[#All],AS$60,FALSE),""),IFERROR(VLOOKUP($W19,FeedLibUser[#All],AS$60,FALSE),"")),AS19),IF(AND(ISNUMBER($AI19),$AJ19<>""),AS19,"")) ->  | AT52: =IF(ISNUMBER($W19),IF($AH19=FALSE,IF($W19<1000,IFERROR(VLOOKUP($W19,FeedLib[#All],AT$60,FALSE),""),IFERROR(VLOOKUP($W19,FeedLibUser[#All],AT$60,FALSE),"")),AT19),IF(AND(ISNUMBER($AI19),$AJ19<>""),AT19,"")) ->  | AU52: =IF(ISNUMBER($W19),IF($AH19=FALSE,IF($W19<1000,IFERROR(VLOOKUP($W19,FeedLib[#All],AU$60,FALSE),""),IFERROR(VLOOKUP($W19,FeedLibUser[#All],AU$60,FALSE),"")),AU19),IF(AND(ISNUMBER($AI19),$AJ19<>""),AU19,"")) ->  | AV52: =IF(ISNUMBER($W19),IF($AH19=FALSE,IF($W19<1000,IFERROR(VLOOKUP($W19,FeedLib[#All],AV$60,FALSE),""),IFERROR(VLOOKUP($W19,FeedLibUser[#All],AV$60,FALSE),"")),AV19),IF(AND(ISNUMBER($AI19),$AJ19<>""),AV19,"")) ->  | AW52: =IF(ISNUMBER($W19),IF($AH19=FALSE,IF($W19<1000,IFERROR(VLOOKUP($W19,FeedLib[#All],AW$60,FALSE),""),IFERROR(VLOOKUP($W19,FeedLibUser[#All],AW$60,FALSE),"")),AW19),IF(AND(ISNUMBER($AI19),$AJ19<>""),AW19,"")) ->  | AX52: =IF(ISNUMBER($W19),IF($AH19=FALSE,IF($W19<1000,IFERROR(VLOOKUP($W19,FeedLib[#All],AX$60,FALSE),""),IFERROR(VLOOKUP($W19,FeedLibUser[#All],AX$60,FALSE),"")),AX19),IF(AND(ISNUMBER($AI19),$AJ19<>""),AX19,"")) ->  | AY52: =IF(ISNUMBER($W19),IF($AH19=FALSE,IF($W19<1000,IFERROR(VLOOKUP($W19,FeedLib[#All],AY$60,FALSE),"")/IF(parmUnit=1,1,2.2046),IFERROR(VLOOKUP($W19,FeedLibUser[#All],AY$60,FALSE),"")/IF(parmUnit=1,1,2.2046)),AY19),IF(AND(ISNUMBER($AI19),$AJ19<>""),AY19,"")) ->  | AZ52: =IF(ISNUMBER($W19),IF($AH19=FALSE,IF($W19<1000,IFERROR(VLOOKUP($W19,FeedLib[#All],AZ$60,FALSE),"")/IF(parmUnit=1,1,2.2046),IFERROR(VLOOKUP($W19,FeedLibUser[#All],AZ$60,FALSE),"")/IF(parmUnit=1,1,2.2046)),AZ19),IF(AND(ISNUMBER($AI19),$AJ19<>""),AZ19,"")) ->  | BA52: =IF(ISNUMBER($W19),IF($AH19=FALSE,IF($W19<1000,IFERROR(VLOOKUP($W19,FeedLib[#All],BA$60,FALSE),"")/IF(parmUnit=1,1,2.2046),IFERROR(VLOOKUP($W19,FeedLibUser[#All],BA$60,FALSE),"")/IF(parmUnit=1,1,2.2046)),BA19),IF(AND(ISNUMBER($AI19),$AJ19<>""),BA19,"")) ->  | BB52: =IF(ISNUMBER($W19),IF($AH19=FALSE,IF($W19<1000,IFERROR(VLOOKUP($W19,FeedLib[#All],BB$60,FALSE),""),IFERROR(VLOOKUP($W19,FeedLibUser[#All],BB$60,FALSE),"")),BB19),IF(AND(ISNUMBER($AI19),$AJ19<>""),BB19,"")) ->  | BC52: =IF(ISNUMBER($W19),IF($AH19=FALSE,IF($W19<1000,IFERROR(VLOOKUP($W19,FeedLib[#All],BC$60,FALSE),""),IFERROR(VLOOKUP($W19,FeedLibUser[#All],BC$60,FALSE),"")),BC19),IF(AND(ISNUMBER($AI19),$AJ19<>""),BC19,"")) ->  | BD52: =IF(ISNUMBER($W19),IF($AH19=FALSE,IF($W19<1000,IFERROR(VLOOKUP($W19,FeedLib[#All],BD$60,FALSE),""),IFERROR(VLOOKUP($W19,FeedLibUser[#All],BD$60,FALSE),"")),BD19),IF(AND(ISNUMBER($AI19),$AJ19<>""),BD19,"")) ->  | BE52: =IF(ISNUMBER($W19),IF($AH19=FALSE,IF($W19<1000,IFERROR(VLOOKUP($W19,FeedLib[#All],BE$60,FALSE),""),IFERROR(VLOOKUP($W19,FeedLibUser[#All],BE$60,FALSE),"")),BE19),IF(AND(ISNUMBER($AI19),$AJ19<>""),BE19,"")) ->  | BF52: =IF(ISNUMBER($W19),IF($AH19=FALSE,IF($W19<1000,IFERROR(VLOOKUP($W19,FeedLib[#All],BF$60,FALSE),""),IFERROR(VLOOKUP($W19,FeedLibUser[#All],BF$60,FALSE),"")),BF19),IF(AND(ISNUMBER($AI19),$AJ19<>""),BF19,"")) ->  | BG52: =IF(ISNUMBER($W19),IF($AH19=FALSE,IF($W19<1000,IFERROR(VLOOKUP($W19,FeedLib[#All],BG$60,FALSE),""),IFERROR(VLOOKUP($W19,FeedLibUser[#All],BG$60,FALSE),"")),BG19),IF(AND(ISNUMBER($AI19),$AJ19<>""),BG19,"")) ->  | BH52: =IF(ISNUMBER($W19),IF($AH19=FALSE,IF($W19<1000,IFERROR(VLOOKUP($W19,FeedLib[#All],BH$60,FALSE),""),IFERROR(VLOOKUP($W19,FeedLibUser[#All],BH$60,FALSE),"")),BH19),IF(AND(ISNUMBER($AI19),$AJ19<>""),BH19,"")) ->  | BI52: =IF(ISNUMBER($W19),IF($AH19=FALSE,IF($W19<1000,IFERROR(VLOOKUP($W19,FeedLib[#All],BI$60,FALSE),""),IFERROR(VLOOKUP($W19,FeedLibUser[#All],BI$60,FALSE),"")),BI19),IF(AND(ISNUMBER($AI19),$AJ19<>""),BI19,"")) ->  | BJ52: =IF(ISNUMBER($W19),IF($AH19=FALSE,IF($W19<1000,IFERROR(VLOOKUP($W19,FeedLib[#All],BJ$60,FALSE),""),IFERROR(VLOOKUP($W19,FeedLibUser[#All],BJ$60,FALSE),"")),BJ19),IF(AND(ISNUMBER($AI19),$AJ19<>""),BJ19,"")) ->  | BK52: =IF(ISNUMBER($W19),IF($AH19=FALSE,IF($W19<1000,IFERROR(VLOOKUP($W19,FeedLib[#All],BK$60,FALSE),""),IFERROR(VLOOKUP($W19,FeedLibUser[#All],BK$60,FALSE),"")),BK19),IF(AND(ISNUMBER($AI19),$AJ19<>""),BK19,"")) ->  | BL52: =IF(ISNUMBER($W19),IF($AH19=FALSE,IF($W19<1000,IFERROR(VLOOKUP($W19,FeedLib[#All],BL$60,FALSE),""),IFERROR(VLOOKUP($W19,FeedLibUser[#All],BL$60,FALSE),"")),BL19),IF(AND(ISNUMBER($AI19),$AJ19<>""),BL19,"")) ->  | BM52: =IF(ISNUMBER($W19),IF($AH19=FALSE,IF($W19<1000,IFERROR(VLOOKUP($W19,FeedLib[#All],BM$60,FALSE),""),IFERROR(VLOOKUP($W19,FeedLibUser[#All],BM$60,FALSE),"")),BM19),IF(AND(ISNUMBER($AI19),$AJ19<>""),BM19,"")) ->  | BN52: =IF(ISNUMBER($W19),IF($AH19=FALSE,IF($W19<1000,IFERROR(VLOOKUP($W19,FeedLib[#All],BN$60,FALSE),""),IFERROR(VLOOKUP($W19,FeedLibUser[#All],BN$60,FALSE),"")),BN19),IF(AND(ISNUMBER($AI19),$AJ19<>""),BN19,"")) ->  | BO52: =IF(ISNUMBER($W19),IF($AH19=FALSE,IF($W19<1000,IFERROR(VLOOKUP($W19,FeedLib[#All],BO$60,FALSE),""),IFERROR(VLOOKUP($W19,FeedLibUser[#All],BO$60,FALSE),"")),BO19),IF(AND(ISNUMBER($AI19),$AJ19<>""),BO19,"")) ->  | BP52: =IF(ISNUMBER($W19),IF($AH19=FALSE,IF($W19<1000,IFERROR(VLOOKUP($W19,FeedLib[#All],BP$60,FALSE),""),IFERROR(VLOOKUP($W19,FeedLibUser[#All],BP$60,FALSE),"")),BP19),IF(AND(ISNUMBER($AI19),$AJ19<>""),BP19,"")) ->  | BQ52: =IF(ISNUMBER($W19),IF($AH19=FALSE,IF($W19<1000,IFERROR(VLOOKUP($W19,FeedLib[#All],BQ$60,FALSE),""),IFERROR(VLOOKUP($W19,FeedLibUser[#All],BQ$60,FALSE),"")),BQ19),IF(AND(ISNUMBER($AI19),$AJ19<>""),BQ19,"")) ->  | BR52: =IF(ISNUMBER($W19),IF($AH19=FALSE,IF($W19<1000,IFERROR(VLOOKUP($W19,FeedLib[#All],BR$60,FALSE),""),IFERROR(VLOOKUP($W19,FeedLibUser[#All],BR$60,FALSE),"")),BR19),IF(AND(ISNUMBER($AI19),$AJ19<>""),BR19,"")) ->  | BS52: =IF(ISNUMBER($W19),IF($AH19=FALSE,IF($W19<1000,IFERROR(VLOOKUP($W19,FeedLib[#All],BS$60,FALSE),""),IFERROR(VLOOKUP($W19,FeedLibUser[#All],BS$60,FALSE),"")),BS19),IF(AND(ISNUMBER($AI19),$AJ19<>""),BS19,"")) ->  | BT52: =IF(ISNUMBER($W19),IF($AH19=FALSE,IF($W19<1000,IFERROR(VLOOKUP($W19,FeedLib[#All],BT$60,FALSE),""),IFERROR(VLOOKUP($W19,FeedLibUser[#All],BT$60,FALSE),"")),BT19),IF(AND(ISNUMBER($AI19),$AJ19<>""),BT19,"")) ->  | BU52: =IF(ISNUMBER($W19),IF($AH19=FALSE,IF($W19<1000,IFERROR(VLOOKUP($W19,FeedLib[#All],BU$60,FALSE),""),IFERROR(VLOOKUP($W19,FeedLibUser[#All],BU$60,FALSE),"")),BU19),IF(AND(ISNUMBER($AI19),$AJ19<>""),BU19,"")) ->  | BV52: =IF(ISNUMBER($W19),IF($AH19=FALSE,IF($W19<1000,IFERROR(VLOOKUP($W19,FeedLib[#All],BV$60,FALSE),""),IFERROR(VLOOKUP($W19,FeedLibUser[#All],BV$60,FALSE),"")),BV19),IF(AND(ISNUMBER($AI19),$AJ19<>""),BV19,"")) ->  | BW52: =IF(ISNUMBER($W19),IF($AH19=FALSE,IF($W19<1000,IFERROR(VLOOKUP($W19,FeedLib[#All],BW$60,FALSE),""),IFERROR(VLOOKUP($W19,FeedLibUser[#All],BW$60,FALSE),"")),BW19),IF(AND(ISNUMBER($AI19),$AJ19<>""),BW19,"")) ->  | BX52: =IF(ISNUMBER($W19),IF($AH19=FALSE,IF($W19<1000,IFERROR(VLOOKUP($W19,FeedLib[#All],BX$60,FALSE),""),IFERROR(VLOOKUP($W19,FeedLibUser[#All],BX$60,FALSE),"")),BX19),IF(AND(ISNUMBER($AI19),$AJ19<>""),BX19,"")) ->  | BY52: =IF(ISNUMBER($W19),IF($AH19=FALSE,IF($W19<1000,IFERROR(VLOOKUP($W19,FeedLib[#All],BY$60,FALSE),""),IFERROR(VLOOKUP($W19,FeedLibUser[#All],BY$60,FALSE),"")),BY19),IF(AND(ISNUMBER($AI19),$AJ19<>""),BY19,"")) ->  | BZ52: =IF(ISNUMBER($W19),IF($AH19=FALSE,IF($W19<1000,IFERROR(VLOOKUP($W19,FeedLib[#All],BZ$60,FALSE),""),IFERROR(VLOOKUP($W19,FeedLibUser[#All],BZ$60,FALSE),"")),BZ19),IF(AND(ISNUMBER($AI19),$AJ19<>""),BZ19,"")) ->  | CA52: =IF(ISNUMBER($W19),IF($AH19=FALSE,IF($W19<1000,IFERROR(VLOOKUP($W19,FeedLib[#All],CA$60,FALSE),""),IFERROR(VLOOKUP($W19,FeedLibUser[#All],CA$60,FALSE),"")),CA19),IF(AND(ISNUMBER($AI19),$AJ19<>""),CA19,"")) ->  | CB52: =IF(ISNUMBER($W19),IF($AH19=FALSE,IF($W19<1000,IFERROR(VLOOKUP($W19,FeedLib[#All],CB$60,FALSE),""),IFERROR(VLOOKUP($W19,FeedLibUser[#All],CB$60,FALSE),"")),CB19),IF(AND(ISNUMBER($AI19),$AJ19<>""),CB19,"")) ->  | CC52: =IF(ISNUMBER($W19),IF($AH19=FALSE,IF($W19<1000,IFERROR(VLOOKUP($W19,FeedLib[#All],CC$60,FALSE),""),IFERROR(VLOOKUP($W19,FeedLibUser[#All],CC$60,FALSE),"")),CC19),IF(AND(ISNUMBER($AI19),$AJ19<>""),CC19,"")) ->  | CD52: =IF(ISNUMBER($W19),IF($AH19=FALSE,IF($W19<1000,IFERROR(VLOOKUP($W19,FeedLib[#All],CD$60,FALSE),""),IFERROR(VLOOKUP($W19,FeedLibUser[#All],CD$60,FALSE),"")),CD19),IF(AND(ISNUMBER($AI19),$AJ19<>""),CD19,"")) ->  | CE52: =IF(ISNUMBER($W19),IF($AH19=FALSE,IF($W19<1000,IFERROR(VLOOKUP($W19,FeedLib[#All],CE$60,FALSE),""),IFERROR(VLOOKUP($W19,FeedLibUser[#All],CE$60,FALSE),"")),CE19),IF(AND(ISNUMBER($AI19),$AJ19<>""),CE19,"")) ->  | CF52: =IF(ISNUMBER($W19),IF($AH19=FALSE,IF($W19<1000,IFERROR(VLOOKUP($W19,FeedLib[#All],CF$60,FALSE),""),IFERROR(VLOOKUP($W19,FeedLibUser[#All],CF$60,FALSE),"")),CF19),IF(AND(ISNUMBER($AI19),$AJ19<>""),CF19,"")) ->  | CG52: =IF(ISNUMBER($W19),IF($AH19=FALSE,IF($W19<1000,IFERROR(VLOOKUP($W19,FeedLib[#All],CG$60,FALSE),""),IFERROR(VLOOKUP($W19,FeedLibUser[#All],CG$60,FALSE),"")),CG19),IF(AND(ISNUMBER($AI19),$AJ19<>""),CG19,"")) ->  | CH52: =IF(ISNUMBER($W19),IF($AH19=FALSE,IF($W19<1000,IFERROR(VLOOKUP($W19,FeedLib[#All],CH$60,FALSE),""),IFERROR(VLOOKUP($W19,FeedLibUser[#All],CH$60,FALSE),"")),CH19),IF(AND(ISNUMBER($AI19),$AJ19<>""),CH19,"")) ->  | CI52: =IF(ISNUMBER($W19),IF($AH19=FALSE,IF($W19<1000,IFERROR(VLOOKUP($W19,FeedLib[#All],CI$60,FALSE),""),IFERROR(VLOOKUP($W19,FeedLibUser[#All],CI$60,FALSE),"")),CI19),IF(AND(ISNUMBER($AI19),$AJ19<>""),CI19,"")) ->  | CJ52: =IF(ISNUMBER($W19),IF($AH19=FALSE,IF($W19<1000,IFERROR(VLOOKUP($W19,FeedLib[#All],CJ$60,FALSE),""),IFERROR(VLOOKUP($W19,FeedLibUser[#All],CJ$60,FALSE),"")),CJ19),IF(AND(ISNUMBER($AI19),$AJ19<>""),CJ19,"")) ->  | CK52: =IF(ISNUMBER($W19),IF($AH19=FALSE,IF($W19<1000,IFERROR(VLOOKUP($W19,FeedLib[#All],CK$60,FALSE),""),IFERROR(VLOOKUP($W19,FeedLibUser[#All],CK$60,FALSE),"")),CK19),IF(AND(ISNUMBER($AI19),$AJ19<>""),CK19,"")) ->  | CL52: =IF(ISNUMBER($W19),IF($AH19=FALSE,IF($W19<1000,IFERROR(VLOOKUP($W19,FeedLib[#All],CL$60,FALSE),""),IFERROR(VLOOKUP($W19,FeedLibUser[#All],CL$60,FALSE),"")),CL19),IF(AND(ISNUMBER($AI19),$AJ19<>""),CL19,"")) ->  | CM52: =IF(ISNUMBER($W19),IF($AH19=FALSE,IF($W19<1000,IFERROR(VLOOKUP($W19,FeedLib[#All],CM$60,FALSE),""),IFERROR(VLOOKUP($W19,FeedLibUser[#All],CM$60,FALSE),"")),CM19),IF(AND(ISNUMBER($AI19),$AJ19<>""),CM19,"")) -> 
B53: Table 3. Management and Grazing | AI53: =IF(ISNUMBER($W20),IF($AH20=FALSE,W20,AI20),IF(AND(ISNUMBER($AI20),$AJ20<>""),AI20,"")) ->  | AK53: =IF(ISNUMBER($W20),IF($AH20=FALSE,IF($W20<1000,IFERROR(VLOOKUP($W20,FeedLib[#All],AK$60,FALSE),"")*(IF(parmUnit=1,1,2000/2204.6)),IFERROR(VLOOKUP($W20,FeedLibUser[#All],AK$60,FALSE),"")*(IF(parmUnit=1,1,2000/2204.6))),AK20),IF(AND(ISNUMBER($AI20),$AJ20<>""),AK20,"")) ->  | AL53: =IF(ISNUMBER($W20),IF($AH20=FALSE,IF($W20<1000,IFERROR(VLOOKUP($W20,FeedLib[#All],AL$60,FALSE),""),IFERROR(VLOOKUP($W20,FeedLibUser[#All],AL$60,FALSE),"")),AL20),IF(AND(ISNUMBER($AI20),$AJ20<>""),AL20,"")) ->  | AM53: =IF(ISNUMBER($W20),IF($AH20=FALSE,IF($W20<1000,IFERROR(VLOOKUP($W20,FeedLib[#All],AM$60,FALSE),""),IFERROR(VLOOKUP($W20,FeedLibUser[#All],AM$60,FALSE),"")),AM20),IF(AND(ISNUMBER($AI20),$AJ20<>""),AM20,"")) ->  | AN53: =IF(ISNUMBER($W20),IF($AH20=FALSE,IF($W20<1000,IFERROR(VLOOKUP($W20,FeedLib[#All],AN$60,FALSE),""),IFERROR(VLOOKUP($W20,FeedLibUser[#All],AN$60,FALSE),"")),AN20),IF(AND(ISNUMBER($AI20),$AJ20<>""),AN20,"")) ->  | AO53: =IF(ISNUMBER($W20),IF($AH20=FALSE,IF($W20<1000,IFERROR(VLOOKUP($W20,FeedLib[#All],AO$60,FALSE),""),IFERROR(VLOOKUP($W20,FeedLibUser[#All],AO$60,FALSE),"")),AO20),IF(AND(ISNUMBER($AI20),$AJ20<>""),AO20,"")) ->  | AP53: =IF(ISNUMBER($W20),IF($AH20=FALSE,IF($W20<1000,IFERROR(VLOOKUP($W20,FeedLib[#All],AP$60,FALSE),""),IFERROR(VLOOKUP($W20,FeedLibUser[#All],AP$60,FALSE),"")),AP20),IF(AND(ISNUMBER($AI20),$AJ20<>""),AP20,"")) ->  | AQ53: =IF(ISNUMBER($W20),IF($AH20=FALSE,IF($W20<1000,IFERROR(VLOOKUP($W20,FeedLib[#All],AQ$60,FALSE),""),IFERROR(VLOOKUP($W20,FeedLibUser[#All],AQ$60,FALSE),"")),AQ20),IF(AND(ISNUMBER($AI20),$AJ20<>""),AQ20,"")) ->  | AR53: =IF(ISNUMBER($W20),IF($AH20=FALSE,IF($W20<1000,IFERROR(VLOOKUP($W20,FeedLib[#All],AR$60,FALSE),""),IFERROR(VLOOKUP($W20,FeedLibUser[#All],AR$60,FALSE),"")),AR20),IF(AND(ISNUMBER($AI20),$AJ20<>""),AR20,"")) ->  | AS53: =IF(ISNUMBER($W20),IF($AH20=FALSE,IF($W20<1000,IFERROR(VLOOKUP($W20,FeedLib[#All],AS$60,FALSE),""),IFERROR(VLOOKUP($W20,FeedLibUser[#All],AS$60,FALSE),"")),AS20),IF(AND(ISNUMBER($AI20),$AJ20<>""),AS20,"")) ->  | AT53: =IF(ISNUMBER($W20),IF($AH20=FALSE,IF($W20<1000,IFERROR(VLOOKUP($W20,FeedLib[#All],AT$60,FALSE),""),IFERROR(VLOOKUP($W20,FeedLibUser[#All],AT$60,FALSE),"")),AT20),IF(AND(ISNUMBER($AI20),$AJ20<>""),AT20,"")) ->  | AU53: =IF(ISNUMBER($W20),IF($AH20=FALSE,IF($W20<1000,IFERROR(VLOOKUP($W20,FeedLib[#All],AU$60,FALSE),""),IFERROR(VLOOKUP($W20,FeedLibUser[#All],AU$60,FALSE),"")),AU20),IF(AND(ISNUMBER($AI20),$AJ20<>""),AU20,"")) ->  | AV53: =IF(ISNUMBER($W20),IF($AH20=FALSE,IF($W20<1000,IFERROR(VLOOKUP($W20,FeedLib[#All],AV$60,FALSE),""),IFERROR(VLOOKUP($W20,FeedLibUser[#All],AV$60,FALSE),"")),AV20),IF(AND(ISNUMBER($AI20),$AJ20<>""),AV20,"")) ->  | AW53: =IF(ISNUMBER($W20),IF($AH20=FALSE,IF($W20<1000,IFERROR(VLOOKUP($W20,FeedLib[#All],AW$60,FALSE),""),IFERROR(VLOOKUP($W20,FeedLibUser[#All],AW$60,FALSE),"")),AW20),IF(AND(ISNUMBER($AI20),$AJ20<>""),AW20,"")) ->  | AX53: =IF(ISNUMBER($W20),IF($AH20=FALSE,IF($W20<1000,IFERROR(VLOOKUP($W20,FeedLib[#All],AX$60,FALSE),""),IFERROR(VLOOKUP($W20,FeedLibUser[#All],AX$60,FALSE),"")),AX20),IF(AND(ISNUMBER($AI20),$AJ20<>""),AX20,"")) ->  | AY53: =IF(ISNUMBER($W20),IF($AH20=FALSE,IF($W20<1000,IFERROR(VLOOKUP($W20,FeedLib[#All],AY$60,FALSE),"")/IF(parmUnit=1,1,2.2046),IFERROR(VLOOKUP($W20,FeedLibUser[#All],AY$60,FALSE),"")/IF(parmUnit=1,1,2.2046)),AY20),IF(AND(ISNUMBER($AI20),$AJ20<>""),AY20,"")) ->  | AZ53: =IF(ISNUMBER($W20),IF($AH20=FALSE,IF($W20<1000,IFERROR(VLOOKUP($W20,FeedLib[#All],AZ$60,FALSE),"")/IF(parmUnit=1,1,2.2046),IFERROR(VLOOKUP($W20,FeedLibUser[#All],AZ$60,FALSE),"")/IF(parmUnit=1,1,2.2046)),AZ20),IF(AND(ISNUMBER($AI20),$AJ20<>""),AZ20,"")) ->  | BA53: =IF(ISNUMBER($W20),IF($AH20=FALSE,IF($W20<1000,IFERROR(VLOOKUP($W20,FeedLib[#All],BA$60,FALSE),"")/IF(parmUnit=1,1,2.2046),IFERROR(VLOOKUP($W20,FeedLibUser[#All],BA$60,FALSE),"")/IF(parmUnit=1,1,2.2046)),BA20),IF(AND(ISNUMBER($AI20),$AJ20<>""),BA20,"")) ->  | BB53: =IF(ISNUMBER($W20),IF($AH20=FALSE,IF($W20<1000,IFERROR(VLOOKUP($W20,FeedLib[#All],BB$60,FALSE),""),IFERROR(VLOOKUP($W20,FeedLibUser[#All],BB$60,FALSE),"")),BB20),IF(AND(ISNUMBER($AI20),$AJ20<>""),BB20,"")) ->  | BC53: =IF(ISNUMBER($W20),IF($AH20=FALSE,IF($W20<1000,IFERROR(VLOOKUP($W20,FeedLib[#All],BC$60,FALSE),""),IFERROR(VLOOKUP($W20,FeedLibUser[#All],BC$60,FALSE),"")),BC20),IF(AND(ISNUMBER($AI20),$AJ20<>""),BC20,"")) ->  | BD53: =IF(ISNUMBER($W20),IF($AH20=FALSE,IF($W20<1000,IFERROR(VLOOKUP($W20,FeedLib[#All],BD$60,FALSE),""),IFERROR(VLOOKUP($W20,FeedLibUser[#All],BD$60,FALSE),"")),BD20),IF(AND(ISNUMBER($AI20),$AJ20<>""),BD20,"")) ->  | BE53: =IF(ISNUMBER($W20),IF($AH20=FALSE,IF($W20<1000,IFERROR(VLOOKUP($W20,FeedLib[#All],BE$60,FALSE),""),IFERROR(VLOOKUP($W20,FeedLibUser[#All],BE$60,FALSE),"")),BE20),IF(AND(ISNUMBER($AI20),$AJ20<>""),BE20,"")) ->  | BF53: =IF(ISNUMBER($W20),IF($AH20=FALSE,IF($W20<1000,IFERROR(VLOOKUP($W20,FeedLib[#All],BF$60,FALSE),""),IFERROR(VLOOKUP($W20,FeedLibUser[#All],BF$60,FALSE),"")),BF20),IF(AND(ISNUMBER($AI20),$AJ20<>""),BF20,"")) ->  | BG53: =IF(ISNUMBER($W20),IF($AH20=FALSE,IF($W20<1000,IFERROR(VLOOKUP($W20,FeedLib[#All],BG$60,FALSE),""),IFERROR(VLOOKUP($W20,FeedLibUser[#All],BG$60,FALSE),"")),BG20),IF(AND(ISNUMBER($AI20),$AJ20<>""),BG20,"")) ->  | BH53: =IF(ISNUMBER($W20),IF($AH20=FALSE,IF($W20<1000,IFERROR(VLOOKUP($W20,FeedLib[#All],BH$60,FALSE),""),IFERROR(VLOOKUP($W20,FeedLibUser[#All],BH$60,FALSE),"")),BH20),IF(AND(ISNUMBER($AI20),$AJ20<>""),BH20,"")) ->  | BI53: =IF(ISNUMBER($W20),IF($AH20=FALSE,IF($W20<1000,IFERROR(VLOOKUP($W20,FeedLib[#All],BI$60,FALSE),""),IFERROR(VLOOKUP($W20,FeedLibUser[#All],BI$60,FALSE),"")),BI20),IF(AND(ISNUMBER($AI20),$AJ20<>""),BI20,"")) ->  | BJ53: =IF(ISNUMBER($W20),IF($AH20=FALSE,IF($W20<1000,IFERROR(VLOOKUP($W20,FeedLib[#All],BJ$60,FALSE),""),IFERROR(VLOOKUP($W20,FeedLibUser[#All],BJ$60,FALSE),"")),BJ20),IF(AND(ISNUMBER($AI20),$AJ20<>""),BJ20,"")) ->  | BK53: =IF(ISNUMBER($W20),IF($AH20=FALSE,IF($W20<1000,IFERROR(VLOOKUP($W20,FeedLib[#All],BK$60,FALSE),""),IFERROR(VLOOKUP($W20,FeedLibUser[#All],BK$60,FALSE),"")),BK20),IF(AND(ISNUMBER($AI20),$AJ20<>""),BK20,"")) ->  | BL53: =IF(ISNUMBER($W20),IF($AH20=FALSE,IF($W20<1000,IFERROR(VLOOKUP($W20,FeedLib[#All],BL$60,FALSE),""),IFERROR(VLOOKUP($W20,FeedLibUser[#All],BL$60,FALSE),"")),BL20),IF(AND(ISNUMBER($AI20),$AJ20<>""),BL20,"")) ->  | BM53: =IF(ISNUMBER($W20),IF($AH20=FALSE,IF($W20<1000,IFERROR(VLOOKUP($W20,FeedLib[#All],BM$60,FALSE),""),IFERROR(VLOOKUP($W20,FeedLibUser[#All],BM$60,FALSE),"")),BM20),IF(AND(ISNUMBER($AI20),$AJ20<>""),BM20,"")) ->  | BN53: =IF(ISNUMBER($W20),IF($AH20=FALSE,IF($W20<1000,IFERROR(VLOOKUP($W20,FeedLib[#All],BN$60,FALSE),""),IFERROR(VLOOKUP($W20,FeedLibUser[#All],BN$60,FALSE),"")),BN20),IF(AND(ISNUMBER($AI20),$AJ20<>""),BN20,"")) ->  | BO53: =IF(ISNUMBER($W20),IF($AH20=FALSE,IF($W20<1000,IFERROR(VLOOKUP($W20,FeedLib[#All],BO$60,FALSE),""),IFERROR(VLOOKUP($W20,FeedLibUser[#All],BO$60,FALSE),"")),BO20),IF(AND(ISNUMBER($AI20),$AJ20<>""),BO20,"")) ->  | BP53: =IF(ISNUMBER($W20),IF($AH20=FALSE,IF($W20<1000,IFERROR(VLOOKUP($W20,FeedLib[#All],BP$60,FALSE),""),IFERROR(VLOOKUP($W20,FeedLibUser[#All],BP$60,FALSE),"")),BP20),IF(AND(ISNUMBER($AI20),$AJ20<>""),BP20,"")) ->  | BQ53: =IF(ISNUMBER($W20),IF($AH20=FALSE,IF($W20<1000,IFERROR(VLOOKUP($W20,FeedLib[#All],BQ$60,FALSE),""),IFERROR(VLOOKUP($W20,FeedLibUser[#All],BQ$60,FALSE),"")),BQ20),IF(AND(ISNUMBER($AI20),$AJ20<>""),BQ20,"")) ->  | BR53: =IF(ISNUMBER($W20),IF($AH20=FALSE,IF($W20<1000,IFERROR(VLOOKUP($W20,FeedLib[#All],BR$60,FALSE),""),IFERROR(VLOOKUP($W20,FeedLibUser[#All],BR$60,FALSE),"")),BR20),IF(AND(ISNUMBER($AI20),$AJ20<>""),BR20,"")) ->  | BS53: =IF(ISNUMBER($W20),IF($AH20=FALSE,IF($W20<1000,IFERROR(VLOOKUP($W20,FeedLib[#All],BS$60,FALSE),""),IFERROR(VLOOKUP($W20,FeedLibUser[#All],BS$60,FALSE),"")),BS20),IF(AND(ISNUMBER($AI20),$AJ20<>""),BS20,"")) ->  | BT53: =IF(ISNUMBER($W20),IF($AH20=FALSE,IF($W20<1000,IFERROR(VLOOKUP($W20,FeedLib[#All],BT$60,FALSE),""),IFERROR(VLOOKUP($W20,FeedLibUser[#All],BT$60,FALSE),"")),BT20),IF(AND(ISNUMBER($AI20),$AJ20<>""),BT20,"")) ->  | BU53: =IF(ISNUMBER($W20),IF($AH20=FALSE,IF($W20<1000,IFERROR(VLOOKUP($W20,FeedLib[#All],BU$60,FALSE),""),IFERROR(VLOOKUP($W20,FeedLibUser[#All],BU$60,FALSE),"")),BU20),IF(AND(ISNUMBER($AI20),$AJ20<>""),BU20,"")) ->  | BV53: =IF(ISNUMBER($W20),IF($AH20=FALSE,IF($W20<1000,IFERROR(VLOOKUP($W20,FeedLib[#All],BV$60,FALSE),""),IFERROR(VLOOKUP($W20,FeedLibUser[#All],BV$60,FALSE),"")),BV20),IF(AND(ISNUMBER($AI20),$AJ20<>""),BV20,"")) ->  | BW53: =IF(ISNUMBER($W20),IF($AH20=FALSE,IF($W20<1000,IFERROR(VLOOKUP($W20,FeedLib[#All],BW$60,FALSE),""),IFERROR(VLOOKUP($W20,FeedLibUser[#All],BW$60,FALSE),"")),BW20),IF(AND(ISNUMBER($AI20),$AJ20<>""),BW20,"")) ->  | BX53: =IF(ISNUMBER($W20),IF($AH20=FALSE,IF($W20<1000,IFERROR(VLOOKUP($W20,FeedLib[#All],BX$60,FALSE),""),IFERROR(VLOOKUP($W20,FeedLibUser[#All],BX$60,FALSE),"")),BX20),IF(AND(ISNUMBER($AI20),$AJ20<>""),BX20,"")) ->  | BY53: =IF(ISNUMBER($W20),IF($AH20=FALSE,IF($W20<1000,IFERROR(VLOOKUP($W20,FeedLib[#All],BY$60,FALSE),""),IFERROR(VLOOKUP($W20,FeedLibUser[#All],BY$60,FALSE),"")),BY20),IF(AND(ISNUMBER($AI20),$AJ20<>""),BY20,"")) ->  | BZ53: =IF(ISNUMBER($W20),IF($AH20=FALSE,IF($W20<1000,IFERROR(VLOOKUP($W20,FeedLib[#All],BZ$60,FALSE),""),IFERROR(VLOOKUP($W20,FeedLibUser[#All],BZ$60,FALSE),"")),BZ20),IF(AND(ISNUMBER($AI20),$AJ20<>""),BZ20,"")) ->  | CA53: =IF(ISNUMBER($W20),IF($AH20=FALSE,IF($W20<1000,IFERROR(VLOOKUP($W20,FeedLib[#All],CA$60,FALSE),""),IFERROR(VLOOKUP($W20,FeedLibUser[#All],CA$60,FALSE),"")),CA20),IF(AND(ISNUMBER($AI20),$AJ20<>""),CA20,"")) ->  | CB53: =IF(ISNUMBER($W20),IF($AH20=FALSE,IF($W20<1000,IFERROR(VLOOKUP($W20,FeedLib[#All],CB$60,FALSE),""),IFERROR(VLOOKUP($W20,FeedLibUser[#All],CB$60,FALSE),"")),CB20),IF(AND(ISNUMBER($AI20),$AJ20<>""),CB20,"")) ->  | CC53: =IF(ISNUMBER($W20),IF($AH20=FALSE,IF($W20<1000,IFERROR(VLOOKUP($W20,FeedLib[#All],CC$60,FALSE),""),IFERROR(VLOOKUP($W20,FeedLibUser[#All],CC$60,FALSE),"")),CC20),IF(AND(ISNUMBER($AI20),$AJ20<>""),CC20,"")) ->  | CD53: =IF(ISNUMBER($W20),IF($AH20=FALSE,IF($W20<1000,IFERROR(VLOOKUP($W20,FeedLib[#All],CD$60,FALSE),""),IFERROR(VLOOKUP($W20,FeedLibUser[#All],CD$60,FALSE),"")),CD20),IF(AND(ISNUMBER($AI20),$AJ20<>""),CD20,"")) ->  | CE53: =IF(ISNUMBER($W20),IF($AH20=FALSE,IF($W20<1000,IFERROR(VLOOKUP($W20,FeedLib[#All],CE$60,FALSE),""),IFERROR(VLOOKUP($W20,FeedLibUser[#All],CE$60,FALSE),"")),CE20),IF(AND(ISNUMBER($AI20),$AJ20<>""),CE20,"")) ->  | CF53: =IF(ISNUMBER($W20),IF($AH20=FALSE,IF($W20<1000,IFERROR(VLOOKUP($W20,FeedLib[#All],CF$60,FALSE),""),IFERROR(VLOOKUP($W20,FeedLibUser[#All],CF$60,FALSE),"")),CF20),IF(AND(ISNUMBER($AI20),$AJ20<>""),CF20,"")) ->  | CG53: =IF(ISNUMBER($W20),IF($AH20=FALSE,IF($W20<1000,IFERROR(VLOOKUP($W20,FeedLib[#All],CG$60,FALSE),""),IFERROR(VLOOKUP($W20,FeedLibUser[#All],CG$60,FALSE),"")),CG20),IF(AND(ISNUMBER($AI20),$AJ20<>""),CG20,"")) ->  | CH53: =IF(ISNUMBER($W20),IF($AH20=FALSE,IF($W20<1000,IFERROR(VLOOKUP($W20,FeedLib[#All],CH$60,FALSE),""),IFERROR(VLOOKUP($W20,FeedLibUser[#All],CH$60,FALSE),"")),CH20),IF(AND(ISNUMBER($AI20),$AJ20<>""),CH20,"")) ->  | CI53: =IF(ISNUMBER($W20),IF($AH20=FALSE,IF($W20<1000,IFERROR(VLOOKUP($W20,FeedLib[#All],CI$60,FALSE),""),IFERROR(VLOOKUP($W20,FeedLibUser[#All],CI$60,FALSE),"")),CI20),IF(AND(ISNUMBER($AI20),$AJ20<>""),CI20,"")) ->  | CJ53: =IF(ISNUMBER($W20),IF($AH20=FALSE,IF($W20<1000,IFERROR(VLOOKUP($W20,FeedLib[#All],CJ$60,FALSE),""),IFERROR(VLOOKUP($W20,FeedLibUser[#All],CJ$60,FALSE),"")),CJ20),IF(AND(ISNUMBER($AI20),$AJ20<>""),CJ20,"")) ->  | CK53: =IF(ISNUMBER($W20),IF($AH20=FALSE,IF($W20<1000,IFERROR(VLOOKUP($W20,FeedLib[#All],CK$60,FALSE),""),IFERROR(VLOOKUP($W20,FeedLibUser[#All],CK$60,FALSE),"")),CK20),IF(AND(ISNUMBER($AI20),$AJ20<>""),CK20,"")) ->  | CL53: =IF(ISNUMBER($W20),IF($AH20=FALSE,IF($W20<1000,IFERROR(VLOOKUP($W20,FeedLib[#All],CL$60,FALSE),""),IFERROR(VLOOKUP($W20,FeedLibUser[#All],CL$60,FALSE),"")),CL20),IF(AND(ISNUMBER($AI20),$AJ20<>""),CL20,"")) ->  | CM53: =IF(ISNUMBER($W20),IF($AH20=FALSE,IF($W20<1000,IFERROR(VLOOKUP($W20,FeedLib[#All],CM$60,FALSE),""),IFERROR(VLOOKUP($W20,FeedLibUser[#All],CM$60,FALSE),"")),CM20),IF(AND(ISNUMBER($AI20),$AJ20<>""),CM20,"")) -> 
B54: Item | C54: Acronym | D54: User | E54: Unit | F54: Metric | G54: Unit | H54: Description | AK54: =IF(ISNUMBER($W21),IF($AH21=FALSE,IF($W21<1000,IFERROR(VLOOKUP($W21,FeedLib[#All],AK$60,FALSE),"")*(IF(parmUnit=1,1,2000/2204.6)),IFERROR(VLOOKUP($W21,FeedLibUser[#All],AK$60,FALSE),"")*(IF(parmUnit=1,1,2000/2204.6))),AK21),IF(AND(ISNUMBER($AI21),$AJ21<>""),AK21,"")) ->  | AL54: =IF(ISNUMBER($W21),IF($AH21=FALSE,IF($W21<1000,IFERROR(VLOOKUP($W21,FeedLib[#All],AL$60,FALSE),""),IFERROR(VLOOKUP($W21,FeedLibUser[#All],AL$60,FALSE),"")),AL21),IF(AND(ISNUMBER($AI21),$AJ21<>""),AL21,"")) ->  | AM54: =IF(ISNUMBER($W21),IF($AH21=FALSE,IF($W21<1000,IFERROR(VLOOKUP($W21,FeedLib[#All],AM$60,FALSE),""),IFERROR(VLOOKUP($W21,FeedLibUser[#All],AM$60,FALSE),"")),AM21),IF(AND(ISNUMBER($AI21),$AJ21<>""),AM21,"")) ->  | AN54: =IF(ISNUMBER($W21),IF($AH21=FALSE,IF($W21<1000,IFERROR(VLOOKUP($W21,FeedLib[#All],AN$60,FALSE),""),IFERROR(VLOOKUP($W21,FeedLibUser[#All],AN$60,FALSE),"")),AN21),IF(AND(ISNUMBER($AI21),$AJ21<>""),AN21,"")) ->  | AO54: =IF(ISNUMBER($W21),IF($AH21=FALSE,IF($W21<1000,IFERROR(VLOOKUP($W21,FeedLib[#All],AO$60,FALSE),""),IFERROR(VLOOKUP($W21,FeedLibUser[#All],AO$60,FALSE),"")),AO21),IF(AND(ISNUMBER($AI21),$AJ21<>""),AO21,"")) ->  | AP54: =IF(ISNUMBER($W21),IF($AH21=FALSE,IF($W21<1000,IFERROR(VLOOKUP($W21,FeedLib[#All],AP$60,FALSE),""),IFERROR(VLOOKUP($W21,FeedLibUser[#All],AP$60,FALSE),"")),AP21),IF(AND(ISNUMBER($AI21),$AJ21<>""),AP21,"")) ->  | AQ54: =IF(ISNUMBER($W21),IF($AH21=FALSE,IF($W21<1000,IFERROR(VLOOKUP($W21,FeedLib[#All],AQ$60,FALSE),""),IFERROR(VLOOKUP($W21,FeedLibUser[#All],AQ$60,FALSE),"")),AQ21),IF(AND(ISNUMBER($AI21),$AJ21<>""),AQ21,"")) ->  | AR54: =IF(ISNUMBER($W21),IF($AH21=FALSE,IF($W21<1000,IFERROR(VLOOKUP($W21,FeedLib[#All],AR$60,FALSE),""),IFERROR(VLOOKUP($W21,FeedLibUser[#All],AR$60,FALSE),"")),AR21),IF(AND(ISNUMBER($AI21),$AJ21<>""),AR21,"")) ->  | AS54: =IF(ISNUMBER($W21),IF($AH21=FALSE,IF($W21<1000,IFERROR(VLOOKUP($W21,FeedLib[#All],AS$60,FALSE),""),IFERROR(VLOOKUP($W21,FeedLibUser[#All],AS$60,FALSE),"")),AS21),IF(AND(ISNUMBER($AI21),$AJ21<>""),AS21,"")) ->  | AT54: =IF(ISNUMBER($W21),IF($AH21=FALSE,IF($W21<1000,IFERROR(VLOOKUP($W21,FeedLib[#All],AT$60,FALSE),""),IFERROR(VLOOKUP($W21,FeedLibUser[#All],AT$60,FALSE),"")),AT21),IF(AND(ISNUMBER($AI21),$AJ21<>""),AT21,"")) ->  | AU54: =IF(ISNUMBER($W21),IF($AH21=FALSE,IF($W21<1000,IFERROR(VLOOKUP($W21,FeedLib[#All],AU$60,FALSE),""),IFERROR(VLOOKUP($W21,FeedLibUser[#All],AU$60,FALSE),"")),AU21),IF(AND(ISNUMBER($AI21),$AJ21<>""),AU21,"")) ->  | AV54: =IF(ISNUMBER($W21),IF($AH21=FALSE,IF($W21<1000,IFERROR(VLOOKUP($W21,FeedLib[#All],AV$60,FALSE),""),IFERROR(VLOOKUP($W21,FeedLibUser[#All],AV$60,FALSE),"")),AV21),IF(AND(ISNUMBER($AI21),$AJ21<>""),AV21,"")) ->  | AW54: =IF(ISNUMBER($W21),IF($AH21=FALSE,IF($W21<1000,IFERROR(VLOOKUP($W21,FeedLib[#All],AW$60,FALSE),""),IFERROR(VLOOKUP($W21,FeedLibUser[#All],AW$60,FALSE),"")),AW21),IF(AND(ISNUMBER($AI21),$AJ21<>""),AW21,"")) ->  | AX54: =IF(ISNUMBER($W21),IF($AH21=FALSE,IF($W21<1000,IFERROR(VLOOKUP($W21,FeedLib[#All],AX$60,FALSE),""),IFERROR(VLOOKUP($W21,FeedLibUser[#All],AX$60,FALSE),"")),AX21),IF(AND(ISNUMBER($AI21),$AJ21<>""),AX21,"")) ->  | AY54: =IF(ISNUMBER($W21),IF($AH21=FALSE,IF($W21<1000,IFERROR(VLOOKUP($W21,FeedLib[#All],AY$60,FALSE),"")/IF(parmUnit=1,1,2.2046),IFERROR(VLOOKUP($W21,FeedLibUser[#All],AY$60,FALSE),"")/IF(parmUnit=1,1,2.2046)),AY21),IF(AND(ISNUMBER($AI21),$AJ21<>""),AY21,"")) ->  | AZ54: =IF(ISNUMBER($W21),IF($AH21=FALSE,IF($W21<1000,IFERROR(VLOOKUP($W21,FeedLib[#All],AZ$60,FALSE),"")/IF(parmUnit=1,1,2.2046),IFERROR(VLOOKUP($W21,FeedLibUser[#All],AZ$60,FALSE),"")/IF(parmUnit=1,1,2.2046)),AZ21),IF(AND(ISNUMBER($AI21),$AJ21<>""),AZ21,"")) ->  | BA54: =IF(ISNUMBER($W21),IF($AH21=FALSE,IF($W21<1000,IFERROR(VLOOKUP($W21,FeedLib[#All],BA$60,FALSE),"")/IF(parmUnit=1,1,2.2046),IFERROR(VLOOKUP($W21,FeedLibUser[#All],BA$60,FALSE),"")/IF(parmUnit=1,1,2.2046)),BA21),IF(AND(ISNUMBER($AI21),$AJ21<>""),BA21,"")) ->  | BB54: =IF(ISNUMBER($W21),IF($AH21=FALSE,IF($W21<1000,IFERROR(VLOOKUP($W21,FeedLib[#All],BB$60,FALSE),""),IFERROR(VLOOKUP($W21,FeedLibUser[#All],BB$60,FALSE),"")),BB21),IF(AND(ISNUMBER($AI21),$AJ21<>""),BB21,"")) ->  | BC54: =IF(ISNUMBER($W21),IF($AH21=FALSE,IF($W21<1000,IFERROR(VLOOKUP($W21,FeedLib[#All],BC$60,FALSE),""),IFERROR(VLOOKUP($W21,FeedLibUser[#All],BC$60,FALSE),"")),BC21),IF(AND(ISNUMBER($AI21),$AJ21<>""),BC21,"")) ->  | BD54: =IF(ISNUMBER($W21),IF($AH21=FALSE,IF($W21<1000,IFERROR(VLOOKUP($W21,FeedLib[#All],BD$60,FALSE),""),IFERROR(VLOOKUP($W21,FeedLibUser[#All],BD$60,FALSE),"")),BD21),IF(AND(ISNUMBER($AI21),$AJ21<>""),BD21,"")) ->  | BE54: =IF(ISNUMBER($W21),IF($AH21=FALSE,IF($W21<1000,IFERROR(VLOOKUP($W21,FeedLib[#All],BE$60,FALSE),""),IFERROR(VLOOKUP($W21,FeedLibUser[#All],BE$60,FALSE),"")),BE21),IF(AND(ISNUMBER($AI21),$AJ21<>""),BE21,"")) ->  | BF54: =IF(ISNUMBER($W21),IF($AH21=FALSE,IF($W21<1000,IFERROR(VLOOKUP($W21,FeedLib[#All],BF$60,FALSE),""),IFERROR(VLOOKUP($W21,FeedLibUser[#All],BF$60,FALSE),"")),BF21),IF(AND(ISNUMBER($AI21),$AJ21<>""),BF21,"")) ->  | BG54: =IF(ISNUMBER($W21),IF($AH21=FALSE,IF($W21<1000,IFERROR(VLOOKUP($W21,FeedLib[#All],BG$60,FALSE),""),IFERROR(VLOOKUP($W21,FeedLibUser[#All],BG$60,FALSE),"")),BG21),IF(AND(ISNUMBER($AI21),$AJ21<>""),BG21,"")) ->  | BH54: =IF(ISNUMBER($W21),IF($AH21=FALSE,IF($W21<1000,IFERROR(VLOOKUP($W21,FeedLib[#All],BH$60,FALSE),""),IFERROR(VLOOKUP($W21,FeedLibUser[#All],BH$60,FALSE),"")),BH21),IF(AND(ISNUMBER($AI21),$AJ21<>""),BH21,"")) ->  | BI54: =IF(ISNUMBER($W21),IF($AH21=FALSE,IF($W21<1000,IFERROR(VLOOKUP($W21,FeedLib[#All],BI$60,FALSE),""),IFERROR(VLOOKUP($W21,FeedLibUser[#All],BI$60,FALSE),"")),BI21),IF(AND(ISNUMBER($AI21),$AJ21<>""),BI21,"")) ->  | BJ54: =IF(ISNUMBER($W21),IF($AH21=FALSE,IF($W21<1000,IFERROR(VLOOKUP($W21,FeedLib[#All],BJ$60,FALSE),""),IFERROR(VLOOKUP($W21,FeedLibUser[#All],BJ$60,FALSE),"")),BJ21),IF(AND(ISNUMBER($AI21),$AJ21<>""),BJ21,"")) ->  | BK54: =IF(ISNUMBER($W21),IF($AH21=FALSE,IF($W21<1000,IFERROR(VLOOKUP($W21,FeedLib[#All],BK$60,FALSE),""),IFERROR(VLOOKUP($W21,FeedLibUser[#All],BK$60,FALSE),"")),BK21),IF(AND(ISNUMBER($AI21),$AJ21<>""),BK21,"")) ->  | BL54: =IF(ISNUMBER($W21),IF($AH21=FALSE,IF($W21<1000,IFERROR(VLOOKUP($W21,FeedLib[#All],BL$60,FALSE),""),IFERROR(VLOOKUP($W21,FeedLibUser[#All],BL$60,FALSE),"")),BL21),IF(AND(ISNUMBER($AI21),$AJ21<>""),BL21,"")) ->  | BM54: =IF(ISNUMBER($W21),IF($AH21=FALSE,IF($W21<1000,IFERROR(VLOOKUP($W21,FeedLib[#All],BM$60,FALSE),""),IFERROR(VLOOKUP($W21,FeedLibUser[#All],BM$60,FALSE),"")),BM21),IF(AND(ISNUMBER($AI21),$AJ21<>""),BM21,"")) ->  | BN54: =IF(ISNUMBER($W21),IF($AH21=FALSE,IF($W21<1000,IFERROR(VLOOKUP($W21,FeedLib[#All],BN$60,FALSE),""),IFERROR(VLOOKUP($W21,FeedLibUser[#All],BN$60,FALSE),"")),BN21),IF(AND(ISNUMBER($AI21),$AJ21<>""),BN21,"")) ->  | BO54: =IF(ISNUMBER($W21),IF($AH21=FALSE,IF($W21<1000,IFERROR(VLOOKUP($W21,FeedLib[#All],BO$60,FALSE),""),IFERROR(VLOOKUP($W21,FeedLibUser[#All],BO$60,FALSE),"")),BO21),IF(AND(ISNUMBER($AI21),$AJ21<>""),BO21,"")) ->  | BP54: =IF(ISNUMBER($W21),IF($AH21=FALSE,IF($W21<1000,IFERROR(VLOOKUP($W21,FeedLib[#All],BP$60,FALSE),""),IFERROR(VLOOKUP($W21,FeedLibUser[#All],BP$60,FALSE),"")),BP21),IF(AND(ISNUMBER($AI21),$AJ21<>""),BP21,"")) ->  | BQ54: =IF(ISNUMBER($W21),IF($AH21=FALSE,IF($W21<1000,IFERROR(VLOOKUP($W21,FeedLib[#All],BQ$60,FALSE),""),IFERROR(VLOOKUP($W21,FeedLibUser[#All],BQ$60,FALSE),"")),BQ21),IF(AND(ISNUMBER($AI21),$AJ21<>""),BQ21,"")) ->  | BR54: =IF(ISNUMBER($W21),IF($AH21=FALSE,IF($W21<1000,IFERROR(VLOOKUP($W21,FeedLib[#All],BR$60,FALSE),""),IFERROR(VLOOKUP($W21,FeedLibUser[#All],BR$60,FALSE),"")),BR21),IF(AND(ISNUMBER($AI21),$AJ21<>""),BR21,"")) ->  | BS54: =IF(ISNUMBER($W21),IF($AH21=FALSE,IF($W21<1000,IFERROR(VLOOKUP($W21,FeedLib[#All],BS$60,FALSE),""),IFERROR(VLOOKUP($W21,FeedLibUser[#All],BS$60,FALSE),"")),BS21),IF(AND(ISNUMBER($AI21),$AJ21<>""),BS21,"")) ->  | BT54: =IF(ISNUMBER($W21),IF($AH21=FALSE,IF($W21<1000,IFERROR(VLOOKUP($W21,FeedLib[#All],BT$60,FALSE),""),IFERROR(VLOOKUP($W21,FeedLibUser[#All],BT$60,FALSE),"")),BT21),IF(AND(ISNUMBER($AI21),$AJ21<>""),BT21,"")) ->  | BU54: =IF(ISNUMBER($W21),IF($AH21=FALSE,IF($W21<1000,IFERROR(VLOOKUP($W21,FeedLib[#All],BU$60,FALSE),""),IFERROR(VLOOKUP($W21,FeedLibUser[#All],BU$60,FALSE),"")),BU21),IF(AND(ISNUMBER($AI21),$AJ21<>""),BU21,"")) ->  | BV54: =IF(ISNUMBER($W21),IF($AH21=FALSE,IF($W21<1000,IFERROR(VLOOKUP($W21,FeedLib[#All],BV$60,FALSE),""),IFERROR(VLOOKUP($W21,FeedLibUser[#All],BV$60,FALSE),"")),BV21),IF(AND(ISNUMBER($AI21),$AJ21<>""),BV21,"")) ->  | BW54: =IF(ISNUMBER($W21),IF($AH21=FALSE,IF($W21<1000,IFERROR(VLOOKUP($W21,FeedLib[#All],BW$60,FALSE),""),IFERROR(VLOOKUP($W21,FeedLibUser[#All],BW$60,FALSE),"")),BW21),IF(AND(ISNUMBER($AI21),$AJ21<>""),BW21,"")) ->  | BX54: =IF(ISNUMBER($W21),IF($AH21=FALSE,IF($W21<1000,IFERROR(VLOOKUP($W21,FeedLib[#All],BX$60,FALSE),""),IFERROR(VLOOKUP($W21,FeedLibUser[#All],BX$60,FALSE),"")),BX21),IF(AND(ISNUMBER($AI21),$AJ21<>""),BX21,"")) ->  | BY54: =IF(ISNUMBER($W21),IF($AH21=FALSE,IF($W21<1000,IFERROR(VLOOKUP($W21,FeedLib[#All],BY$60,FALSE),""),IFERROR(VLOOKUP($W21,FeedLibUser[#All],BY$60,FALSE),"")),BY21),IF(AND(ISNUMBER($AI21),$AJ21<>""),BY21,"")) ->  | BZ54: =IF(ISNUMBER($W21),IF($AH21=FALSE,IF($W21<1000,IFERROR(VLOOKUP($W21,FeedLib[#All],BZ$60,FALSE),""),IFERROR(VLOOKUP($W21,FeedLibUser[#All],BZ$60,FALSE),"")),BZ21),IF(AND(ISNUMBER($AI21),$AJ21<>""),BZ21,"")) ->  | CA54: =IF(ISNUMBER($W21),IF($AH21=FALSE,IF($W21<1000,IFERROR(VLOOKUP($W21,FeedLib[#All],CA$60,FALSE),""),IFERROR(VLOOKUP($W21,FeedLibUser[#All],CA$60,FALSE),"")),CA21),IF(AND(ISNUMBER($AI21),$AJ21<>""),CA21,"")) ->  | CB54: =IF(ISNUMBER($W21),IF($AH21=FALSE,IF($W21<1000,IFERROR(VLOOKUP($W21,FeedLib[#All],CB$60,FALSE),""),IFERROR(VLOOKUP($W21,FeedLibUser[#All],CB$60,FALSE),"")),CB21),IF(AND(ISNUMBER($AI21),$AJ21<>""),CB21,"")) ->  | CC54: =IF(ISNUMBER($W21),IF($AH21=FALSE,IF($W21<1000,IFERROR(VLOOKUP($W21,FeedLib[#All],CC$60,FALSE),""),IFERROR(VLOOKUP($W21,FeedLibUser[#All],CC$60,FALSE),"")),CC21),IF(AND(ISNUMBER($AI21),$AJ21<>""),CC21,"")) ->  | CD54: =IF(ISNUMBER($W21),IF($AH21=FALSE,IF($W21<1000,IFERROR(VLOOKUP($W21,FeedLib[#All],CD$60,FALSE),""),IFERROR(VLOOKUP($W21,FeedLibUser[#All],CD$60,FALSE),"")),CD21),IF(AND(ISNUMBER($AI21),$AJ21<>""),CD21,"")) ->  | CE54: =IF(ISNUMBER($W21),IF($AH21=FALSE,IF($W21<1000,IFERROR(VLOOKUP($W21,FeedLib[#All],CE$60,FALSE),""),IFERROR(VLOOKUP($W21,FeedLibUser[#All],CE$60,FALSE),"")),CE21),IF(AND(ISNUMBER($AI21),$AJ21<>""),CE21,"")) ->  | CF54: =IF(ISNUMBER($W21),IF($AH21=FALSE,IF($W21<1000,IFERROR(VLOOKUP($W21,FeedLib[#All],CF$60,FALSE),""),IFERROR(VLOOKUP($W21,FeedLibUser[#All],CF$60,FALSE),"")),CF21),IF(AND(ISNUMBER($AI21),$AJ21<>""),CF21,"")) ->  | CG54: =IF(ISNUMBER($W21),IF($AH21=FALSE,IF($W21<1000,IFERROR(VLOOKUP($W21,FeedLib[#All],CG$60,FALSE),""),IFERROR(VLOOKUP($W21,FeedLibUser[#All],CG$60,FALSE),"")),CG21),IF(AND(ISNUMBER($AI21),$AJ21<>""),CG21,"")) ->  | CH54: =IF(ISNUMBER($W21),IF($AH21=FALSE,IF($W21<1000,IFERROR(VLOOKUP($W21,FeedLib[#All],CH$60,FALSE),""),IFERROR(VLOOKUP($W21,FeedLibUser[#All],CH$60,FALSE),"")),CH21),IF(AND(ISNUMBER($AI21),$AJ21<>""),CH21,"")) ->  | CI54: =IF(ISNUMBER($W21),IF($AH21=FALSE,IF($W21<1000,IFERROR(VLOOKUP($W21,FeedLib[#All],CI$60,FALSE),""),IFERROR(VLOOKUP($W21,FeedLibUser[#All],CI$60,FALSE),"")),CI21),IF(AND(ISNUMBER($AI21),$AJ21<>""),CI21,"")) ->  | CJ54: =IF(ISNUMBER($W21),IF($AH21=FALSE,IF($W21<1000,IFERROR(VLOOKUP($W21,FeedLib[#All],CJ$60,FALSE),""),IFERROR(VLOOKUP($W21,FeedLibUser[#All],CJ$60,FALSE),"")),CJ21),IF(AND(ISNUMBER($AI21),$AJ21<>""),CJ21,"")) ->  | CK54: =IF(ISNUMBER($W21),IF($AH21=FALSE,IF($W21<1000,IFERROR(VLOOKUP($W21,FeedLib[#All],CK$60,FALSE),""),IFERROR(VLOOKUP($W21,FeedLibUser[#All],CK$60,FALSE),"")),CK21),IF(AND(ISNUMBER($AI21),$AJ21<>""),CK21,"")) ->  | CL54: =IF(ISNUMBER($W21),IF($AH21=FALSE,IF($W21<1000,IFERROR(VLOOKUP($W21,FeedLib[#All],CL$60,FALSE),""),IFERROR(VLOOKUP($W21,FeedLibUser[#All],CL$60,FALSE),"")),CL21),IF(AND(ISNUMBER($AI21),$AJ21<>""),CL21,"")) ->  | CM54: =IF(ISNUMBER($W21),IF($AH21=FALSE,IF($W21<1000,IFERROR(VLOOKUP($W21,FeedLib[#All],CM$60,FALSE),""),IFERROR(VLOOKUP($W21,FeedLibUser[#All],CM$60,FALSE),"")),CM21),IF(AND(ISNUMBER($AI21),$AJ21<>""),CM21,"")) -> 
B55: Feed additive | D55: 2 | F55: =IF(OR(D55<1,D55>3),1,D55) -> 2 | H55: 1:=None, 2:=Monensin, 3:=Lasalocid | AK55: =IF(ISNUMBER($W22),IF($AH22=FALSE,IF($W22<1000,IFERROR(VLOOKUP($W22,FeedLib[#All],AK$60,FALSE),"")*(IF(parmUnit=1,1,2000/2204.6)),IFERROR(VLOOKUP($W22,FeedLibUser[#All],AK$60,FALSE),"")*(IF(parmUnit=1,1,2000/2204.6))),AK22),IF(AND(ISNUMBER($AI22),$AJ22<>""),AK22,"")) ->  | AL55: =IF(ISNUMBER($W22),IF($AH22=FALSE,IF($W22<1000,IFERROR(VLOOKUP($W22,FeedLib[#All],AL$60,FALSE),""),IFERROR(VLOOKUP($W22,FeedLibUser[#All],AL$60,FALSE),"")),AL22),IF(AND(ISNUMBER($AI22),$AJ22<>""),AL22,"")) ->  | AM55: =IF(ISNUMBER($W22),IF($AH22=FALSE,IF($W22<1000,IFERROR(VLOOKUP($W22,FeedLib[#All],AM$60,FALSE),""),IFERROR(VLOOKUP($W22,FeedLibUser[#All],AM$60,FALSE),"")),AM22),IF(AND(ISNUMBER($AI22),$AJ22<>""),AM22,"")) ->  | AN55: =IF(ISNUMBER($W22),IF($AH22=FALSE,IF($W22<1000,IFERROR(VLOOKUP($W22,FeedLib[#All],AN$60,FALSE),""),IFERROR(VLOOKUP($W22,FeedLibUser[#All],AN$60,FALSE),"")),AN22),IF(AND(ISNUMBER($AI22),$AJ22<>""),AN22,"")) ->  | AO55: =IF(ISNUMBER($W22),IF($AH22=FALSE,IF($W22<1000,IFERROR(VLOOKUP($W22,FeedLib[#All],AO$60,FALSE),""),IFERROR(VLOOKUP($W22,FeedLibUser[#All],AO$60,FALSE),"")),AO22),IF(AND(ISNUMBER($AI22),$AJ22<>""),AO22,"")) ->  | AP55: =IF(ISNUMBER($W22),IF($AH22=FALSE,IF($W22<1000,IFERROR(VLOOKUP($W22,FeedLib[#All],AP$60,FALSE),""),IFERROR(VLOOKUP($W22,FeedLibUser[#All],AP$60,FALSE),"")),AP22),IF(AND(ISNUMBER($AI22),$AJ22<>""),AP22,"")) ->  | AQ55: =IF(ISNUMBER($W22),IF($AH22=FALSE,IF($W22<1000,IFERROR(VLOOKUP($W22,FeedLib[#All],AQ$60,FALSE),""),IFERROR(VLOOKUP($W22,FeedLibUser[#All],AQ$60,FALSE),"")),AQ22),IF(AND(ISNUMBER($AI22),$AJ22<>""),AQ22,"")) ->  | AR55: =IF(ISNUMBER($W22),IF($AH22=FALSE,IF($W22<1000,IFERROR(VLOOKUP($W22,FeedLib[#All],AR$60,FALSE),""),IFERROR(VLOOKUP($W22,FeedLibUser[#All],AR$60,FALSE),"")),AR22),IF(AND(ISNUMBER($AI22),$AJ22<>""),AR22,"")) ->  | AS55: =IF(ISNUMBER($W22),IF($AH22=FALSE,IF($W22<1000,IFERROR(VLOOKUP($W22,FeedLib[#All],AS$60,FALSE),""),IFERROR(VLOOKUP($W22,FeedLibUser[#All],AS$60,FALSE),"")),AS22),IF(AND(ISNUMBER($AI22),$AJ22<>""),AS22,"")) ->  | AT55: =IF(ISNUMBER($W22),IF($AH22=FALSE,IF($W22<1000,IFERROR(VLOOKUP($W22,FeedLib[#All],AT$60,FALSE),""),IFERROR(VLOOKUP($W22,FeedLibUser[#All],AT$60,FALSE),"")),AT22),IF(AND(ISNUMBER($AI22),$AJ22<>""),AT22,"")) ->  | AU55: =IF(ISNUMBER($W22),IF($AH22=FALSE,IF($W22<1000,IFERROR(VLOOKUP($W22,FeedLib[#All],AU$60,FALSE),""),IFERROR(VLOOKUP($W22,FeedLibUser[#All],AU$60,FALSE),"")),AU22),IF(AND(ISNUMBER($AI22),$AJ22<>""),AU22,"")) ->  | AV55: =IF(ISNUMBER($W22),IF($AH22=FALSE,IF($W22<1000,IFERROR(VLOOKUP($W22,FeedLib[#All],AV$60,FALSE),""),IFERROR(VLOOKUP($W22,FeedLibUser[#All],AV$60,FALSE),"")),AV22),IF(AND(ISNUMBER($AI22),$AJ22<>""),AV22,"")) ->  | AW55: =IF(ISNUMBER($W22),IF($AH22=FALSE,IF($W22<1000,IFERROR(VLOOKUP($W22,FeedLib[#All],AW$60,FALSE),""),IFERROR(VLOOKUP($W22,FeedLibUser[#All],AW$60,FALSE),"")),AW22),IF(AND(ISNUMBER($AI22),$AJ22<>""),AW22,"")) ->  | AX55: =IF(ISNUMBER($W22),IF($AH22=FALSE,IF($W22<1000,IFERROR(VLOOKUP($W22,FeedLib[#All],AX$60,FALSE),""),IFERROR(VLOOKUP($W22,FeedLibUser[#All],AX$60,FALSE),"")),AX22),IF(AND(ISNUMBER($AI22),$AJ22<>""),AX22,"")) ->  | AY55: =IF(ISNUMBER($W22),IF($AH22=FALSE,IF($W22<1000,IFERROR(VLOOKUP($W22,FeedLib[#All],AY$60,FALSE),"")/IF(parmUnit=1,1,2.2046),IFERROR(VLOOKUP($W22,FeedLibUser[#All],AY$60,FALSE),"")/IF(parmUnit=1,1,2.2046)),AY22),IF(AND(ISNUMBER($AI22),$AJ22<>""),AY22,"")) ->  | AZ55: =IF(ISNUMBER($W22),IF($AH22=FALSE,IF($W22<1000,IFERROR(VLOOKUP($W22,FeedLib[#All],AZ$60,FALSE),"")/IF(parmUnit=1,1,2.2046),IFERROR(VLOOKUP($W22,FeedLibUser[#All],AZ$60,FALSE),"")/IF(parmUnit=1,1,2.2046)),AZ22),IF(AND(ISNUMBER($AI22),$AJ22<>""),AZ22,"")) ->  | BA55: =IF(ISNUMBER($W22),IF($AH22=FALSE,IF($W22<1000,IFERROR(VLOOKUP($W22,FeedLib[#All],BA$60,FALSE),"")/IF(parmUnit=1,1,2.2046),IFERROR(VLOOKUP($W22,FeedLibUser[#All],BA$60,FALSE),"")/IF(parmUnit=1,1,2.2046)),BA22),IF(AND(ISNUMBER($AI22),$AJ22<>""),BA22,"")) ->  | BB55: =IF(ISNUMBER($W22),IF($AH22=FALSE,IF($W22<1000,IFERROR(VLOOKUP($W22,FeedLib[#All],BB$60,FALSE),""),IFERROR(VLOOKUP($W22,FeedLibUser[#All],BB$60,FALSE),"")),BB22),IF(AND(ISNUMBER($AI22),$AJ22<>""),BB22,"")) ->  | BC55: =IF(ISNUMBER($W22),IF($AH22=FALSE,IF($W22<1000,IFERROR(VLOOKUP($W22,FeedLib[#All],BC$60,FALSE),""),IFERROR(VLOOKUP($W22,FeedLibUser[#All],BC$60,FALSE),"")),BC22),IF(AND(ISNUMBER($AI22),$AJ22<>""),BC22,"")) ->  | BD55: =IF(ISNUMBER($W22),IF($AH22=FALSE,IF($W22<1000,IFERROR(VLOOKUP($W22,FeedLib[#All],BD$60,FALSE),""),IFERROR(VLOOKUP($W22,FeedLibUser[#All],BD$60,FALSE),"")),BD22),IF(AND(ISNUMBER($AI22),$AJ22<>""),BD22,"")) ->  | BE55: =IF(ISNUMBER($W22),IF($AH22=FALSE,IF($W22<1000,IFERROR(VLOOKUP($W22,FeedLib[#All],BE$60,FALSE),""),IFERROR(VLOOKUP($W22,FeedLibUser[#All],BE$60,FALSE),"")),BE22),IF(AND(ISNUMBER($AI22),$AJ22<>""),BE22,"")) ->  | BF55: =IF(ISNUMBER($W22),IF($AH22=FALSE,IF($W22<1000,IFERROR(VLOOKUP($W22,FeedLib[#All],BF$60,FALSE),""),IFERROR(VLOOKUP($W22,FeedLibUser[#All],BF$60,FALSE),"")),BF22),IF(AND(ISNUMBER($AI22),$AJ22<>""),BF22,"")) ->  | BG55: =IF(ISNUMBER($W22),IF($AH22=FALSE,IF($W22<1000,IFERROR(VLOOKUP($W22,FeedLib[#All],BG$60,FALSE),""),IFERROR(VLOOKUP($W22,FeedLibUser[#All],BG$60,FALSE),"")),BG22),IF(AND(ISNUMBER($AI22),$AJ22<>""),BG22,"")) ->  | BH55: =IF(ISNUMBER($W22),IF($AH22=FALSE,IF($W22<1000,IFERROR(VLOOKUP($W22,FeedLib[#All],BH$60,FALSE),""),IFERROR(VLOOKUP($W22,FeedLibUser[#All],BH$60,FALSE),"")),BH22),IF(AND(ISNUMBER($AI22),$AJ22<>""),BH22,"")) ->  | BI55: =IF(ISNUMBER($W22),IF($AH22=FALSE,IF($W22<1000,IFERROR(VLOOKUP($W22,FeedLib[#All],BI$60,FALSE),""),IFERROR(VLOOKUP($W22,FeedLibUser[#All],BI$60,FALSE),"")),BI22),IF(AND(ISNUMBER($AI22),$AJ22<>""),BI22,"")) ->  | BJ55: =IF(ISNUMBER($W22),IF($AH22=FALSE,IF($W22<1000,IFERROR(VLOOKUP($W22,FeedLib[#All],BJ$60,FALSE),""),IFERROR(VLOOKUP($W22,FeedLibUser[#All],BJ$60,FALSE),"")),BJ22),IF(AND(ISNUMBER($AI22),$AJ22<>""),BJ22,"")) ->  | BK55: =IF(ISNUMBER($W22),IF($AH22=FALSE,IF($W22<1000,IFERROR(VLOOKUP($W22,FeedLib[#All],BK$60,FALSE),""),IFERROR(VLOOKUP($W22,FeedLibUser[#All],BK$60,FALSE),"")),BK22),IF(AND(ISNUMBER($AI22),$AJ22<>""),BK22,"")) ->  | BL55: =IF(ISNUMBER($W22),IF($AH22=FALSE,IF($W22<1000,IFERROR(VLOOKUP($W22,FeedLib[#All],BL$60,FALSE),""),IFERROR(VLOOKUP($W22,FeedLibUser[#All],BL$60,FALSE),"")),BL22),IF(AND(ISNUMBER($AI22),$AJ22<>""),BL22,"")) ->  | BM55: =IF(ISNUMBER($W22),IF($AH22=FALSE,IF($W22<1000,IFERROR(VLOOKUP($W22,FeedLib[#All],BM$60,FALSE),""),IFERROR(VLOOKUP($W22,FeedLibUser[#All],BM$60,FALSE),"")),BM22),IF(AND(ISNUMBER($AI22),$AJ22<>""),BM22,"")) ->  | BN55: =IF(ISNUMBER($W22),IF($AH22=FALSE,IF($W22<1000,IFERROR(VLOOKUP($W22,FeedLib[#All],BN$60,FALSE),""),IFERROR(VLOOKUP($W22,FeedLibUser[#All],BN$60,FALSE),"")),BN22),IF(AND(ISNUMBER($AI22),$AJ22<>""),BN22,"")) ->  | BO55: =IF(ISNUMBER($W22),IF($AH22=FALSE,IF($W22<1000,IFERROR(VLOOKUP($W22,FeedLib[#All],BO$60,FALSE),""),IFERROR(VLOOKUP($W22,FeedLibUser[#All],BO$60,FALSE),"")),BO22),IF(AND(ISNUMBER($AI22),$AJ22<>""),BO22,"")) ->  | BP55: =IF(ISNUMBER($W22),IF($AH22=FALSE,IF($W22<1000,IFERROR(VLOOKUP($W22,FeedLib[#All],BP$60,FALSE),""),IFERROR(VLOOKUP($W22,FeedLibUser[#All],BP$60,FALSE),"")),BP22),IF(AND(ISNUMBER($AI22),$AJ22<>""),BP22,"")) ->  | BQ55: =IF(ISNUMBER($W22),IF($AH22=FALSE,IF($W22<1000,IFERROR(VLOOKUP($W22,FeedLib[#All],BQ$60,FALSE),""),IFERROR(VLOOKUP($W22,FeedLibUser[#All],BQ$60,FALSE),"")),BQ22),IF(AND(ISNUMBER($AI22),$AJ22<>""),BQ22,"")) ->  | BR55: =IF(ISNUMBER($W22),IF($AH22=FALSE,IF($W22<1000,IFERROR(VLOOKUP($W22,FeedLib[#All],BR$60,FALSE),""),IFERROR(VLOOKUP($W22,FeedLibUser[#All],BR$60,FALSE),"")),BR22),IF(AND(ISNUMBER($AI22),$AJ22<>""),BR22,"")) ->  | BS55: =IF(ISNUMBER($W22),IF($AH22=FALSE,IF($W22<1000,IFERROR(VLOOKUP($W22,FeedLib[#All],BS$60,FALSE),""),IFERROR(VLOOKUP($W22,FeedLibUser[#All],BS$60,FALSE),"")),BS22),IF(AND(ISNUMBER($AI22),$AJ22<>""),BS22,"")) ->  | BT55: =IF(ISNUMBER($W22),IF($AH22=FALSE,IF($W22<1000,IFERROR(VLOOKUP($W22,FeedLib[#All],BT$60,FALSE),""),IFERROR(VLOOKUP($W22,FeedLibUser[#All],BT$60,FALSE),"")),BT22),IF(AND(ISNUMBER($AI22),$AJ22<>""),BT22,"")) ->  | BU55: =IF(ISNUMBER($W22),IF($AH22=FALSE,IF($W22<1000,IFERROR(VLOOKUP($W22,FeedLib[#All],BU$60,FALSE),""),IFERROR(VLOOKUP($W22,FeedLibUser[#All],BU$60,FALSE),"")),BU22),IF(AND(ISNUMBER($AI22),$AJ22<>""),BU22,"")) ->  | BV55: =IF(ISNUMBER($W22),IF($AH22=FALSE,IF($W22<1000,IFERROR(VLOOKUP($W22,FeedLib[#All],BV$60,FALSE),""),IFERROR(VLOOKUP($W22,FeedLibUser[#All],BV$60,FALSE),"")),BV22),IF(AND(ISNUMBER($AI22),$AJ22<>""),BV22,"")) ->  | BW55: =IF(ISNUMBER($W22),IF($AH22=FALSE,IF($W22<1000,IFERROR(VLOOKUP($W22,FeedLib[#All],BW$60,FALSE),""),IFERROR(VLOOKUP($W22,FeedLibUser[#All],BW$60,FALSE),"")),BW22),IF(AND(ISNUMBER($AI22),$AJ22<>""),BW22,"")) ->  | BX55: =IF(ISNUMBER($W22),IF($AH22=FALSE,IF($W22<1000,IFERROR(VLOOKUP($W22,FeedLib[#All],BX$60,FALSE),""),IFERROR(VLOOKUP($W22,FeedLibUser[#All],BX$60,FALSE),"")),BX22),IF(AND(ISNUMBER($AI22),$AJ22<>""),BX22,"")) ->  | BY55: =IF(ISNUMBER($W22),IF($AH22=FALSE,IF($W22<1000,IFERROR(VLOOKUP($W22,FeedLib[#All],BY$60,FALSE),""),IFERROR(VLOOKUP($W22,FeedLibUser[#All],BY$60,FALSE),"")),BY22),IF(AND(ISNUMBER($AI22),$AJ22<>""),BY22,"")) ->  | BZ55: =IF(ISNUMBER($W22),IF($AH22=FALSE,IF($W22<1000,IFERROR(VLOOKUP($W22,FeedLib[#All],BZ$60,FALSE),""),IFERROR(VLOOKUP($W22,FeedLibUser[#All],BZ$60,FALSE),"")),BZ22),IF(AND(ISNUMBER($AI22),$AJ22<>""),BZ22,"")) ->  | CA55: =IF(ISNUMBER($W22),IF($AH22=FALSE,IF($W22<1000,IFERROR(VLOOKUP($W22,FeedLib[#All],CA$60,FALSE),""),IFERROR(VLOOKUP($W22,FeedLibUser[#All],CA$60,FALSE),"")),CA22),IF(AND(ISNUMBER($AI22),$AJ22<>""),CA22,"")) ->  | CB55: =IF(ISNUMBER($W22),IF($AH22=FALSE,IF($W22<1000,IFERROR(VLOOKUP($W22,FeedLib[#All],CB$60,FALSE),""),IFERROR(VLOOKUP($W22,FeedLibUser[#All],CB$60,FALSE),"")),CB22),IF(AND(ISNUMBER($AI22),$AJ22<>""),CB22,"")) ->  | CC55: =IF(ISNUMBER($W22),IF($AH22=FALSE,IF($W22<1000,IFERROR(VLOOKUP($W22,FeedLib[#All],CC$60,FALSE),""),IFERROR(VLOOKUP($W22,FeedLibUser[#All],CC$60,FALSE),"")),CC22),IF(AND(ISNUMBER($AI22),$AJ22<>""),CC22,"")) ->  | CD55: =IF(ISNUMBER($W22),IF($AH22=FALSE,IF($W22<1000,IFERROR(VLOOKUP($W22,FeedLib[#All],CD$60,FALSE),""),IFERROR(VLOOKUP($W22,FeedLibUser[#All],CD$60,FALSE),"")),CD22),IF(AND(ISNUMBER($AI22),$AJ22<>""),CD22,"")) ->  | CE55: =IF(ISNUMBER($W22),IF($AH22=FALSE,IF($W22<1000,IFERROR(VLOOKUP($W22,FeedLib[#All],CE$60,FALSE),""),IFERROR(VLOOKUP($W22,FeedLibUser[#All],CE$60,FALSE),"")),CE22),IF(AND(ISNUMBER($AI22),$AJ22<>""),CE22,"")) ->  | CF55: =IF(ISNUMBER($W22),IF($AH22=FALSE,IF($W22<1000,IFERROR(VLOOKUP($W22,FeedLib[#All],CF$60,FALSE),""),IFERROR(VLOOKUP($W22,FeedLibUser[#All],CF$60,FALSE),"")),CF22),IF(AND(ISNUMBER($AI22),$AJ22<>""),CF22,"")) ->  | CG55: =IF(ISNUMBER($W22),IF($AH22=FALSE,IF($W22<1000,IFERROR(VLOOKUP($W22,FeedLib[#All],CG$60,FALSE),""),IFERROR(VLOOKUP($W22,FeedLibUser[#All],CG$60,FALSE),"")),CG22),IF(AND(ISNUMBER($AI22),$AJ22<>""),CG22,"")) ->  | CH55: =IF(ISNUMBER($W22),IF($AH22=FALSE,IF($W22<1000,IFERROR(VLOOKUP($W22,FeedLib[#All],CH$60,FALSE),""),IFERROR(VLOOKUP($W22,FeedLibUser[#All],CH$60,FALSE),"")),CH22),IF(AND(ISNUMBER($AI22),$AJ22<>""),CH22,"")) ->  | CI55: =IF(ISNUMBER($W22),IF($AH22=FALSE,IF($W22<1000,IFERROR(VLOOKUP($W22,FeedLib[#All],CI$60,FALSE),""),IFERROR(VLOOKUP($W22,FeedLibUser[#All],CI$60,FALSE),"")),CI22),IF(AND(ISNUMBER($AI22),$AJ22<>""),CI22,"")) ->  | CJ55: =IF(ISNUMBER($W22),IF($AH22=FALSE,IF($W22<1000,IFERROR(VLOOKUP($W22,FeedLib[#All],CJ$60,FALSE),""),IFERROR(VLOOKUP($W22,FeedLibUser[#All],CJ$60,FALSE),"")),CJ22),IF(AND(ISNUMBER($AI22),$AJ22<>""),CJ22,"")) ->  | CK55: =IF(ISNUMBER($W22),IF($AH22=FALSE,IF($W22<1000,IFERROR(VLOOKUP($W22,FeedLib[#All],CK$60,FALSE),""),IFERROR(VLOOKUP($W22,FeedLibUser[#All],CK$60,FALSE),"")),CK22),IF(AND(ISNUMBER($AI22),$AJ22<>""),CK22,"")) ->  | CL55: =IF(ISNUMBER($W22),IF($AH22=FALSE,IF($W22<1000,IFERROR(VLOOKUP($W22,FeedLib[#All],CL$60,FALSE),""),IFERROR(VLOOKUP($W22,FeedLibUser[#All],CL$60,FALSE),"")),CL22),IF(AND(ISNUMBER($AI22),$AJ22<>""),CL22,"")) ->  | CM55: =IF(ISNUMBER($W22),IF($AH22=FALSE,IF($W22<1000,IFERROR(VLOOKUP($W22,FeedLib[#All],CM$60,FALSE),""),IFERROR(VLOOKUP($W22,FeedLibUser[#All],CM$60,FALSE),"")),CM22),IF(AND(ISNUMBER($AI22),$AJ22<>""),CM22,"")) -> 
B56: Implant | D56: 2 | F56: =IF(OR(D56<1,D56>2),1,D56) -> 2 | H56: 1:=No, 2:=Yes | AK56: =IF(ISNUMBER($W23),IF($AH23=FALSE,IF($W23<1000,IFERROR(VLOOKUP($W23,FeedLib[#All],AK$60,FALSE),"")*(IF(parmUnit=1,1,2000/2204.6)),IFERROR(VLOOKUP($W23,FeedLibUser[#All],AK$60,FALSE),"")*(IF(parmUnit=1,1,2000/2204.6))),AK23),IF(AND(ISNUMBER($AI23),$AJ23<>""),AK23,"")) ->  | AL56: =IF(ISNUMBER($W23),IF($AH23=FALSE,IF($W23<1000,IFERROR(VLOOKUP($W23,FeedLib[#All],AL$60,FALSE),""),IFERROR(VLOOKUP($W23,FeedLibUser[#All],AL$60,FALSE),"")),AL23),IF(AND(ISNUMBER($AI23),$AJ23<>""),AL23,"")) ->  | AM56: =IF(ISNUMBER($W23),IF($AH23=FALSE,IF($W23<1000,IFERROR(VLOOKUP($W23,FeedLib[#All],AM$60,FALSE),""),IFERROR(VLOOKUP($W23,FeedLibUser[#All],AM$60,FALSE),"")),AM23),IF(AND(ISNUMBER($AI23),$AJ23<>""),AM23,"")) ->  | AN56: =IF(ISNUMBER($W23),IF($AH23=FALSE,IF($W23<1000,IFERROR(VLOOKUP($W23,FeedLib[#All],AN$60,FALSE),""),IFERROR(VLOOKUP($W23,FeedLibUser[#All],AN$60,FALSE),"")),AN23),IF(AND(ISNUMBER($AI23),$AJ23<>""),AN23,"")) ->  | AO56: =IF(ISNUMBER($W23),IF($AH23=FALSE,IF($W23<1000,IFERROR(VLOOKUP($W23,FeedLib[#All],AO$60,FALSE),""),IFERROR(VLOOKUP($W23,FeedLibUser[#All],AO$60,FALSE),"")),AO23),IF(AND(ISNUMBER($AI23),$AJ23<>""),AO23,"")) ->  | AP56: =IF(ISNUMBER($W23),IF($AH23=FALSE,IF($W23<1000,IFERROR(VLOOKUP($W23,FeedLib[#All],AP$60,FALSE),""),IFERROR(VLOOKUP($W23,FeedLibUser[#All],AP$60,FALSE),"")),AP23),IF(AND(ISNUMBER($AI23),$AJ23<>""),AP23,"")) ->  | AQ56: =IF(ISNUMBER($W23),IF($AH23=FALSE,IF($W23<1000,IFERROR(VLOOKUP($W23,FeedLib[#All],AQ$60,FALSE),""),IFERROR(VLOOKUP($W23,FeedLibUser[#All],AQ$60,FALSE),"")),AQ23),IF(AND(ISNUMBER($AI23),$AJ23<>""),AQ23,"")) ->  | AR56: =IF(ISNUMBER($W23),IF($AH23=FALSE,IF($W23<1000,IFERROR(VLOOKUP($W23,FeedLib[#All],AR$60,FALSE),""),IFERROR(VLOOKUP($W23,FeedLibUser[#All],AR$60,FALSE),"")),AR23),IF(AND(ISNUMBER($AI23),$AJ23<>""),AR23,"")) ->  | AS56: =IF(ISNUMBER($W23),IF($AH23=FALSE,IF($W23<1000,IFERROR(VLOOKUP($W23,FeedLib[#All],AS$60,FALSE),""),IFERROR(VLOOKUP($W23,FeedLibUser[#All],AS$60,FALSE),"")),AS23),IF(AND(ISNUMBER($AI23),$AJ23<>""),AS23,"")) ->  | AT56: =IF(ISNUMBER($W23),IF($AH23=FALSE,IF($W23<1000,IFERROR(VLOOKUP($W23,FeedLib[#All],AT$60,FALSE),""),IFERROR(VLOOKUP($W23,FeedLibUser[#All],AT$60,FALSE),"")),AT23),IF(AND(ISNUMBER($AI23),$AJ23<>""),AT23,"")) ->  | AU56: =IF(ISNUMBER($W23),IF($AH23=FALSE,IF($W23<1000,IFERROR(VLOOKUP($W23,FeedLib[#All],AU$60,FALSE),""),IFERROR(VLOOKUP($W23,FeedLibUser[#All],AU$60,FALSE),"")),AU23),IF(AND(ISNUMBER($AI23),$AJ23<>""),AU23,"")) ->  | AV56: =IF(ISNUMBER($W23),IF($AH23=FALSE,IF($W23<1000,IFERROR(VLOOKUP($W23,FeedLib[#All],AV$60,FALSE),""),IFERROR(VLOOKUP($W23,FeedLibUser[#All],AV$60,FALSE),"")),AV23),IF(AND(ISNUMBER($AI23),$AJ23<>""),AV23,"")) ->  | AW56: =IF(ISNUMBER($W23),IF($AH23=FALSE,IF($W23<1000,IFERROR(VLOOKUP($W23,FeedLib[#All],AW$60,FALSE),""),IFERROR(VLOOKUP($W23,FeedLibUser[#All],AW$60,FALSE),"")),AW23),IF(AND(ISNUMBER($AI23),$AJ23<>""),AW23,"")) ->  | AX56: =IF(ISNUMBER($W23),IF($AH23=FALSE,IF($W23<1000,IFERROR(VLOOKUP($W23,FeedLib[#All],AX$60,FALSE),""),IFERROR(VLOOKUP($W23,FeedLibUser[#All],AX$60,FALSE),"")),AX23),IF(AND(ISNUMBER($AI23),$AJ23<>""),AX23,"")) ->  | AY56: =IF(ISNUMBER($W23),IF($AH23=FALSE,IF($W23<1000,IFERROR(VLOOKUP($W23,FeedLib[#All],AY$60,FALSE),"")/IF(parmUnit=1,1,2.2046),IFERROR(VLOOKUP($W23,FeedLibUser[#All],AY$60,FALSE),"")/IF(parmUnit=1,1,2.2046)),AY23),IF(AND(ISNUMBER($AI23),$AJ23<>""),AY23,"")) ->  | AZ56: =IF(ISNUMBER($W23),IF($AH23=FALSE,IF($W23<1000,IFERROR(VLOOKUP($W23,FeedLib[#All],AZ$60,FALSE),"")/IF(parmUnit=1,1,2.2046),IFERROR(VLOOKUP($W23,FeedLibUser[#All],AZ$60,FALSE),"")/IF(parmUnit=1,1,2.2046)),AZ23),IF(AND(ISNUMBER($AI23),$AJ23<>""),AZ23,"")) ->  | BA56: =IF(ISNUMBER($W23),IF($AH23=FALSE,IF($W23<1000,IFERROR(VLOOKUP($W23,FeedLib[#All],BA$60,FALSE),"")/IF(parmUnit=1,1,2.2046),IFERROR(VLOOKUP($W23,FeedLibUser[#All],BA$60,FALSE),"")/IF(parmUnit=1,1,2.2046)),BA23),IF(AND(ISNUMBER($AI23),$AJ23<>""),BA23,"")) ->  | BB56: =IF(ISNUMBER($W23),IF($AH23=FALSE,IF($W23<1000,IFERROR(VLOOKUP($W23,FeedLib[#All],BB$60,FALSE),""),IFERROR(VLOOKUP($W23,FeedLibUser[#All],BB$60,FALSE),"")),BB23),IF(AND(ISNUMBER($AI23),$AJ23<>""),BB23,"")) ->  | BC56: =IF(ISNUMBER($W23),IF($AH23=FALSE,IF($W23<1000,IFERROR(VLOOKUP($W23,FeedLib[#All],BC$60,FALSE),""),IFERROR(VLOOKUP($W23,FeedLibUser[#All],BC$60,FALSE),"")),BC23),IF(AND(ISNUMBER($AI23),$AJ23<>""),BC23,"")) ->  | BD56: =IF(ISNUMBER($W23),IF($AH23=FALSE,IF($W23<1000,IFERROR(VLOOKUP($W23,FeedLib[#All],BD$60,FALSE),""),IFERROR(VLOOKUP($W23,FeedLibUser[#All],BD$60,FALSE),"")),BD23),IF(AND(ISNUMBER($AI23),$AJ23<>""),BD23,"")) ->  | BE56: =IF(ISNUMBER($W23),IF($AH23=FALSE,IF($W23<1000,IFERROR(VLOOKUP($W23,FeedLib[#All],BE$60,FALSE),""),IFERROR(VLOOKUP($W23,FeedLibUser[#All],BE$60,FALSE),"")),BE23),IF(AND(ISNUMBER($AI23),$AJ23<>""),BE23,"")) ->  | BF56: =IF(ISNUMBER($W23),IF($AH23=FALSE,IF($W23<1000,IFERROR(VLOOKUP($W23,FeedLib[#All],BF$60,FALSE),""),IFERROR(VLOOKUP($W23,FeedLibUser[#All],BF$60,FALSE),"")),BF23),IF(AND(ISNUMBER($AI23),$AJ23<>""),BF23,"")) ->  | BG56: =IF(ISNUMBER($W23),IF($AH23=FALSE,IF($W23<1000,IFERROR(VLOOKUP($W23,FeedLib[#All],BG$60,FALSE),""),IFERROR(VLOOKUP($W23,FeedLibUser[#All],BG$60,FALSE),"")),BG23),IF(AND(ISNUMBER($AI23),$AJ23<>""),BG23,"")) ->  | BH56: =IF(ISNUMBER($W23),IF($AH23=FALSE,IF($W23<1000,IFERROR(VLOOKUP($W23,FeedLib[#All],BH$60,FALSE),""),IFERROR(VLOOKUP($W23,FeedLibUser[#All],BH$60,FALSE),"")),BH23),IF(AND(ISNUMBER($AI23),$AJ23<>""),BH23,"")) ->  | BI56: =IF(ISNUMBER($W23),IF($AH23=FALSE,IF($W23<1000,IFERROR(VLOOKUP($W23,FeedLib[#All],BI$60,FALSE),""),IFERROR(VLOOKUP($W23,FeedLibUser[#All],BI$60,FALSE),"")),BI23),IF(AND(ISNUMBER($AI23),$AJ23<>""),BI23,"")) ->  | BJ56: =IF(ISNUMBER($W23),IF($AH23=FALSE,IF($W23<1000,IFERROR(VLOOKUP($W23,FeedLib[#All],BJ$60,FALSE),""),IFERROR(VLOOKUP($W23,FeedLibUser[#All],BJ$60,FALSE),"")),BJ23),IF(AND(ISNUMBER($AI23),$AJ23<>""),BJ23,"")) ->  | BK56: =IF(ISNUMBER($W23),IF($AH23=FALSE,IF($W23<1000,IFERROR(VLOOKUP($W23,FeedLib[#All],BK$60,FALSE),""),IFERROR(VLOOKUP($W23,FeedLibUser[#All],BK$60,FALSE),"")),BK23),IF(AND(ISNUMBER($AI23),$AJ23<>""),BK23,"")) ->  | BL56: =IF(ISNUMBER($W23),IF($AH23=FALSE,IF($W23<1000,IFERROR(VLOOKUP($W23,FeedLib[#All],BL$60,FALSE),""),IFERROR(VLOOKUP($W23,FeedLibUser[#All],BL$60,FALSE),"")),BL23),IF(AND(ISNUMBER($AI23),$AJ23<>""),BL23,"")) ->  | BM56: =IF(ISNUMBER($W23),IF($AH23=FALSE,IF($W23<1000,IFERROR(VLOOKUP($W23,FeedLib[#All],BM$60,FALSE),""),IFERROR(VLOOKUP($W23,FeedLibUser[#All],BM$60,FALSE),"")),BM23),IF(AND(ISNUMBER($AI23),$AJ23<>""),BM23,"")) ->  | BN56: =IF(ISNUMBER($W23),IF($AH23=FALSE,IF($W23<1000,IFERROR(VLOOKUP($W23,FeedLib[#All],BN$60,FALSE),""),IFERROR(VLOOKUP($W23,FeedLibUser[#All],BN$60,FALSE),"")),BN23),IF(AND(ISNUMBER($AI23),$AJ23<>""),BN23,"")) ->  | BO56: =IF(ISNUMBER($W23),IF($AH23=FALSE,IF($W23<1000,IFERROR(VLOOKUP($W23,FeedLib[#All],BO$60,FALSE),""),IFERROR(VLOOKUP($W23,FeedLibUser[#All],BO$60,FALSE),"")),BO23),IF(AND(ISNUMBER($AI23),$AJ23<>""),BO23,"")) ->  | BP56: =IF(ISNUMBER($W23),IF($AH23=FALSE,IF($W23<1000,IFERROR(VLOOKUP($W23,FeedLib[#All],BP$60,FALSE),""),IFERROR(VLOOKUP($W23,FeedLibUser[#All],BP$60,FALSE),"")),BP23),IF(AND(ISNUMBER($AI23),$AJ23<>""),BP23,"")) ->  | BQ56: =IF(ISNUMBER($W23),IF($AH23=FALSE,IF($W23<1000,IFERROR(VLOOKUP($W23,FeedLib[#All],BQ$60,FALSE),""),IFERROR(VLOOKUP($W23,FeedLibUser[#All],BQ$60,FALSE),"")),BQ23),IF(AND(ISNUMBER($AI23),$AJ23<>""),BQ23,"")) ->  | BR56: =IF(ISNUMBER($W23),IF($AH23=FALSE,IF($W23<1000,IFERROR(VLOOKUP($W23,FeedLib[#All],BR$60,FALSE),""),IFERROR(VLOOKUP($W23,FeedLibUser[#All],BR$60,FALSE),"")),BR23),IF(AND(ISNUMBER($AI23),$AJ23<>""),BR23,"")) ->  | BS56: =IF(ISNUMBER($W23),IF($AH23=FALSE,IF($W23<1000,IFERROR(VLOOKUP($W23,FeedLib[#All],BS$60,FALSE),""),IFERROR(VLOOKUP($W23,FeedLibUser[#All],BS$60,FALSE),"")),BS23),IF(AND(ISNUMBER($AI23),$AJ23<>""),BS23,"")) ->  | BT56: =IF(ISNUMBER($W23),IF($AH23=FALSE,IF($W23<1000,IFERROR(VLOOKUP($W23,FeedLib[#All],BT$60,FALSE),""),IFERROR(VLOOKUP($W23,FeedLibUser[#All],BT$60,FALSE),"")),BT23),IF(AND(ISNUMBER($AI23),$AJ23<>""),BT23,"")) ->  | BU56: =IF(ISNUMBER($W23),IF($AH23=FALSE,IF($W23<1000,IFERROR(VLOOKUP($W23,FeedLib[#All],BU$60,FALSE),""),IFERROR(VLOOKUP($W23,FeedLibUser[#All],BU$60,FALSE),"")),BU23),IF(AND(ISNUMBER($AI23),$AJ23<>""),BU23,"")) ->  | BV56: =IF(ISNUMBER($W23),IF($AH23=FALSE,IF($W23<1000,IFERROR(VLOOKUP($W23,FeedLib[#All],BV$60,FALSE),""),IFERROR(VLOOKUP($W23,FeedLibUser[#All],BV$60,FALSE),"")),BV23),IF(AND(ISNUMBER($AI23),$AJ23<>""),BV23,"")) ->  | BW56: =IF(ISNUMBER($W23),IF($AH23=FALSE,IF($W23<1000,IFERROR(VLOOKUP($W23,FeedLib[#All],BW$60,FALSE),""),IFERROR(VLOOKUP($W23,FeedLibUser[#All],BW$60,FALSE),"")),BW23),IF(AND(ISNUMBER($AI23),$AJ23<>""),BW23,"")) ->  | BX56: =IF(ISNUMBER($W23),IF($AH23=FALSE,IF($W23<1000,IFERROR(VLOOKUP($W23,FeedLib[#All],BX$60,FALSE),""),IFERROR(VLOOKUP($W23,FeedLibUser[#All],BX$60,FALSE),"")),BX23),IF(AND(ISNUMBER($AI23),$AJ23<>""),BX23,"")) ->  | BY56: =IF(ISNUMBER($W23),IF($AH23=FALSE,IF($W23<1000,IFERROR(VLOOKUP($W23,FeedLib[#All],BY$60,FALSE),""),IFERROR(VLOOKUP($W23,FeedLibUser[#All],BY$60,FALSE),"")),BY23),IF(AND(ISNUMBER($AI23),$AJ23<>""),BY23,"")) ->  | BZ56: =IF(ISNUMBER($W23),IF($AH23=FALSE,IF($W23<1000,IFERROR(VLOOKUP($W23,FeedLib[#All],BZ$60,FALSE),""),IFERROR(VLOOKUP($W23,FeedLibUser[#All],BZ$60,FALSE),"")),BZ23),IF(AND(ISNUMBER($AI23),$AJ23<>""),BZ23,"")) ->  | CA56: =IF(ISNUMBER($W23),IF($AH23=FALSE,IF($W23<1000,IFERROR(VLOOKUP($W23,FeedLib[#All],CA$60,FALSE),""),IFERROR(VLOOKUP($W23,FeedLibUser[#All],CA$60,FALSE),"")),CA23),IF(AND(ISNUMBER($AI23),$AJ23<>""),CA23,"")) ->  | CB56: =IF(ISNUMBER($W23),IF($AH23=FALSE,IF($W23<1000,IFERROR(VLOOKUP($W23,FeedLib[#All],CB$60,FALSE),""),IFERROR(VLOOKUP($W23,FeedLibUser[#All],CB$60,FALSE),"")),CB23),IF(AND(ISNUMBER($AI23),$AJ23<>""),CB23,"")) ->  | CC56: =IF(ISNUMBER($W23),IF($AH23=FALSE,IF($W23<1000,IFERROR(VLOOKUP($W23,FeedLib[#All],CC$60,FALSE),""),IFERROR(VLOOKUP($W23,FeedLibUser[#All],CC$60,FALSE),"")),CC23),IF(AND(ISNUMBER($AI23),$AJ23<>""),CC23,"")) ->  | CD56: =IF(ISNUMBER($W23),IF($AH23=FALSE,IF($W23<1000,IFERROR(VLOOKUP($W23,FeedLib[#All],CD$60,FALSE),""),IFERROR(VLOOKUP($W23,FeedLibUser[#All],CD$60,FALSE),"")),CD23),IF(AND(ISNUMBER($AI23),$AJ23<>""),CD23,"")) ->  | CE56: =IF(ISNUMBER($W23),IF($AH23=FALSE,IF($W23<1000,IFERROR(VLOOKUP($W23,FeedLib[#All],CE$60,FALSE),""),IFERROR(VLOOKUP($W23,FeedLibUser[#All],CE$60,FALSE),"")),CE23),IF(AND(ISNUMBER($AI23),$AJ23<>""),CE23,"")) ->  | CF56: =IF(ISNUMBER($W23),IF($AH23=FALSE,IF($W23<1000,IFERROR(VLOOKUP($W23,FeedLib[#All],CF$60,FALSE),""),IFERROR(VLOOKUP($W23,FeedLibUser[#All],CF$60,FALSE),"")),CF23),IF(AND(ISNUMBER($AI23),$AJ23<>""),CF23,"")) ->  | CG56: =IF(ISNUMBER($W23),IF($AH23=FALSE,IF($W23<1000,IFERROR(VLOOKUP($W23,FeedLib[#All],CG$60,FALSE),""),IFERROR(VLOOKUP($W23,FeedLibUser[#All],CG$60,FALSE),"")),CG23),IF(AND(ISNUMBER($AI23),$AJ23<>""),CG23,"")) ->  | CH56: =IF(ISNUMBER($W23),IF($AH23=FALSE,IF($W23<1000,IFERROR(VLOOKUP($W23,FeedLib[#All],CH$60,FALSE),""),IFERROR(VLOOKUP($W23,FeedLibUser[#All],CH$60,FALSE),"")),CH23),IF(AND(ISNUMBER($AI23),$AJ23<>""),CH23,"")) ->  | CI56: =IF(ISNUMBER($W23),IF($AH23=FALSE,IF($W23<1000,IFERROR(VLOOKUP($W23,FeedLib[#All],CI$60,FALSE),""),IFERROR(VLOOKUP($W23,FeedLibUser[#All],CI$60,FALSE),"")),CI23),IF(AND(ISNUMBER($AI23),$AJ23<>""),CI23,"")) ->  | CJ56: =IF(ISNUMBER($W23),IF($AH23=FALSE,IF($W23<1000,IFERROR(VLOOKUP($W23,FeedLib[#All],CJ$60,FALSE),""),IFERROR(VLOOKUP($W23,FeedLibUser[#All],CJ$60,FALSE),"")),CJ23),IF(AND(ISNUMBER($AI23),$AJ23<>""),CJ23,"")) ->  | CK56: =IF(ISNUMBER($W23),IF($AH23=FALSE,IF($W23<1000,IFERROR(VLOOKUP($W23,FeedLib[#All],CK$60,FALSE),""),IFERROR(VLOOKUP($W23,FeedLibUser[#All],CK$60,FALSE),"")),CK23),IF(AND(ISNUMBER($AI23),$AJ23<>""),CK23,"")) ->  | CL56: =IF(ISNUMBER($W23),IF($AH23=FALSE,IF($W23<1000,IFERROR(VLOOKUP($W23,FeedLib[#All],CL$60,FALSE),""),IFERROR(VLOOKUP($W23,FeedLibUser[#All],CL$60,FALSE),"")),CL23),IF(AND(ISNUMBER($AI23),$AJ23<>""),CL23,"")) ->  | CM56: =IF(ISNUMBER($W23),IF($AH23=FALSE,IF($W23<1000,IFERROR(VLOOKUP($W23,FeedLib[#All],CM$60,FALSE),""),IFERROR(VLOOKUP($W23,FeedLibUser[#All],CM$60,FALSE),"")),CM23),IF(AND(ISNUMBER($AI23),$AJ23<>""),CM23,"")) -> 
B57: Grazing unit size | C57: GU | D57: 0 | E57: =CHOOSE(parmUnit,"ha","acre") -> acre | F57: =D57*IF(parmUnit=1,1,1/2.471054) -> 0 | G57: ha | H57: Grazing unit size per animal | AK57: =IF(ISNUMBER($W24),IF($AH24=FALSE,IF($W24<1000,IFERROR(VLOOKUP($W24,FeedLib[#All],AK$60,FALSE),"")*(IF(parmUnit=1,1,2000/2204.6)),IFERROR(VLOOKUP($W24,FeedLibUser[#All],AK$60,FALSE),"")*(IF(parmUnit=1,1,2000/2204.6))),AK24),IF(AND(ISNUMBER($AI24),$AJ24<>""),AK24,"")) ->  | AL57: =IF(ISNUMBER($W24),IF($AH24=FALSE,IF($W24<1000,IFERROR(VLOOKUP($W24,FeedLib[#All],AL$60,FALSE),""),IFERROR(VLOOKUP($W24,FeedLibUser[#All],AL$60,FALSE),"")),AL24),IF(AND(ISNUMBER($AI24),$AJ24<>""),AL24,"")) ->  | AM57: =IF(ISNUMBER($W24),IF($AH24=FALSE,IF($W24<1000,IFERROR(VLOOKUP($W24,FeedLib[#All],AM$60,FALSE),""),IFERROR(VLOOKUP($W24,FeedLibUser[#All],AM$60,FALSE),"")),AM24),IF(AND(ISNUMBER($AI24),$AJ24<>""),AM24,"")) ->  | AN57: =IF(ISNUMBER($W24),IF($AH24=FALSE,IF($W24<1000,IFERROR(VLOOKUP($W24,FeedLib[#All],AN$60,FALSE),""),IFERROR(VLOOKUP($W24,FeedLibUser[#All],AN$60,FALSE),"")),AN24),IF(AND(ISNUMBER($AI24),$AJ24<>""),AN24,"")) ->  | AO57: =IF(ISNUMBER($W24),IF($AH24=FALSE,IF($W24<1000,IFERROR(VLOOKUP($W24,FeedLib[#All],AO$60,FALSE),""),IFERROR(VLOOKUP($W24,FeedLibUser[#All],AO$60,FALSE),"")),AO24),IF(AND(ISNUMBER($AI24),$AJ24<>""),AO24,"")) ->  | AP57: =IF(ISNUMBER($W24),IF($AH24=FALSE,IF($W24<1000,IFERROR(VLOOKUP($W24,FeedLib[#All],AP$60,FALSE),""),IFERROR(VLOOKUP($W24,FeedLibUser[#All],AP$60,FALSE),"")),AP24),IF(AND(ISNUMBER($AI24),$AJ24<>""),AP24,"")) ->  | AQ57: =IF(ISNUMBER($W24),IF($AH24=FALSE,IF($W24<1000,IFERROR(VLOOKUP($W24,FeedLib[#All],AQ$60,FALSE),""),IFERROR(VLOOKUP($W24,FeedLibUser[#All],AQ$60,FALSE),"")),AQ24),IF(AND(ISNUMBER($AI24),$AJ24<>""),AQ24,"")) ->  | AR57: =IF(ISNUMBER($W24),IF($AH24=FALSE,IF($W24<1000,IFERROR(VLOOKUP($W24,FeedLib[#All],AR$60,FALSE),""),IFERROR(VLOOKUP($W24,FeedLibUser[#All],AR$60,FALSE),"")),AR24),IF(AND(ISNUMBER($AI24),$AJ24<>""),AR24,"")) ->  | AS57: =IF(ISNUMBER($W24),IF($AH24=FALSE,IF($W24<1000,IFERROR(VLOOKUP($W24,FeedLib[#All],AS$60,FALSE),""),IFERROR(VLOOKUP($W24,FeedLibUser[#All],AS$60,FALSE),"")),AS24),IF(AND(ISNUMBER($AI24),$AJ24<>""),AS24,"")) ->  | AT57: =IF(ISNUMBER($W24),IF($AH24=FALSE,IF($W24<1000,IFERROR(VLOOKUP($W24,FeedLib[#All],AT$60,FALSE),""),IFERROR(VLOOKUP($W24,FeedLibUser[#All],AT$60,FALSE),"")),AT24),IF(AND(ISNUMBER($AI24),$AJ24<>""),AT24,"")) ->  | AU57: =IF(ISNUMBER($W24),IF($AH24=FALSE,IF($W24<1000,IFERROR(VLOOKUP($W24,FeedLib[#All],AU$60,FALSE),""),IFERROR(VLOOKUP($W24,FeedLibUser[#All],AU$60,FALSE),"")),AU24),IF(AND(ISNUMBER($AI24),$AJ24<>""),AU24,"")) ->  | AV57: =IF(ISNUMBER($W24),IF($AH24=FALSE,IF($W24<1000,IFERROR(VLOOKUP($W24,FeedLib[#All],AV$60,FALSE),""),IFERROR(VLOOKUP($W24,FeedLibUser[#All],AV$60,FALSE),"")),AV24),IF(AND(ISNUMBER($AI24),$AJ24<>""),AV24,"")) ->  | AW57: =IF(ISNUMBER($W24),IF($AH24=FALSE,IF($W24<1000,IFERROR(VLOOKUP($W24,FeedLib[#All],AW$60,FALSE),""),IFERROR(VLOOKUP($W24,FeedLibUser[#All],AW$60,FALSE),"")),AW24),IF(AND(ISNUMBER($AI24),$AJ24<>""),AW24,"")) ->  | AX57: =IF(ISNUMBER($W24),IF($AH24=FALSE,IF($W24<1000,IFERROR(VLOOKUP($W24,FeedLib[#All],AX$60,FALSE),""),IFERROR(VLOOKUP($W24,FeedLibUser[#All],AX$60,FALSE),"")),AX24),IF(AND(ISNUMBER($AI24),$AJ24<>""),AX24,"")) ->  | AY57: =IF(ISNUMBER($W24),IF($AH24=FALSE,IF($W24<1000,IFERROR(VLOOKUP($W24,FeedLib[#All],AY$60,FALSE),"")/IF(parmUnit=1,1,2.2046),IFERROR(VLOOKUP($W24,FeedLibUser[#All],AY$60,FALSE),"")/IF(parmUnit=1,1,2.2046)),AY24),IF(AND(ISNUMBER($AI24),$AJ24<>""),AY24,"")) ->  | AZ57: =IF(ISNUMBER($W24),IF($AH24=FALSE,IF($W24<1000,IFERROR(VLOOKUP($W24,FeedLib[#All],AZ$60,FALSE),"")/IF(parmUnit=1,1,2.2046),IFERROR(VLOOKUP($W24,FeedLibUser[#All],AZ$60,FALSE),"")/IF(parmUnit=1,1,2.2046)),AZ24),IF(AND(ISNUMBER($AI24),$AJ24<>""),AZ24,"")) ->  | BA57: =IF(ISNUMBER($W24),IF($AH24=FALSE,IF($W24<1000,IFERROR(VLOOKUP($W24,FeedLib[#All],BA$60,FALSE),"")/IF(parmUnit=1,1,2.2046),IFERROR(VLOOKUP($W24,FeedLibUser[#All],BA$60,FALSE),"")/IF(parmUnit=1,1,2.2046)),BA24),IF(AND(ISNUMBER($AI24),$AJ24<>""),BA24,"")) ->  | BB57: =IF(ISNUMBER($W24),IF($AH24=FALSE,IF($W24<1000,IFERROR(VLOOKUP($W24,FeedLib[#All],BB$60,FALSE),""),IFERROR(VLOOKUP($W24,FeedLibUser[#All],BB$60,FALSE),"")),BB24),IF(AND(ISNUMBER($AI24),$AJ24<>""),BB24,"")) ->  | BC57: =IF(ISNUMBER($W24),IF($AH24=FALSE,IF($W24<1000,IFERROR(VLOOKUP($W24,FeedLib[#All],BC$60,FALSE),""),IFERROR(VLOOKUP($W24,FeedLibUser[#All],BC$60,FALSE),"")),BC24),IF(AND(ISNUMBER($AI24),$AJ24<>""),BC24,"")) ->  | BD57: =IF(ISNUMBER($W24),IF($AH24=FALSE,IF($W24<1000,IFERROR(VLOOKUP($W24,FeedLib[#All],BD$60,FALSE),""),IFERROR(VLOOKUP($W24,FeedLibUser[#All],BD$60,FALSE),"")),BD24),IF(AND(ISNUMBER($AI24),$AJ24<>""),BD24,"")) ->  | BE57: =IF(ISNUMBER($W24),IF($AH24=FALSE,IF($W24<1000,IFERROR(VLOOKUP($W24,FeedLib[#All],BE$60,FALSE),""),IFERROR(VLOOKUP($W24,FeedLibUser[#All],BE$60,FALSE),"")),BE24),IF(AND(ISNUMBER($AI24),$AJ24<>""),BE24,"")) ->  | BF57: =IF(ISNUMBER($W24),IF($AH24=FALSE,IF($W24<1000,IFERROR(VLOOKUP($W24,FeedLib[#All],BF$60,FALSE),""),IFERROR(VLOOKUP($W24,FeedLibUser[#All],BF$60,FALSE),"")),BF24),IF(AND(ISNUMBER($AI24),$AJ24<>""),BF24,"")) ->  | BG57: =IF(ISNUMBER($W24),IF($AH24=FALSE,IF($W24<1000,IFERROR(VLOOKUP($W24,FeedLib[#All],BG$60,FALSE),""),IFERROR(VLOOKUP($W24,FeedLibUser[#All],BG$60,FALSE),"")),BG24),IF(AND(ISNUMBER($AI24),$AJ24<>""),BG24,"")) ->  | BH57: =IF(ISNUMBER($W24),IF($AH24=FALSE,IF($W24<1000,IFERROR(VLOOKUP($W24,FeedLib[#All],BH$60,FALSE),""),IFERROR(VLOOKUP($W24,FeedLibUser[#All],BH$60,FALSE),"")),BH24),IF(AND(ISNUMBER($AI24),$AJ24<>""),BH24,"")) ->  | BI57: =IF(ISNUMBER($W24),IF($AH24=FALSE,IF($W24<1000,IFERROR(VLOOKUP($W24,FeedLib[#All],BI$60,FALSE),""),IFERROR(VLOOKUP($W24,FeedLibUser[#All],BI$60,FALSE),"")),BI24),IF(AND(ISNUMBER($AI24),$AJ24<>""),BI24,"")) ->  | BJ57: =IF(ISNUMBER($W24),IF($AH24=FALSE,IF($W24<1000,IFERROR(VLOOKUP($W24,FeedLib[#All],BJ$60,FALSE),""),IFERROR(VLOOKUP($W24,FeedLibUser[#All],BJ$60,FALSE),"")),BJ24),IF(AND(ISNUMBER($AI24),$AJ24<>""),BJ24,"")) ->  | BK57: =IF(ISNUMBER($W24),IF($AH24=FALSE,IF($W24<1000,IFERROR(VLOOKUP($W24,FeedLib[#All],BK$60,FALSE),""),IFERROR(VLOOKUP($W24,FeedLibUser[#All],BK$60,FALSE),"")),BK24),IF(AND(ISNUMBER($AI24),$AJ24<>""),BK24,"")) ->  | BL57: =IF(ISNUMBER($W24),IF($AH24=FALSE,IF($W24<1000,IFERROR(VLOOKUP($W24,FeedLib[#All],BL$60,FALSE),""),IFERROR(VLOOKUP($W24,FeedLibUser[#All],BL$60,FALSE),"")),BL24),IF(AND(ISNUMBER($AI24),$AJ24<>""),BL24,"")) ->  | BM57: =IF(ISNUMBER($W24),IF($AH24=FALSE,IF($W24<1000,IFERROR(VLOOKUP($W24,FeedLib[#All],BM$60,FALSE),""),IFERROR(VLOOKUP($W24,FeedLibUser[#All],BM$60,FALSE),"")),BM24),IF(AND(ISNUMBER($AI24),$AJ24<>""),BM24,"")) ->  | BN57: =IF(ISNUMBER($W24),IF($AH24=FALSE,IF($W24<1000,IFERROR(VLOOKUP($W24,FeedLib[#All],BN$60,FALSE),""),IFERROR(VLOOKUP($W24,FeedLibUser[#All],BN$60,FALSE),"")),BN24),IF(AND(ISNUMBER($AI24),$AJ24<>""),BN24,"")) ->  | BO57: =IF(ISNUMBER($W24),IF($AH24=FALSE,IF($W24<1000,IFERROR(VLOOKUP($W24,FeedLib[#All],BO$60,FALSE),""),IFERROR(VLOOKUP($W24,FeedLibUser[#All],BO$60,FALSE),"")),BO24),IF(AND(ISNUMBER($AI24),$AJ24<>""),BO24,"")) ->  | BP57: =IF(ISNUMBER($W24),IF($AH24=FALSE,IF($W24<1000,IFERROR(VLOOKUP($W24,FeedLib[#All],BP$60,FALSE),""),IFERROR(VLOOKUP($W24,FeedLibUser[#All],BP$60,FALSE),"")),BP24),IF(AND(ISNUMBER($AI24),$AJ24<>""),BP24,"")) ->  | BQ57: =IF(ISNUMBER($W24),IF($AH24=FALSE,IF($W24<1000,IFERROR(VLOOKUP($W24,FeedLib[#All],BQ$60,FALSE),""),IFERROR(VLOOKUP($W24,FeedLibUser[#All],BQ$60,FALSE),"")),BQ24),IF(AND(ISNUMBER($AI24),$AJ24<>""),BQ24,"")) ->  | BR57: =IF(ISNUMBER($W24),IF($AH24=FALSE,IF($W24<1000,IFERROR(VLOOKUP($W24,FeedLib[#All],BR$60,FALSE),""),IFERROR(VLOOKUP($W24,FeedLibUser[#All],BR$60,FALSE),"")),BR24),IF(AND(ISNUMBER($AI24),$AJ24<>""),BR24,"")) ->  | BS57: =IF(ISNUMBER($W24),IF($AH24=FALSE,IF($W24<1000,IFERROR(VLOOKUP($W24,FeedLib[#All],BS$60,FALSE),""),IFERROR(VLOOKUP($W24,FeedLibUser[#All],BS$60,FALSE),"")),BS24),IF(AND(ISNUMBER($AI24),$AJ24<>""),BS24,"")) ->  | BT57: =IF(ISNUMBER($W24),IF($AH24=FALSE,IF($W24<1000,IFERROR(VLOOKUP($W24,FeedLib[#All],BT$60,FALSE),""),IFERROR(VLOOKUP($W24,FeedLibUser[#All],BT$60,FALSE),"")),BT24),IF(AND(ISNUMBER($AI24),$AJ24<>""),BT24,"")) ->  | BU57: =IF(ISNUMBER($W24),IF($AH24=FALSE,IF($W24<1000,IFERROR(VLOOKUP($W24,FeedLib[#All],BU$60,FALSE),""),IFERROR(VLOOKUP($W24,FeedLibUser[#All],BU$60,FALSE),"")),BU24),IF(AND(ISNUMBER($AI24),$AJ24<>""),BU24,"")) ->  | BV57: =IF(ISNUMBER($W24),IF($AH24=FALSE,IF($W24<1000,IFERROR(VLOOKUP($W24,FeedLib[#All],BV$60,FALSE),""),IFERROR(VLOOKUP($W24,FeedLibUser[#All],BV$60,FALSE),"")),BV24),IF(AND(ISNUMBER($AI24),$AJ24<>""),BV24,"")) ->  | BW57: =IF(ISNUMBER($W24),IF($AH24=FALSE,IF($W24<1000,IFERROR(VLOOKUP($W24,FeedLib[#All],BW$60,FALSE),""),IFERROR(VLOOKUP($W24,FeedLibUser[#All],BW$60,FALSE),"")),BW24),IF(AND(ISNUMBER($AI24),$AJ24<>""),BW24,"")) ->  | BX57: =IF(ISNUMBER($W24),IF($AH24=FALSE,IF($W24<1000,IFERROR(VLOOKUP($W24,FeedLib[#All],BX$60,FALSE),""),IFERROR(VLOOKUP($W24,FeedLibUser[#All],BX$60,FALSE),"")),BX24),IF(AND(ISNUMBER($AI24),$AJ24<>""),BX24,"")) ->  | BY57: =IF(ISNUMBER($W24),IF($AH24=FALSE,IF($W24<1000,IFERROR(VLOOKUP($W24,FeedLib[#All],BY$60,FALSE),""),IFERROR(VLOOKUP($W24,FeedLibUser[#All],BY$60,FALSE),"")),BY24),IF(AND(ISNUMBER($AI24),$AJ24<>""),BY24,"")) ->  | BZ57: =IF(ISNUMBER($W24),IF($AH24=FALSE,IF($W24<1000,IFERROR(VLOOKUP($W24,FeedLib[#All],BZ$60,FALSE),""),IFERROR(VLOOKUP($W24,FeedLibUser[#All],BZ$60,FALSE),"")),BZ24),IF(AND(ISNUMBER($AI24),$AJ24<>""),BZ24,"")) ->  | CA57: =IF(ISNUMBER($W24),IF($AH24=FALSE,IF($W24<1000,IFERROR(VLOOKUP($W24,FeedLib[#All],CA$60,FALSE),""),IFERROR(VLOOKUP($W24,FeedLibUser[#All],CA$60,FALSE),"")),CA24),IF(AND(ISNUMBER($AI24),$AJ24<>""),CA24,"")) ->  | CB57: =IF(ISNUMBER($W24),IF($AH24=FALSE,IF($W24<1000,IFERROR(VLOOKUP($W24,FeedLib[#All],CB$60,FALSE),""),IFERROR(VLOOKUP($W24,FeedLibUser[#All],CB$60,FALSE),"")),CB24),IF(AND(ISNUMBER($AI24),$AJ24<>""),CB24,"")) ->  | CC57: =IF(ISNUMBER($W24),IF($AH24=FALSE,IF($W24<1000,IFERROR(VLOOKUP($W24,FeedLib[#All],CC$60,FALSE),""),IFERROR(VLOOKUP($W24,FeedLibUser[#All],CC$60,FALSE),"")),CC24),IF(AND(ISNUMBER($AI24),$AJ24<>""),CC24,"")) ->  | CD57: =IF(ISNUMBER($W24),IF($AH24=FALSE,IF($W24<1000,IFERROR(VLOOKUP($W24,FeedLib[#All],CD$60,FALSE),""),IFERROR(VLOOKUP($W24,FeedLibUser[#All],CD$60,FALSE),"")),CD24),IF(AND(ISNUMBER($AI24),$AJ24<>""),CD24,"")) ->  | CE57: =IF(ISNUMBER($W24),IF($AH24=FALSE,IF($W24<1000,IFERROR(VLOOKUP($W24,FeedLib[#All],CE$60,FALSE),""),IFERROR(VLOOKUP($W24,FeedLibUser[#All],CE$60,FALSE),"")),CE24),IF(AND(ISNUMBER($AI24),$AJ24<>""),CE24,"")) ->  | CF57: =IF(ISNUMBER($W24),IF($AH24=FALSE,IF($W24<1000,IFERROR(VLOOKUP($W24,FeedLib[#All],CF$60,FALSE),""),IFERROR(VLOOKUP($W24,FeedLibUser[#All],CF$60,FALSE),"")),CF24),IF(AND(ISNUMBER($AI24),$AJ24<>""),CF24,"")) ->  | CG57: =IF(ISNUMBER($W24),IF($AH24=FALSE,IF($W24<1000,IFERROR(VLOOKUP($W24,FeedLib[#All],CG$60,FALSE),""),IFERROR(VLOOKUP($W24,FeedLibUser[#All],CG$60,FALSE),"")),CG24),IF(AND(ISNUMBER($AI24),$AJ24<>""),CG24,"")) ->  | CH57: =IF(ISNUMBER($W24),IF($AH24=FALSE,IF($W24<1000,IFERROR(VLOOKUP($W24,FeedLib[#All],CH$60,FALSE),""),IFERROR(VLOOKUP($W24,FeedLibUser[#All],CH$60,FALSE),"")),CH24),IF(AND(ISNUMBER($AI24),$AJ24<>""),CH24,"")) ->  | CI57: =IF(ISNUMBER($W24),IF($AH24=FALSE,IF($W24<1000,IFERROR(VLOOKUP($W24,FeedLib[#All],CI$60,FALSE),""),IFERROR(VLOOKUP($W24,FeedLibUser[#All],CI$60,FALSE),"")),CI24),IF(AND(ISNUMBER($AI24),$AJ24<>""),CI24,"")) ->  | CJ57: =IF(ISNUMBER($W24),IF($AH24=FALSE,IF($W24<1000,IFERROR(VLOOKUP($W24,FeedLib[#All],CJ$60,FALSE),""),IFERROR(VLOOKUP($W24,FeedLibUser[#All],CJ$60,FALSE),"")),CJ24),IF(AND(ISNUMBER($AI24),$AJ24<>""),CJ24,"")) ->  | CK57: =IF(ISNUMBER($W24),IF($AH24=FALSE,IF($W24<1000,IFERROR(VLOOKUP($W24,FeedLib[#All],CK$60,FALSE),""),IFERROR(VLOOKUP($W24,FeedLibUser[#All],CK$60,FALSE),"")),CK24),IF(AND(ISNUMBER($AI24),$AJ24<>""),CK24,"")) ->  | CL57: =IF(ISNUMBER($W24),IF($AH24=FALSE,IF($W24<1000,IFERROR(VLOOKUP($W24,FeedLib[#All],CL$60,FALSE),""),IFERROR(VLOOKUP($W24,FeedLibUser[#All],CL$60,FALSE),"")),CL24),IF(AND(ISNUMBER($AI24),$AJ24<>""),CL24,"")) ->  | CM57: =IF(ISNUMBER($W24),IF($AH24=FALSE,IF($W24<1000,IFERROR(VLOOKUP($W24,FeedLib[#All],CM$60,FALSE),""),IFERROR(VLOOKUP($W24,FeedLibUser[#All],CM$60,FALSE),"")),CM24),IF(AND(ISNUMBER($AI24),$AJ24<>""),CM24,"")) -> 
